Workbook

Sheet page1

Sheet page2 (hidden)
A1: TASK | B1: LOCATION | C1: TOOL | D1: VARIATION | E1: Subject
A2: Damp Mopping | B2: Hard Flooring (damp mopping) | C2: Flat Mop (hard floor) | D2: Solution poured on floor, area with or without obstacles | E2: P010_1
A3: Damp Mopping | B3: Hard Flooring (damp mopping) | C3: Flat Mop (hard floor) | D3: Use bucket, area with obstacles | E3: P008
A4: Damp Mopping | B4: Hard Flooring (damp mopping) | C4: Flat Mop (hard floor) | D4: Use bucket, area without obstacles | E4: P009_1
A5: Damp Mopping | B5: Hard Flooring (damp mopping) | C5: String Wet Mop | D5: None | E5: P001
A6: Dust Mopping | B6: Hard Flooring (dust mopping) | C6: Dust Mop | D6: Areas with obstacles | E6: P003
A7: Dust Mopping | B7: Hard Flooring (dust mopping) | C7: Dust Mop | D7: Areas without obstacles | E7: P002
A8: Dusting and/or Wiping | B8: Cafeteria/Break Room (dusting/wiping) | C8: Cleaning cloth (cafeteria/break room) | D8: None | E8: P004_2
A9: Dusting and/or Wiping | B9: Conference Rooms (dusting/wiping) | C9: Cleaning cloth (conference room) | D9: None | E9: P001
A10: Dusting and/or Wiping | B10: Drinking Fountains | C10: Cleaning cloth (drinking fountain) | D10: None | E10: P013
A11: Dusting and/or Wiping | B11: Fixtures | C11: Cleaning cloth (fixture) | D11: None | E11: P004_2
A12: Dusting and/or Wiping | B12: Furniture | C12: Cleaning cloth (furniture) | D12: Wiping surfaces at or above than waist level | E12: P004_2
A13: Dusting and/or Wiping | B13: Furniture | C13: Cleaning cloth (furniture) | D13: Wiping surfaces below waist level | E13: P006
A14: Dusting and/or Wiping | B14: Furniture | C14: Duster, cleaning cloth | D14: None | E14: P003
A15: Dusting and/or Wiping | B15: Kitchen/Coffee Bar (dusting/wiping) | C15: Cleaning cloth (kitchen/coffee bar) | D15: Clean multiple items, surfaces | E15: P001
A16: Dusting and/or Wiping | B16: Kitchen/Coffee Bar (dusting/wiping) | C16: Cleaning cloth (kitchen/coffee bar) | D16: None | E16: P005
A17: Dusting and/or Wiping | B17: Reception/Lobby/Elevator Landing (dusting/wiping) | C17: Duster (reception/lobby/levator landing) | D17: None | E17: P002
A18: Elevator Cleaning | B18: Elevator | C18: Backpack Vacuum, corded | D18: None | E18: P002
A19: Elevator Cleaning | B19: Elevator | C19: Cleaning cloth (elevator) | D19: Does not clean above shoulder height | E19: P001
A20: Elevator Cleaning | B20: Elevator | C20: Cleaning cloth (elevator) | D20: Spot cleaning | E20: P009_1
A21: Elevator Cleaning | B21: Elevator | C21: Tools for wiping and dusting | D21: Duster used for cleaning above shoulder height | E21: P002
A22: Elevator Cleaning | B22: Elevator | C22: Tools for wiping and vacuuming | D22: Performs all cleaning tasks in a car | E22: P003
A23: Floor Scrubbing | B23: Hard Flooring (scrubbing) | C23: Walk-behind floor scubber | D23: None | E23: P003
A24: Glass Door Cleaning | B24: Glass Doors | C24: Cleaning cloth, long handled wiping tool | D24: High level cleaning | E24: P003
A25: Glass Door Cleaning | B25: Glass Doors | C25: Cleaning cloth, with or without spray bottle | D25: Moderate level cleaning | E25: P001
A26: Glass Door Cleaning | B26: Glass Doors | C26: Cleaning cloth, with or without spray bottle | D26: Spot cleaning | E26: P002
A27: Office/Cubicle Cleaning | B27: Office/Cubicle Cleaning | C27: Duster (office/cubicle) | D27: None | E27: P008
A28: Office/Cubicle Cleaning | B28: Office/Cubicle Cleaning | C28: Tools to wipe, dust and vacuum | D28: None | E28: P001
A29: Restocking | B29: Kitchen/Coffee Bar (restocking) | C29: Dispenser (kitchen/coffee bar) | D29: Paper towel dispenser | E29: P008
A30: Restocking | B30: Restroom (restocking) | C30: Dispenser (restroom) | D30: Soap dispenser | E30: P001
A31: Restocking | B31: Restroom (restocking) | C31: Dispenser (restroom) | D31: Toilet paper holders | E31: P010_2
A32: Restroom/Locker Room Cleaning | B32: Locker Room | C32: Floor scrub mop, manual | D32: Cleaning shower stalls, only | E32: P011_2
A33: Restroom/Locker Room Cleaning | B33: Locker Room | C33: Tools for cleaning surfaces, floors | D33: Performing numerous cleaning tasks | E33: P003
A34: Restroom/Locker Room Cleaning | B34: Restroom (cleaning) | C34: Flat Mop (restroom) | D34: Cleaning high areas | E34: P010_2
A35: Restroom/Locker Room Cleaning | B35: Restroom (cleaning) | C35: Tools for cleaning surfaces, toilets, floors | D35: Angled/long handled toilet brush, flat mop used | E35: P004_1
A36: Restroom/Locker Room Cleaning | B36: Restroom (cleaning) | C36: Tools for cleaning surfaces, toilets, floors | D36: Straight/long handled toilet brush, flat mop used | E36: P013
A37: Restroom/Locker Room Cleaning | B37: Restroom (cleaning) | C37: Tools for cleaning surfaces, toilets, floors | D37: Straight-handled toilet brush, flat mop used | E37: P011_1
A38: Restroom/Locker Room Cleaning | B38: Restroom (cleaning) | C38: Tools for cleaning surfaces, toilets, floors | D38: Straight-handled toilet brush, string mop used | E38: P001
A39: Trashing | B39: Cafeteria/Break Room (trashing) | C39: Large trash bin w/ liner (cafeteria/break room) | D39: None | E39: P009_1
A40: Trashing | B40: Conference Room (trashing) | C40: Large trash bin w/ liner (conference room) | D40: None | E40: P012
A41: Trashing | B41: Conference Room (trashing) | C41: Small trash bin w/ liner (conference room) | D41: None | E41: P009_1
A42: Trashing | B42: Dumpster on Dock | C42: Large trash bin w/o liner (dumpster) | D42: None | E42: P012
A43: Trashing | B43: Kitchen/Coffee Bar (trashing) | C43: Large trash bin w/ liner (kitchen/coffee bar) | D43: Empties a single bin or contents are light | E43: P008
A44: Trashing | B44: Kitchen/Coffee Bar (trashing) | C44: Large trash bin w/ liner (kitchen/coffee bar) | D44: Empties multiple bins or contents are heavy | E44: P013
A45: Trashing | B45: Kitchen/Coffee Bar (trashing) | C45: Small trash bin w/ liner (kitchen/coffee bar) | D45: None | E45: P008
A46: Trashing | B46: Offices/Cubicles | C46: Large trash bin w/ liner (office/cubicle) | D46: Empties multiple bins at each location | E46: P011_1
A47: Trashing | B47: Offices/Cubicles | C47: Large trash bin w/ liner (office/cubicle) | D47: Empties single bin at each location | E47: P005
A48: Trashing | B48: Offices/Cubicles | C48: Large trash bin w/o liner (office/cubicle) | D48: Bins are lifted to empty contents | E48: P005
A49: Trashing | B49: Offices/Cubicles | C49: Large trash bin w/o liner (office/cubicle) | D49: Bins emptied without lifting | E49: P011_1
A50: Trashing | B50: Offices/Cubicles | C50: Small trash bin w/ liner (office/cubicle) | D50: Kneels to empty bin | E50: P001
A51: Trashing | B51: Offices/Cubicles | C51: Small trash bin w/ liner (office/cubicle) | D51: Stands to empty bins | E51: P008
A52: Trashing | B52: Reception/Lobby/Elevator Landing (trashing) | C52: Large trash bin w/ liner (reception etc.) | D52: A single bin in multiple locations | E52: P009_1
A53: Trashing | B53: Reception/Lobby/Elevator Landing (trashing) | C53: Large trash bin w/ liner (reception etc.) | D53: A single bin in only one location | E53: P002
A54: Trashing | B54: Reception/Lobby/Elevator Landing (trashing) | C54: Large trash bin w/ liner (reception etc.) | D54: Multiple bins in a single location | E54: P013
A55: Trashing | B55: Reception/Lobby/Elevator Landing (trashing) | C55: Small trash bin w/ liner (reception etc.) | D55: None | E55: P002
A56: Trashing | B56: Restrooms/Locker Rooms | C56: Large trash bin w/ liner (restroom/locker room) | D56: None | E56: P012
A57: Trashing | B57: Restrooms/Locker Rooms | C57: Small trash bin w/ liner (restroom/locker room) | D57: None | E57: P012
A58: Vacuuming | B58: Carpet | C58: Backpack vacuum (carpet) | D58: Area cleaning | E58: P004_2
A59: Vacuuming | B59: Carpet | C59: Backpack vacuum (carpet) | D59: Carpet paddle head | E59: P009_1
A60: Vacuuming | B60: Carpet | C60: Backpack vacuum (carpet) | D60: Conventional carpet head | E60: P004_2
A61: Vacuuming | B61: Carpet | C61: Backpack vacuum (carpet) | D61: None | E61: P004_2
A62: Vacuuming | B62: Carpet | C62: Backpack vacuum (carpet) | D62: None | E62: P012
A63: Vacuuming | B63: Carpet | C63: Backpack vacuum (carpet) | D63: Spot cleaning | E63: P002
A64: Vacuuming | B64: Carpet | C64: Backpack vacuum (carpet) | D64: Uses carpet paddle attachment | E64: P009_2
A65: Vacuuming | B65: Carpet | C65: Upright vacuum | D65: None | E65: P003
A66: Vacuuming | B66: Hard flooring (vacuuming) | C66: Backpack vacuum (hard floor) | D66: None | E66: P009_1
A67: Vacuuming | B67: Hard flooring (vacuuming) | C67: Backpack vacuum (hard floor) | D67: tall handle, tank <20 inches | E67: P012
A68: Vacuuming | B68: Hard flooring (vacuuming) | C68: Backpack vacuum (hard floor) | D68: tall handle, tank >20 inches | E68: P008
A69: Vacuuming | B69: Office/cubicle (vacuuming) | C69: Backpack vacuum (office/cubicle) | D69: None | E69: P007
A70: Vacuuming | B70: Stairwells/Stairway Landings | C70: Backpack vacuum (stairwell/landing) | D70: More time doing prep work | E70: P011_2
A71: Vacuuming | B71: Stairwells/Stairway Landings | C71: Backpack vacuum (stairwell/landing) | D71: More time vacuuming | E71: P004_2
A72: Vacuuming | B72: Stairwells/Stairway Landings | C72: Backpack vacuum (stairwell/landing) | D72: None | E72: P010_2
A73: Vacuuming | B73: Walk-off mats | C73: Backpack vacuum (walk-off mats) | D73: Uses conventional vacuum attachment | E73: P002
A74: Vacuuming | B74: Walk-off mats | C74: Backpack vacuum (walk-off mats) | D74: Uses power vacuum attachment | E74: P004_2

Sheet Drop Down (hidden)
A1: TASK
A2: Damp Mopping
A3: Dust Mopping
A4: Dusting and/or Wiping
A5: Elevator Cleaning
A6: Floor Scrubbing
A7: Glass Door Cleaning
A8: Office/Cubicle Cleaning
A9: Restocking
A10: Restroom/Locker Room Cleaning
A11: Trashing
A12: Vacuuming

Sheet page3 (hidden)
A1: Task | B1: Location | C1: Tool | D1: Variation | E1: Hour | F1: Productivity | H1: Task description | I1: Location description | J1: Tool description | K1: Variation description | L1: Productivity measure | M1: Standard rate | N1: Observed rate | P1: Subject | Q1: Task | R1: Location | S1: Tool | T1: TASK1 | U1: LOCATION1 | V1: TOOL1 | W1: Task_d | X1: Location_d | Y1: Tool_d | Z1: Age | AA1: Weight | AB1: HR_MIN | AC1: METs_MIN | AD1: HR_MAX | AE1: METs_MAX | AF1: HR_MEAN | AG1: METs_MEAN | AH1: HR_STD | AI1: METs_STD | AJ1: HR_rest | AK1: HRR | AL1: Steps_N | AM1: Calories_N | AN1: Steps_Sum | AO1: Calories_Sum | AP1: Duration | AQ1: Steps_per_hr | AR1: Cal_per_hr | AS1: Vector_Sum_N | AT1: Forward_N | AU1: Sideways_N | AV1: Vector_Sum_Min | AW1: Forward_Min | AX1: Sideways_Min | AY1: Vector_Sum_Max | AZ1: Forward_Max | BA1: Sideways_Max | BB1: Vector_Sum_Mean | BC1: Forward_Mean | BD1: Sideways_Mean | BE1: Vector_Sum_Median | BF1: Forward_Median | BG1: Sideways_Median | BH1: Vector_Sum_StdDev | BI1: Forward_StdDev | BJ1: Sideways_StdDev | BK1: Vector_Sum_P5 | BL1: Forward_P5 | BM1: Sideways_P5 | BN1: Vector_Sum_P10 | BO1: Forward_P10 | BP1: Sideways_P10 | BQ1: Vector_Sum_P90 | BR1: Forward_P90 | BS1: Sideways_P90 | BT1: Vector_Sum_P95 | BU1: Forward_P95 | BV1: Sideways_P95 | BW1: Count_C1 | BX1: Count_C2 | BY1: Count_C3 | BZ1: Count_C4 | CA1: Freq_sum | CB1: C1_pct | CC1: C2_pct | CD1: C3_pct | CE1: C4_pct | CF1: Date | CG1: Site | CH1: Walking__Total_steps_ | CI1: Total_Standard_time__minute_ | CJ1: Observed_time__minute_ | CK1: Deviation | CL1: Percent_change | CM1: Ratio | CN1: _Deviation | CO1: Pace | CP1: Pace_corrected | CQ1: Note__Jim_ | CR1: Note__Wonil_ | CS1: Action | CT1: Analyst | CU1: COSI | CV1: Cycle_time | CW1: Force | CX1: Speed | CY1: Awkwardness | CZ1: Vibration | DA1: Total_time | DB1: Repetition_risk | DC1: Exertion_risk | DD1: Risk_score | DE1: Exertion_awkwardness | DF1: Dur_e_sldr | DG1: Recovery_sldr | DH1: Rest_ava_sldr | DI1: R_ratio_sldr | DJ1: Dur_e_back | DK1: Recovery_back | DL1: Rest_ava_back | DM1: R_ratio_back | DO1: HRR*Hr | DP1: Step/hr*Hr | DQ1: Cal/hr*Hr | DS1: Shoulder RCRA_exertion duration (s) | DT1: Shoulder_RCRA_Task recovery allowance required | DU1: Shoulder_Task ratio | DW1: Back RCRA_exertion duration (s) | DX1: Back_RCRA_Task recovery allowance required | DY1: Back_Task ratio | EA1: ManTRA action | EB1: ManTRA Total Time | EC1: Cumulative Risk Score | ED1: Cumulative Risk ScoreXDuration | EF1: Hours_standard pace (Hrs) | EG1: Hours_observed pace (Hrs) | EH1: Planned rate (per hour) | EI1: Time ratio (observed/standard | EJ1: Time ratio (planned/standard) | EK1: Enough time? | EM1: Duration (ManTRA) | EN1: Exertion Risk x Duration | EO1: Exertion&Awkwardness X duration | EP1: Overall job risk level | EQ1: adjusted calculations | ER1: Work pace | ES1: Task | ET1: Location | EU1: Tool | EV1: Variation | EW1: Hour | EX1: Productivity | EY1: Standard rate | EZ1: Observed rate | FA1: Planned rate | FB1: Heart rate | FC1: HR_MEAN_STD_adj | FD1: HR_MEAN_PLD_adj | FE1: METs_MEAN_STD_adj | FF1: METs_MEAN_PLD_adj | FG1: HRR_STD_adj | FH1: HRR_PLD_adj | FI1: Steps/hr_STD_adj | FJ1: Steps/hr_PLD_adj | FK1: Cal/hr_STD_adj | FL1: Cal/hr_PLD_adj
A2: Glass Door Cleaning | B2: Glass Doors | C2: Cleaning cloth, long handled wiping tool | D2: High level cleaning | E2: 4 | F2: 20 | G2: =CONCATENATE(A2,B2,C2,D2) -> Glass Door CleaningGlass DoorsCleaning cloth, long handled wiping toolHigh level cleaning | H2: =IF($A2="","",INDEX(H$22:H$94,MATCH($G2,$G$22:$G$94,0))) -> Cleaning glass doors, either inside or out | I2: =IF($A2="","",INDEX(I$22:I$94,MATCH($G2,$G$22:$G$94,0))) -> Lobby doors, revolving doors, parking garage doors | J2: Cleaning cloth of any material | K2: High level clean: entire door surface (high and low) is cleaned; use of long handled cleaning tool to reach above shoulder level; wipes door thresholds and surfaces around door | L2: No. of door | M2: 19.99170124 | N2: 19.11904762 | P2: P003 | Q2: Glass door cleaning | R2: Glass door | S2: Cloth, trigger sprayer | T2: Glass_door_cleaning | U2: Glass door | V2: Cloth, trigger sprayer | W2: Glass door cleaning | X2: Glass door | Y2: =IF($A2="","",INDEX(Y$22:Y$94,MATCH($G2,$G$22:$G$94,0))) -> Cloth, trigger sprayer | Z2: 65 | AA2: 54 | AB2: 74 | AC2: 1 | AD2: 97 | AE2: 3.2 | AF2: 85.2504957 | AG2: 2.063053536 | AH2: 4.392307951 | AI2: 0.845539453 | AJ2: 59.5 | AK2: 26.96386984 | AL2: 1513 | AM2: 1513 | AN2: 192 | AO2: 38.78719992 | AP2: 1 | AQ2: 456.8407138 | AR2: 92.28943801 | AS2: 15130 | AT2: 15130 | AU2: 15130 | AV2: 0.250771 | AW2: -7.59136 | AX2: 0.00020482 | AY2: 102.012 | AZ2: 102.511 | BA2: 177.504 | BB2: 25.82667232 | BC2: 22.93157616 | BD2: 15.52485412 | BE2: 17.8579 | BF2: 14.8803 | BG2: 8.82598 | BH2: 22.78074015 | BI2: 23.849291 | BJ2: 24.96257784 | BK2: 5.70579 | BL2: 0.198627 | BM2: 0.649664 | BN2: 8.025795 | BO2: 3.38142 | BP2: 1.35169 | BQ2: 63.3315 | BR2: 61.96945 | BS2: 28.09185 | BT2: 84.3246 | BU2: 84.1095 | BV2: 69.9158 | BW2: 19 | BX2: 9993 | BY2: 3545 | BZ2: 1573 | CA2: 15130 | CB2: 0.125578321 | CC2: 66.04758757 | CD2: 23.43027099 | CE2: 10.39656312 | CF2: 43752 | CG2: ABM | CH2: 227 | CI2: 24.1 | CJ2: 25.2 | CK2: =IF($A2="","",INDEX(CK$22:CK$94,MATCH($G2,$G$22:$G$94,0))) -> -1.1 | CL2: 0.04 | CM2: 1 | CN2: 0.05 | CO2: Slower | CP2: Slower | CQ2: 0 | CR2: Updated results, ISSA2021 data ratio 1.0, Check my calculation-> My analysis is correct | CS2: No | CT2: WL | CU2: 15.21573473 | CV2: 4 | CW2: 2 | CX2: 2 | CY2: 3 | CZ2: 1 | DA2: =IF($A2="","",INDEX(DA$22:DA$94,MATCH($G2,$G$22:$G$94,0))) -> 4 | DB2: 2 | DC2: 2 | DD2: 12 | DE2: 5 | DF2: 0 | DG2: 0 | DH2: 0 | DI2: 0 | DJ2: 18311.80685 | DK2: 711521.557 | DL2: 10488.19315 | DM2: 67.84024159 | DO2: =IF(AK2 = "", "", AK2*$E2) -> 107.8554794 | DP2: =IF(AQ2="", "", AQ2*$E2) -> 1827.362855 | DQ2: =IF(AR2="", "", AR2*$E2) -> 369.157752 | DS2: =page5!AB3 -> 4130.655376 | DT2: =page5!AC3 -> 3999.533178 | DU2: =IF(E2="","", DT2/(E2*60*60-DS2)) -> 0.3894633324 | DW2: =page6!AB3 -> 4577.951713 | DX2: =page6!AC3 -> 177880.3893 | DY2: =IF(E2="","", DW2/(E2*60*60-DW2)) -> 0.4660893104 | EA2: =IF(E2="","", IF((IF(DC2 = 5, 1, 0) + IF(DE2>=8, 1, 0)+IF(EC2>=15, 1,0))>=1, "Yes", "No")) -> No | EB2: =IF(E2>8, 5, IF(E2>6, 4, IF(E2>4, 3, IF(E2>2, 2, IF(E2>0,1, ""))))) -> 2 | EC2: =IF(E2="","", EB2+DB2+DC2+CY2+CZ2) -> 10 | ED2: =IF(E2="","", EC2*E2) -> 40 | EF2: =IF(M2="", "", F2/M2) -> 1.00041511 | EG2: =IF(N2="", "", F2/N2) -> 1.04607721 | EH2: =IF(E2="", "", F2/E2) -> 5 | EI2: =IF(EF2="", "", EG2/EF2) -> 1.045643154 | EJ2: =IF(EF2="", "", E2/EF2) -> 3.998340249 | EK2: =IF(EJ2="", "", IF(EJ2<1, "No", "Yes")) -> Yes | EM2: =IF($A2="","",INDEX(EM$22:EM$94,MATCH($G2,$G$22:$G$94,0))) -> 1 | EN2: =IF(E2="", "", E2*DC2) -> 8 | EO2: =IF(E2="","", E2*DE2) -> 20 | EP2: =IF(A2="","", IF(DC2=5, "High", IF(DE2>=8, "High", IF(EC2>=15, "High", "Low")))) -> Low | ER2: 1 | ES2: =IF(A2="", "", A2) -> Glass Door Cleaning | ET2: Glass Doors | EU2: Cleaning cloth, long handled wiping tool | EV2: High level cleaning | EW2: 4 | EX2: 20 | EY2: =IF(M2="", "", M2) -> 19.99170124 | EZ2: =IF(N2="", "", N2) -> 19.11904762 | FA2: =IF(E2="", "", F2/E2) -> 5
G3: =CONCATENATE(A3,B3,C3,D3) ->  | H3: =IF($A3="","",INDEX(H$22:H$94,MATCH($G3,$G$22:$G$94,0))) ->  | Q3: =IF($A3="","",INDEX(Q$22:Q$94,MATCH($G3,$G$22:$G$94,0))) ->  | DO3: =IF(AK3 = "", "", AK3*$E3) ->  | DP3: =IF(AQ3="", "", AQ3*$E3) ->  | DQ3: =IF(AR3="", "", AR3*$E3) ->  | DS3: =page5!AB18 ->  | DT3: =page5!AC18 ->  | DU3: =IF(E3="","", DT3/(E3*60*60-DS3)) ->  | DW3: =page6!AB18 ->  | DX3: =page6!AC18 ->  | DY3: =IF(E3="","", DW3/(E3*60*60-DW3)) ->  | EA3: =IF(E3="","", IF((IF(DC3 = 5, 1, 0) + IF(DE3>=8, 1, 0)+IF(EC3>=15, 1,0))>=1, "Yes", "No")) ->  | EB3: =IF(E3>8, 5, IF(E3>6, 4, IF(E3>4, 3, IF(E3>2, 2, IF(E3>0,1, ""))))) ->  | EC3: =IF(E3="","", EB3+DB3+DC3+CY3+CZ3) ->  | ED3: =IF(E3="","", EC3*E3) ->  | EF3: =IF(M3="", "", F3/M3) ->  | EG3: =IF(N3="", "", F3/N3) ->  | EH3: =IF(E3="", "", F3/E3) ->  | EI3: =IF(EF3="", "", EG3/EF3) ->  | EJ3: =IF(EF3="", "", E3/EF3) ->  | EK3: =IF(EJ3="", "", IF(EJ3<1, "No", "Yes")) ->  | EM3: =IF($A3="","",INDEX(EM$22:EM$94,MATCH($G3,$G$22:$G$94,0))) ->  | EN3: =IF(E3="", "", E3*DC3) ->  | EO3: =IF(E3="","", E3*DE3) ->  | EP3: =IF(A3="","", IF(DC3=5, "High", IF(DE3>=8, "High", IF(EC3>=15, "High", "Low")))) ->  | ER3: 2 | ES3: =IF(A3="", "", A3) ->  | ET3: =IF(B3="", "", B3) ->  | EU3: =IF(C3="", "", C3) ->  | EV3: =IF(D3="", "", D3) ->  | EW3: =IF(E3="", "", E3) ->  | EX3: =IF(F3="", "", F3) ->  | EY3: =IF(M3="", "", M3) ->  | EZ3: =IF(N3="", "", N3) ->  | FA3: =IF(E3="", "", F3/E3) -> 
DS4: =page5!AB33 ->  | DT4: =page5!AC33 ->  | DW4: =page6!AB33 ->  | DX4: =page6!AC33 ->  | ER4: 3
DS5: =page5!AB48 ->  | DT5: =page5!AC48 ->  | DW5: =page6!AB48 ->  | DX5: =page6!AC48 ->  | ER5: 4
CB6: =IF($A6="","",INDEX(CB$22:CB$94,MATCH($G6,$G$22:$G$94,0))) ->  | DS6: =page5!AB63 ->  | DT6: =page5!AC63 ->  | DW6: =page6!AB63 ->  | DX6: =page6!AC63 ->  | ER6: 5
Q7: =IF($A7="","",INDEX(Q$22:Q$94,MATCH($G7,$G$22:$G$94,0))) ->  | DS7: =page5!AB78 ->  | DT7: =page5!AC78 ->  | DW7: =page6!AB78 ->  | DX7: =page6!AC78 ->  | ER7: 6
DS8: =page5!AB93 ->  | DT8: =page5!AC93 ->  | DW8: =page6!AB93 ->  | DX8: =page6!AC93 ->  | ER8: 7
DS9: =page5!AB108 ->  | DT9: =page5!AC108 ->  | DW9: =page6!AB108 ->  | DX9: =page6!AC108 ->  | ER9: 8
CB10: =IF($A10="","",INDEX(CB$22:CB$94,MATCH($G10,$G$22:$G$94,0))) ->  | DS10: =page5!AB123 ->  | DT10: =page5!AC123 ->  | DW10: =page6!AB123 ->  | DX10: =page6!AC123 ->  | ER10: 9
Q11: =IF($A11="","",INDEX(Q$22:Q$94,MATCH($G11,$G$22:$G$94,0))) ->  | DS11: =page5!AB138 ->  | DT11: =page5!AC138 ->  | DW11: =page6!AB138 ->  | DX11: =page6!AC138 ->  | ER11: 10
AE12: average | AF12: =AVERAGE(AF2:AF11) -> 85.2504957 | AG12: =AVERAGE(AG2:AG11) -> 2.063053536 | AK12: =AVERAGE(AK2:AK11) -> 26.96386984 | AQ12: =AVERAGE(AQ2:AQ11) -> 456.8407138 | AR12: =AVERAGE(AR2:AR11) -> 92.28943801 | DB12: TWA | DC12: =EN13/E13 -> 2 | DE12: =EO13/E13 -> 5 | DN12: sum | DO12: =SUM(DO2:DO11) -> 107.8554794 | DP12: =SUM(DP2:DP11) -> 1827.362855 | DQ12: =SUM(DQ2:DQ11) -> 369.157752 | DS12: =SUM(DS2:DS11) -> 4130.655376 | DT12: =SUM(DT2:DT11) -> 3999.533178 | DU12: Sum | DW12: =SUM(DW2:DW11) -> 4577.951713 | DX12: =SUM(DX2:DX11) -> 177880.3893 | DY12: Sum | EB12: peak | EC12: =MAX(EC2:EC11) -> 10 | EF12: Sum | EG12: Sum | EI12: Overall time ratio (observed/standard) | EJ12: Overall time ratio (planned/standard) | EK12: Enough time? | EP12: =IF(DC13=5, "High", IF(DE13>=8, "High", IF(EC12>=15, "High", "Low"))) -> Low | FB12: average/most common
A13: User group: | B13: 1 | D13: Total number of hours: | E13: =SUM(E2:E12) -> 4 | AE13: max | AF13: =MAX(AF2:AF11) -> 85.2504957 | AG13: =MAX(AG2:AG11) -> 2.063053536 | AK13: =MAX(AK2:AK11) -> 26.96386984 | AQ13: =MAX(AQ2:AQ11) -> 456.8407138 | AR13: =MAX(AR2:AR11) -> 92.28943801 | DB13: Peak | DC13: =MAX(DC2:DC12) -> 2 | DE13: =MAX(DE2:DE12) -> 5 | DN13: TWA | DO13: =DO12/E13 -> 26.96386984 | DS13: =E13*60*60-DS12 -> 10269.34462 | DT13: =DT12/DS13 -> 0.3894633324 | DU13: Job | DW13: =E13*60*60-DW12 -> 9822.048287 | DX13: =DX12/DW13 -> 18.11031508 | DY13: Job | EB13: Most common | EC13: =INDEX(EC1:EC10, MATCH($E$14, $E1:$E10, 0)) -> 10 | EF13: =SUM(EF2:EF11) -> 1.00041511 | EG13: =SUM(EG2:EG11) -> 1.04607721 | EI13: =IF(EF13="", "", EG13/EF13) -> 1.045643154 | EJ13: =E13/EF13 -> 3.998340249 | EK13: Yes | EM13: sum | EN13: =SUM(EN2:EN12) -> 8 | EO13: =SUM(EO2:EO12) -> 20 | EP13: =IF(DC14=5, "High", IF(DE14>=8, "High", IF(EC13>=15, "High", "Low"))) -> Low | FB13: Max/peak
D14: most common task: | E14: =MAX(E2:E11) -> 4 | AE14: TWA | DB14: Most common | DC14: =INDEX(DC2:DC11, MATCH($E$14, $E2:$E11, 0)) -> 2 | DE14: =INDEX(DE2:DE11, MATCH($E$14, $E2:$E11, 0)) -> 5 | DT14: =IF(DT13>1, "No", "Yes") -> Yes | DX14: =IF(DX13>1, "No", "Yes") -> No | EB14: TWA | EC14: =SUM($ED$2:$ED$11)/$E$13 -> 10 | EP14: =IF(DC12=5, "High", IF(DE12>=8, "High", IF(EC14>=15, "High", "Low"))) -> Low | FB14: TWA
FB15: Total/sum
EJ16: 1
A20: Reference Data | P20: Original dataset
A21: Task | B21: Location | C21: Tool | D21: Variation | E21: Hour | F21: Productivity | H21: Task description | I21: Location description | J21: Tool description | K21: Variation description | L21: Productivity measure | M21: Standard rate | N21: Actual rate | P21: Subject | Q21: Task | R21: Location | S21: Tool | T21: TASK1 | U21: LOCATION1 | V21: TOOL1 | W21: Task_d | X21: Location_d | Y21: Tool_d | Z21: Age | AA21: Weight | AB21: HR_MIN | AC21: METs_MIN | AD21: HR_MAX | AE21: METs_MAX | AF21: HR_MEAN | AG21: METs_MEAN | AH21: HR_STD | AI21: METs_STD | AJ21: HR_rest | AK21: HRR | AL21: Steps_N | AM21: Calories_N | AN21: Steps_Sum | AO21: Calories_Sum | AP21: Duration | AQ21: Steps_per_hr | AR21: Cal_per_hr | AS21: Vector_Sum_N | AT21: Forward_N | AU21: Sideways_N | AV21: Vector_Sum_Min | AW21: Forward_Min | AX21: Sideways_Min | AY21: Vector_Sum_Max | AZ21: Forward_Max | BA21: Sideways_Max | BB21: Vector_Sum_Mean | BC21: Forward_Mean | BD21: Sideways_Mean | BE21: Vector_Sum_Median | BF21: Forward_Median | BG21: Sideways_Median | BH21: Vector_Sum_StdDev | BI21: Forward_StdDev | BJ21: Sideways_StdDev | BK21: Vector_Sum_P5 | BL21: Forward_P5 | BM21: Sideways_P5 | BN21: Vector_Sum_P10 | BO21: Forward_P10 | BP21: Sideways_P10 | BQ21: Vector_Sum_P90 | BR21: Forward_P90 | BS21: Sideways_P90 | BT21: Vector_Sum_P95 | BU21: Forward_P95 | BV21: Sideways_P95 | BW21: Count_C1 | BX21: Count_C2 | BY21: Count_C3 | BZ21: Count_C4 | CA21: Freq_sum | CB21: C1_pct | CC21: C2_pct | CD21: C3_pct | CE21: C4_pct | CF21: Date | CG21: Site | CH21: Walking__Total_steps_ | CI21: Total_Standard_time__minute_ | CJ21: Observed_time__minute_ | CK21: Deviation | CL21: Percent_change | CM21: Ratio | CN21: _Deviation | CO21: Pace | CP21: Pace_corrected | CQ21: Note__Jim_ | CR21: Note__Wonil_ | CS21: Action | CT21: Analyst | CU21: COSI | CV21: Cycle_time | CW21: Force | CX21: Speed | CY21: Awkwardness | CZ21: Vibration | DA21: Total_time | DB21: Repetition_risk | DC21: Exertion_risk | DD21: Risk_score | DE21: Exertion_awkwardness | DF21: Dur_e_sldr | DG21: Recovery_sldr | DH21: Rest_ava_sldr | DI21: R_ratio_sldr | DJ21: Dur_e_back | DK21: Recovery_back | DL21: Rest_ava_back | DM21: R_ratio_back | EM21: Duration (ManTRA)
A22: Damp Mopping | B22: Hard Flooring (damp mopping) | C22: Flat Mop (hard floor) | D22: Solution poured on floor, area with or without obstacles | G22: =CONCATENATE(A22,B22,C22,D22) -> Damp MoppingHard Flooring (damp mopping)Flat Mop (hard floor)Solution poured on floor, area with or without obstacles | H22: Light cleaning of flooring using a solution with or without a cleaning agent. | I22: Flooring may be tile, marble, linoleum, cement | J22: The mop head consists of a long pad; mop head may or may not be hinged | K22: Cleaning solution applied directly to the floor, area may or may not have furniture or design features (e.g. planters, art displays) | L22: Sq. ft. of floor | M22: 1437.5 | N22: 715.0259067 | P22: P010_1 | Q22: Damp mopping | R22: Hard floor | S22: 18" flat mop | T22: Damp_mopping | U22: Hard floor | V22: 18" flat mop | W22: Damp mopping | X22: Hard floor | Y22: 18" flat mop | Z22: 67 | AA22: 82 | AB22: 87 | AC22: 1 | AD22: 126 | AE22: 5.6 | AF22: 104.4792388 | AG22: 3.205363322 | AH22: 9.618277232 | AI22: 1.398083644 | AJ22: 74.1 | AK22: =IF(AF22="","", (AF22-AJ22)/(220-Z22-AJ22)*100) -> 38.50347123 | AL22: 1156 | AM22: 1156 | AN22: 674 | AO22: 67.52100038 | AP22: 1 | AQ22: 2098.961938 | AR22: 210.2730116 | AS22: 11560 | AT22: 11560 | AU22: 11560 | AV22: 0.0469116 | AW22: -10.9853 | AX22: 0.000167681 | AY22: 79.243 | AZ22: 78.694 | BA22: 69.0583 | BB22: 15.79396305 | BC22: 12.75250138 | BD22: 7.813125382 | BE22: 12.2994 | BF22: 8.68903 | BG22: 5.85837 | BH22: 13.21205473 | BI22: 13.77473103 | BJ22: 7.410370436 | BK22: 1.62962 | BL22: -1.497805 | BM22: 0.4896425 | BN22: 2.73283 | BO22: -0.327502 | BP22: 0.941314 | BQ22: 32.99695 | BR22: 30.62545 | BS22: 16.197 | BT22: 40.13265 | BU22: 37.81025 | BV22: 19.91145 | BW22: 84 | BX22: 8443 | BY22: 2903 | BZ22: 130 | CA22: 11560 | CB22: 0.726643599 | CC22: 73.03633218 | CD22: 25.11245675 | CE22: 1.124567474 | CF22: 2020-01-07 | CG22: UW | CH22: 674 | CI22: 9.6 | CJ22: 19.3 | CK22: -9.7 | CL22: 0.67 | CM22: 0.5 | CN22: 1.01 | CO22: Slower | CP22: =IF(CN22<0,"Faster",(IF(CN22>0,"Slower","Equal"))) -> Slower | CQ22: include, walking | CR22: Check area measurements. The optimistic production rate is very high | CS22: No | CT22: NH | CU22: 14.29917893 | CV22: 4 | CW22: 1 | CX22: 2 | CY22: 2 | CZ22: 1 | DA22: 4 | DB22: 2 | DC22: 1 | DD22: 10 | DE22: 3 | DJ22: 4749.839727 | DK22: 14213.62852 | DL22: 24050.16027 | DM22: 0.590999326 | EM22: 1
A23: Damp Mopping | B23: Hard Flooring (damp mopping) | C23: Flat Mop (hard floor) | D23: Use bucket, area with obstacles | G23: Damp MoppingHard Flooring (damp mopping)Flat Mop (hard floor)Use bucket, area with obstacles | H23: Light cleaning of flooring using a solution with or without a cleaning agent. | I23: Flooring may be tile, marble, linoleum, cement | J23: The mop head consists of a long pad; mop head may or may not be hinged | K23: Cleaning solution is in a bucket, must clean around/underneath furniture or design features (e.g. planters, art displays) | L23: Sq. ft. of floor | M23: 4898.028169 | N23: 4742.181818 | P23: P008 | Q23: Damp mopping | R23: Hard floor | S23: 18" flat mop | T23: Damp_mopping | U23: Hard floor | V23: 18" flat mop | W23: Damp mopping | X23: Hard floor | Y23: 18" flat mop | Z23: 49 | AA23: 87 | AB23: 71 | AC23: 1 | AD23: 103 | AE23: 5.8 | AF23: 88.71742424 | AG23: 3.154545455 | AH23: 4.730139778 | AI23: 1.039505017 | AJ23: 70.8 | AK23: 17.88166092 | AL23: 1320 | AM23: 1320 | AN23: 581 | AO23: 80.06677973 | AP23: 1 | AQ23: 1584.545455 | AR23: 218.3639447 | AS23: 13200 | AT23: 13200 | AU23: 13200 | AV23: 0.0650613 | AW23: -7.244 | AX23: 3.22e-05 | AY23: 77.3171 | AZ23: 76.6502 | BA23: 54.6519 | BB23: 13.3690339 | BC23: 11.65540787 | BD23: 5.518337461 | BE23: 10.74095 | BF23: 9.44226 | BG23: 4.17885 | BH23: 10.73300601 | BI23: 11.00345581 | BJ23: 5.838089351 | BK23: 2.44965 | BL23: -0.1195355 | BM23: 0.4090125 | BN23: 3.971945 | BO23: 1.05576 | BP23: 0.8187465 | BQ23: 22.36735 | BR23: 20.95985 | BS23: 10.46595 | BT23: 31.19225 | BU23: 29.29125 | BV23: 13.32385 | BW23: 7 | BX23: 11602 | BY23: 1470 | BZ23: 121 | CA23: 13200 | CB23: 0.053030303 | CC23: 87.89393939 | CD23: 11.13636364 | CE23: 0.916666667 | CF23: 2019-12-19 | CG23: L&I | CH23: 581 | CI23: 21.3 | CJ23: 22 | CK23: -0.7 | CL23: 0.03 | CM23: 1 | CN23: 0.03 | CO23: Slower | CP23: Slower | CR23: Updated results, ISSA2021 data | CS23: No | CT23: SB | CU23: 15.73713487 | CV23: 4 | CW23: 1 | CX23: 2 | CY23: 2 | CZ23: 1 | DA23: 4 | DB23: 2 | DC23: 1 | DD23: 10 | DE23: 3 | DF23: 9805.339783 | DG23: 21462.98787 | DH23: 18994.66022 | DI23: 1.129948503 | EM23: 1
A24: Damp Mopping | B24: Hard Flooring (damp mopping) | C24: Flat Mop (hard floor) | D24: Use bucket, area without obstacles | G24: Damp MoppingHard Flooring (damp mopping)Flat Mop (hard floor)Use bucket, area without obstacles | H24: Light cleaning of flooring using a solution with or without a cleaning agent. | I24: Flooring may be tile, marble, linoleum, cement | J24: The mop head consists of a long pad; mop head may or may not be hinged | K24: Cleaning solution is in a bucket, the area cleaned has little to no furniture or design features (e.g. planters, art displays) | L24: Sq. ft. of floor | M24: 6697.407407 | N24: 5665.691906 | P24: P009_1 | Q24: Damp mopping | R24: Hard floor | S24: 18" flat mop | T24: Damp_mopping | U24: Hard floor | V24: 18" flat mop | W24: Damp mopping | X24: Hard floor | Y24: 18" Flat mop | Z24: 54 | AA24: 96 | AC24: 1 | AE24: 7 | AG24: 2.204444444 | AI24: 1.222879529 | AJ24: 78.3 | AL24: 45 | AM24: 45 | AN24: 398 | AO24: 101.3786783 | AP24: 3 | AQ24: 31840 | AR24: 8110.294264 | AS24: 0 | AT24: 0 | AU24: 0 | BW24: 7 | BX24: 0 | BY24: 0 | BZ24: 0 | CA24: 7 | CB24: 100 | CC24: 0 | CD24: 0 | CE24: 0 | CF24: 2019-12-26 | CG24: L&I | CH24: 398 | CI24: 32.4 | CJ24: 38.3 | CK24: -5.9 | CL24: 0.17 | CM24: 0.8 | CN24: 0.18 | CO24: Slower | CP24: Slower | CQ24: Should include walking. Spent time searching for warning signs. | CR24: Updated results, ISSA2021 data | CS24: No | CT24: JL | CU24: 13.20792488 | CV24: 4 | CW24: 1 | CX24: 2 | CY24: 1 | CZ24: 1 | DA24: 4 | DB24: 4 | DC24: 1 | DD24: 11 | DE24: 2 | DF24: 24924.02834 | DG24: 10604.18669 | DH24: 3875.971655 | DI24: 2.735878287 | DJ24: 17703.90493 | DK24: 36425.7902 | DL24: 11096.09507 | DM24: 3.282757579 | EM24: 3
A25: Damp Mopping | B25: Hard Flooring (damp mopping) | C25: String Wet Mop | D25: None | G25: Damp MoppingHard Flooring (damp mopping)String Wet MopNone | H25: Light cleaning of flooring using a solution with or without a cleaning agent. | I25: Flooring may be tile, marble, linoleum, cement | J25: The mop head consists of strands/strips of cotton or rayon material, which require wringing out the cleaning solution | K25: No variations | L25: Sq. ft. of floor | M25: 4389.144981 | N25: 6214.105263 | P25: P001 | Q25: Damp mopping | R25: Hard floor | S25: 20 oz. mop head using single bucket & wringer | T25: Damp_mopping | U25: Hard floor | V25: 20 oz. mop head using single bucket & wringer | W25: Damp mopping | X25: Hard floor | Y25: 20 oz. mop head using single bucket & wringer | Z25: 31 | AA25: 72 | AB25: 73 | AC25: 1 | AD25: 141 | AE25: 5 | AF25: 116.4204046 | AG25: 3.262269129 | AH25: 12.39224849 | AI25: 0.977165051 | AJ25: 63 | AK25: 42.39714651 | AL25: 1137 | AM25: 1137 | AN25: 601 | AO25: 67.73815966 | AP25: 1 | AQ25: 1902.902375 | AR25: 214.4743842 | AS25: 11370 | AT25: 11370 | AU25: 11370 | AV25: 0.5655 | AW25: -6.43082 | AX25: 5.75e-05 | AY25: 65.2086 | AZ25: 65.183 | BA25: 53.8976 | BB25: 19.0980705 | BC25: 10.86424409 | BD25: 14.92090573 | BE25: 18.1296 | BF25: 8.359635 | BG25: 14.24125 | BH25: 11.6791675 | BI25: 9.627630254 | BJ25: 10.65380084 | BK25: 3.89913 | BL25: 0.458324 | BM25: 0.634242 | BN25: 5.15761 | BO25: 1.79665 | BP25: 1.516995 | BQ25: 33.6732 | BR25: 22.77715 | BS25: 28.4051 | BT25: 40.0116 | BU25: 28.4063 | BV25: 33.1608 | BW25: 7 | BX25: 9744 | BY25: 1604 | BZ25: 15 | CA25: 11370 | CB25: 0.061565523 | CC25: 85.69920844 | CD25: 14.10729991 | CE25: 0.131926121 | CF25: 2019-08-01 | CG25: ABM | CH25: 601 | CI25: 26.9 | CJ25: 19 | CK25: 7.9 | CL25: 0.34 | CM25: 1.4 | CN25: -0.3 | CO25: Faster | CP25: Faster | CR25: Updated results, ISSA2021 data | CS25: No | CT25: SB | CU25: 18.14864597 | CV25: 4 | CW25: 3 | CX25: 4 | CY25: 2 | CZ25: 1 | DA25: 4 | DB25: 2 | DC25: 4 | DD25: 13 | DE25: 6 | DF25: 22241.38968 | DG25: 174265.4554 | DH25: 6558.610317 | DI25: 26.57048474 | EM25: 1
A26: Dust Mopping | B26: Hard Flooring (dust mopping) | C26: Dust Mop | D26: Areas with obstacles | G26: Dust MoppingHard Flooring (dust mopping)Dust MopAreas with obstacles | H26: Dust or dry mopping: no water or cleaning solution used to clean floor; excludes sweeping | I26: Flooring may be tile, marble, linoleum, cement | J26: A mop of material designed to pick up dust and dirt without a solution | K26: Cleaning around/underneath furniture and design features (e.g. planters, art displays) | L26: Sq. ft. of floor | M26: 15010.26895 | N26: 61392 | P26: P003 | Q26: Dust mopping | R26: Hard floor | S26: 42" dust mop | T26: Dust_mopping | U26: Hard floor | V26: 42" dust mop | W26: Dust mopping | X26: Hard floor | Y26: 42" dust mop | Z26: 65 | AA26: 54 | AB26: 77 | AC26: 3.4 | AD26: 96 | AE26: 5.6 | AF26: 85.98157454 | AG26: 4.20201005 | AH26: 3.44924788 | AI26: 0.750299256 | AJ26: 59.5 | AK26: 27.72939742 | AL26: 597 | AM26: 597 | AN26: 513 | AO26: 29.87240005 | AP26: 1 | AQ26: 3093.467337 | AR26: 180.1350757 | AS26: 5970 | AT26: 5970 | AU26: 5970 | AV26: 2.30789 | AW26: 2.09841 | AX26: 0.0043882 | AY26: 96.5167 | AZ26: 96.581 | BA26: 131.705 | BB26: 21.86047151 | BC26: 20.71809488 | BD26: 7.132132963 | BE26: 19.17295 | BF26: 17.9213 | BG26: 5.790725 | BH26: 10.66050076 | BI26: 10.73573777 | BJ26: 9.948854597 | BK26: 12.3131 | BL26: 11.4464 | BM26: 0.537221 | BN26: 13.6466 | BO26: 12.69055 | BP26: 1.066635 | BQ26: 32.8366 | BR26: 31.86755 | BS26: 12.18365 | BT26: 42.028 | BU26: 40.2928 | BV26: 15.3656 | BW26: 0 | BX26: 3879 | BY26: 2003 | BZ26: 88 | CA26: 5970 | CB26: 0 | CC26: 64.97487437 | CD26: 33.55108878 | CE26: 1.474036851 | CF26: 2019-10-14 | CG26: ABM | CH26: 513 | CI26: 40.9 | CJ26: 10 | CK26: 30.9 | CL26: 1.21 | CM26: 4.1 | CN26: -0.76 | CO26: Faster | CP26: Faster | CQ26: Other than area, nothing else to check. | CR26: Updated results, ISSA2021 data | CS26: No | CT26: WL | CU26: 7.913765149 | CV26: 4 | CW26: 1 | CX26: 2 | CY26: 1 | CZ26: 1 | DA26: 4 | DB26: 2 | DC26: 1 | DD26: 9 | DE26: 2 | EM26: 1
A27: Dust Mopping | B27: Hard Flooring (dust mopping) | C27: Dust Mop | D27: Areas without obstacles | G27: Dust MoppingHard Flooring (dust mopping)Dust MopAreas without obstacles | H27: Dust or dry mopping: no water or cleaning solution used to clean floor; excludes sweeping | I27: Flooring may be tile, marble, linoleum, cement | J27: A mop of material designed to pick up dust and dirt without a solution | K27: Cleaning in areas with little to no furniture or design features (e.g. planters, art displays) | L27: Sq. ft. of floor | M27: 22460.71429 | N27: 17968.57143 | P27: P002 | Q27: Dust mopping | R27: Reception/lobby/elevator landing | S27: 48" dust mop | T27: Dust_mopping | U27: Reception/lobby/elevator landing | V27: 48" dust mop | W27: Dust mopping | X27: Reception/lobby/elevator landing | Y27: 48" mop | Z27: 54 | AA27: 91 | AB27: 82 | AC27: 3.4 | AD27: 108 | AE27: 6.4 | AF27: 95.92301587 | AG27: 5.361904762 | AH27: 4.17769832 | AI27: 0.745103918 | AJ27: 64.5 | AK27: 30.95863633 | AL27: 1260 | AM27: 1260 | AN27: 1658 | AO27: 138.59934 | AP27: 2 | AQ27: 4737.142857 | AR27: 395.9981143 | AS27: 12600 | AT27: 12600 | AU27: 12600 | AV27: 0.113946 | AW27: -8.47429 | AX27: 0.000577312 | AY27: 89.9222 | AZ27: 89.9205 | BA27: 89.6193 | BB27: 12.59315717 | BC27: 11.14237272 | BD27: 4.795313526 | BE27: 10.9558 | BF27: 9.746245 | BG27: 3.541015 | BH27: 8.714742046 | BI27: 8.923727555 | BJ27: 6.037085274 | BK27: 5.08998 | BL27: 2.996225 | BM27: 0.2896225 | BN27: 6.5231 | BO27: 4.650285 | BP27: 0.5883925 | BQ27: 19.19665 | BR27: 17.7908 | BS27: 9.19289 | BT27: 24.0166 | BU27: 22.72135 | BV27: 11.81745 | BW27: 44 | BX27: 11614 | BY27: 830 | BZ27: 112 | CA27: 12600 | CB27: 0.349206349 | CC27: 92.17460318 | CD27: 6.587301587 | CE27: 0.888888889 | CF27: 2019-09-30 | CG27: ABM | CH27: 1658 | CI27: 16.8 | CJ27: 21 | CK27: -4.2 | CL27: 0.22 | CM27: 0.8 | CN27: 0.25 | CO27: Slower | CP27: Slower | CR27: Updated results, ISSA2021 data | CS27: No | CT27: JL | CU27: 11.97839992 | CV27: 2 | CW27: 1 | CX27: 2 | CY27: 1 | CZ27: 1 | DA27: 4 | DB27: 2 | DC27: 1 | DD27: 9 | DE27: 2 | DF27: 8503.060702 | DG27: 4686.288034 | DH27: 20296.9393 | DI27: 0.230886439 | DJ27: 468.1126121 | DK27: 111.5261313 | DL27: 28331.88739 | DM27: 0.003936417 | EM27: 2
A28: Dusting and/or Wiping | B28: Cafeteria/Break Room (dusting/wiping) | C28: Cleaning cloth (cafeteria/break room) | D28: None | G28: Dusting and/or WipingCafeteria/Break Room (dusting/wiping)Cleaning cloth (cafeteria/break room)None | H28: Wiping large eating tables and high touch areas such as paper towel dispensers | I28: Area with tables and chairs for eating food | J28: Cloth, with or without spray bottle | K28: No variations | L28: Sq. ft. of surface | M28: 623.4782609 | N28: 1638.857143 | P28: P004_2 | Q28: Dusting/wiping | R28: Cafeteria/break room | S28: Cloth, trigger sprayer | T28: Dusting_wiping | U28: Cafeteria/break room | V28: Cloth, trigger sprayer | W28: Dusting/wiping | X28: Cafeteria/Break room | Y28: Cloth | Z28: 41 | AA28: 85 | AB28: 110 | AC28: 1 | AD28: 130 | AE28: 4 | AF28: 122.4386792 | AG28: 1.962264151 | AH28: 3.889591671 | AI28: 1.164437731 | AJ28: 71.3 | AK28: 47.48252479 | AL28: 212 | AM28: 212 | AN28: 19 | AO28: 5.592000008 | AP28: 1 | AQ28: 322.6415094 | AR28: 94.9584907 | AS28: 2120 | AT28: 2120 | AU28: 2120 | AV28: 0.143863 | AW28: -11.3326 | AX28: 0.000586935 | AY28: 63.6577 | AZ28: 62.3703 | BA28: 33.2919 | BB28: 14.06936321 | BC28: 7.769758827 | BD28: 7.973273767 | BE28: 10.504 | BF28: 5.041105 | BG28: 6.57288 | BH28: 11.21821055 | BI28: 13.37773064 | BJ28: 6.238899281 | BK28: 3.048485 | BL28: -6.38788 | BM28: 0.6728445 | BN28: 4.34768 | BO28: -5.053375 | BP28: 1.23725 | BQ28: 30.38145 | BR28: 28.3263 | BS28: 16.93605 | BT28: 40.44515 | BU28: 39.3631 | BV28: 19.95375 | BW28: 214 | BX28: 1640 | BY28: 261 | BZ28: 5 | CA28: 2120 | CB28: 10.09433962 | CC28: 77.35849057 | CD28: 12.31132076 | CE28: 0.235849057 | CF28: 2020-02-13 | CG28: L&I | CH28: 19 | CI28: 9.2 | CJ28: 3.5 | CK28: 5.7 | CL28: 0.9 | CM28: 2.6 | CN28: -0.62 | CO28: Faster | CP28: Faster | CR28: Updated results, ISSA2021 data, microwave | CS28: No | CT28: SB | CU28: 10.33332331 | CV28: 3 | CW28: 2 | CX28: 4 | CY28: 2 | CZ28: 1 | DA28: 4 | DB28: 2 | DC28: 3 | DD28: 12 | DE28: 5 | DF28: 23208.5155 | DG28: 79370.18056 | DH28: 5591.484503 | DI28: 14.19483154 | DK28: 0 | DL28: 28800 | DM28: 0 | EM28: 1
A29: Dusting and/or Wiping | B29: Conference Rooms (dusting/wiping) | C29: Cleaning cloth (conference room) | D29: None | G29: Dusting and/or WipingConference Rooms (dusting/wiping)Cleaning cloth (conference room)None | H29: Wiping conference tables and chairs | I29: Conference rooms; excludes meeting areas among cubicles (this is included as: task= cubicle cleaning) | J29: Cloth, with or without spray bottle | K29: No variations | L29: No. of object | M29: 45.71428571 | N29: 120 | P29: P001 | Q29: Dusting/wiping | R29: Conference room | S29: Cloth, trigger sprayer | T29: Dusting_wiping | U29: Conference room | V29: Cloth, trigger sprayer | W29: Dusting/wiping | X29: Conference room | Y29: Cloth, trigger sprayer | Z29: 31 | AA29: 72 | AB29: 88 | AC29: 2.8 | AD29: 124 | AE29: 4.4 | AF29: 106.9541667 | AG29: 3.85 | AH29: 8.740445072 | AI29: 0.623795911 | AJ29: 63 | AK29: 34.88425929 | AL29: 240 | AM29: 240 | AN29: 201 | AO29: 17.8624599 | AP29: 1 | AQ29: 3015 | AR29: 267.9368985 | AS29: 2400 | AT29: 2400 | AU29: 2400 | AV29: 1.90802 | AW29: -3.55818 | AX29: 0.000147217 | AY29: 79.1746 | AZ29: 79.1723 | BA29: 62.1219 | BB29: 26.7507281 | BC29: 22.64014475 | BD29: 12.89417069 | BE29: 23.9115 | BF29: 18.9666 | BG29: 9.99481 | BH29: 16.45672036 | BI29: 16.95235053 | BJ29: 11.22524187 | BK29: 6.431615 | BL29: 1.57632 | BM29: 1.165925 | BN29: 8.032345 | BO29: 3.768065 | BP29: 2.2536 | BQ29: 50.8987 | BR29: 47.19405 | BS29: 26.8099 | BT29: 56.9351 | BU29: 54.08235 | BV29: 37.59115 | BW29: 0 | BX29: 1221 | BY29: 1146 | BZ29: 33 | CA29: 2400 | CB29: 0 | CC29: 50.875 | CD29: 47.75 | CE29: 1.375 | CF29: 2019-08-01 | CG29: ABM | CH29: 201 | CI29: 10.5 | CJ29: 4 | CK29: 6.5 | CL29: 0.9 | CM29: 2.6 | CN29: -0.62 | CO29: Faster | CP29: Faster | CR29: Ferguson company data used, unit time, table, window sill | CS29: No | CT29: SB | CU29: 6.138693665 | CV29: 5 | CW29: 2 | CX29: 5 | CY29: 2 | CZ29: 1 | DA29: 4 | DB29: 3 | DC29: 4 | DD29: 14 | DE29: 6 | DF29: 12356.11996 | DG29: 18952.78861 | DH29: 16443.88004 | DI29: 1.152574001 | EM29: 1
A30: Dusting and/or Wiping | B30: Drinking Fountains | C30: Cleaning cloth (drinking fountain) | D30: None | G30: Dusting and/or WipingDrinking FountainsCleaning cloth (drinking fountain)None | H30: Cleaning water fountains | I30: In hallways only; excludes fountains in cafeteria/breakrooms (this is included as: task= dusting and/or wiping, location= cafeteria/break room) | J30: Cloth, with or without spray bottle | K30: No variations | L30: No. of fountain | M30: 80 | N30: 60 | P30: P013 | Q30: Dusting/wiping | R30: Drinking fountain | S30: Cloth, trigger sprayer | T30: Dusting_wiping | U30: Drinking fountain | V30: Cloth, trigger sprayer | W30: Dusting/wiping | X30: Drinking fountain | Y30: Cloth, trigger sprayer | Z30: 53 | AA30: 91 | AB30: 95 | AC30: 2.8 | AD30: 124 | AE30: 3.4 | AF30: 111.4333333 | AG30: 3.1 | AH30: 9.765944372 | AI30: 0.301257867 | AJ30: 63.8 | AK30: 46.15633072 | AL30: 120 | AM30: 120 | AN30: 51 | AO30: 6.233479977 | AP30: 1 | AQ30: 1530 | AR30: 187.0043993 | AS30: 1200 | AT30: 1200 | AU30: 1200 | AV30: 0.251755 | AW30: -4.93845 | AX30: 0.000893222 | AY30: 43.1068 | AZ30: 42.4409 | BA30: 27.509 | BB30: 9.726491354 | BC30: 6.359412985 | BD30: 4.812985299 | BE30: 7.222585 | BF30: 3.26588 | BG30: 3.995785 | BH30: 7.733270795 | BI30: 8.884671438 | BJ30: 3.902149489 | BK30: 1.827895 | BL30: -2.06487 | BM30: 0.408684 | BN30: 2.578795 | BO30: -1.321195 | BP30: 0.8907655 | BQ30: 20.39005 | BR30: 19.7744 | BS30: 9.603365 | BT30: 25.0101 | BU30: 24.04285 | BV30: 12.5361 | BW30: 0 | BX30: 1088 | BY30: 112 | BZ30: 0 | CA30: 1200 | CB30: 0 | CC30: 90.66666667 | CD30: 9.333333333 | CE30: 0 | CF30: 2020-01-28 | CG30: UW | CH30: 51 | CI30: 1.5 | CJ30: 2 | CK30: -0.5 | CL30: 0.29 | CM30: 0.8 | CN30: 0.33 | CO30: Slower | CP30: Slower | CR30: Updated results, ISSA2021 data | CS30: No | CT30: WL | CU30: 8.683231547 | CV30: 4 | CW30: 1 | CX30: 4 | CY30: 2 | CZ30: 1 | DA30: 4 | DB30: 2 | DC30: 2 | DD30: 11 | DE30: 4 | DF30: 20046.20061 | DG30: 46420.14259 | DH30: 8753.799393 | DI30: 5.302856566 | EM30: 1
A31: Dusting and/or Wiping | B31: Fixtures | C31: Cleaning cloth (fixture) | D31: None | G31: Dusting and/or WipingFixturesCleaning cloth (fixture)None | H31: Dusting or wiping horizontal or vertical surfaces | I31: Design features such as hand rails, banisters, door handles, elevator controls, name plates | J31: Cloth, with or without spray bottle | K31: No variations | L31: Lin. ft. of object | M31: 278.8235294 | N31: 206.0869565 | P31: P004_2 | Q31: Dusting/wiping | R31: Hand rails/Banister/door handle/elevator controls etc. | S31: Cloth, trigger sprayer | T31: Dusting_wiping | U31: Hand rails/Banister/door handle/elevator controls etc. | V31: Cloth, trigger sprayer | W31: Dusting/wiping | X31: Hand rails/Banister/door handle/elevator controls | Y31: Cloth | Z31: 41 | AA31: 85 | AB31: 97 | AC31: 2.8 | AD31: 149 | AE31: 4.4 | AF31: 121.4444444 | AG31: 3.24 | AH31: 13.99928925 | AI31: 0.51241308 | AJ31: 71.3 | AK31: 46.5593727 | AL31: 135 | AM31: 135 | AN31: 137 | AO31: 15.84399986 | AP31: 1 | AQ31: 3653.333333 | AR31: 422.5066629 | AS31: 1350 | AT31: 1350 | AU31: 1350 | AV31: 0.402476 | AW31: -12.8311 | AX31: 0.00289376 | AY31: 84.3165 | AZ31: 84.1557 | BA31: 67.317 | BB31: 14.72575844 | BC31: 7.870346461 | BD31: 7.53421432 | BE31: 9.808445 | BF31: 3.57175 | BG31: 4.68584 | BH31: 16.93645801 | BI31: 19.61469615 | BJ31: 9.702634003 | BK31: 2.4871 | BL31: -9.57687 | BM31: 0.390844 | BN31: 3.66545 | BO31: -8.241365 | BP31: 0.6340115 | BQ31: 25.5936 | BR31: 22.9301 | BS31: 15.41975 | BT31: 66.313 | BU31: 64.7546 | BV31: 25.5748 | BW31: 261 | BX31: 935 | BY31: 70 | BZ31: 84 | CA31: 1350 | CB31: 19.33333333 | CC31: 69.25925926 | CD31: 5.185185185 | CE31: 6.222222222 | CF31: 2020-02-13 | CG31: L&I | CH31: 137 | CI31: 1.7 | CJ31: 2.3 | CK31: -0.6 | CL31: 0.3 | CM31: 0.8 | CN31: 0.31 | CO31: Slower | CP31: Slower | CR31: Updated results, ISSA2021 data | CS31: No | CT31: SB | CU31: 6.382628836 | CV31: 3 | CW31: 1 | CX31: 4 | CY31: 2 | CZ31: 1 | DA31: 4 | DB31: 2 | DC31: 2 | DD31: 11 | DE31: 4 | DF31: 3768.720159 | DG31: 897.8839029 | DH31: 25031.27984 | DI31: 0.035870475 | DK31: 0 | DL31: 28800 | DM31: 0 | EM31: 1
A32: Dusting and/or Wiping | B32: Furniture | C32: Cleaning cloth (furniture) | D32: Wiping surfaces at or above than waist level | G32: Dusting and/or WipingFurnitureCleaning cloth (furniture)Wiping surfaces at or above than waist level | H32: Dusting or wiping furniture | I32: Cleaning items higher than waist height such as bistro tables and bistro chairs | J32: Cloth, with or without spray bottle | K32: Dusting or wiping furniture above waist height | L32: No. of object | M32: 116.7420814 | N32: 176.7123288 | P32: P004_2 | Q32: Dusting/wiping | R32: Furniture | S32: Cloth, trigger sprayer | T32: Dusting_wiping | U32: Furniture | V32: Cloth, trigger sprayer | W32: Dusting/wiping | X32: Furniture | Y32: Cloth | Z32: 41 | AA32: 85 | AB32: 102 | AC32: 1 | AD32: 139 | AE32: 5.2 | AF32: 125.9817352 | AG32: 2.671917808 | AH32: 8.176042197 | AI32: 1.060495398 | AJ32: 71.3 | AK32: 50.77227038 | AL32: 876 | AM32: 876 | AN32: 355 | AO32: 52.19199968 | AP32: 1 | AQ32: 1458.90411 | AR32: 214.4876699 | AS32: 8760 | AT32: 8760 | AU32: 8760 | AV32: 0.158902 | AW32: -15.5747 | AX32: 0.000605432 | AY32: 74.1128 | AZ32: 74.0522 | BA32: 47.0616 | BB32: 19.66911273 | BC32: 14.74652867 | BD32: 8.433630797 | BE32: 13.82455 | BF32: 8.52435 | BG32: 6.535235 | BH32: 15.56246192 | BI32: 18.0868537 | BJ32: 7.156208247 | BK32: 3.221995 | BL32: -6.14894 | BM32: 0.574426 | BN32: 4.46493 | BO32: -3.658215 | BP32: 1.20107 | BQ32: 44.4782 | BR32: 43.5722 | BS32: 18.2831 | BT32: 51.29445 | BU32: 50.0482 | BV32: 22.43635 | BW32: 616 | BX32: 5404 | BY32: 2644 | BZ32: 96 | CA32: 8760 | CB32: 7.03196347 | CC32: 61.68949772 | CD32: 30.1826484 | CE32: 1.095890411 | CF32: 2020-02-13 | CG32: L&I | CH32: 355 | CI32: 22.1 | CJ32: 14.6 | CK32: 7.5 | CL32: 0.41 | CM32: 1.5 | CN32: -0.34 | CO32: Faster | CP32: Faster | CR32: Updated results, ISSA2021 data, microwave | CS32: No | CT32: SB | CU32: 7.051324467 | CV32: 4 | CW32: 1 | CX32: 4 | CY32: 2 | CZ32: 1 | DA32: 4 | DB32: 2 | DC32: 2 | DD32: 11 | DE32: 4 | DF32: 16267.44266 | DG32: 24952.283 | DH32: 12532.55734 | DI32: 1.990996915 | DJ32: 14370.95487 | DK32: 72122.82957 | DL32: 14429.04513 | DM32: 4.998447846 | EM32: 1
A33: Dusting and/or Wiping | B33: Furniture | C33: Cleaning cloth (furniture) | D33: Wiping surfaces below waist level | G33: Dusting and/or WipingFurnitureCleaning cloth (furniture)Wiping surfaces below waist level | H33: Dusting or wiping furniture | I33: Tables, chairs, sofas, coffee tables, lounge chair | J33: Cloth, with or without spray bottle | K33: Dusting or wiping furniture below waist height | L33: No. of object | M33: 60 | N33: 100 | P33: P006 | Q33: Dusting/wiping | R33: Furniture | S33: Cloth, trigger sprayer | T33: Dusting_wiping | U33: Furniture | V33: Cloth, trigger sprayer | W33: Dusting/wiping | X33: Furniture | Y33: Cloth/Trigger Sprayer | Z33: 45 | AA33: 132 | AB33: 119 | AC33: 2.8 | AD33: 129 | AE33: 3 | AF33: 123.6619718 | AG33: 2.884507042 | AH33: 2.625265468 | AI33: 0.099142261 | AJ33: 106.5 | AK33: 25.05397343 | AL33: 142 | AM33: 142 | AN33: 33 | AO33: 9.471400261 | AP33: 1 | AQ33: 836.6197183 | AR33: 240.1200066 | AS33: 1420 | AT33: 1420 | AU33: 1420 | AV33: 0.526483 | AW33: -2.64388 | AX33: 0.00298801 | AY33: 89.8581 | AZ33: 89.8573 | BA33: 88.6198 | BB33: 37.9554529 | BC33: 36.56643314 | BD33: 9.014554721 | BE33: 34.4541 | BF33: 33.1117 | BG33: 5.24246 | BH33: 21.7163853 | BI33: 22.41796586 | BJ33: 10.43568011 | BK33: 5.690365 | BL33: 2.982145 | BM33: 0.356808 | BN33: 9.500335 | BO33: 7.957435 | BP33: 0.6018245 | BQ33: 67.86885 | BR33: 67.6785 | BS33: 23.403 | BT33: 74.41155 | BU33: 74.3139 | BV33: 29.2192 | BW33: 0 | BX33: 407 | BY33: 764 | BZ33: 249 | CA33: 1420 | CB33: 0 | CC33: 28.66197183 | CD33: 53.8028169 | CE33: 17.53521127 | CF33: 2019-12-12 | CG33: L&I | CH33: 33 | CI33: 4 | CJ33: 2.4 | CK33: 1.6 | CL33: 0.5 | CM33: 1.7 | CN33: -0.41 | CO33: Faster | CP33: Faster | CS33: No | CT33: JL | CU33: 3.387491791 | CV33: 4 | CW33: 1 | CX33: 2 | CY33: 1 | CZ33: 1 | DA33: 4 | DB33: 2 | DC33: 1 | DD33: 9 | DE33: 2 | DF33: 14198.4 | DG33: 12418.4153 | DH33: 14601.6 | DI33: 0.850483187 | DJ33: 13431.6 | DK33: 1186360.51 | DL33: 15368.4 | DM33: 77.19479645 | EM33: 1
A34: Dusting and/or Wiping | B34: Furniture | C34: Duster, cleaning cloth | D34: None | G34: Dusting and/or WipingFurnitureDuster, cleaning clothNone | H34: Dusting and wiping above and below shoulder height | I34: Wiping tables and chairs; dusting windows | J34: Long handled duster, cloth with or without spray bottle | K34: No variations | L34: No. of object | M34: 102.541806 | N34: 227.1111111 | P34: P003 | Q34: Dusting/wiping | R34: Reception/lobby/elevator landing | S34: Duster, cloth | T34: Dusting_wiping | U34: Reception/lobby/elevator landing | V34: Duster, cloth | W34: Dusting/wiping | X34: Reception/lobby/elevator landing | Y34: Duster, treated cloth | Z34: 65 | AA34: 54 | AB34: 70 | AC34: 1 | AD34: 107 | AE34: 3.6 | AF34: 85.49599013 | AG34: 2.54605598 | AH34: 4.28817092 | AI34: 0.721933162 | AJ34: 59.5 | AK34: 27.22093207 | AL34: 1621 | AM34: 1621 | AN34: 376 | AO34: 51.92479944 | AP34: 1 | AQ34: 835.0400987 | AR34: 115.3172597 | AS34: 16210 | AT34: 16210 | AU34: 16210 | AV34: 0.214124 | AW34: -4.04098 | AX34: 0.000116057 | AY34: 98.7193 | AZ34: 98.8007 | BA34: 169.303 | BB34: 33.52536956 | BC34: 31.21212847 | BD34: 15.81515776 | BE34: 24.67155 | BF34: 22.08935 | BG34: 11.01705 | BH34: 22.53131394 | BI34: 23.45514727 | BJ34: 15.27984879 | BK34: 8.31285 | BL34: 3.5191 | BM34: 0.928712 | BN34: 10.918 | BO34: 7.852115 | BP34: 2.0904 | BQ34: 70.7317 | BR34: 70.15675 | BS34: 35.6372 | BT34: 78.8673 | BU34: 78.525 | BV34: 46.8271 | BW34: 0 | BX34: 7119 | BY34: 6409 | BZ34: 2682 | CA34: 16210 | CB34: 0 | CC34: 43.91733498 | CD34: 39.53732264 | CE34: 16.54534238 | CF34: 2019-10-14 | CG34: ABM | CH34: 341 | CI34: 59.8 | CJ34: 27 | CK34: 32.8 | CL34: 0.76 | CM34: 1.7 | CN34: -0.55 | CO34: Faster | CP34: Faster | CR34: Updated results, ISSA2021 data | CS34: No | CT34: WL | CU34: 12.53398703 | CV34: 4 | CW34: 1 | CX34: 4 | CY34: 3 | CZ34: 1 | DA34: 4 | DB34: 2 | DC34: 2 | DD34: 12 | DE34: 5 | DJ34: 8829.765956 | DK34: 18630.32495 | DL34: 19970.23404 | DM34: 0.932904688 | EM34: 1
A35: Dusting and/or Wiping | B35: Kitchen/Coffee Bar (dusting/wiping) | C35: Cleaning cloth (kitchen/coffee bar) | D35: Clean multiple items, surfaces | G35: Dusting and/or WipingKitchen/Coffee Bar (dusting/wiping)Cleaning cloth (kitchen/coffee bar)Clean multiple items, surfaces | H35: Wiping surfaces at kitchens and coffee bars | I35: Area for preparing beverages and food; no seating | J35: Cloth, with or without spray bottle | K35: Involves wiping sinks and counters, washing cleaning coffee pots and utensils | L35: No. of kitchen | M35: 20 | N35: 10.84337349 | P35: P001 | Q35: Dusting/wiping | R35: Kitchen/coffee bar | S35: Cloth, trigger sprayer | T35: Dusting_wiping | U35: Kitchen/coffee bar | V35: Cloth, trigger sprayer | W35: Dusting/wiping | X35: Kitchen | Y35: Cloth, trigger sprayer | Z35: 31 | AA35: 72 | AB35: 84 | AC35: 1 | AD35: 125 | AE35: 4.2 | AF35: 105.007014 | AG35: 2.216032064 | AH35: 7.436049718 | AI35: 1.146685725 | AJ35: 63 | AK35: 33.3389 | AL35: 998 | AM35: 998 | AN35: 280 | AO35: 44.5401597 | AP35: 1 | AQ35: 1010.02004 | AR35: 160.6659067 | AS35: 9980 | AT35: 9980 | AU35: 9980 | AV35: 0.267649 | AW35: -4.88459 | AX35: 0.00157848 | AY35: 90.1828 | AZ35: 90.1851 | BA35: 91.1694 | BB35: 24.23933643 | BC35: 19.62680247 | BD35: 13.97074394 | BE35: 20.66925 | BF35: 15.21095 | BG35: 10.53245 | BH35: 16.69219608 | BI35: 17.53358697 | BJ35: 13.0584051 | BK35: 4.964695 | BL35: 0.973216 | BM35: 0.877649 | BN35: 7.586305 | BO35: 2.71639 | BP35: 1.886205 | BQ35: 44.8196 | BR35: 39.36225 | BS35: 27.16635 | BT35: 64.86855 | BU35: 62.7696 | BV35: 40.7199 | BW35: 0 | BX35: 6078 | BY35: 3358 | BZ35: 544 | CA35: 9980 | CB35: 0 | CC35: 60.90180361 | CD35: 33.64729459 | CE35: 5.450901804 | CF35: 2019-08-01 | CG35: ABM | CH35: 280 | CI35: 9 | CJ35: 16.6 | CK35: -7.6 | CL35: 0.59 | CM35: 0.5 | CN35: 0.85 | CO35: Slower | CP35: Slower | CR35: Updated results, ISSA2021 data | CS35: No | CT35: SB | CU35: 15.97603348 | CV35: 5 | CW35: 2 | CX35: 5 | CY35: 1 | CZ35: 1 | DA35: 4 | DB35: 3 | DC35: 4 | DD35: 13 | DE35: 5 | DF35: 4252.154354 | DG35: 16721.09346 | DH35: 24547.84565 | DI35: 0.681163378 | DJ35: 3921.99971 | DK35: 18356.62762 | DL35: 24878.00029 | DM35: 0.737865882 | EM35: 1
A36: Dusting and/or Wiping | B36: Kitchen/Coffee Bar (dusting/wiping) | C36: Cleaning cloth (kitchen/coffee bar) | D36: None | G36: Dusting and/or WipingKitchen/Coffee Bar (dusting/wiping)Cleaning cloth (kitchen/coffee bar)None | H36: Wiping surfaces at kitchens and coffee bars | I36: Area for preparing beverages and food; no seating | J36: Cloth, with or without sprayer | K36: Limited to wiping sinks and counters | L36: Sq. ft. of surface | M36: 291.4285714 | N36: 408 | P36: P005 | Q36: Dusting/wiping | R36: Cafeteria/break room | S36: Cloth, trigger sprayer | T36: Dusting_wiping | U36: Cafeteria/break room | V36: Cloth, trigger sprayer | W36: Dusting/wiping | X36: Cafeteria/Break room | Y36: Cloth; Trigger sprayer | Z36: 35 | AA36: 68 | AB36: 121 | AC36: 1 | AD36: 176 | AE36: 3.8 | AF36: 155.1014493 | AG36: 2.449275362 | AH36: 17.30689149 | AI36: 1.258017764 | AJ36: 76.5 | AK36: 72.44373207 | AL36: 207 | AM36: 207 | AN36: 73 | AO36: 8.355200053 | AP36: 1 | AQ36: 1269.565217 | AR36: 145.307827 | AS36: 2070 | AT36: 2070 | AU36: 2070 | AV36: 5.51163 | AW36: 3.18838 | AX36: 0.0042584 | AY36: 92.5878 | AZ36: 92.6858 | BA36: 99.5749 | BB36: 33.3124993 | BC36: 31.49474534 | BD36: 12.67687516 | BE36: 29.5755 | BF36: 27.83355 | BG36: 8.75872 | BH36: 16.55522936 | BI36: 16.6696754 | BJ36: 12.90642257 | BK36: 11.9136 | BL36: 10.7838 | BM36: 0.539547 | BN36: 16.09095 | BO36: 14.74285 | BP36: 1.20098 | BQ36: 54.76385 | BR36: 51.9554 | BS36: 26.27255 | BT36: 71.3778 | BU36: 69.6025 | BV36: 39.1133 | BW36: 0 | BX36: 480 | BY36: 1424 | BZ36: 166 | CA36: 2070 | CB36: 0 | CC36: 23.1884058 | CD36: 68.79227053 | CE36: 8.019323672 | CF36: 2020-12-10 | CG36: L&I | CH36: 73 | CI36: 4.9 | CJ36: 3.5 | CK36: 1.4 | CL36: 0.33 | CM36: 1.4 | CN36: -0.3 | CO36: Faster | CP36: Faster | CR36: Updated results, ISSA2021 data | CS36: No | CT36: WL | CU36: 9.639332831 | CV36: 5 | CW36: 1 | CX36: 2 | CY36: 3 | CZ36: 1 | DA36: 4 | DB36: 3 | DC36: 1 | DD36: 12 | DE36: 4 | DJ36: 4943.079375 | DK36: 12115.73676 | DL36: 23856.92063 | DM36: 0.507849984 | EM36: 1
A37: Dusting and/or Wiping | B37: Reception/Lobby/Elevator Landing (dusting/wiping) | C37: Duster (reception/lobby/levator landing) | D37: None | G37: Dusting and/or WipingReception/Lobby/Elevator Landing (dusting/wiping)Duster (reception/lobby/levator landing)None | H37: Dusting surfaces | I37: Objects and surfaces in the lobby, reception or elevator landing areas | J37: Duster | K37: No variations | L37: No. of object | M37: 148.706278 | N37: 195.3009118 | P37: P002 | Q37: Dusting/wiping | R37: Reception/lobby/elevator landing | S37: Duster | T37: Dusting_wiping | U37: Reception/lobby/elevator landing | V37: Duster | W37: Dusting/wiping | X37: Reception/lobby/elevator landing | Y37: Duster | Z37: 54 | AA37: 91 | AB37: 76 | AC37: 1 | AD37: 109 | AE37: 5.2 | AF37: 89.69589345 | AG37: 2.932297447 | AH37: 5.883939988 | AI37: 0.983954687 | AJ37: 64.5 | AK37: 24.82354034 | AL37: 901 | AM37: 901 | AN37: 388 | AO37: 54.65196037 | AP37: 1 | AQ37: 1550.27747 | AR37: 218.3652135 | AS37: 9010 | AT37: 9010 | AU37: 9010 | AV37: 0.0536854 | AW37: -12.7293 | AX37: 0.00339918 | AY37: 80.521 | AZ37: 80.4906 | BA37: 55.1705 | BB37: 15.23595741 | BC37: 11.95294051 | BD37: 7.852877232 | BE37: 11.33725 | BF37: 8.469435 | BG37: 5.603355 | BH37: 12.48891013 | BI37: 12.65867063 | BJ37: 7.702339991 | BK37: 2.24137 | BL37: -0.922995 | BM37: 0.411482 | BN37: 3.619225 | BO37: 0.02827925 | BP37: 0.827476 | BQ37: 34.44645 | BR37: 30.23575 | BS37: 19.57325 | BT37: 40.2999 | BU37: 36.1715 | BV37: 23.1519 | BW37: 82 | BX37: 7035 | BY37: 1830 | BZ37: 63 | CA37: 9010 | CB37: 0.910099889 | CC37: 78.07991121 | CD37: 20.31076582 | CE37: 0.699223086 | CF37: 2019-09-30 | CG37: ABM | CH37: 242 | CI37: 19.7 | CJ37: 15 | CK37: 4.7 | CL37: 0.27 | CM37: 1.3 | CN37: -0.24 | CO37: Faster | CP37: Faster | CR37: Updated results, ISSA2021 data | CS37: No | CT37: JL | CU37: 4.100763079 | CV37: 4 | CW37: 1 | CX37: 2 | CY37: 2 | CZ37: 1 | DA37: 4 | DB37: 2 | DC37: 1 | DD37: 10 | DE37: 3 | DF37: 17865.12 | DG37: 27402.92617 | DH37: 10934.88 | DI37: 2.50601069 | DJ37: 1233.792 | DK37: 293.9464672 | DL37: 27566.208 | DM37: 0.01066329 | EM37: 1
A38: Elevator Cleaning | B38: Elevator | C38: Backpack Vacuum, corded | D38: None | G38: Elevator CleaningElevatorBackpack Vacuum, cordedNone | H38: Vacuuming inside all elevator cars, only | I38: Inside an elevator car; excludes elevator landing (area in front of elevators) | J38: Backpack vacuum powered using a cord | K38: No variations | L38: No. of elevator | M38: 60 | N38: 52.94117647 | P38: P002 | Q38: Vacuuming | R38: Elevator | S38: Back-pack vacuum with 14" orifice | T38: Vacuuming | U38: Elevator | V38: Back-pack vacuum & 14" orifice | W38: Vacuuming | X38: Elevator | Y38: Backpack vacuum machine with 14” orifice | Z38: 54 | AA38: 91 | AB38: 80 | AC38: 3 | AD38: 103 | AE38: 5.6 | AF38: 92.3147541 | AG38: 4.524590164 | AH38: 4.580168433 | AI38: 0.924161314 | AJ38: 64.5 | AK38: 27.40369862 | AL38: 610 | AM38: 610 | AN38: 680 | AO38: 61.54500055 | AP38: 2 | AQ38: 4013.114754 | AR38: 363.2163967 | AS38: 6100 | AT38: 6100 | AU38: 6100 | AV38: 1.68251 | AW38: -2.48181 | AX38: 0.00179891 | AY38: 87.1129 | AZ38: 87.083 | BA38: 72.3349 | BB38: 18.22090676 | BC38: 15.9906352 | BD38: 8.492652073 | BE38: 14.9738 | BF38: 13.41595 | BG38: 5.902285 | BH38: 11.40243109 | BI38: 11.05876204 | BJ38: 9.440956484 | BK38: 8.804025 | BL38: 6.47485 | BM38: 0.571479 | BN38: 10.3656 | BO38: 8.20884 | BP38: 1.104715 | BQ38: 29.45465 | BR38: 24.43505 | BS38: 18.91585 | BT38: 36.90275 | BU38: 31.0838 | BV38: 24.58745 | BW38: 0 | BX38: 5079 | BY38: 888 | BZ38: 133 | CA38: 6100 | CB38: 0 | CC38: 83.26229508 | CD38: 14.55737705 | CE38: 2.180327869 | CF38: 2019-09-30 | CG38: ABM | CH38: 680 | CI38: 9 | CJ38: 10.2 | CK38: -1.2 | CL38: 0.13 | CM38: 0.9 | CN38: 0.13 | CO38: Slower | CP38: Slower | CS38: No | CT38: JL | CU38: 10.28184277 | CV38: 3 | CW38: 1 | CX38: 2 | CY38: 2 | CZ38: 1 | DA38: 4 | DB38: 3 | DC38: 1 | DD38: 11 | DE38: 3 | DF38: 22565.51125 | DG38: 34612.75596 | DH38: 6234.48875 | DI38: 5.55181946 | DJ38: 532.6205899 | DK38: 332.9157122 | DL38: 28267.37941 | DM38: 0.011777382 | EM38: 2
A39: Elevator Cleaning | B39: Elevator | C39: Cleaning cloth (elevator) | D39: Does not clean above shoulder height | G39: Elevator CleaningElevatorCleaning cloth (elevator)Does not clean above shoulder height | H39: Wiping elevator surfaces | I39: Cleans only the elevator doors | J39: Uses only a cleaning cloth | K39: Wipes high and low areas with a cloth | L39: No. of elevator | M39: 30 | N39: 69.76744186 | P39: P001 | Q39: Elevator cleaning | R39: Elevator | S39: Cloth, trigger sprayer | T39: Dusting_wiping | U39: Elevator | V39: Cloth, trigger sprayer | W39: Elevator cleaning | X39: Elevator | Y39: Cloth, trigger sprayer | Z39: 31 | AA39: 72 | AB39: 80 | AC39: 2.8 | AD39: 137 | AE39: 3.4 | AF39: 115.3552124 | AG39: 3.077992278 | AH39: 15.10728051 | AI39: 0.229463108 | AJ39: 63 | AK39: 41.55175587 | AL39: 259 | AM39: 259 | AN39: 103 | AO39: 14.38276005 | AP39: 1 | AQ39: 1431.660232 | AR39: 199.9148115 | AS39: 2590 | AT39: 2590 | AU39: 2590 | AV39: 0.221006 | AW39: -4.9392 | AX39: 0.00218924 | AY39: 80.6041 | AZ39: 80.2268 | BA39: 63.6584 | BB39: 17.67597742 | BC39: 12.00907765 | BD39: 11.97366335 | BE39: 11.75975 | BF39: 5.52643 | BG39: 8.89397 | BH39: 16.21054431 | BI39: 16.37171184 | BJ39: 11.59394335 | BK39: 2.94139 | BL39: -1.35475 | BM39: 0.73179 | BN39: 3.89451 | BO39: -0.2186925 | BP39: 1.520905 | BQ39: 42.47185 | BR39: 36.70745 | BS39: 25.9575 | BT39: 54.5617 | BU39: 50.9726 | BV39: 38.4667 | BW39: 0 | BX39: 2071 | BY39: 449 | BZ39: 70 | CA39: 2590 | CB39: 0 | CC39: 79.96138996 | CD39: 17.33590734 | CE39: 2.702702703 | CF39: 2019-08-01 | CG39: ABM | CH39: 103 | CI39: 10 | CJ39: 4.3 | CK39: 5.7 | CL39: 0.8 | CM39: 2.3 | CN39: -0.57 | CO39: Faster | CP39: Faster | CS39: No | CT39: SB | CU39: 8.493436833 | CV39: 4 | CW39: 2 | CX39: 4 | CY39: 3 | CZ39: 1 | DA39: 4 | DB39: 2 | DC39: 3 | DD39: 13 | DE39: 6 | DF39: 18812.56917 | DG39: 28856.19823 | DH39: 9987.430828 | DI39: 2.889251373 | EM39: 1
A40: Elevator Cleaning | B40: Elevator | C40: Cleaning cloth (elevator) | D40: Spot cleaning | G40: Elevator CleaningElevatorCleaning cloth (elevator)Spot cleaning | H40: Wiping surfaces in the elevator cars | I40: Inside an elevator car; excludes elevator landing (area in front of elevators) | J40: Uses cleaning cloth | K40: Wipes high touched surfaces, such as railings and buttons | L40: No. of elevator | M40: 19.28571429 | N40: 91.52542373 | P40: P009_1 | Q40: Elevator cleaning | R40: Elevator | S40: Cloth, trigger sprayer | T40: Elevator_cleaning | U40: Elevator | V40: Cloth, trigger sprayer | W40: Elevator cleaning | X40: Elevator | Y40: Cloth, trigger sprayer | Z40: 54 | AA40: 96 | AB40: 103 | AC40: 2.6 | AD40: 123 | AE40: 5.4 | AF40: 115.3767705 | AG40: 3.321246459 | AH40: 4.306736768 | AI40: 0.964616403 | AJ40: 78.3 | AK40: 42.27681927 | AL40: 353 | AM40: 353 | AN40: 118 | AO40: 19.11856008 | AP40: 1 | AQ40: 1203.399433 | AR40: 194.9768167 | AS40: 3530 | AT40: 3530 | AU40: 3530 | AV40: 0.0929017 | AW40: -15.7037 | AX40: 0.00230945 | AY40: 44.4709 | AZ40: 38.7281 | BA40: 32.4588 | BB40: 11.72756124 | BC40: 8.021528028 | BD40: 7.139338832 | BE40: 9.470565 | BF40: 5.55647 | BG40: 5.46575 | BH40: 9.075620657 | BI40: 8.813578929 | BJ40: 6.132548967 | BK40: 1.56015 | BL40: -1.43152 | BM40: 0.394922 | BN40: 2.237695 | BO40: -0.226204 | BP40: 0.8604285 | BQ40: 25.1073 | BR40: 21.7187 | BS40: 15.97295 | BT40: 30.146 | BU40: 26.8318 | BV40: 19.175 | BW40: 26 | BX40: 3094 | BY40: 410 | BZ40: 0 | CA40: 3530 | CB40: 0.736543909 | CC40: 87.64872521 | CD40: 11.61473088 | CE40: 0 | CF40: 2019-12-26 | CG40: L&I | CH40: 118 | CI40: 28 | CJ40: 5.9 | CK40: 22.1 | CL40: 1.3 | CM40: 4.8 | CN40: -0.79 | CO40: Faster | CP40: Faster | CQ40: Did not spend 4 minutes per car. | CS40: No | CT40: JL | CU40: 2.538442451 | CV40: 4 | CW40: 2 | CX40: 2 | CY40: 2 | CZ40: 1 | DA40: 4 | DB40: 2 | DC40: 2 | DD40: 11 | DE40: 4 | DF40: 6686.471314 | DG40: 19594.00305 | DH40: 22113.52869 | DI40: 0.886064062 | DJ40: 965.9026286 | DK40: 10693.06142 | DL40: 27834.09737 | DM40: 0.384171302 | EM40: 1
A41: Elevator Cleaning | B41: Elevator | C41: Tools for wiping and dusting | D41: Duster used for cleaning above shoulder height | G41: Elevator CleaningElevatorTools for wiping and dustingDuster used for cleaning above shoulder height | H41: Wiping and dusting surfaces inside elevator cars | I41: Inside an elevator car; excludes elevator landing (area in front of elevators) | J41: Uses both a cleaning cloth and duster to clean elevator | K41: Wipes surfaces below shoulder height with cloth, above shoulder height with duster | L41: No. of elevator | M41: 20 | N41: 25.94594595 | P41: P002 | Q41: Elevator cleaning | R41: Elevator | S41: Duster, cloth | T41: Elevator_cleaning | U41: Elevator | V41: Duster, cloth | W41: Elevator cleaning | X41: Elevator | Y41: Duster, cloth | Z41: 54 | AA41: 91 | AB41: 59 | AC41: 1 | AD41: 101 | AE41: 4.2 | AF41: 86.12027027 | AG41: 3.27027027 | AH41: 5.070698364 | AI41: 0.702611442 | AJ41: 64.5 | AK41: 21.30075889 | AL41: 2220 | AM41: 2220 | AN41: 1264 | AO41: 148.9389017 | AP41: 1 | AQ41: 2049.72973 | AR41: 241.5225433 | AS41: 22200 | AT41: 22200 | AU41: 22200 | AV41: 0.070197 | AW41: -15.3406 | AX41: 6.35e-05 | AY41: 95.5316 | AZ41: 95.8623 | BA41: 108.999 | BB41: 17.48632253 | BC41: 14.10631342 | BD41: 10.3150662 | BE41: 11.13805 | BF41: 8.55476 | BG41: 5.65026 | BH41: 18.15336501 | BI41: 18.62570799 | BJ41: 14.74925514 | BK41: 2.28951 | BL41: -0.824272 | BM41: 0.382722 | BN41: 3.873985 | BO41: 0.219825 | BP41: 0.7903775 | BQ41: 41.2553 | BR41: 37.85495 | BS41: 22.1311 | BT41: 61.81895 | BU41: 60.1051 | BV41: 36.01535 | BW41: 107 | BX41: 18182 | BY41: 2797 | BZ41: 1114 | CA41: 22200 | CB41: 0.481981982 | CC41: 81.9009009 | CD41: 12.5990991 | CE41: 5.018018018 | CF41: 2019-09-30 | CG41: ABM | CH41: 1264 | CI41: 48 | CJ41: 37 | CK41: 11 | CL41: 0.26 | CM41: 1.3 | CN41: -0.23 | CO41: Faster | CP41: Faster | CS41: No | CT41: JL | CU41: 12.91041988 | CV41: 2 | CW41: 1 | CX41: 2 | CY41: 3 | CZ41: 1 | DA41: 4 | DB41: 1 | DC41: 1 | DD41: 10 | DE41: 4 | DF41: 12825.45096 | DG41: 7802.598037 | DH41: 15974.54904 | DI41: 0.48843933 | DJ41: 11054.28939 | DK41: 11023.91178 | DL41: 17745.71061 | DM41: 0.621215573 | EM41: 1
A42: Elevator Cleaning | B42: Elevator | C42: Tools for wiping and vacuuming | D42: Performs all cleaning tasks in a car | G42: Elevator CleaningElevatorTools for wiping and vacuumingPerforms all cleaning tasks in a car | H42: Wiping and vacuuming each car | I42: Inside an elevator car; excludes elevator landing (area in front of elevators) | J42: Uses a cleaning cloth and vacuum | K42: Wipes surfaces and vacuums each car before moving onto the next | L42: No. of elevator | M42: 14.52229299 | N42: 25.90909091 | P42: P003 | Q42: Elevator cleaning | R42: Elevator | S42: multiple tools | T42: Elevator_cleaning | U42: Elevator | V42: multiple tools | W42: Elevator cleaning | X42: Elevator | Y42: multiple tools | Z42: 65 | AA42: 54 | AB42: 73 | AC42: 1 | AD42: 96 | AE42: 3.8 | AF42: 84.91890868 | AG42: 1.767866616 | AH42: 4.002967363 | AI42: 0.900491629 | AJ42: 59.5 | AK42: 26.6166583 | AL42: 2639 | AM42: 2639 | AN42: 318 | AO42: 63.18559986 | AP42: 1 | AQ42: 433.8006821 | AR42: 86.19483119 | AS42: 26390 | AT42: 26390 | AU42: 26390 | AV42: 0.123779 | AW42: -0.865956 | AX42: 3.78e-05 | AY42: 107.346 | AZ42: 107.498 | BA42: 179.901 | BB42: 36.84281207 | BC42: 35.39756597 | BD42: 20.64703031 | BE42: 26.5657 | BF42: 24.6078 | BG42: 10.1261 | BH42: 25.12778559 | BI42: 25.68733599 | BJ42: 30.18668022 | BK42: 10.1557 | BL42: 8.7336 | BM42: 0.705914 | BN42: 14.2829 | BO42: 12.79755 | BP42: 1.46131 | BQ42: 83.9656 | BR42: 83.7797 | BS42: 63.266 | BT42: 87.9212 | BU42: 87.8669 | BV42: 81.7715 | BW42: 0 | BX42: 8234 | BY42: 13050 | BZ42: 5106 | CA42: 26390 | CB42: 0 | CC42: 31.20121258 | CD42: 49.45054945 | CE42: 19.34823797 | CF42: 2019-10-14 | CG42: ABM | CH42: 329 | CI42: 78.5 | CJ42: 44 | CK42: 34.5 | CL42: 0.56 | CM42: 1.8 | CN42: -0.44 | CO42: Faster | CP42: Faster | CQ42: Did not spend 4 minutes per car. | CS42: No | CT42: WL | CU42: 31.2083837 | CV42: 5 | CW42: 1 | CX42: 4 | CY42: 3 | CZ42: 1 | DA42: 4 | DB42: 3 | DC42: 2 | DD42: 13 | DE42: 5 | DJ42: 10474.87287 | DK42: 68759.81623 | DL42: 18325.12713 | DM42: 3.752214963 | EM42: 1
A43: Floor Scrubbing | B43: Hard Flooring (scrubbing) | C43: Walk-behind floor scubber | D43: None | G43: Floor ScrubbingHard Flooring (scrubbing)Walk-behind floor scubberNone | H43: Clean hard flooring with a scrubber that is self-propelled | I43: Flooring may be tile, marble, linoleum, cement | J43: Walk-behind floor scrubber | K43: No variations | L43: Sq. ft. of floor | M43: 2923.68 | N43: 1405.615385 | P43: P003 | Q43: Scrubbing | R43: Reception/lobby/elevator landing | S43: 20" automatic scrubber | T43: Scrubbing | U43: Reception/lobby/elevator landing | V43: 20" automatic scrubber | W43: Scrubbing | X43: Reception/lobby/elevator landing | Y43: 20" Automatic scrubber | Z43: 65 | AA43: 54 | AB43: 66 | AC43: 1 | AD43: 105 | AE43: 5 | AF43: 83.59807692 | AG43: 2.030769231 | AH43: 5.707146091 | AI43: 1.169453823 | AJ43: 59.5 | AK43: 25.2335884 | AL43: 1560 | AM43: 1560 | AN43: 347 | AO43: 42.07160002 | AP43: 2 | AQ43: 800.7692308 | AR43: 97.08830774 | AS43: 15600 | AT43: 15600 | AU43: 15600 | AV43: 0.473557 | AW43: -1.44188 | AX43: 0.000625758 | AY43: 105.865 | AZ43: 106.74 | BA43: 179.803 | BB43: 25.37455141 | BC43: 24.02066534 | BD43: 10.9886759 | BE43: 22.59835 | BF43: 21.33225 | BG43: 7.867835 | BH43: 14.80727483 | BI43: 14.83822354 | BJ43: 18.25951029 | BK43: 9.633175 | BL43: 7.486735 | BM43: 0.9382915 | BN43: 15.62615 | BO43: 14.1814 | BP43: 1.84777 | BQ43: 34.55255 | BR43: 32.6717 | BS43: 15.34945 | BT43: 57.62315 | BU43: 55.3059 | BV43: 30.57245 | BW43: 0 | BX43: 5133 | BY43: 9937 | BZ43: 530 | CA43: 15600 | CB43: 0 | CC43: 32.90384615 | CD43: 63.69871795 | CE43: 3.397435897 | CF43: 2019-10-14 | CG43: ABM | CH43: 347 | CI43: 7.2 | CJ43: 26 | CK43: -18.8 | CL43: 1.13 | CM43: 0.3 | CN43: 2.59 | CO43: Slower | CP43: Slower | CQ43: Make sure the reference item is right. She just walked very slowly. | CR43: Updated results, ISSA2021 data; Check area measurements, walking very slowly | CS43: No | CT43: WL | CU43: 5.517959472 | CV43: 3 | CW43: 1 | CX43: 1 | CY43: 1 | CZ43: 2 | DA43: 4 | DB43: 3 | DC43: 1 | DD43: 11 | DE43: 2 | EM43: 2
A44: Glass Door Cleaning | B44: Glass Doors | C44: Cleaning cloth, long handled wiping tool | D44: High level cleaning | G44: Glass Door CleaningGlass DoorsCleaning cloth, long handled wiping toolHigh level cleaning | H44: Cleaning glass doors, either inside or out | I44: Lobby doors, revolving doors, parking garage doors | J44: Cleaning cloth of any material | K44: High level clean: entire door surface (high and low) is cleaned; use of long handled cleaning tool to reach above shoulder level; wipes door thresholds and surfaces around door | L44: No. of door | M44: 19.99170124 | N44: 19.11904762 | P44: P003 | Q44: Glass door cleaning | R44: Glass door | S44: Cloth, trigger sprayer | T44: Glass_door_cleaning | U44: Glass door | V44: Cloth, trigger sprayer | W44: Glass door cleaning | X44: Glass door | Y44: Cloth, trigger sprayer | Z44: 65 | AA44: 54 | AB44: 74 | AC44: 1 | AD44: 97 | AE44: 3.2 | AF44: 85.2504957 | AG44: 2.063053536 | AH44: 4.392307951 | AI44: 0.845539453 | AJ44: 59.5 | AK44: 26.96386984 | AL44: 1513 | AM44: 1513 | AN44: 192 | AO44: 38.78719992 | AP44: 1 | AQ44: 456.8407138 | AR44: 92.28943801 | AS44: 15130 | AT44: 15130 | AU44: 15130 | AV44: 0.250771 | AW44: -7.59136 | AX44: 0.00020482 | AY44: 102.012 | AZ44: 102.511 | BA44: 177.504 | BB44: 25.82667232 | BC44: 22.93157616 | BD44: 15.52485412 | BE44: 17.8579 | BF44: 14.8803 | BG44: 8.82598 | BH44: 22.78074015 | BI44: 23.849291 | BJ44: 24.96257784 | BK44: 5.70579 | BL44: 0.198627 | BM44: 0.649664 | BN44: 8.025795 | BO44: 3.38142 | BP44: 1.35169 | BQ44: 63.3315 | BR44: 61.96945 | BS44: 28.09185 | BT44: 84.3246 | BU44: 84.1095 | BV44: 69.9158 | BW44: 19 | BX44: 9993 | BY44: 3545 | BZ44: 1573 | CA44: 15130 | CB44: 0.125578321 | CC44: 66.04758757 | CD44: 23.43027099 | CE44: 10.39656312 | CF44: 2019-10-14 | CG44: ABM | CH44: 227 | CI44: 24.1 | CJ44: 25.2 | CK44: -1.1 | CL44: 0.04 | CM44: 1 | CN44: 0.05 | CO44: Slower | CP44: Slower | CR44: Updated results, ISSA2021 data ratio 1.0, Check my calculation-> My analysis is correct | CS44: No | CT44: WL | CU44: 15.21573473 | CV44: 4 | CW44: 2 | CX44: 2 | CY44: 3 | CZ44: 1 | DA44: 4 | DB44: 2 | DC44: 2 | DD44: 12 | DE44: 5 | DJ44: 18311.80685 | DK44: 711521.557 | DL44: 10488.19315 | DM44: 67.84024159 | EM44: 1
A45: Glass Door Cleaning | B45: Glass Doors | C45: Cleaning cloth, with or without spray bottle | D45: Moderate level cleaning | G45: Glass Door CleaningGlass DoorsCleaning cloth, with or without spray bottleModerate level cleaning | H45: Cleaning glass doors, either inside or out | I45: Lobby doors, revolving doors, parking garage doors | J45: Cleaning cloth of any material | K45: Moderate level clean: wipes between shoulder and knee height, focusing on high-touch areas | L45: No. of door | M45: 20 | N45: 18.94736842 | P45: P001 | Q45: Glass door cleaning | R45: Glass door | S45: Cloth, trigger sprayer | T45: Glass_door_cleaning | U45: Glass door | V45: Cloth, trigger sprayer | W45: Glass door cleaning | X45: Glass door | Y45: Cloth, trigger sprayer | Z45: 31 | AA45: 72 | AB45: 76 | AC45: 1 | AD45: 135 | AE45: 4.2 | AF45: 111.3591549 | AG45: 2.995070423 | AH45: 10.2558739 | AI45: 0.839822562 | AJ45: 63 | AK45: 38.38028167 | AL45: 568 | AM45: 568 | AN45: 261 | AO45: 34.56502032 | AP45: 1 | AQ45: 1654.225352 | AR45: 219.0740725 | AS45: 5680 | AT45: 5680 | AU45: 5680 | AV45: 0.248779 | AW45: -6.33304 | AX45: 0.00121415 | AY45: 89.3835 | AZ45: 89.3834 | BA45: 75.8327 | BB45: 23.86087695 | BC45: 19.62609329 | BD45: 13.31429378 | BE45: 16.0496 | BF45: 10.6259 | BG45: 8.75341 | BH45: 20.94448069 | BI45: 21.92043271 | BJ45: 13.97077303 | BK45: 3.097975 | BL45: 0.640511 | BM45: 0.5349745 | BN45: 4.925585 | BO45: 1.757565 | BP45: 1.06745 | BQ45: 63.4431 | BR45: 61.93205 | BS45: 33.7894 | BT45: 73.33485 | BU45: 72.8421 | BV45: 47.233 | BW45: 3 | BX45: 3830 | BY45: 1259 | BZ45: 588 | CA45: 5680 | CB45: 0.052816901 | CC45: 67.42957747 | CD45: 22.16549296 | CE45: 10.35211268 | CF45: 2019-08-01 | CG45: ABM | CH45: 261 | CI45: 9 | CJ45: 9.5 | CK45: -0.5 | CL45: 0.05 | CM45: 0.9 | CN45: 0.05 | CO45: Slower | CP45: Slower | CS45: No | CT45: SB | CU45: 9.807468994 | CV45: 4 | CW45: 2 | CX45: 4 | CY45: 3 | CZ45: 1 | DA45: 4 | DB45: 2 | DC45: 3 | DD45: 13 | DE45: 6 | DF45: 22006.24835 | DG45: 33754.91455 | DH45: 6793.751646 | DI45: 4.968523476 | EM45: 1
A46: Glass Door Cleaning | B46: Glass Doors | C46: Cleaning cloth, with or without spray bottle | D46: Spot cleaning | G46: Glass Door CleaningGlass DoorsCleaning cloth, with or without spray bottleSpot cleaning | H46: Cleaning glass doors, either inside or out | I46: Lobby doors, revolving doors, parking garage doors | J46: Cleaning cloth of any material | K46: Low level: wiping high-touch areas only | L46: No. of door | M46: 20 | N46: 84.84848485 | P46: P002 | Q46: Glass door cleaning | R46: Glass door | S46: Cloth, trigger sprayer | T46: Glass_door_cleaning | U46: Glass door | V46: Cloth, trigger sprayer | W46: Glass door cleaning | X46: Glass door | Y46: Cloth | Z46: 54 | AA46: 91 | AB46: 84 | AC46: 1 | AD46: 107 | AE46: 3.8 | AF46: 95.7027027 | AG46: 2.968918919 | AH46: 3.944984538 | AI46: 1.075105243 | AJ46: 64.5 | AK46: 30.74157901 | AL46: 592 | AM46: 592 | AN46: 307 | AO46: 36.6808207 | AP46: 1 | AQ46: 1866.891892 | AR46: 223.0590448 | AS46: 5920 | AT46: 5920 | AU46: 5920 | AV46: 0.170516 | AW46: -7.9491 | AX46: 0.000256289 | AY46: 53.4488 | AZ46: 52.5197 | BA46: 28.733 | BB46: 13.04427724 | BC46: 10.29533646 | BD46: 6.316717125 | BE46: 11.0743 | BF46: 8.766415 | BG46: 4.621125 | BH46: 8.469057569 | BI46: 8.583860042 | BJ46: 5.616925751 | BK46: 3.03044 | BL46: -0.141677 | BM46: 0.405697 | BN46: 4.404165 | BO46: 1.44509 | BP46: 0.749697 | BQ46: 24.09975 | BR46: 20.6243 | BS46: 15.0738 | BT46: 29.4803 | BU46: 26.51915 | BV46: 18.55895 | BW46: 27 | BX46: 5243 | BY46: 650 | BZ46: 0 | CA46: 5920 | CB46: 0.456081081 | CC46: 88.56418919 | CD46: 10.97972973 | CE46: 0 | CF46: 2019-09-30 | CG46: ABM | CH46: 307 | CI46: 42 | CJ46: 9.9 | CK46: 32.1 | CL46: 1.24 | CM46: 4.3 | CN46: -0.77 | CO46: Faster | CP46: Faster | CQ46: Definitely did not spend 3 min per door. | CS46: No | CT46: JL | CU46: 5.811550292 | CV46: 5 | CW46: 1 | CX46: 4 | CY46: 2 | CZ46: 1 | DA46: 4 | DB46: 3 | DC46: 2 | DD46: 12 | DE46: 4 | DF46: 11581.83 | DG46: 17765.12178 | DH46: 17218.17 | DI46: 1.031765965 | DK46: 0 | DL46: 28800 | DM46: 0 | EM46: 1
A47: Office/Cubicle Cleaning | B47: Office/Cubicle Cleaning | C47: Duster (office/cubicle) | D47: None | G47: Office/Cubicle CleaningOffice/Cubicle CleaningDuster (office/cubicle)None | H47: Activity only involves dusting in office/cubicle areas | I47: Includes offices and cubicles, includes meeting spaces among cubicles | J47: Duster only, no other tools | K47: No variations | L47: Sq. ft. of floors | M47: 9955.431472 | N47: 8527.043478 | P47: P008 | Q47: Dusting/wiping | R47: Office/cubicle | S47: Duster | T47: Dusting_wiping | U47: Office/cubicle | V47: Duster | W47: Dusting/wiping | X47: Office/Cubicle | Y47: Duster | Z47: 49 | AA47: 87 | AB47: 72 | AC47: 1 | AD47: 93 | AE47: 4 | AF47: 81.87681159 | AG47: 1.973913043 | AH47: 3.116432618 | AI47: 0.989524856 | AJ47: 70.8 | AK47: 11.05470219 | AL47: 1380 | AM47: 1380 | AN47: 215 | AO47: 52.37797964 | AP47: 2 | AQ47: 560.8695652 | AR47: 136.6382078 | AS47: 13800 | AT47: 13800 | AU47: 13800 | AV47: 0.0317605 | AW47: -3.9029 | AX47: 0.000238776 | AY47: 70.5193 | AZ47: 70.4192 | BA47: 27.06 | BB47: 9.577579159 | BC47: 6.489865393 | BD47: 5.516330284 | BE47: 9.114895 | BF47: 5.502495 | BG47: 4.50333 | BH47: 6.301570947 | BI47: 6.695648449 | BJ47: 4.033592198 | BK47: 1.830485 | BL47: -0.43492 | BM47: 0.483952 | BN47: 2.623955 | BO47: -0.06277985 | BP47: 0.9521015 | BQ47: 15.49705 | BR47: 13.2421 | BS47: 11.6797 | BT47: 19.00145 | BU47: 17.4895 | BV47: 12.93355 | BW47: 0 | BX47: 13349 | BY47: 418 | BZ47: 33 | CA47: 13800 | CB47: 0 | CC47: 96.73188406 | CD47: 3.028985507 | CE47: 0.239130435 | CF47: 2019-12-19 | CG47: L&I | CH47: 215 | CI47: 19.7 | CJ47: 23 | CK47: -3.3 | CL47: 0.15 | CM47: 0.9 | CN47: 0.16 | CO47: Slower | CP47: Slower | CR47: Updated results, ISSA2021 data | CS47: No | CT47: SB | CU47: 5.197984704 | CV47: 4 | CW47: 1 | CX47: 2 | CY47: 2 | CZ47: 1 | DA47: 4 | DB47: 3 | DC47: 1 | DD47: 11 | DE47: 3 | DF47: 18464.75477 | DG47: 23748.29655 | DH47: 10335.24523 | DI47: 2.297797104 | EM47: 2
A48: Office/Cubicle Cleaning | B48: Office/Cubicle Cleaning | C48: Tools to wipe, dust and vacuum | D48: None | G48: Office/Cubicle CleaningOffice/Cubicle CleaningTools to wipe, dust and vacuumNone | H48: Wipes and dusts surfaces; vacuums carpet | I48: Includes offices and cubicles, includes meeting spaces among cubicles | J48: Includes a duster, cleaning cloth and backpack vacuum; excludes upright vacuums | K48: No variations | L48: Sq. ft. of floor | M48: 16606.8 | N48: 12210.88235 | P48: P001 | Q48: Cubicle cleaning | R48: Office/cubicle | S48: multiple tools | T48: Cubicle_cleaning | U48: Office/cubicle | V48: multiple tools | W48: Cubicle cleaning | X48: Office/Cubicle | Y48: Duster/Cloth, trigger sprayer/Trash can with line | Z48: 31 | AA48: 72 | AB48: 74 | AC48: 1 | AD48: 128 | AE48: 4.2 | AF48: 104.8627451 | AG48: 2.758823529 | AH48: 7.653659484 | AI48: 0.807195806 | AJ48: 63 | AK48: 33.22440087 | AL48: 2040 | AM48: 2040 | AN48: 732 | AO48: 108.79862 | AP48: 2 | AQ48: 1291.764706 | AR48: 191.9975647 | AS48: 20400 | AT48: 20400 | AU48: 20400 | AV48: 0.111238 | AW48: -7.26707 | AX48: 4.5e-05 | AY48: 98.3508 | AZ48: 98.655 | BA48: 163.591 | BB48: 28.39562045 | BC48: 23.59943386 | BD48: 16.31136284 | BE48: 22.87495 | BF48: 16.95045 | BG48: 12.82175 | BH48: 19.94953222 | BI48: 21.48384359 | BJ48: 15.09715243 | BK48: 6.256485 | BL48: 1.161715 | BM48: 1.13653 | BN48: 8.57641 | BO48: 2.943085 | BP48: 2.412875 | BQ48: 60.5133 | BR48: 58.5394 | BS48: 31.75835 | BT48: 74.5476 | BU48: 73.00005 | BV48: 48.4271 | BW48: 15 | BX48: 11394 | BY48: 7045 | BZ48: 1946 | CA48: 20400 | CB48: 0.073529412 | CC48: 55.85294118 | CD48: 34.53431373 | CE48: 9.539215686 | CF48: 2019-08-01 | CG48: ABM | CH48: 732 | CI48: 25 | CJ48: 34 | CK48: -9 | CL48: 0.31 | CM48: 0.7 | CN48: -0.18 | CO48: Slower | CP48: Faster | CR48: Updated results, ISSA2021 data | CS48: No | CT48: SB | CU48: 8.685989959 | CV48: 5 | CW48: 2 | CX48: 4 | CY48: 2 | CZ48: 1 | DA48: 4 | DB48: 4 | DC48: 3 | DD48: 14 | DE48: 5 | DF48: 12730.5995 | DG48: 33598.27547 | DH48: 16069.4005 | DI48: 2.090823206 | DJ48: 3969.40181 | DK48: 58825.82303 | DL48: 24830.59819 | DM48: 2.36908602 | EM48: 2
A49: Restocking | B49: Kitchen/Coffee Bar (restocking) | C49: Dispenser (kitchen/coffee bar) | D49: Paper towel dispenser | G49: RestockingKitchen/Coffee Bar (restocking)Dispenser (kitchen/coffee bar)Paper towel dispenser | H49: Refilling or replacing supplies | I49: Area for preparing beverages and food, no seating | J49: Wall-mounted paper towel dispensers, manual or automatic; includes rolls and folded sheets | K49: No variations | L49: No. of dispenser | M49: 85.71428571 | N49: 31.57894737 | P49: P008 | Q49: Restocking supplies | R49: Kitchen/coffee bar | S49: Dispenser | T49: Restocking_supplies | U49: Kitchen/coffee bar | V49: Dispenser | W49: Restocking supplies | X49: Kitchen/coffee bar | Y49: Dispenser | Z49: 49 | AA49: 87 | AB49: 88 | AC49: 3.2 | AD49: 98 | AE49: 3.4 | AF49: 92.78070175 | AG49: 3.294736842 | AH49: 2.799363935 | AI49: 0.100302291 | AJ49: 70.8 | AK49: 21.93682809 | AL49: 114 | AM49: 114 | AN49: 32 | AO49: 3.691839933 | AP49: 1 | AQ49: 1010.526316 | AR49: 116.5844189 | AS49: 1140 | AT49: 1140 | AU49: 1140 | AV49: 0.922263 | AW49: -1.76473 | AX49: 0.0168959 | AY49: 70.2618 | AZ49: 69.4051 | BA49: 39.6277 | BB49: 15.6540274 | BC49: 14.08543079 | BD49: 6.281270748 | BE49: 10.2148 | BF49: 8.714975 | BG49: 4.6156 | BH49: 13.22424796 | BI49: 13.42294552 | BJ49: 5.443346199 | BK49: 4.19523 | BL49: 0.8949835 | BM49: 0.6030275 | BN49: 5.79754 | BO49: 4.13366 | BP49: 1.06975 | BQ49: 40.13075 | BR49: 38.7662 | BS49: 14.9191 | BT49: 45.30285 | BU49: 43.9144 | BV49: 16.7548 | BW49: 0 | BX49: 933 | BY49: 196 | BZ49: 11 | CA49: 1140 | CB49: 0 | CC49: 81.84210526 | CD49: 17.19298246 | CE49: 0.964912281 | CF49: 2019-12-19 | CG49: L&I | CH49: 32 | CI49: 0.7 | CJ49: 1.9 | CK49: -1.2 | CL49: 0.92 | CM49: 0.3 | CN49: 1.92 | CO49: Slower | CP49: Slower | CR49: Include the time to replace a paper towel roll of the dispenser | CS49: No | CT49: SB | CU49: 3.383957547 | CV49: 4 | CW49: 1 | CX49: 2 | CY49: 2 | CZ49: 1 | DA49: 4 | DB49: 2 | DC49: 1 | DD49: 10 | DE49: 3 | DF49: 8894.488187 | DG49: 10944.75309 | DH49: 19905.51181 | DI49: 0.549835301 | DJ49: 235.088671 | DK49: 129.5643139 | DL49: 28564.91133 | DM49: 0.004535786 | EM49: 1
A50: Restocking | B50: Restroom (restocking) | C50: Dispenser (restroom) | D50: Soap dispenser | G50: RestockingRestroom (restocking)Dispenser (restroom)Soap dispenser | H50: Refilling or replacing supplies | I50: Multiple-user and single-user restrooms | J50: Under sink soap bottle | K50: No variations | L50: No. of dispenser | M50: 30.70866142 | N50: 43.57541899 | P50: P001 | Q50: Check replace dispen | R50: Restroom | S50: Dispenser | T50: Check_replace_dispenser | U50: Restroom | V50: Dispenser | W50: Restroom cleaning | X50: Restroom | Y50: Dispenser | Z50: 31 | AA50: 72 | AB50: 87 | AC50: 1 | AD50: 132 | AE50: 5 | AF50: 113.6778399 | AG50: 3.265921788 | AH50: 7.214754776 | AI50: 1.200144732 | AJ50: 63 | AK50: 40.22050786 | AL50: 1074 | AM50: 1074 | AN50: 656 | AO50: 68.20212054 | AP50: 1 | AQ50: 2198.882682 | AR50: 228.6104599 | AS50: 10740 | AT50: 10740 | AU50: 10740 | AV50: 0.0488911 | AW50: -3.85071 | AX50: 0.00032898 | AY50: 90.1782 | AZ50: 90.1934 | BA50: 90.4592 | BB50: 22.3440726 | BC50: 19.10549993 | BD50: 11.75480044 | BE50: 14.39045 | BF50: 12.44525 | BG50: 7.371715 | BH50: 16.60705395 | BI50: 16.43375759 | BJ50: 12.30406332 | BK50: 5.25792 | BL50: 2.125415 | BM50: 0.537603 | BN50: 6.79371 | BO50: 3.907695 | BP50: 1.15809 | BQ50: 43.1109 | BR50: 40.05765 | BS50: 27.31375 | BT50: 52.12905 | BU50: 50.49925 | BV50: 30.33585 | BW50: 0 | BX50: 6643 | BY50: 3763 | BZ50: 334 | CA50: 10740 | CB50: 0 | CC50: 61.85288641 | CD50: 35.03724395 | CE50: 3.109869646 | CF50: 2019-08-01 | CG50: ABM | CH50: 656 | CI50: 13.7 | CJ50: 17.9 | CK50: -4.2 | CL50: 0.27 | CM50: 0.8 | CN50: 0.31 | CO50: Slower | CP50: Slower | CS50: No | CT50: SB | CU50: 5.063296079 | CV50: 4 | CW50: 2 | CX50: 4 | CY50: 2 | CZ50: 1 | DA50: 4 | DB50: 2 | DC50: 3 | DD50: 12 | DE50: 5 | DF50: 11255.30047 | DG50: 24059.7261 | DH50: 17544.69953 | DI50: 1.371338737 | DJ50: 1842.555534 | DK50: 9247.146064 | DL50: 26957.44447 | DM50: 0.343027548 | EM50: 1
A51: Restocking | B51: Restroom (restocking) | C51: Dispenser (restroom) | D51: Toilet paper holders | G51: RestockingRestroom (restocking)Dispenser (restroom)Toilet paper holders | H51: Refilling or replacing supplies | I51: Multiple-user and single-user restrooms | J51: Wall mounted paper towel dispensers, manual or automatic; includes rolls and folded sheets | K51: No variations | L51: No. of fixture | M51: 63.07053942 | N51: 86.52751423 | P51: P010_2 | Q51: Restocking supplies | R51: Restroom | S51: Dispenser | T51: Restocking_supplies | U51: Restroom | V51: Dispenser | W51: Restocking supplies | X51: Restroom | Y51: n/a | Z51: 67 | AA51: 82 | AB51: 81 | AC51: 1 | AD51: 120 | AE51: 4 | AF51: 99.30379747 | AG51: 2.101202532 | AH51: 5.135034881 | AI51: 0.975339395 | AJ51: 58.9 | AK51: 42.93708552 | AL51: 3160 | AM51: 3160 | AN51: 609 | AO51: 119.067003 | AP51: 1 | AQ51: 693.7974684 | AR51: 135.6459528 | AS51: 31600 | AT51: 31600 | AU51: 31600 | AV51: 0.0382173 | AW51: -16.4372 | AX51: 7.34e-05 | AY51: 84.8422 | AZ51: 84.6127 | BA51: 77.6156 | BB51: 12.91878099 | BC51: 7.519447724 | BD51: 7.643277804 | BE51: 9.430295 | BF51: 2.871035 | BG51: 5.664435 | BH51: 13.14353547 | BI51: 14.58909952 | BJ51: 7.992830832 | BK51: 1.88423 | BL51: -6.053895 | BM51: 0.456898 | BN51: 2.834305 | BO51: -3.592375 | BP51: 0.906359 | BQ51: 26.3739 | BR51: 22.80625 | BS51: 15.02725 | BT51: 41.75275 | BU51: 39.1142 | BV51: 20.1006 | BW51: 2137 | BX51: 25642 | BY51: 3158 | BZ51: 663 | CA51: 31600 | CB51: 6.762658228 | CC51: 81.14556962 | CD51: 9.993670886 | CE51: 2.098101266 | CF51: 2020-03-04 | CG51: UW | CH51: 609 | CI51: 72.3 | CJ51: 52.7 | CK51: 19.6 | CL51: 0.31 | CM51: 1.4 | CN51: -0.27 | CO51: Faster | CP51: Faster | CQ51: Should including trashing even for small sanitary bags. | CR51: Updated results, ISSA2021 data, D40_emptying trash bags/moving floor to floor taking elevator | CS51: No | CT51: SB | CU51: 4.445406091 | CV51: 3 | CW51: 1 | CX51: 2 | CY51: 2 | CZ51: 1 | DA51: 4 | DB51: 2 | DC51: 1 | DD51: 10 | DE51: 3 | DF51: 3491.484212 | DG51: 1333.633742 | DH51: 25308.51579 | DI51: 0.052695059 | DJ51: 2488.938733 | DK51: 27553.88995 | DL51: 26311.06127 | DM51: 1.047235977 | EM51: 1
A52: Restroom/Locker Room Cleaning | B52: Locker Room | C52: Floor scrub mop, manual | D52: Cleaning shower stalls, only | G52: Restroom/Locker Room CleaningLocker RoomFloor scrub mop, manualCleaning shower stalls, only | H52: Cleaning the locker room area | I52: Locker room showers | J52: Long-handled floor scrub brush with hard bristle head | K52: Uses a scrub brush to clean shower stalls, only | L52: No. of fixture | M52: 9.056603774 | N52: 10.43478261 | P52: P011_2 | Q52: Locker room cleaning | R52: Restroom | S52: 10" Scrub mop | T52: Locker_room_cleaning | U52: Restroom | V52: 10" scrub mop | W52: Restroom cleaning | X52: Restroom | Y52: 10" Scrub mop | Z52: 64 | AA52: 73 | AB52: 101 | AC52: 1 | AD52: 154 | AE52: 7.2 | AF52: 128.7884058 | AG52: 2.252173913 | AH52: 8.189657891 | AI52: 2.014782836 | AJ52: 74.3 | AK52: 66.69327515 | AL52: 1380 | AM52: 1380 | AN52: 474 | AO52: 45.90516037 | AP52: 2 | AQ52: 1236.521739 | AR52: 119.7525923 | AS52: 13800 | AT52: 13800 | AU52: 13800 | AV52: 0.0103321 | AW52: -12.2481 | AX52: 3.98e-05 | AY52: 80.627 | AZ52: 80.2986 | BA52: 65.3285 | BB52: 16.36153372 | BC52: 14.65411553 | BD52: 5.87926041 | BE52: 12.02855 | BF52: 10.61915 | BG52: 3.726185 | BH52: 14.66891402 | BI52: 15.15606649 | BJ52: 6.938641881 | BK52: 2.510585 | BL52: -0.9536365 | BM52: 0.3543135 | BN52: 3.63534 | BO52: 1.015335 | BP52: 0.682456 | BQ52: 35.05965 | BR52: 33.6921 | BS52: 13.16965 | BT52: 50.198 | BU52: 48.7271 | BV52: 17.1467 | BW52: 82 | BX52: 10304 | BY52: 3049 | BZ52: 365 | CA52: 13800 | CB52: 0.594202899 | CC52: 74.66666667 | CD52: 22.0942029 | CE52: 2.644927536 | CF52: 2020-03-06 | CG52: UW | CH52: 474 | CI52: 26.5 | CJ52: 23 | CK52: 3.5 | CL52: 0.14 | CM52: 1.2 | CN52: -0.13 | CO52: Faster | CP52: Faster | CS52: No | CT52: WL | CU52: 27.1192521 | CV52: 4 | CW52: 1 | CX52: 2 | CY52: 3 | CZ52: 1 | DA52: 4 | DB52: 3 | DC52: 1 | DD52: 12 | DE52: 4 | DF52: 17759.82332 | DG52: 32280.58209 | DH52: 11040.17669 | DI52: 2.923918975 | DJ52: 3641.679159 | DK52: 8519.509764 | DL52: 25158.32084 | DM52: 0.338635866 | EM52: 2
A53: Restroom/Locker Room Cleaning | B53: Locker Room | C53: Tools for cleaning surfaces, floors | D53: Performing numerous cleaning tasks | G53: Restroom/Locker Room CleaningLocker RoomTools for cleaning surfaces, floorsPerforming numerous cleaning tasks | H53: Involves wiping sinks/counters/mirrors, emptying garbage, wiping shower wall and fixtures; excludes scrubbing shower walls and floors | I53: Area with lockers, sinks and showers; excludes restrooms (this is coded included as: task=restroom/locker room, location=restroom) | J53: Tools include cloth for wiping counters/sinks/mirrors, toilet brush, mopping floors | K53: Performs all cleaning tasks in the locker room and locker room restroom | L53: No. of fixture | M53: 9.459459459 | N53: 6.354009077 | P53: P003 | Q53: Locker room cleaning | R53: Restroom | S53: multiple tools | T53: Locker_room_cleaning | U53: Restroom | V53: multiple tools | W53: Locker room cleaning | X53: Restroom | Y53: multiple tools | Z53: 65 | AA53: 54 | AB53: 69 | AC53: 1 | AD53: 116 | AE53: 6 | AF53: 94.76412714 | AG53: 2.459233098 | AH53: 7.712020545 | AI53: 1.224562734 | AJ53: 59.5 | AK53: 36.92578758 | AL53: 3964 | AM53: 3964 | AN53: 1266 | AO53: 127.3095986 | AP53: 1 | AQ53: 1149.74773 | AR53: 115.6192116 | AS53: 39640 | AT53: 39640 | AU53: 39640 | AV53: 0.0449562 | AW53: -10.7397 | AX53: 0.000425451 | AY53: 109.11 | AZ53: 110.36 | BA53: 179.369 | BB53: 28.26272783 | BC53: 26.28728792 | BD53: 14.8809341 | BE53: 22.0585 | BF53: 20.14275 | BG53: 9.00809 | BH53: 21.15186189 | BI53: 21.74919796 | BJ53: 23.20785898 | BK53: 6.88947 | BL53: 2.817195 | BM53: 0.5621345 | BN53: 10.14625 | BO53: 7.680765 | BP53: 1.303575 | BQ53: 59.72695 | BR53: 58.5036 | BS53: 27.0164 | BT53: 80.7989 | BU53: 80.317 | BV53: 56.5206 | BW53: 35 | BX53: 19549 | BY53: 16274 | BZ53: 3782 | CA53: 39640 | CB53: 0.088294652 | CC53: 49.31634712 | CD53: 41.05449041 | CE53: 9.54086781 | CF53: 2019-10-14 | CG53: ABM | CH53: 1304 | CI53: 44.4 | CJ53: 66.1 | CK53: -21.7 | CL53: 0.39 | CM53: 0.7 | CN53: 0.49 | CO53: Slower | CP53: Slower | CR53: Production rate is not avaiable for the folding and stocking shower towels task | CS53: No | CT53: WL | CU53: 46.27957421 | CV53: 5 | CW53: 1 | CX53: 4 | CY53: 3 | CZ53: 1 | DA53: 4 | DB53: 3 | DC53: 2 | DD53: 13 | DE53: 5 | DJ53: 6014.824612 | DK53: 21547.9295 | DL53: 22785.17539 | DM53: 0.945699523 | EM53: 1
A54: Restroom/Locker Room Cleaning | B54: Restroom (cleaning) | C54: Flat Mop (restroom) | D54: Cleaning high areas | G54: =CONCATENATE(A54,B54,C54,D54) -> Restroom/Locker Room CleaningRestroom (cleaning)Flat Mop (restroom)Cleaning high areas | H54: Dusting above shoulder level | I54: Multiple user or single user restrooms | J54: The mop head consists of a long pad; mop head may or may not be hinged | K54: Cleans ceiling vents, walls close to ceiling | L54: No. of object | M54: 120 | N54: 98.63013699 | P54: P010_2 | Q54: Dusting/wiping | R54: Restroom | S54: 18" flat mop | T54: Dusting_wiping | U54: Restroom | V54: 18" flat mop | W54: Dusting/wiping | X54: Restroom | Y54: 18" Flat mop | Z54: 67 | AA54: 82 | AB54: 88 | AC54: 1 | AD54: 108 | AE54: 4 | AF54: 100.1045455 | AG54: 2.991363636 | AH54: 4.507445349 | AI54: 0.399564632 | AJ54: 58.9 | AK54: =IF(AF54="","", (AF54-AJ54)/(220-Z54-AJ54)*100) -> 43.78803985 | AL54: 440 | AM54: 440 | AN54: 153 | AO54: 22.15200019 | AP54: 1 | AQ54: 1251.818182 | AR54: 181.2436379 | AS54: 4400 | AT54: 4400 | AU54: 4400 | AV54: 0.109706 | AW54: -13.9565 | AX54: 0.000309054 | AY54: 63.4987 | AZ54: 62.6042 | BA54: 40.6113 | BB54: 10.44162455 | BC54: 1.100268309 | BD54: 7.674763244 | BE54: 9.9291 | BF54: -1.052215 | BG54: 7.308005 | BH54: 6.847257024 | BI54: 8.568561675 | BJ54: 5.225504879 | BK54: 1.70198 | BL54: -9.091695 | BM54: 0.56619 | BN54: 2.705735 | BO54: -7.18362 | BP54: 1.218625 | BQ54: 17.5369 | BR54: 12.3444 | BS54: 14.55595 | BT54: 20.48105 | BU54: 16.52135 | BV54: 16.07635 | BW54: 827 | BX54: 3444 | BY54: 123 | BZ54: 6 | CA54: 4400 | CB54: 18.79545455 | CC54: 78.27272727 | CD54: 2.795454546 | CE54: 0.136363636 | CF54: 2020-03-04 | CG54: UW | CH54: 153 | CI54: 6 | CJ54: 7.3 | CK54: -1.3 | CL54: 0.2 | CM54: 0.8 | CN54: 0.22 | CO54: Slower | CP54: =IF(CN54<0,"Faster",(IF(CN54>0,"Slower","Equal"))) -> Slower | CS54: No | CT54: SB | CU54: 5.883909339 | CV54: 4 | CW54: 2 | CX54: 2 | CY54: 3 | CZ54: 1 | DA54: 4 | DB54: 2 | DC54: 2 | DD54: 12 | DE54: 5 | DF54: 11008.27382 | DG54: 55246.7017 | DH54: 17791.72618 | DI54: 3.105190646 | EM54: 1
A55: Restroom/Locker Room Cleaning | B55: Restroom (cleaning) | C55: Tools for cleaning surfaces, toilets, floors | D55: Angled/long handled toilet brush, flat mop used | G55: Restroom/Locker Room CleaningRestroom (cleaning)Tools for cleaning surfaces, toilets, floorsAngled/long handled toilet brush, flat mop used | H55: Involves cleaning sinks/counters/mirrors, toilets/urinals, emptying garbage, restocking and mopping floors; excludes restrooms in locker rooms | I55: Multiple user or single user restrooms | J55: Tools include cloth for wiping counters/sinks/mirrors, toilet brush, mopping floors | K55: Toilet brush handle longer than 15"; The mop head consists of a long pad; mop head may or may not be hinged | L55: No. of fixture | M55: 17.82178218 | N55: 22.37288136 | P55: P004_1 | Q55: Restroom cleaning | R55: Restroom | S55: multiple tools | T55: Restroom_cleaning | U55: Restroom | V55: multiple tools | W55: Restroom cleaning | X55: Restroom | Y55: multiple tools | Z55: 41 | AA55: 85 | AB55: 98 | AC55: 1 | AD55: 158 | AE55: 6.6 | AF55: 136.1042373 | AG55: 2.725423729 | AH55: 10.03706104 | AI55: 1.114861874 | AJ55: 81.5 | AK55: 56.00434595 | AL55: 10620 | AM55: 10620 | AN55: 3800 | AO55: 563.6361551 | AP55: 4 | AQ55: 1288.135593 | AR55: 191.0631034 | AS55: 106200 | AT55: 106200 | AU55: 106200 | AV55: 0.0268069 | AW55: -12.6134 | AX55: 1.93e-05 | AY55: 104.069 | AZ55: 108.124 | BA55: 163.213 | BB55: 23.91204012 | BC55: 21.09395314 | BD55: 10.04155835 | BE55: 18.9372 | BF55: 16.22595 | BG55: 7.093425 | BH55: 17.42857194 | BI55: 17.98452219 | BJ55: 10.60693781 | BK55: 4.444505 | BL55: 0.5789455 | BM55: 0.4698465 | BN55: 6.98616 | BO55: 3.789835 | BP55: 0.9753615 | BQ55: 50.09555 | BR55: 47.64415 | BS55: 22.4159 | BT55: 64.5319 | BU55: 63.6757 | BV55: 29.8581 | BW55: 56 | BX55: 64933 | BY55: 34522 | BZ55: 6689 | CA55: 106200 | CB55: 0.052730697 | CC55: 61.14218456 | CD55: 32.50659134 | CE55: 6.298493409 | CF55: 2019-12-05 | CG55: L&I | CH55: 2681 | CI55: 222.2 | CJ55: 177 | CK55: 45.2 | CL55: 0.23 | CM55: 1.3 | CN55: -0.2 | CO55: Faster | CP55: Faster | CR55: Updated results, ISSA2021 data | CS55: Yes | CT55: NH | CU55: 6.832245337 | CV55: 3 | CW55: 2 | CX55: 4 | CY55: 3 | CZ55: 1 | DA55: 4 | DB55: 4 | DC55: 3 | DD55: 15 | DE55: 6 | DJ55: 2142.529397 | DK55: 10576.80533 | DL55: 26657.4706 | DM55: 0.396767026 | EM55: 4
A56: Restroom/Locker Room Cleaning | B56: Restroom (cleaning) | C56: Tools for cleaning surfaces, toilets, floors | D56: Straight/long handled toilet brush, flat mop used | G56: Restroom/Locker Room CleaningRestroom (cleaning)Tools for cleaning surfaces, toilets, floorsStraight/long handled toilet brush, flat mop used | H56: Involves cleaning sinks/counters/mirrors, toilets/urinals, emptying garbage, restocking and mopping floors; excludes restrooms in locker rooms | I56: Multiple user or single user restrooms | J56: Tools include cloth for wiping counters, sinks and mirrors; toilet brush; mop | K56: Toilet brush handle longer than 15"; The mop head consists of a long pad; mop head may or may not be hinged | L56: No. of fixture | M56: 18.88888889 | N56: 15.2238806 | P56: P013 | Q56: Restroom cleaning | R56: Restroom | S56: multiple tools | T56: Restroom_cleaning | U56: Restroom | V56: multiple tools | W56: Restroom cleaning | X56: Restroom | Y56: multiple tools | Z56: 53 | AA56: 91 | AB56: 89 | AC56: 1 | AD56: 133 | AE56: 6.6 | AF56: 111.799005 | AG56: 2.334328358 | AH56: 8.12069356 | AI56: 1.034046935 | AJ56: 63.8 | AK56: 46.51066376 | AL56: 8040 | AM56: 8040 | AN56: 1854 | AO56: 314.489114 | AP56: 3 | AQ56: 830.1492537 | AR56: 140.8160212 | AS56: 80400 | AT56: 80400 | AU56: 80400 | AV56: 0.0517112 | AW56: -13.7706 | AX56: 0.000187134 | AY56: 80.6903 | AZ56: 80.5693 | BA56: 51.1706 | BB56: 19.16272775 | BC56: 16.13662468 | BD56: 6.943207231 | BE56: 15.21005 | BF56: 11.78325 | BG56: 5.12014 | BH56: 14.20921759 | BI56: 15.76025997 | BJ56: 6.155855235 | BK56: 3.34934 | BL56: -1.545665 | BM56: 0.4828435 | BN56: 4.892015 | BO56: -0.1381635 | BP56: 0.9681765 | BQ56: 42.54655 | BR56: 41.6098 | BS56: 15.3493 | BT56: 50.63505 | BU56: 49.58975 | BV56: 19.03285 | BW56: 689 | BX56: 52811 | BY56: 26317 | BZ56: 583 | CA56: 80400 | CB56: 0.856965174 | CC56: 65.68532338 | CD56: 32.73258707 | CE56: 0.725124378 | CF56: 2020-01-28 | CG56: UW | CH56: 1854 | CI56: 108 | CJ56: 134 | CK56: -26 | CL56: 0.21 | CM56: 0.8 | CN56: 0.24 | CO56: Slower | CP56: Slower | CS56: No | CT56: WL | CU56: 20.6699885 | CV56: 4 | CW56: 1 | CX56: 4 | CY56: 3 | CZ56: 1 | DA56: 4 | DB56: 4 | DC56: 2 | DD56: 14 | DE56: 5 | DF56: 10973.97339 | DG56: 16141.19738 | DH56: 17826.02661 | DI56: 0.905484869 | DJ56: 6465.696058 | DK56: 22749.78096 | DL56: 22334.30394 | DM56: 1.01860264 | EM56: 3
A57: Restroom/Locker Room Cleaning | B57: Restroom (cleaning) | C57: Tools for cleaning surfaces, toilets, floors | D57: Straight-handled toilet brush, flat mop used | G57: Restroom/Locker Room CleaningRestroom (cleaning)Tools for cleaning surfaces, toilets, floorsStraight-handled toilet brush, flat mop used | H57: Involves wiping sinks/counters/mirrors, toilets/urinals, emptying garbage, wiping shower wall and fixtures; excludes scrubbing shower walls and floors | I57: Locker room restrooms and showers | J57: Tools include cloth for wiping counters/sinks/mirrors, toilet brush, mopping floors | K57: Straight-handled toilet brush, flat mop used | L57: No. of fixture | M57: 10 | N57: 71.64179104 | P57: P011_1 | Q57: Locker room cleaning | R57: Restroom | S57: multiple tools | T57: Locker_room_cleaning | U57: Restroom | V57: multiple tools | W57: Locker room cleaning | X57: Restroom | Y57: multiple tools | Z57: 64 | AA57: 73 | AB57: 100 | AC57: 1 | AD57: 141 | AE57: 3.8 | AF57: 117.0569307 | AG57: 2.462376238 | AH57: 7.789362632 | AI57: 1.006021719 | AJ57: 72.1 | AK57: 53.58394601 | AL57: 404 | AM57: 404 | AN57: 96 | AO57: 14.35643995 | AP57: 1 | AQ57: 855.4455446 | AR57: 127.9286728 | AS57: 4040 | AT57: 4040 | AU57: 4040 | AV57: 0.308782 | AW57: -8.19669 | AX57: 0.00098107 | AY57: 79.9201 | AZ57: 79.7344 | BA57: 66.002 | BB57: 19.48332967 | BC57: 16.87782259 | BD57: 7.62465043 | BE57: 11.2446 | BF57: 9.426755 | BG57: 4.901885 | BH57: 18.06455413 | BI57: 19.1253409 | BJ57: 9.15341248 | BK57: 2.046235 | BL57: -2.477225 | BM57: 0.481121 | BN57: 3.08342 | BO57: -1.155455 | BP57: 0.8790105 | BQ57: 48.60925 | BR57: 47.02095 | BS57: 18.0291 | BT57: 54.85255 | BU57: 53.72145 | BV57: 27.1351 | BW57: 42 | BX57: 2681 | BY57: 1215 | BZ57: 102 | CA57: 4040 | CB57: 1.03960396 | CC57: 66.36138614 | CD57: 30.07425743 | CE57: 2.524752475 | CF57: 2020-01-13 | CG57: UW | CH57: 96 | CI57: 48 | CJ57: 6.7 | CK57: 41.3 | CL57: 1.51 | CM57: 7.2 | CN57: -0.86 | CO57: Faster | CP57: Faster | CQ57: Need to check shower unit and definition (detailed vs. regular cleaning) | CR57: Ferguson company data used | CS57: No | CT57: WL | CU57: 7.157194744 | CV57: 5 | CW57: 1 | CX57: 2 | CY57: 5 | CZ57: 1 | DA57: 4 | DB57: 3 | DC57: 1 | DD57: 14 | DE57: 6 | DF57: 14527.53598 | DG57: 22283.4773 | DH57: 14272.46402 | DI57: 1.561291539 | DJ57: 7577.702622 | DK57: 83889.24217 | DL57: 21222.29738 | DM57: 3.952882229 | EM57: 1
A58: Restroom/Locker Room Cleaning | B58: Restroom (cleaning) | C58: Tools for cleaning surfaces, toilets, floors | D58: Straight-handled toilet brush, string mop used | G58: Restroom/Locker Room CleaningRestroom (cleaning)Tools for cleaning surfaces, toilets, floorsStraight-handled toilet brush, string mop used | H58: Involves cleaning sinks/counters/mirrors, toilets/urinals, emptying garbage, restocking and mopping floors. | I58: Multiple user or single user restrooms | J58: Tools include cloth for wiping counters/sinks/mirrors, toilet brush, mopping floors | K58: Toilet brush handle less than 15"; The mop head consists of strands/strips of cotton or rayon material, which requires wringing out the cleaning solution | L58: No. of fixture | M58: 19.83870968 | N58: 28.50521437 | P58: P001 | Q58: Restroom cleaning | R58: Restroom | S58: multiple tools | T58: Restroom_cleaning | U58: Restroom | V58: multiple tools | W58: Restroom cleaning | X58: Restroom | Y58: multiple tools | Z58: 31 | AA58: 72 | AB58: 71 | AC58: 1 | AD58: 144 | AE58: 5.4 | AF58: 111.7715775 | AG58: 2.645491408 | AH58: 11.25367436 | AI58: 0.961796534 | AJ58: 63 | AK58: 38.70760119 | AL58: 5179 | AM58: 5179 | AN58: 1635 | AO58: 267.2409592 | AP58: 1 | AQ58: 1136.51284 | AR58: 185.7631692 | AS58: 51790 | AT58: 51790 | AU58: 51790 | AV58: 0.164846 | AW58: -9.29951 | AX58: 0.000203014 | AY58: 92.2832 | AZ58: 92.2838 | BA58: 167.117 | BB58: 29.01163284 | BC58: 24.4152633 | BD58: 16.96860841 | BE58: 23.11835 | BF58: 16.8347 | BG58: 13.43965 | BH58: 20.89576535 | BI58: 22.25400426 | BJ58: 13.85178805 | BK58: 4.3877 | BL58: 0.755997 | BM58: 1.03201 | BN58: 6.76818 | BO58: 2.291825 | BP58: 2.1842 | BQ58: 64.1157 | BR58: 62.36375 | BS58: 37.9769 | BT58: 69.8033 | BU58: 68.6382 | BV58: 43.1258 | BW58: 34 | BX58: 28666 | BY58: 16592 | BZ58: 6498 | CA58: 51790 | CB58: 0.065649739 | CC58: 55.35045376 | CD58: 32.03707279 | CE58: 12.54682371 | CF58: 2019-08-01 | CG58: ABM | CH58: 1635 | CI58: 124 | CJ58: 86.3 | CK58: 37.7 | CL58: 0.36 | CM58: 1.4 | CN58: -0.3 | CO58: Faster | CP58: Faster | CS58: No | CT58: SB | CU58: 30.42237327 | CV58: 4 | CW58: 2 | CX58: 4 | CY58: 2 | CZ58: 1 | DA58: 4 | DB58: 2 | DC58: 3 | DD58: 12 | DE58: 5 | DF58: 11322.263 | DG58: 37768.59646 | DH58: 17477.737 | DI58: 2.160954617 | DJ58: 7283.627057 | DK58: 23572.78282 | DL58: 21516.37294 | DM58: 1.095574188 | EM58: 1
A59: Trashing | B59: Cafeteria/Break Room (trashing) | C59: Large trash bin w/ liner (cafeteria/break room) | D59: None | G59: TrashingCafeteria/Break Room (trashing)Large trash bin w/ liner (cafeteria/break room)None | H59: Emptying trash bins | I59: Area with tables and chairs for eating food | J59: Bin (trash, recycling), greater than 5 gallons, with a plastic liner; may or may not use cleaning cloth | K59: No variations | L59: No. of bin | M59: 19.49458484 | N59: 77.14285714 | P59: P009_1 | Q59: Trashing | R59: Cafeteria/break room | S59: Trash can with liner/large bin | T59: Trashing | U59: Cafeteria/break room | V59: Trash can with liner/large bin | W59: Trashing | X59: Cafeteria/break room | Y59: Trash can with liner/large bin | Z59: 54 | AA59: 96 | AB59: 93 | AC59: 1 | AD59: 127 | AE59: 6.4 | AF59: 114.1119048 | AG59: 2.75 | AH59: 5.544297739 | AI59: 1.983433777 | AJ59: 78.3 | AK59: 40.83455507 | AL59: 420 | AM59: 420 | AN59: 182 | AO59: 20.87948001 | AP59: 1 | AQ59: 1560 | AR59: 178.9669715 | AS59: 4200 | AT59: 4200 | AU59: 4200 | AV59: 0.160647 | AW59: -7.34824 | AX59: 0.0128586 | AY59: 53.2015 | AZ59: 52.8441 | BA59: 35.2015 | BB59: 15.37818603 | BC59: 12.25694463 | BD59: 8.082637338 | BE59: 13.47655 | BF59: 10.73715 | BG59: 7.010165 | BH59: 8.945567107 | BI59: 8.773296225 | BJ59: 6.143000352 | BK59: 2.744385 | BL59: 0.377003 | BM59: 0.582917 | BN59: 4.403445 | BO59: 1.64499 | BP59: 1.229985 | BQ59: 28.24815 | BR59: 23.88895 | BS59: 17.39805 | BT59: 31.0914 | BU59: 26.7758 | BV59: 19.89775 | BW59: 10 | BX59: 3335 | BY59: 855 | BZ59: 0 | CA59: 4200 | CB59: 0.238095238 | CC59: 79.40476191 | CD59: 20.35714286 | CE59: 0 | CF59: 2019-12-26 | CG59: L&I | CH59: 511 | CI59: 27.7 | CJ59: 7 | CK59: 20.7 | CL59: 1.19 | CM59: 4 | CN59: -0.75 | CO59: Faster | CP59: Faster | CS59: No | CT59: JL | CU59: 5.193628244 | CV59: 4 | CW59: 2 | CX59: 2 | CY59: 2 | CZ59: 1 | DA59: 4 | DB59: 2 | DC59: 2 | DD59: 11 | DE59: 4 | DF59: 4772.149911 | DG59: 10180.49634 | DH59: 24027.85009 | DI59: 0.423695682 | DJ59: 2998.357361 | DK59: 6127.418614 | DL59: 25801.64264 | DM59: 0.237481726 | EM59: 1
A60: Trashing | B60: Conference Room (trashing) | C60: Large trash bin w/ liner (conference room) | D60: None | G60: TrashingConference Room (trashing)Large trash bin w/ liner (conference room)None | H60: Emptying trash bins | I60: Conference rooms; excludes meeting areas among cubicles | J60: Bin (trash or recyle), greater than 5 gallons, with a plastic liner; trash or recycle bins | K60: No variations | L60: No. of bin | M60: 65.54621849 | N60: 130 | P60: P012 | Q60: Trashing | R60: Conference room | S60: Trash can with liner/large bin | T60: Trashing | U60: Conference room | V60: Trash can with liner/large bin | W60: Trashing | X60: Conference room | Y60: Trash can with liner/large bin | Z60: 62 | AA60: 79 | AB60: 90 | AC60: 1 | AD60: 107 | AE60: 5 | AF60: 97.74444444 | AG60: 2.6 | AH60: 3.800193841 | AI60: 1.373039245 | AJ60: 55.9 | AK60: 40.98378496 | AL60: 360 | AM60: 360 | AN60: 125 | AO60: 16.70603943 | AP60: 1 | AQ60: 1250 | AR60: 167.0603943 | AS60: 3600 | AT60: 3600 | AU60: 3600 | AV60: 0.128482 | AW60: -1.76167 | AX60: 0.00317257 | AY60: 65.8003 | AZ60: 65.2224 | BA60: 36.5909 | BB60: 19.59934646 | BC60: 18.52212087 | BD60: 5.94364969 | BE60: 14.70275 | BF60: 13.91725 | BG60: 3.951945 | BH60: 16.36063742 | BI60: 16.62950108 | BJ60: 5.996230206 | BK60: 2.77659 | BL60: 0.790819 | BM60: 0.4356185 | BN60: 4.37233 | BO60: 2.181715 | BP60: 0.794763 | BQ60: 47.34315 | BR60: 46.73115 | BS60: 15.8651 | BT60: 57.96235 | BU60: 57.49395 | BV60: 20.4015 | BW60: 0 | BX60: 2409 | BY60: 1053 | BZ60: 138 | CA60: 3600 | CB60: 0 | CC60: 66.91666667 | CD60: 29.25 | CE60: 3.833333333 | CF60: 2020-01-21 | CG60: UW | CH60: 125 | CI60: 11.9 | CJ60: 6 | CK60: 5.9 | CL60: 0.66 | CM60: 2 | CN60: -0.49 | CO60: Faster | CP60: Faster | CS60: No | CT60: SB | CU60: 5.258685737 | CV60: 4 | CW60: 1 | CX60: 2 | CY60: 2 | CZ60: 1 | DA60: 4 | DB60: 2 | DC60: 1 | DD60: 10 | DE60: 3 | DF60: 3740.294743 | DG60: 5737.158257 | DH60: 25059.70526 | DI60: 0.228939574 | DJ60: 10000.46531 | DK60: 23157.65639 | DL60: 18799.53469 | DM60: 1.231820722 | EM60: 1
A61: Trashing | B61: Conference Room (trashing) | C61: Small trash bin w/ liner (conference room) | D61: None | G61: TrashingConference Room (trashing)Small trash bin w/ liner (conference room)None | H61: Emptying trash bins | I61: Conference rooms; excludes meeting areas among cubicles | J61: Bin, less than 5 gallons, with a plastic liner | K61: No variations | L61: No. of bin | M61: 39.90498812 | N61: 71.79487179 | P61: P009_1 | Q61: Trashing | R61: Conference room | S61: Trash can with liner/small bin | T61: Trashing | U61: Conference room | V61: Trash can with liner/small bin | W61: Trashing | X61: Conference room | Y61: Trash can with liner/small bin | Z61: 54 | AA61: 96 | AB61: 91 | AC61: 1 | AD61: 122 | AE61: 5.8 | AF61: 107.0640569 | AG61: 3.738078292 | AH61: 4.87114848 | AI61: 0.850847077 | AJ61: 78.3 | AK61: 32.79824048 | AL61: 1405 | AM61: 1405 | AN61: 1112 | AO61: 112.4473199 | AP61: 2 | AQ61: 2849.252669 | AR61: 288.1212467 | AS61: 14050 | AT61: 14050 | AU61: 14050 | AV61: 0.0321965 | AW61: -12.4736 | AX61: 0.000397284 | AY61: 75.3366 | AZ61: 68.6963 | BA61: 70.6682 | BB61: 14.36747522 | BC61: 11.25860379 | BD61: 7.458501857 | BE61: 12.6322 | BF61: 9.15766 | BG61: 5.78769 | BH61: 10.22478876 | BI61: 10.07940804 | BJ61: 7.11009984 | BK61: 1.79708 | BL61: -0.324967 | BM61: 0.440586 | BN61: 3.11688 | BO61: 0.557341 | BP61: 0.931468 | BQ61: 27.1432 | BR61: 24.01425 | BS61: 15.79905 | BT61: 33.5375 | BU61: 31.4735 | BV61: 18.8888 | BW61: 55 | BX61: 11605 | BY61: 2384 | BZ61: 6 | CA61: 14050 | CB61: 0.391459075 | CC61: 82.59786477 | CD61: 16.96797153 | CE61: 0.042704626 | CF61: 2019-12-26 | CG61: L&I | CH61: 1112 | CI61: 42.1 | CJ61: 23.4 | CK61: 18.7 | CL61: 0.57 | CM61: 1.8 | CN61: -0.44 | CO61: Faster | CP61: Faster | CS61: No | CT61: JL | CU61: 3.009749737 | CV61: 4 | CW61: 1 | CX61: 2 | CY61: 2 | CZ61: 1 | DA61: 4 | DB61: 3 | DC61: 1 | DD61: 11 | DE61: 3 | DF61: 1470.370467 | DG61: 2017.955823 | DH61: 27329.62953 | DI61: 0.073837657 | DJ61: 1419.326962 | DK61: 8447.195743 | DL61: 27380.67304 | DM61: 0.308509427 | EM61: 2
A62: Trashing | B62: Dumpster on Dock | C62: Large trash bin w/o liner (dumpster) | D62: None | G62: TrashingDumpster on DockLarge trash bin w/o liner (dumpster)None | H62: Emptying trash bins | I62: Bins are wheeled to dumpsters, where they are emptied | J62: Bin, greater than 5 gallons, without a plastic liner; trash or recycle bins | K62: No variations | L62: No. of bin | M62: 3.821656051 | N62: 4.285714286 | P62: P012 | Q62: Trashing | R62: Reception/lobby/elevator landing | S62: Trash can without liner/large bin | T62: Trashing | U62: Reception/lobby/elevator landing | V62: Trash can without liner/large bin | W62: Trashing | X62: Reception/lobby/elevator landing | Y62: Trash can without liner/large bin | Z62: 62 | AA62: 79 | AB62: 83 | AC62: 1 | AD62: 106 | AE62: 7.4 | AF62: 95.89880952 | AG62: 4.342857143 | AH62: 4.686653229 | AI62: 2.269678124 | AJ62: 55.9 | AK62: 39.17611119 | AL62: 840 | AM62: 840 | AN62: 820 | AO62: 65.11072016 | AP62: 1 | AQ62: 3514.285714 | AR62: 279.0459435 | AS62: 8400 | AT62: 8400 | AU62: 8400 | AV62: 0.0183852 | AW62: -2.49017 | AX62: 0.0018088 | AY62: 57.8116 | AZ62: 55.3151 | BA62: 43.5873 | BB62: 12.56590885 | BC62: 11.57595311 | BD62: 3.568045943 | BE62: 12.0936 | BF62: 11.43875 | BG62: 2.689595 | BH62: 7.600217197 | BI62: 7.826654216 | BJ62: 3.693064804 | BK62: 2.34835 | BL62: 0.3534175 | BM62: 0.251382 | BN62: 3.50955 | BO62: 1.40284 | BP62: 0.515087 | BQ62: 20.6601 | BR62: 20.2564 | BS62: 7.282465 | BT62: 23.50615 | BU62: 22.9648 | BV62: 9.209525 | BW62: 0 | BX62: 7490 | BY62: 910 | BZ62: 0 | CA62: 8400 | CB62: 0 | CC62: 89.16666667 | CD62: 10.83333333 | CE62: 0 | CF62: 2020-01-21 | CG62: UW | CH62: 820 | CI62: 13.7 | CJ62: 14 | CK62: -0.3 | CL62: 0.02 | CM62: 1 | CN62: 0.02 | CO62: Slower | CP62: Slower | CS62: No | CT62: SB | CU62: 8.228441695 | CV62: 4 | CW62: 2 | CX62: 2 | CY62: 2 | CZ62: 1 | DA62: 4 | DB62: 2 | DC62: 2 | DD62: 11 | DE62: 4 | DF62: 18035.83346 | DG62: 33491.64427 | DH62: 10764.16654 | DI62: 3.111401533 | DJ62: 697.3816039 | DK62: 893.0243769 | DL62: 28102.6184 | DM62: 0.031777266 | EM62: 1
A63: Trashing | B63: Kitchen/Coffee Bar (trashing) | C63: Large trash bin w/ liner (kitchen/coffee bar) | D63: Empties a single bin or contents are light | G63: TrashingKitchen/Coffee Bar (trashing)Large trash bin w/ liner (kitchen/coffee bar)Empties a single bin or contents are light | H63: Emptying trash bins | I63: Area for preparing beverages and food, no seating | J63: Bin (trash or recyle), greater than 5 gallons, with a plastic liner; trash or recycle bins | K63: Empties only one bin at each location; bin contents are light (e.g. paper), or the bin is not full | L63: No. of bin | M63: 33.33333333 | N63: 31.57894737 | P63: P008 | Q63: Trashing | R63: Kitchen/coffee bar | S63: Trash can with liner/large bin | T63: Trashing | U63: Kitchen/coffee bar | V63: Trash can with liner/large bin | W63: Trashing | X63: Kitchen/coffee bar | Y63: Trash can with liner/large bin | Z63: 49 | AA63: 87 | AB63: 79 | AC63: 3 | AD63: 104 | AE63: 3 | AF63: 94.82882883 | AG63: 3 | AH63: 4.857747091 | AI63: 0 | AJ63: 70.8 | AK63: 23.9808671 | AL63: 111 | AM63: 111 | AN63: 24 | AO63: 3.461100101 | AP63: 1 | AQ63: 778.3783784 | AR63: 112.2518952 | AS63: 1110 | AT63: 1110 | AU63: 1110 | AV63: 0.276933 | AW63: -0.174294 | AX63: 0.00510469 | AY63: 75.8123 | AZ63: 75.4845 | BA63: 41.1927 | BB63: 19.03813324 | BC63: 17.65246639 | BD63: 7.357537375 | BE63: 12.3714 | BF63: 11.0261 | BG63: 4.52312 | BH63: 18.34804859 | BI63: 18.61433184 | BJ63: 8.57160899 | BK63: 1.38715 | BL63: 0.562169 | BM63: 0.275749 | BN63: 2.12118 | BO63: 1.195505 | BP63: 0.63979 | BQ63: 51.1696 | BR63: 50.4722 | BS63: 16.20925 | BT63: 67.1858 | BU63: 66.4061 | BV63: 28.6984 | BW63: 0 | BX63: 766 | BY63: 264 | BZ63: 80 | CA63: 1110 | CB63: 0 | CC63: 69.00900901 | CD63: 23.78378378 | CE63: 7.207207207 | CF63: 2019-12-19 | CG63: L&I | CH63: 24 | CI63: 1.8 | CJ63: 1.9 | CK63: -0.1 | CL63: 0.05 | CM63: 0.9 | CN63: 0.06 | CO63: Slower | CP63: Slower | CS63: No | CT63: SB | CU63: 1.048991415 | CV63: 3 | CW63: 2 | CX63: 2 | CY63: 2 | CZ63: 1 | DA63: 4 | DB63: 2 | DC63: 2 | DD63: 11 | DE63: 4 | DF63: 1849.13781 | DG63: 6323.816871 | DH63: 26950.86219 | DI63: 0.23464247 | EM63: 1
A64: Trashing | B64: Kitchen/Coffee Bar (trashing) | C64: Large trash bin w/ liner (kitchen/coffee bar) | D64: Empties multiple bins or contents are heavy | G64: TrashingKitchen/Coffee Bar (trashing)Large trash bin w/ liner (kitchen/coffee bar)Empties multiple bins or contents are heavy | H64: Emptying trash bins | I64: Area for preparing beverages and food, no seating | J64: Bin (trash or recyle), greater than 5 gallons, with a plastic liner; trash or recycle bins | K64: Empties mutiple bins at each location; bin contents are heavy (e.g. bottles, wet food trash), or the liner is full | L64: No. of bin | M64: 34.17721519 | N64: 77.14285714 | P64: P013 | Q64: Trashing | R64: Kitchen/coffee bar | S64: Trash can with liner/large bin | T64: Trashing | U64: Kitchen/coffee bar | V64: Trash can with liner/large bin | W64: Trashing | X64: Kitchen | Y64: Trash can with liner/large bin | Z64: 53 | AA64: 91 | AB64: 96 | AC64: 1 | AD64: 120 | AE64: 3.4 | AF64: 109.9666667 | AG64: 2.228571429 | AH64: 4.878850498 | AI64: 0.838878019 | AJ64: 63.8 | AK64: 44.73514215 | AL64: 420 | AM64: 420 | AN64: 74 | AO64: 15.68423986 | AP64: 1 | AQ64: 634.2857143 | AR64: 134.4363417 | AS64: 4200 | AT64: 4200 | AU64: 4200 | AV64: 0.0731056 | AW64: -6.97945 | AX64: 0.000373651 | AY64: 60.177 | AZ64: 60.0527 | BA64: 38.26 | BB64: 12.40548738 | BC64: 9.245063741 | BD64: 5.437177812 | BE64: 9.577405 | BF64: 6.128075 | BG64: 4.01258 | BH64: 9.507985559 | BI64: 10.654924 | BJ64: 4.869009828 | BK64: 1.826925 | BL64: -2.16719 | BM64: 0.3021555 | BN64: 2.99718 | BO64: -1.11182 | BP64: 0.628543 | BQ64: 24.07205 | BR64: 23.04305 | BS64: 12.2351 | BT64: 29.85935 | BU64: 27.3841 | BV64: 15.44365 | BW64: 49 | BX64: 3406 | BY64: 744 | BZ64: 1 | CA64: 4200 | CB64: 1.166666667 | CC64: 81.0952381 | CD64: 17.71428571 | CE64: 0.023809524 | CF64: 2020-01-28 | CG64: UW | CH64: 74 | CI64: 15.8 | CJ64: 7 | CK64: 8.8 | CL64: 0.77 | CM64: 2.3 | CN64: -0.56 | CO64: Faster | CP64: Faster | CR64: Updated results, ISSA2021 data | CS64: No | CT64: WL | CU64: 6.933221651 | CV64: 4 | CW64: 2 | CX64: 2 | CY64: 2 | CZ64: 1 | DA64: 4 | DB64: 2 | DC64: 2 | DD64: 11 | DE64: 4 | DF64: 6074.951379 | DG64: 19113.16845 | DH64: 22725.04862 | DI64: 0.841061719 | DJ64: 2610.809438 | DK64: 7910.775779 | DL64: 26189.19056 | DM64: 0.30206263 | EM64: 1
A65: Trashing | B65: Kitchen/Coffee Bar (trashing) | C65: Small trash bin w/ liner (kitchen/coffee bar) | D65: None | G65: TrashingKitchen/Coffee Bar (trashing)Small trash bin w/ liner (kitchen/coffee bar)None | H65: Emptying trash bins | I65: Area for preparing beverages and food, no seating | J65: Bin, less than 5 gallons, with a plastic liner | K65: No variations | L65: No. of bin | M65: 80 | N65: 150 | P65: P008 | Q65: Trashing | R65: Kitchen/coffee bar | S65: Trash can with liner/small bin | T65: Trashing | U65: Kitchen/coffee bar | V65: Trash can with liner/small bin | W65: Trashing | X65: Kitchen/coffee bar | Y65: Trash can with liner/small bin | Z65: 49 | AA65: 87 | AB65: 92 | AC65: 3.8 | AD65: 100 | AE65: 3.8 | AF65: 95.93333333 | AG65: 3.8 | AH65: 1.981734777 | AI65: 0 | AJ65: 70.8 | AK65: 25.083167 | AL65: 45 | AM65: 45 | AN65: 46 | AO65: 4.384059906 | AP65: 1 | AQ65: 3680 | AR65: 350.7247925 | AS65: 450 | AT65: 450 | AU65: 450 | AV65: 5.3305 | AW65: 0.61599 | AX65: 0.0196924 | AY65: 65.8726 | AZ65: 65.1512 | BA65: 29.5689 | BB65: 20.42805649 | BC65: 19.42969089 | BD65: 5.737051071 | BE65: 17.84025 | BF65: 17.08085 | BG65: 4.98604 | BH65: 9.786121079 | BI65: 9.943273433 | BJ65: 4.46346998 | BK65: 8.01615 | BL65: 7.08125 | BM65: 0.253066 | BN65: 8.99148 | BO65: 8.31084 | BP65: 0.8449745 | BQ65: 32.0713 | BR65: 31.3427 | BS65: 11.60895 | BT65: 34.823 | BU65: 34.2887 | BV65: 13.9293 | BW65: 0 | BX65: 261 | BY65: 185 | BZ65: 4 | CA65: 450 | CB65: 0 | CC65: 58 | CD65: 41.11111111 | CE65: 0.888888889 | CF65: 2019-12-19 | CG65: L&I | CH65: 46 | CI65: 1.5 | CJ65: 0.8 | CK65: 0.7 | CL65: 0.61 | CM65: 2 | CN65: -0.5 | CO65: Faster | CP65: Faster | CS65: No | CT65: SB | CU65: 0.998650464 | CV65: 4 | CW65: 2 | CX65: 2 | CY65: 2 | CZ65: 1 | DA65: 4 | DB65: 2 | DC65: 2 | DD65: 11 | DE65: 4 | DF65: 4158.892299 | DG65: 6379.236111 | DH65: 24641.1077 | DI65: 0.258885931 | DJ65: 8610.593691 | DK65: 145969.7572 | DL65: 20189.40631 | DM65: 7.230017314 | EM65: 1
A66: Trashing | B66: Offices/Cubicles | C66: Large trash bin w/ liner (office/cubicle) | D66: Empties multiple bins at each location | G66: TrashingOffices/CubiclesLarge trash bin w/ liner (office/cubicle)Empties multiple bins at each location | H66: Emptying trash bins | I66: Bins located in offices; cubicles; copy rooms; in hallways; excluding elevator landings (this is included as: location= Reception/Lobby/Elevator Landing) | J66: Bin, greater than 5 gallons, with a plastic liner; trash or recycle bins | K66: Empties multiples bins at each location | L66: No. of bin | M66: 31.14186851 | N66: 62.93706294 | P66: P011_1 | Q66: Trashing | R66: Office/cubicle | S66: Trash can with liner/large bin | T66: Trashing | U66: Office/cubicle | V66: Trash can with liner/large bin | W66: Trashing | X66: Office/cubicle | Y66: Trash can with liner/large bin | Z66: 64 | AA66: 73 | AB66: 107 | AC66: 1 | AD66: 136 | AE66: 5.4 | AF66: 124.8554779 | AG66: 2.786480186 | AH66: 5.476594865 | AI66: 1.313711538 | AJ66: 72.1 | AK66: 62.87899631 | AL66: 858 | AM66: 858 | AN66: 439 | AO66: 40.58796001 | AP66: 1 | AQ66: 1841.958042 | AR66: 170.2991329 | AS66: 8580 | AT66: 8580 | AU66: 8580 | AV66: 0.19979 | AW66: -10.9822 | AX66: 0.00379527 | AY66: 79.4345 | AZ66: 75.9855 | BA66: 74.3206 | BB66: 14.37526116 | BC66: 9.762879369 | BD66: 8.334277237 | BE66: 12.2456 | BF66: 7.88096 | BG66: 7.938675 | BH66: 9.287849066 | BI66: 10.97703478 | BJ66: 6.247364837 | BK66: 5.60003 | BL66: -1.51722 | BM66: 1.083185 | BN66: 7.12752 | BO66: -0.773961 | BP66: 2.2148 | BQ66: 22.0805 | BR66: 20.47015 | BS66: 13.0204 | BT66: 29.6387 | BU66: 28.7722 | BV66: 14.85225 | BW66: 25 | BX66: 7596 | BY66: 919 | BZ66: 40 | CA66: 8580 | CB66: 0.291375291 | CC66: 88.53146853 | CD66: 10.71095571 | CE66: 0.466200466 | CF66: 2020-01-13 | CG66: UW | CH66: 394 | CI66: 28.9 | CJ66: 14.3 | CK66: 14.6 | CL66: 0.68 | CM66: 2 | CN66: -0.51 | CO66: Faster | CP66: Faster | CR66: Updated results, ISSA2021 data | CS66: No | CT66: WL | CU66: 4.569936542 | CV66: 4 | CW66: 1 | CX66: 2 | CY66: 2 | CZ66: 1 | DA66: 4 | DB66: 2 | DC66: 1 | DD66: 10 | DE66: 3 | DF66: 7615.65723 | DG66: 10202.80868 | DH66: 21184.34277 | DI66: 0.48162026 | DJ66: 4401.227183 | DK66: 15051.63896 | DL66: 24398.77282 | DM66: 0.616901476 | EM66: 1
A67: Trashing | B67: Offices/Cubicles | C67: Large trash bin w/ liner (office/cubicle) | D67: Empties single bin at each location | G67: TrashingOffices/CubiclesLarge trash bin w/ liner (office/cubicle)Empties single bin at each location | H67: Emptying trash bins | I67: Bins located in offices; cubicles; copy rooms; in hallways; excluding elevator landings (this is included as: location= Reception/Lobby/Elevator Landing) | J67: Bin, greater than 5 gallons, with a plastic liner; trash or recycle bins | K67: Empties a single bin in each cubicle or office | L67: No. of bin | M67: 33.33333333 | N67: 60 | P67: P005 | Q67: Trashing | R67: Office/cubicle | S67: Trash can with liner/large bin | T67: Trashing | U67: Office/cubicle | V67: Trash can with liner/large bin | W67: Trashing | X67: Office/Cubicle | Y67: Trash can with liner/large bin | Z67: 35 | AA67: 68 | AB67: 106 | AC67: 1 | AD67: 127 | AE67: 1 | AF67: 117.0666667 | AG67: 1 | AH67: 4.754539906 | AI67: 0 | AJ67: 76.5 | AK67: 37.3886329 | AL67: 60 | AM67: 60 | AN67: 26 | AO67: 3.819519997 | AP67: 1 | AQ67: 1560 | AR67: 229.1711998 | AS67: 600 | AT67: 600 | AU67: 600 | AV67: 7.79526 | AW67: 3.81889 | AX67: 0.0405449 | AY67: 66.7896 | AZ67: 66.7502 | BA67: 52.5133 | BB67: 32.27866497 | BC67: 30.04130667 | BD67: 11.79539403 | BE67: 31.76915 | BF67: 27.84325 | BG67: 8.027835 | BH67: 14.08095438 | BI67: 14.07206232 | BJ67: 9.856643308 | BK67: 12.8007 | BL67: 11.63305 | BM67: 0.7867995 | BN67: 14.5172 | BO67: 13.11015 | BP67: 1.814535 | BQ67: 52.1943 | BR67: 49.8227 | BS67: 26.14235 | BT67: 57.1334 | BU67: 56.8001 | BV67: 28.88195 | BW67: 0 | BX67: 184 | BY67: 401 | BZ67: 15 | CA67: 600 | CB67: 0 | CC67: 30.66666667 | CD67: 66.83333333 | CE67: 2.5 | CF67: 2020-12-10 | CG67: L&I | CH67: 26 | CI67: 1.8 | CJ67: 1 | CK67: 0.8 | CL67: 0.57 | CM67: 1.8 | CN67: -0.43 | CO67: Slower | CP67: Faster | CR67: Updated results, ISSA2021 data | CS67: No | CT67: WL | CU67: 3.494487627 | CV67: 5 | CW67: 1 | CX67: 2 | CY67: 2 | CZ67: 1 | DA67: 4 | DB67: 3 | DC67: 1 | DD67: 11 | DE67: 3 | DJ67: 4620 | DK67: 15799.81426 | DL67: 24180 | DM67: 0.653424908 | EM67: 1
A68: Trashing | B68: Offices/Cubicles | C68: Large trash bin w/o liner (office/cubicle) | D68: Bins are lifted to empty contents | G68: TrashingOffices/CubiclesLarge trash bin w/o liner (office/cubicle)Bins are lifted to empty contents | H68: Emptying trash bins | I68: Bins located in offices; cubicles; copy rooms; in hallways; excluding elevator landings (this is included as: location= Reception/Lobby/Elevator Landing) | J68: Bin, greater than 5 gallons, without a plastic liner; trash or recycle bins | K68: Bins are lifted and contents dumped into a transport cart | L68: No. of bin | M68: 14.28571429 | N68: 20 | P68: P005 | Q68: Trashing | R68: Office/cubicle | S68: Trash can without liner/large bin | T68: Trashing | U68: Office/cubicle | V68: Trash can without liner/large bin | W68: Trashing | X68: Office/Cubicle | Y68: Trash can without liner/large | Z68: 35 | AA68: 68 | AB68: 80 | AC68: 1 | AD68: 127 | AE68: 1 | AF68: 101.4777778 | AG68: 1 | AH68: 10.09311705 | AI68: 0 | AJ68: 76.5 | AK68: 23.02099336 | AL68: 180 | AM68: 180 | AN68: 103 | AO68: 12.17472005 | AP68: 1 | AQ68: 2060 | AR68: 243.494401 | AS68: 1800 | AT68: 1800 | AU68: 1800 | AV68: 1.75296 | AW68: -16.1994 | AX68: 0.0024318 | AY68: 99.8718 | AZ68: 99.8816 | BA68: 176.748 | BB68: 23.48871767 | BC68: 21.21848677 | BD68: 9.895337395 | BE68: 21.13475 | BF68: 19.5348 | BG68: 4.78668 | BH68: 15.09648557 | BI68: 16.05299903 | BJ68: 19.44125136 | BK68: 8.981175 | BL68: 4.123385 | BM68: 0.553782 | BN68: 10.86795 | BO68: 8.646215 | BP68: 1.156705 | BQ68: 37.0657 | BR68: 34.91905 | BS68: 21.83905 | BT68: 55.6543 | BU68: 51.28455 | BV68: 33.16135 | BW68: 45 | BX68: 893 | BY68: 791 | BZ68: 71 | CA68: 1800 | CB68: 2.5 | CC68: 49.61111111 | CD68: 43.94444444 | CE68: 3.944444444 | CF68: 2020-12-10 | CG68: L&I | CH68: 103 | CI68: 4.2 | CJ68: 3 | CK68: 1.2 | CL68: 0.33 | CM68: 1.4 | CN68: -0.28 | CO68: Faster | CP68: Faster | CR68: Updated results, ISSA2021 data | CS68: No | CT68: WL | CU68: 6.617102312 | CV68: 5 | CW68: 1 | CX68: 2 | CY68: 3 | CZ68: 1 | DA68: 4 | DB68: 3 | DC68: 1 | DD68: 12 | DE68: 4 | DJ68: 1953.165518 | DK68: 21622.59241 | DL68: 26846.83448 | DM68: 0.805405659 | EM68: 1
A69: Trashing | B69: Offices/Cubicles | C69: Large trash bin w/o liner (office/cubicle) | D69: Bins emptied without lifting | G69: TrashingOffices/CubiclesLarge trash bin w/o liner (office/cubicle)Bins emptied without lifting | H69: Emptying trash bins | I69: Bins located in offices; cubicles; copy rooms; in hallways; excluding elevator landings (this is included as: location= Reception/Lobby/Elevator Landing) | J69: Bin, greater than 5 gallons, without a plastic liner; trash or recycle bins | K69: Bins are emptied without lifting into another bin or wheeled to dumpster area | L69: No. of bin | M69: 16.66666667 | N69: 18.94736842 | P69: P011_1 | Q69: Trashing | R69: Office/cubicle | S69: Trash can without liner/large bin | T69: Trashing | U69: Office/cubicle | V69: Trash can without liner/large bin | W69: Trashing | X69: Office/cubicle | Y69: Trash can without liner/large bin | Z69: 64 | AA69: 73 | AB69: 112 | AC69: 1 | AD69: 133 | AE69: 5.8 | AF69: 124.1087719 | AG69: 3.674035088 | AH69: 5.176881172 | AI69: 0.992162361 | AJ69: 72.1 | AK69: 61.98900107 | AL69: 570 | AM69: 570 | AN69: 376 | AO69: 29.59907985 | AP69: 1 | AQ69: 2374.736842 | AR69: 186.941557 | AS69: 5700 | AT69: 5700 | AU69: 5700 | AV69: 0.0113704 | AW69: -8.20918 | AX69: 0.00570706 | AY69: 43.5621 | AZ69: 43.5432 | BA69: 25.4674 | BB69: 10.02534789 | BC69: 3.381161463 | BD69: 8.373603362 | BE69: 9.947655 | BF69: 2.72784 | BG69: 8.6791 | BH69: 4.472032685 | BI69: 5.148443913 | BJ69: 3.675351237 | BK69: 3.369545 | BL69: -2.344205 | BM69: 1.637095 | BN69: 4.789285 | BO69: -1.74577 | BP69: 3.250385 | BQ69: 14.63065 | BR69: 8.76279 | BS69: 12.78575 | BT69: 16.1407 | BU69: 10.78095 | BV69: 13.92045 | BW69: 31 | BX69: 5620 | BY69: 49 | BZ69: 0 | CA69: 5700 | CB69: 0.543859649 | CC69: 98.59649123 | CD69: 0.859649123 | CE69: 0 | CF69: 2020-01-13 | CG69: UW | CH69: 376 | CI69: 10.8 | CJ69: 9.5 | CK69: 1.3 | CL69: 0.13 | CM69: 1.1 | CN69: -0.12 | CO69: Faster | CP69: Faster | CR69: Updated results, ISSA2021 data | CS69: No | CT69: WL | CU69: 4.535554794 | CV69: 4 | CW69: 1 | CX69: 2 | CY69: 2 | CZ69: 1 | DA69: 4 | DB69: 2 | DC69: 1 | DD69: 10 | DE69: 3 | DF69: 12038.8325 | DG69: 3428.65379 | DH69: 16761.1675 | DI69: 0.204559366 | DK69: 0 | DL69: 28800 | DM69: 0 | EM69: 1
A70: Trashing | B70: Offices/Cubicles | C70: Small trash bin w/ liner (office/cubicle) | D70: Kneels to empty bin | G70: TrashingOffices/CubiclesSmall trash bin w/ liner (office/cubicle)Kneels to empty bin | H70: Emptying trash bins | I70: Bins located in offices; cubicles; copy rooms; in hallways; excluding elevator landings (this is included as: location= Reception/Lobby/Elevator Landing) | J70: Bin, less than 5 gallons, with a plastic liner | K70: Bins are emptied (the liner is removed from bin and a new one inserted) while kneeling | L70: No. of bin | M70: 75 | N70: 27.27272727 | P70: P001 | Q70: Trashing | R70: Office/cubicle | S70: Trash can with liner/small bin | T70: Trashing | U70: Office/cubicle | V70: Trash can with liner/small bin | W70: Trashing | X70: Office/Cubicle | Y70: Trash can with liner/small bin | Z70: 31 | AA70: 72 | AB70: 96 | AC70: 2.6 | AD70: 115 | AE70: 3.2 | AF70: 106.0992366 | AG70: 3 | AH70: 3.842785372 | AI70: 0.235339362 | AJ70: 63 | AK70: 34.20574333 | AL70: 131 | AM70: 131 | AN70: 39 | AO70: 6.727419853 | AP70: 1 | AQ70: 1071.755725 | AR70: 184.8756601 | AS70: 1310 | AT70: 1310 | AU70: 1310 | AV70: 2.45537 | AW70: -3.18006 | AX70: 0.0394884 | AY70: 79.6232 | AZ70: 79.5425 | BA70: 48.0542 | BB70: 22.7253963 | BC70: 17.73216359 | BD70: 13.55821463 | BE70: 20.5927 | BF70: 14.77215 | BG70: 13.26965 | BH70: 13.76761388 | BI70: 14.36269951 | BJ70: 8.159129644 | BK70: 7.21754 | BL70: 2.58013 | BM70: 1.61682 | BN70: 9.06206 | BO70: 4.67006 | BP70: 2.55337 | BQ70: 37.9092 | BR70: 32.2658 | BS70: 22.4641 | BT70: 51.3484 | BU70: 51.049 | BV70: 26.4429 | BW70: 0 | BX70: 931 | BY70: 336 | BZ70: 43 | CA70: 1310 | CB70: 0 | CC70: 71.06870229 | CD70: 25.64885496 | CE70: 3.282442748 | CF70: 2019-08-01 | CG70: ABM | CH70: 39 | CI70: 0.8 | CJ70: 2.2 | CK70: -1.4 | CL70: 0.93 | CM70: 0.3 | CN70: 1.91 | CO70: Slower | CP70: Slower | CQ70: Small denominator. Should be fine. | CR70: D25_An exceptional case, emptying 1 small bin in the unoccupied 2nd office area in a way to the restroom on the 2nd floor by the occupants in the 1st office area. May include this with cubicle cleaning | CS70: No | CT70: SB | CU70: 4.748476224 | CV70: 4 | CW70: 2 | CX70: 4 | CY70: 2 | CZ70: 1 | DA70: 4 | DB70: 2 | DC70: 3 | DD70: 12 | DE70: 5 | DF70: 7311.25052 | DG70: 11214.57109 | DH70: 21488.74948 | DI70: 0.521881047 | DJ70: 1029.616312 | DK70: 3521.157248 | DL70: 27770.38369 | DM70: 0.126795412 | EM70: 1
A71: Trashing | B71: Offices/Cubicles | C71: Small trash bin w/ liner (office/cubicle) | D71: Stands to empty bins | G71: TrashingOffices/CubiclesSmall trash bin w/ liner (office/cubicle)Stands to empty bins | H71: Emptying trash bins | I71: Bins located in offices; cubicles; copy rooms; in hallways; excluding elevator landings (this is included as: location= Reception/Lobby/Elevator Landing) | J71: Bin, less than 5 gallons, with a plastic liner | K71: Bins are emptied (the liner may or may not be replaced) while standing | L71: No. of bin | M71: 79.10750507 | N71: 245.2830189 | P71: P008 | Q71: Trashing | R71: Office/cubicle | S71: Trash can with liner/small bin | T71: Trashing | U71: Office/cubicle | V71: Trash can with liner/small bin | W71: Trashing | X71: Office/Cubicle | Y71: Trash can with liner/small bin | Z71: 49 | AA71: 87 | AB71: 78 | AC71: 2.4 | AD71: 104 | AE71: 5 | AF71: 94.31181102 | AG71: 3.193700787 | AH71: 3.747883454 | AI71: 0.484683693 | AJ71: 70.8 | AK71: 23.46488126 | AL71: 1905 | AM71: 1905 | AN71: 845 | AO71: 110.755199 | AP71: 1 | AQ71: 1596.850394 | AR71: 209.3011635 | AS71: 19050 | AT71: 19050 | AU71: 19050 | AV71: 0.0335762 | AW71: -2.30809 | AX71: 2.75e-05 | AY71: 84.2611 | AZ71: 83.9472 | BA71: 72.5103 | BB71: 22.66411385 | BC71: 21.15528792 | BD71: 7.873049884 | BE71: 15.6153 | BF71: 14.189 | BG71: 5.846245 | BH71: 18.35038949 | BI71: 18.82659258 | BJ71: 8.250964137 | BK71: 5.1863 | BL71: 2.52408 | BM71: 0.530305 | BN71: 7.559945 | BO71: 5.065635 | BP71: 1.097885 | BQ71: 56.7491 | BR71: 56.13065 | BS71: 15.71715 | BT71: 64.5664 | BU71: 64.0466 | BV71: 24.6678 | BW71: 0 | BX71: 13470 | BY71: 4136 | BZ71: 1444 | CA71: 19050 | CB71: 0 | CC71: 70.70866142 | CD71: 21.71128609 | CE71: 7.580052493 | CF71: 2019-12-19 | CG71: L&I | CH71: 845 | CI71: 98.6 | CJ71: 31.8 | CK71: 66.8 | CL71: 1.02 | CM71: 3.1 | CN71: -0.68 | CO71: Faster | CP71: Faster | CQ71: See no issue in calculation. | CS71: No | CT71: SB | CU71: 10.76334827 | CV71: 4 | CW71: 2 | CX71: 2 | CY71: 2 | CZ71: 1 | DA71: 4 | DB71: 2 | DC71: 2 | DD71: 11 | DE71: 4 | DF71: 5436.370426 | DG71: 18401.4141 | DH71: 23363.62957 | DI71: 0.787609393 | DJ71: 5551.969879 | DK71: 92607.96973 | DL71: 23248.03012 | DM71: 3.983475987 | EM71: 1
A72: Trashing | B72: Reception/Lobby/Elevator Landing (trashing) | C72: Large trash bin w/ liner (reception etc.) | D72: A single bin in multiple locations | G72: TrashingReception/Lobby/Elevator Landing (trashing)Large trash bin w/ liner (reception etc.)A single bin in multiple locations | H72: Emptying trash bins | I72: Bins are located in reception areas, lobbies or elevator landings; elevator landing= the area in front and adjacent to the elevator where riders enter or exit | J72: Bin, greater than 5 gallons, with a plastic liner; trash or recycle bins | K72: Empties a single bin in multiple locations in the area | L72: No. of bin | M72: 36.36363636 | N72: 100 | P72: P009_1 | Q72: Trashing | R72: Reception/lobby/elevator landing | S72: Trash can with liner/large bin | T72: Trashing | U72: Reception/lobby/elevator landing | V72: Trash can with liner/large bin | W72: Trashing | X72: Reception/lobby/elevator landing | Y72: Trash can with liner/large bin | Z72: 54 | AA72: 96 | AB72: 106 | AC72: 3 | AD72: 123 | AE72: 5.4 | AF72: 115.0428571 | AG72: 3.137142857 | AH72: 4.867626611 | AI72: 0.561099187 | AJ72: 78.3 | AK72: 41.89607423 | AL72: 70 | AM72: 70 | AN72: 105 | AO72: 10.56552005 | AP72: 1 | AQ72: 5400 | AR72: 543.3696026 | AS72: 700 | AT72: 700 | AU72: 700 | AV72: 0.660095 | AW72: -7.09512 | AX72: 0.00453579 | AY72: 51.0917 | AZ72: 46.7978 | BA72: 32.3491 | BB72: 14.94165627 | BC72: 11.47475549 | BD72: 8.95806608 | BE72: 10.6606 | BF72: 7.44769 | BG72: 6.84064 | BH72: 11.57341201 | BI72: 10.92168373 | BJ72: 7.798662547 | BK72: 2.55761 | BL72: 0.1973445 | BM72: 0.5021845 | BN72: 3.66336 | BO72: 1.08257 | BP72: 0.9459935 | BQ72: 31.8016 | BR72: 26.8607 | BS72: 21.06975 | BT72: 39.3449 | BU72: 35.51565 | BV72: 23.64045 | BW72: 3 | BX72: 541 | BY72: 156 | BZ72: 0 | CA72: 700 | CB72: 0.428571429 | CC72: 77.28571429 | CD72: 22.28571429 | CE72: 0 | CF72: 2019-12-26 | CG72: L&I | CH72: 105 | CI72: 3.3 | CJ72: 1.2 | CK72: 2.1 | CL72: 0.93 | CM72: 2.8 | CN72: -0.64 | CO72: Faster | CP72: Faster | CS72: No | CT72: JL | CU72: 4.529844892 | CV72: 5 | CW72: 2 | CX72: 2 | CY72: 2 | CZ72: 1 | DA72: 4 | DB72: 3 | DC72: 2 | DD72: 12 | DE72: 4 | DF72: 6327.525782 | DG72: 34296.70455 | DH72: 22472.47422 | DI72: 1.526165042 | DJ72: 4095.926867 | DK72: 20556.03389 | DL72: 24704.07313 | DM72: 0.832090878 | EM72: 1
A73: Trashing | B73: Reception/Lobby/Elevator Landing (trashing) | C73: Large trash bin w/ liner (reception etc.) | D73: A single bin in only one location | G73: TrashingReception/Lobby/Elevator Landing (trashing)Large trash bin w/ liner (reception etc.)A single bin in only one location | H73: Emptying trash bins | I73: Bins are located in reception areas, lobbies or elevator landings; elevator landing= the area in front and adjacent to the elevator where riders enter or exit | J73: Bin, greater than 5 gallons, with a plastic liner; trash or recycle bins | K73: Empties a single bin in one location of the area | L73: No. of bin | M73: 20 | N73: 19.2 | P73: P002 | Q73: Trashing | R73: Reception/lobby/elevator landing | S73: Trash can with liner/large bin | T73: Trashing | U73: Reception/lobby/elevator landing | V73: Trash can with liner/large bin | W73: Trashing | X73: Reception/lobby/elevator landing | Y73: Trash with liner/large bin | Z73: 54 | AA73: 91 | AB73: 76 | AC73: 1 | AD73: 108 | AE73: 4 | AF73: 90.824 | AG73: 2.784 | AH73: 5.073544248 | AI73: 0.871005032 | AJ73: 64.5 | AK73: 25.93497537 | AL73: 1500 | AM73: 1500 | AN73: 552 | AO73: 85.67064071 | AP73: 1 | AQ73: 1324.8 | AR73: 205.6095377 | AS73: 15000 | AT73: 15000 | AU73: 15000 | AV73: 0.0353162 | AW73: -8.24299 | AX73: 0.000351792 | AY73: 69.0925 | AZ73: 68.5539 | BA73: 63.1459 | BB73: 12.54168378 | BC73: 8.810586739 | BD73: 6.445402347 | BE73: 9.99922 | BF73: 5.324375 | BG73: 5.15505 | BH73: 10.02814441 | BI73: 10.81470815 | BJ73: 5.785193607 | BK73: 1.768265 | BL73: -1.71067 | BM73: 0.349728 | BN73: 2.727335 | BO73: -0.7900255 | BP73: 0.7026 | BQ73: 26.26615 | BR73: 23.77645 | BS73: 12.8588 | BT73: 34.3388 | BU73: 32.56505 | BV73: 16.5481 | BW73: 84 | BX73: 12731 | BY73: 2176 | BZ73: 9 | CA73: 15000 | CB73: 0.56 | CC73: 84.87333333 | CD73: 14.50666667 | CE73: 0.06 | CF73: 2019-09-30 | CG73: ABM | CH73: 479 | CI73: 14 | CJ73: 25 | CK73: -11 | CL73: 0.56 | CM73: 0.6 | CN73: 0.78 | CO73: Slower | CP73: Slower | CR73: D26_Counting walking | CS73: No | CT73: JL | CU73: 8.7841997 | CV73: 4 | CW73: 1 | CX73: 2 | CY73: 2 | CZ73: 1 | DA73: 4 | DB73: 2 | DC73: 1 | DD73: 10 | DE73: 3 | DF73: 326.83312 | DG73: 342.318279 | DH73: 28473.16688 | DI73: 0.012022487 | DJ73: 563.3191643 | DK73: 601.4813649 | DL73: 28236.68084 | DM73: 0.021301419 | EM73: 1
A74: Trashing | B74: Reception/Lobby/Elevator Landing (trashing) | C74: Large trash bin w/ liner (reception etc.) | D74: Multiple bins in a single location | G74: TrashingReception/Lobby/Elevator Landing (trashing)Large trash bin w/ liner (reception etc.)Multiple bins in a single location | H74: Emptying trash bins | I74: Bins are located in reception areas, lobbies or elevator landings; elevator landing= the area in front and adjacent to the elevator where riders enter or exit | J74: Bin, greater than 5 gallons, with a plastic liner; trash or recycle bins | K74: Empties multiple bins in one location of the area | L74: No. of bin | M74: 23.14049587 | N74: 16.47058824 | P74: P013 | Q74: Trashing | R74: Reception/lobby/elevator landing | S74: Trash can with liner/large bin | T74: Trashing | U74: Reception/lobby/elevator landing | V74: Trash can with liner/large bin | W74: Trashing | X74: Reception/lobby/elevator landing | Y74: Trash can with liner/large bin | Z74: 53 | AA74: 91 | AB74: 85 | AC74: 1 | AD74: 123 | AE74: 5 | AF74: 105.9333333 | AG74: 2.235294118 | AH74: 6.859930511 | AI74: 1.13065812 | AJ74: 63.8 | AK74: 40.82687335 | AL74: 3060 | AM74: 3060 | AN74: 756 | AO74: 114.6155977 | AP74: 2 | AQ74: 889.4117647 | AR74: 134.8418797 | AS74: 30600 | AT74: 30600 | AU74: 30600 | AV74: 0.0434494 | AW74: -12.2042 | AX74: 0.000515914 | AY74: 80.8365 | AZ74: 80.61 | BA74: 53.7751 | BB74: 10.00619741 | BC74: 6.116403561 | BD74: 5.030032052 | BE74: 7.31065 | BF74: 2.818495 | BG74: 3.97537 | BH74: 9.452232349 | BI74: 10.71731385 | BJ74: 4.175644426 | BK74: 1.678985 | BL74: -3.919905 | BM74: 0.4202175 | BN74: 2.50864 | BO74: -2.43466 | BP74: 0.8191315 | BQ74: 20.53775 | BR74: 19.55695 | BS74: 10.6348 | BT74: 27.52345 | BU74: 26.27985 | BV74: 13.35045 | BW74: 901 | BX74: 26820 | BY74: 2715 | BZ74: 164 | CA74: 30600 | CB74: 2.944444444 | CC74: 87.64705882 | CD74: 8.87254902 | CE74: 0.535947712 | CF74: 2020-01-28 | CG74: UW | CH74: 756 | CI74: 36.3 | CJ74: 51 | CK74: -14.7 | CL74: 0.34 | CM74: 0.7 | CN74: 0.41 | CO74: Slower | CP74: Slower | CR74: Updated results, ISSA2021 data | CS74: No | CT74: WL | CU74: 4.114328071 | CV74: 3 | CW74: 2 | CX74: 2 | CY74: 2 | CZ74: 1 | DA74: 4 | DB74: 3 | DC74: 2 | DD74: 12 | DE74: 4 | DF74: 4499.644272 | DG74: 14250.02739 | DH74: 24300.35573 | DI74: 0.586412296 | DJ74: 712.312491 | DK74: 1544.999408 | DL74: 28087.68751 | DM74: 0.055006287 | EM74: 2
A75: Trashing | B75: Reception/Lobby/Elevator Landing (trashing) | C75: Small trash bin w/ liner (reception etc.) | D75: None | G75: TrashingReception/Lobby/Elevator Landing (trashing)Small trash bin w/ liner (reception etc.)None | H75: Emptying trash bins | I75: Bins are located in reception areas, lobbies or elevator landings; elevator landing= the area in front and adjacent to the elevator where riders enter or exit | J75: Bin, less than 5 gallons, with a plastic liner | K75: No variations | L75: No. of bin | M75: 80 | N75: 133.3333333 | P75: P002 | Q75: Trashing | R75: Reception/lobby/elevator landing | S75: Trash can with liner/small bin | T75: Trashing | U75: Reception/lobby/elevator landing | V75: Trash can with liner/small bin | W75: Trashing | X75: Reception/lobby/elevator landing | Y75: Trash with liner/small bin | Z75: 54 | AA75: 91 | AB75: 76 | AC75: 3.8 | AD75: 93 | AE75: 4.8 | AF75: 86.85714286 | AG75: 3.907142857 | AH75: 3.858537506 | AI75: 0.312093892 | AJ75: 64.5 | AK75: 22.02674173 | AL75: 56 | AM75: 56 | AN75: 70 | AO75: 5.90831995 | AP75: 1 | AQ75: 4500 | AR75: 379.8205682 | AS75: 560 | AT75: 560 | AU75: 560 | AV75: 0.467966 | AW75: -2.80426 | AX75: 0.00524725 | AY75: 29.9238 | AZ75: 25.537 | BA75: 21.5363 | BB75: 7.721533254 | BC75: 4.76747785 | BD75: 4.565959362 | BE75: 7.467 | BF75: 5.435285 | BG75: 4.168865 | BH75: 3.924923085 | BI75: 4.355059235 | BJ75: 3.684096989 | BK75: 2.69116 | BL75: -1.08903 | BM75: 0.377028 | BN75: 3.76606 | BO75: -0.335887 | BP75: 0.6044625 | BQ75: 10.2086 | BR75: 8.910665 | BS75: 8.82489 | BT75: 14.96775 | BU75: 9.82271 | BV75: 11.1832 | BW75: 0 | BX75: 553 | BY75: 7 | BZ75: 0 | CA75: 560 | CB75: 0 | CC75: 98.75 | CD75: 1.25 | CE75: 0 | CF75: 2019-09-30 | CG75: ABM | CH75: 70 | CI75: 1.5 | CJ75: 0.9 | CK75: 0.6 | CL75: 0.5 | CM75: 1.6 | CN75: -0.38 | CO75: Faster | CP75: Faster | CS75: No | CT75: JL | CU75: 3.365975652 | CV75: 4 | CW75: 1 | CX75: 2 | CY75: 2 | CZ75: 1 | DA75: 4 | DB75: 2 | DC75: 1 | DD75: 10 | DE75: 3 | DF75: 876.96 | DG75: 849.1220634 | DH75: 27923.04 | DI75: 0.03040937 | DK75: 0 | DL75: 28800 | DM75: 0 | EM75: 1
A76: Trashing | B76: Restrooms/Locker Rooms | C76: Large trash bin w/ liner (restroom/locker room) | D76: None | G76: TrashingRestrooms/Locker RoomsLarge trash bin w/ liner (restroom/locker room)None | H76: Emptying the trash bins is the only activity performed in this location | I76: Bins are located in restrooms (multiple or single user) or locker rooms | J76: Bin, greater than 5 gallons, with a plastic liner | K76: No variations | L76: No. of bin | M76: 69.23076923 | N76: 180 | P76: P012 | Q76: Trashing | R76: Restroom | S76: Trash can with liner/large bin | T76: Trashing | U76: Restroom | V76: Trash can with liner/large bin | W76: Trashing | X76: Restroom | Y76: Trash can with liner/large bin | Z76: 62 | AA76: 79 | AB76: 91 | AC76: 3 | AD76: 99 | AE76: 3 | AF76: 95.83333333 | AG76: 3 | AH76: 2.092493984 | AI76: 0 | AJ76: 55.9 | AK76: 39.11198171 | AL76: 60 | AM76: 60 | AN76: 21 | AO76: 3.21269989 | AP76: 1 | AQ76: 1260 | AR76: 192.7619934 | AS76: 600 | AT76: 600 | AU76: 600 | AV76: 4.06229 | AW76: 3.75731 | AX76: 0.00674763 | AY76: 76.2096 | AZ76: 76.1087 | BA76: 26.5548 | BB76: 20.17616897 | BC76: 19.5691461 | BD76: 4.611723116 | BE76: 15.4069 | BF76: 14.8458 | BG76: 3.122515 | BH76: 15.92330049 | BI76: 16.01517312 | BJ76: 4.735484521 | BK76: 7.9702 | BL76: 7.02742 | BM76: 0.361615 | BN76: 8.65844 | BO76: 8.23187 | BP76: 0.604285 | BQ76: 41.6085 | BR76: 41.1158 | BS76: 10.128335 | BT76: 63.12045 | BU76: 63.02875 | BV76: 16.20965 | BW76: 0 | BX76: 468 | BY76: 97 | BZ76: 35 | CA76: 600 | CB76: 0 | CC76: 78 | CD76: 16.16666667 | CE76: 5.833333333 | CF76: 2020-01-21 | CG76: UW | CH76: 21 | CI76: 2.6 | CJ76: 1 | CK76: 1.6 | CL76: 0.89 | CM76: 2.6 | CN76: -0.62 | CO76: Faster | CP76: Faster | CS76: No | CT76: SB | CU76: 0.385337378 | CV76: 4 | CW76: 1 | CX76: 2 | CY76: 1 | CZ76: 1 | DA76: 4 | DB76: 2 | DC76: 1 | DD76: 9 | DE76: 2 | DF76: 9524.8125 | DG76: 9222.459911 | DH76: 19275.1875 | DI76: 0.478462786 | DJ76: 3337.3125 | DK76: 24698.54966 | DL76: 25462.6875 | DM76: 0.969989898 | EM76: 1
A77: Trashing | B77: Restrooms/Locker Rooms | C77: Small trash bin w/ liner (restroom/locker room) | D77: None | G77: TrashingRestrooms/Locker RoomsSmall trash bin w/ liner (restroom/locker room)None | H77: Emptying the trash bins is the only activity performed | I77: Bins are located in restrooms (multiple or single user) or locker rooms | J77: Bin, less than 5 gallons, with a plastic liner | K77: No variations | L77: No. of bin | M77: 67.6056338 | N77: 160 | P77: P012 | Q77: Trashing | R77: Restroom | S77: Trash can with liner/small bin | T77: Trashing | U77: Restroom | V77: Trash can with liner/small bin | W77: Trashing | X77: Restroom | Y77: Trash can with liner/small bin | Z77: 62 | AA77: 79 | AB77: 87 | AC77: 1 | AD77: 103 | AE77: 3.6 | AF77: 95.25 | AG77: 2.533333333 | AH77: 3.468735058 | AI77: 1.114656046 | AJ77: 55.9 | AK77: 38.54064643 | AL77: 180 | AM77: 180 | AN77: 66 | AO77: 8.13883996 | AP77: 1 | AQ77: 1320 | AR77: 162.7767992 | AS77: 1800 | AT77: 1800 | AU77: 1800 | AV77: 2.76369 | AW77: -2.44702 | AX77: 0.00356657 | AY77: 80.4729 | AZ77: 79.6068 | BA77: 67.4084 | BB77: 19.97960252 | BC77: 18.99296958 | BD77: 5.660487475 | BE77: 15.6752 | BF77: 14.56015 | BG77: 3.91241 | BH77: 13.88161975 | BI77: 14.03214604 | BJ77: 6.064534278 | BK77: 6.24584 | BL77: 5.16255 | BM77: 0.433802 | BN77: 8.096395 | BO77: 7.053535 | BP77: 0.759884 | BQ77: 39.16815 | BR77: 38.6403 | BS77: 12.53705 | BT77: 50.21505 | BU77: 49.73735 | BV77: 15.8976 | BW77: 0 | BX77: 1272 | BY77: 476 | BZ77: 52 | CA77: 1800 | CB77: 0 | CC77: 70.66666667 | CD77: 26.44444444 | CE77: 2.888888889 | CF77: 2020-01-21 | CG77: UW | CH77: 66 | CI77: 7.1 | CJ77: 3 | CK77: 4.1 | CL77: 0.81 | CM77: 2.4 | CN77: -0.58 | CO77: Faster | CP77: Faster | CS77: No | CT77: SB | CU77: 3.236391561 | CV77: 4 | CW77: 1 | CX77: 2 | CY77: 1 | CZ77: 1 | DA77: 4 | DB77: 2 | DC77: 1 | DD77: 9 | DE77: 2 | DF77: 3203.56656 | DG77: 3101.873572 | DH77: 25596.43344 | DI77: 0.12118382 | DJ77: 1990.401711 | DK77: 14730.4262 | DL77: 26809.59829 | DM77: 0.549445987 | EM77: 1
A78: Vacuuming | B78: Carpet | C78: Backpack vacuum (carpet) | D78: Area cleaning | G78: VacuumingCarpetBackpack vacuum (carpet)Area cleaning | H78: Vacuuming carpeted areas | I78: All areas with carpet; excludes office/cubicle areas (this is included as : location=office/cubicle cleaning), and walk-off mats (location=walk-off mats) | J78: Powered by an electrical cord | K78: Vacuums an entire area | L78: Sq. ft. of floor | M78: 7445.311475 | N78: 11468.78788 | P78: P004_2 | Q78: Vacuuming | R78: Carpet | S78: Back-pack vacuum & 14" orifice | T78: Vacuuming | U78: Carpet | V78: Back-pack vacuum & 14" orifice | W78: Vacuuming | X78: Carpet | Y78: Back-pack vacuum & 14" orifice | Z78: 41 | AA78: 85 | AB78: 111 | AC78: 1 | AD78: 130 | AE78: 4 | AF78: 122.6829268 | AG78: 2.100084104 | AH78: 2.654876622 | AI78: 1.127663324 | AJ78: 71.3 | AK78: 47.70930994 | AL78: 1189 | AM78: 1189 | AN78: 278 | AO78: 47.53199911 | AP78: 1 | AQ78: 841.7157275 | AR78: 143.9152202 | AS78: 11890 | AT78: 11890 | AU78: 11890 | AV78: 0.345968 | AW78: -11.9363 | AX78: 0.000194192 | AY78: 74.7076 | AZ78: 60.3613 | BA78: 72.6832 | BB78: 10.90532877 | BC78: 6.585206094 | BD78: 7.183375748 | BE78: 9.655085 | BF78: 5.700445 | BG78: 5.921735 | BH78: 7.604206937 | BI78: 7.170550746 | BJ78: 7.037732325 | BK78: 3.14319 | BL78: -1.83001 | BM78: 0.546222 | BN78: 4.32141 | BO78: -0.6574945 | BP78: 1.140455 | BQ78: 17.4779 | BR78: 13.22425 | BS78: 13.582 | BT78: 22.2463 | BU78: 17.1596 | BV78: 17.2104 | BW78: 112 | BX78: 11351 | BY78: 425 | BZ78: 2 | CA78: 11890 | CB78: 0.94196804 | CC78: 95.46677881 | CD78: 3.574432296 | CE78: 0.016820858 | CF78: 2020-02-13 | CG78: L&I | CH78: 278 | CI78: 30.5 | CJ78: 19.8 | CK78: 10.7 | CL78: 0.43 | CM78: 1.1 | CN78: -0.07 | CO78: Faster | CP78: Faster | CR78: Updated results, ISSA2021 data | CS78: No | CT78: SB | CU78: 14.66504935 | CV78: 3 | CW78: 1 | CX78: 4 | CY78: 1 | CZ78: 1 | DA78: 4 | DB78: 2 | DC78: 2 | DD78: 10 | DE78: 3 | DF78: 27154.40474 | DG78: 40921.09276 | DH78: 1645.595258 | DI78: 24.86704587 | EM78: 1
A79: Vacuuming | B79: Carpet | C79: Backpack vacuum (carpet) | D79: Carpet paddle head | G79: VacuumingCarpetBackpack vacuum (carpet)Carpet paddle head | H79: Vacuuming carpeted areas | I79: All areas with carpet; excludes office/cubicle areas (this is included as : location=office/cubicle cleaning), and walk-off mats (location=walk-off mats) | J79: Powered by a rechargeable battery | K79: Paddle vacuum head | L79: Sq. ft. of floor | M79: 12911.70732 | N79: 4967.372654 | P79: P009_1 | Q79: Vacuuming | R79: Carpet | S79: Back-pack vacuum & 12" orifice | T79: Vacuuming | U79: Carpet | V79: Back-pack vacuum & 12" orifice | W79: Vacuuming | X79: Carpet | Y79: Back-pack vacuum & 12" orifice carpet tool | Z79: 54 | AA79: 96 | AB79: 89 | AC79: 1 | AD79: 135 | AE79: 6 | AF79: 112.2662968 | AG79: 2.997712834 | AH79: 7.015149382 | AI79: 1.527873292 | AJ79: 78.3 | AK79: 38.73009897 | AL79: 787 | AM79: 787 | AN79: 1199 | AO79: 210.8072777 | AP79: 3 | AQ79: 5484.625159 | AR79: 964.302668 | AS79: 5801 | AT79: 5801 | AU79: 5801 | AV79: 0.0463444 | AW79: -8.0964 | AX79: 0.00218935 | AY79: 70.9048 | AZ79: 66.394 | BA79: 60.4365 | BB79: 12.27208232 | BC79: 9.038992022 | BD79: 6.991796467 | BE79: 10.1442 | BF79: 7.03979 | BG79: 5.15965 | BH79: 10.11955772 | BI79: 9.892573726 | BJ79: 6.561742159 | BK79: 1.10117 | BL79: -1.62269 | BM79: 0.39576 | BN79: 1.80158 | BO79: -0.677693 | BP79: 0.725426 | BQ79: 24.562 | BR79: 20.4922 | BS79: 16.2138 | BT79: 30.9185 | BU79: 27.7849 | BV79: 19.0376 | BW79: 72 | BX79: 5121 | BY79: 605 | BZ79: 8 | CA79: 5806 | CB79: 1.240096452 | CC79: 88.20186015 | CD79: 10.42025491 | CE79: 0.137788495 | CF79: 2019-12-26 | CG79: L&I | CH79: 870 | CI79: 28.7 | CJ79: 74.6 | CK79: -45.9 | CL79: 0.89 | CM79: 0.4 | CN79: 1.6 | CO79: Slower | CP79: Slower | CR79: Updated results, ISSA2021 data, Cordleess back-pack vacuum - high productivity | CS79: No | CT79: JL | CU79: 7.251971501 | CV79: 3 | CW79: 1 | CX79: 2 | CY79: 2 | CZ79: 1 | DA79: 4 | DB79: 4 | DC79: 1 | DD79: 12 | DE79: 3 | DF79: 21837.14612 | DG79: 27917.80008 | DH79: 6962.853879 | DI79: 4.009534103 | DJ79: 19141.40655 | DK79: 65423.33329 | DL79: 9658.593446 | DM79: 6.773588065 | EM79: 3
A80: Vacuuming | B80: Carpet | C80: Backpack vacuum (carpet) | D80: Conventional carpet head | G80: VacuumingCarpetBackpack vacuum (carpet)Conventional carpet head | H80: Vacuuming carpeted areas | I80: All areas with carpet; excludes office/cubicle areas (this is included as : location=office/cubicle cleaning), and walk-off mats (location=walk-off mats) | J80: Powered by a rechargeable battery | K80: Universal vacuum head | L80: Sq. ft. of floor | M80: 14307.45763 | N80: 7926.197183 | P80: P004_2 | Q80: Vacuuming | R80: Carpet | S80: Battery powered back-pack vacuum with 14" tool | T80: Vacuuming | U80: Carpet | V80: Battery powered back-pack vacuum with 14" tool | W80: Vacuuming | X80: Carpet | Y80: Battery powered back-pack vacu | Z80: 41 | AA80: 85 | AB80: 99 | AC80: 1 | AD80: 138 | AE80: 3.8 | AF80: 126.094902 | AG80: 2.251764706 | AH80: 4.489960619 | AI80: 0.976884939 | AJ80: 71.3 | AK80: 50.87734633 | AL80: 1275 | AM80: 1275 | AN80: 279 | AO80: 55.45399976 | AP80: 1 | AQ80: 787.7647059 | AR80: 156.5759993 | AS80: 12750 | AT80: 12750 | AU80: 12750 | AV80: 0.0199048 | AW80: -15.0535 | AX80: 6.58e-05 | AY80: 44.7401 | AZ80: 27.4522 | BA80: 40.4968 | BB80: 9.394721342 | BC80: 5.615585564 | BD80: 5.453053556 | BE80: 9.378365 | BF80: 5.858605 | BG80: 4.73253 | BH80: 4.777873485 | BI80: 5.804241081 | BJ80: 4.229227585 | BK80: 2.03586 | BL80: -4.21237 | BM80: 0.413538 | BN80: 3.136395 | BO80: -1.753545 | BP80: 0.8198895 | BQ80: 15.0278 | BR80: 12.61055 | BS80: 10.6923 | BT80: 16.9447 | BU80: 14.5178 | BV80: 12.6634 | BW80: 538 | BX80: 12151 | BY80: 61 | BZ80: 0 | CA80: 12750 | CB80: 4.219607843 | CC80: 95.30196078 | CD80: 0.478431373 | CE80: 0 | CF80: 2020-02-13 | CG80: L&I | CH80: 279 | CI80: 11.8 | CJ80: 21.3 | CK80: -9.5 | CL80: 0.57 | CM80: 0.6 | CN80: 0.81 | CO80: Slower | CP80: Slower | CR80: Updated results, ISSA2021 data | CS80: No | CT80: SB | CU80: 14.99162321 | CV80: 2 | CW80: 1 | CX80: 4 | CY80: 1 | CZ80: 1 | DA80: 4 | DB80: 1 | DC80: 2 | DD80: 9 | DE80: 3 | DF80: 27544.82372 | DG80: 26670.44968 | DH80: 1255.176283 | DI80: 21.24836969 | EM80: 1
A81: Vacuuming | B81: Carpet | C81: Backpack vacuum (carpet) | D81: None | G81: VacuumingCarpetBackpack vacuum (carpet)None | H81: Vacuuming carpeted areas | I81: All areas with carpet; excludes office/cubicle areas (this is included as : location=office/cubicle cleaning), and walk-off mats (location=walk-off mats) | K81: No variations | L81: Sq. ft. of floor | M81: 6364.919614 | N81: 6873.229167 | P81: P004_2 | Q81: Vacuuming | R81: Carpet | S81: Back-pack vacuum & 12" orifice | T81: Vacuuming | U81: Carpet | V81: Back-pack vacuum & 12" orifice | W81: Vacuuming | X81: Carpet | Y81: Back-pack vacuum & 12" orifice | Z81: 41 | AA81: 85 | AB81: 101 | AC81: 1 | AD81: 142 | AE81: 6 | AF81: 125.3324645 | AG81: 2.258210252 | AH81: 5.947781915 | AI81: 1.252105959 | AJ81: 71.3 | AK81: 50.16941922 | AL81: 3453 | AM81: 3453 | AN81: 865 | AO81: 148.1879978 | AP81: 2 | AQ81: 901.8245004 | AR81: 154.4966094 | AS81: 34530 | AT81: 34530 | AU81: 34530 | AV81: 0.0342583 | AW81: -14.2589 | AX81: 0.000630448 | AY81: 74.3014 | AZ81: 63.1823 | BA81: 71.3796 | BB81: 10.15995399 | BC81: 5.467548912 | BD81: 6.635622337 | BE81: 9.152045 | BF81: 5.555955 | BG81: 5.23234 | BH81: 6.86310689 | BI81: 6.526175758 | BJ81: 6.631296373 | BK81: 2.58985 | BL81: -5.08239 | BM81: 0.447164 | BN81: 3.651405 | BO81: -2.36367 | BP81: 0.913576 | BQ81: 16.8538 | BR81: 12.2288 | BS81: 13.09875 | BT81: 20.7815 | BU81: 14.8729 | BV81: 16.5846 | BW81: 1777 | BX81: 32190 | BY81: 560 | BZ81: 3 | CA81: 34530 | CB81: 5.146249638 | CC81: 93.2232841 | CD81: 1.621778164 | CE81: 0.008688097 | CF81: 2020-02-13 | CG81: L&I | CH81: 865 | CI81: 62.2 | CJ81: 57.6 | CK81: 4.6 | CL81: 0.08 | CM81: 1.1 | CN81: -0.07 | CO81: Slower | CP81: Faster | CR81: Updated results, ISSA2021 data | CS81: No | CT81: SB | CU81: 17.42048065 | CV81: 2 | CW81: 2 | CX81: 4 | CY81: 1 | CZ81: 1 | DA81: 4 | DB81: 2 | DC81: 3 | DD81: 11 | DE81: 4 | DF81: 20031.75314 | DG81: 65787.48197 | DH81: 8768.246858 | DI81: 7.502923108 | EM81: 2
A82: Vacuuming | B82: Carpet | C82: Backpack vacuum (carpet) | D82: None | G82: VacuumingCarpetBackpack vacuum (carpet)None | H82: Vacuuming carpeted areas | I82: All areas with carpet; excludes office/cubicle areas (this is included as : location=office/cubicle cleaning), and walk-off mats (location=walk-off mats) | J82: Powered by an electrical cord | K82: No variations | L82: Sq. ft. of floor | M82: 7596.258219 | N82: 12582.71287 | P82: P012 | Q82: Vacuuming | R82: Carpet | S82: Back-pack vacuum with 18" orifice | T82: Vacuuming | U82: Carpet | V82: Back-pack vacuum & 18" orifice | W82: Vacuuming | X82: Carpet | Y82: Back-pack vacuum with 18" orifice | Z82: 62 | AA82: 79 | AB82: 80 | AC82: 1 | AD82: 117 | AE82: 6.2 | AF82: 98.30429043 | AG82: 2.265346535 | AH82: 7.314351237 | AI82: 1.060298156 | AJ82: 55.9 | AK82: 41.53211599 | AL82: 6060 | AM82: 6060 | AN82: 1355 | AO82: 245.0219128 | AP82: 2 | AQ82: 804.9504951 | AR82: 145.557572 | AS82: 60600 | AT82: 60600 | AU82: 60600 | AV82: 0.0363916 | AW82: -5.58602 | AX82: 0.000169371 | AY82: 91.4367 | AZ82: 91.4774 | BA82: 96.1388 | BB82: 19.0081433 | BC82: 17.31562249 | BD82: 7.499015138 | BE82: 18.77875 | BF82: 17.05135 | BG82: 6.75257 | BH82: 9.223430843 | BI82: 9.05679531 | BJ82: 5.728786555 | BK82: 6.801125 | BL82: 5.984565 | BM82: 0.6696875 | BN82: 9.68526 | BO82: 8.90105 | BP82: 1.30706 | BQ82: 26.1674 | BR82: 23.5091 | BS82: 14.17185 | BT82: 29.4694 | BU82: 26.7339 | BV82: 16.4182 | BW82: 3 | BX82: 43592 | BY82: 16296 | BZ82: 709 | CA82: 60600 | CB82: 0.004950495 | CC82: 71.9339934 | CD82: 26.89108911 | CE82: 1.169966997 | CF82: 2020-01-21 | CG82: UW | CH82: 1355 | CI82: 167.3 | CJ82: 101 | CK82: 66.3 | CL82: 0.49 | CM82: 1.7 | CN82: -0.4 | CO82: Faster | CP82: Faster | CS82: No | CT82: SB | CU82: 7.979095601 | CV82: 1 | CW82: 1 | CX82: 2 | CY82: 1 | CZ82: 1 | DA82: 4 | DB82: 1 | DC82: 1 | DD82: 8 | DE82: 2 | DF82: 110.9239666 | DG82: 61.13347599 | DH82: 28689.07603 | DI82: 0.002130897 | EM82: 2
A83: Vacuuming | B83: Carpet | C83: Backpack vacuum (carpet) | D83: Spot cleaning | G83: VacuumingCarpetBackpack vacuum (carpet)Spot cleaning | H83: Vacuuming carpeted areas | I83: All areas with carpet; excludes office/cubicle areas (this is included as : location=office/cubicle cleaning), and walk-off mats (location=walk-off mats) | J83: Powered by an electrical cord | K83: Vacuums where visible dirt or debris is seen | L83: Sq. ft. of floor | M83: 7450.645161 | N83: 8161.484099 | P83: P002 | Q83: Vacuuming | R83: Carpet | S83: Back-pack vacuum with 14" orifice | T83: Vacuuming | U83: Carpet | V83: Back-pack vacuum & 14" orifice | W83: Vacuuming | X83: Carpet | Y83: Backpack vacuum machine with 14” orifice | Z83: 54 | AA83: 91 | AB83: 69 | AC83: 2.6 | AD83: 107 | AE83: 5.2 | AF83: 92.15652174 | AG83: 3.791839465 | AH83: 6.430213047 | AI83: 0.729792676 | AJ83: 64.5 | AK83: 27.24780467 | AL83: 1495 | AM83: 1495 | AN83: 1147 | AO83: 116.4431396 | AP83: 1 | AQ83: 2762.006689 | AR83: 280.3981957 | AS83: 14950 | AT83: 14950 | AU83: 14950 | AV83: 0.112945 | AW83: -13.7925 | AX83: 0.00011234 | AY83: 81.929 | AZ83: 81.8709 | BA83: 57.4553 | BB83: 13.4712859 | BC83: 11.01584112 | BD83: 6.442280151 | BE83: 11.52245 | BF83: 9.48215 | BG83: 4.89329 | BH83: 10.1441064 | BI83: 10.31443404 | BJ83: 6.401767455 | BK83: 3.4039 | BL83: 0.649558 | BM83: 0.376416 | BN83: 4.756935 | BO83: 1.645365 | BP83: 0.7714865 | BQ83: 22.69615 | BR83: 20.0227 | BS83: 13.28045 | BT83: 32.7772 | BU83: 29.205 | BV83: 18.3363 | BW83: 18 | BX83: 13435 | BY83: 1369 | BZ83: 128 | CA83: 14950 | CB83: 0.120401338 | CC83: 89.86622074 | CD83: 9.157190636 | CE83: 0.856187291 | CF83: 2019-09-30 | CG83: ABM | CH83: 1147 | CI83: 31 | CJ83: 28.3 | CK83: 2.7 | CL83: 0.09 | CM83: 1.1 | CN83: -0.09 | CO83: Faster | CP83: Faster | CR83: Updated results, ISSA2021 data | CS83: No | CT83: JL | CU83: 8.642871587 | CV83: 3 | CW83: 1 | CX83: 2 | CY83: 2 | CZ83: 1 | DA83: 4 | DB83: 2 | DC83: 1 | DD83: 10 | DE83: 3 | DF83: 16538.18425 | DG83: 19438.74571 | DH83: 12261.81575 | DI83: 1.585307275 | DJ83: 1108.92189 | DK83: 611.1596241 | DL83: 27691.07811 | DM83: 0.022070633 | EM83: 1
A84: Vacuuming | B84: Carpet | C84: Backpack vacuum (carpet) | D84: Uses carpet paddle attachment | G84: VacuumingCarpetBackpack vacuum (carpet)Uses carpet paddle attachment | H84: Vacuuming carpeted areas | I84: All areas with carpet; excludes office/cubicle areas (this is included as : location=office/cubicle cleaning), and walk-off mats (location=walk-off mats) | J84: Powered by an electrical cord | K84: Paddle vacuum head | L84: Sq. ft. of floor | M84: 6794.54039 | N84: 9628.578947 | P84: P009_2 | Q84: Vacuuming | R84: Carpet | S84: Back-pack vacuum & 12" orifice | T84: Vacuuming | U84: Carpet | V84: Back-pack vacuum & 12" orifice | W84: Vacuuming | X84: Carpet | Y84: Back-pack vacuum with 12" orifice | Z84: 54 | AA84: 96 | AB84: 73 | AC84: 1 | AD84: 117 | AE84: 5.6 | AF84: 102.1758772 | AG84: 2.642105263 | AH84: 4.639042627 | AI84: 1.195435843 | AJ84: 70.3 | AK84: 33.30812665 | AL84: 4560 | AM84: 4560 | AN84: 1689 | AO84: 251.8835211 | AP84: 4 | AQ84: 1333.421053 | AR84: 198.8554114 | AS84: 45600 | AT84: 45600 | AU84: 45600 | AV84: 0.223542 | AW84: -4.65848 | AX84: 1.82e-05 | AY84: 94.5069 | AZ84: 94.8441 | BA84: 102.112 | BB84: 25.82105581 | BC84: 23.39130996 | BD84: 11.73896122 | BE84: 24.8643 | BF84: 22.63955 | BG84: 9.766515 | BH84: 11.57124407 | BI84: 10.81442923 | BJ84: 10.07696137 | BK84: 9.714655 | BL84: 9.045415 | BM84: 0.810149 | BN84: 12.04835 | BO84: 11.13025 | BP84: 1.614215 | BQ84: 38.69755 | BR84: 34.32205 | BS84: 23.5582 | BT84: 43.98915 | BU84: 40.1237 | BV84: 27.94295 | BW84: 0 | BX84: 16139 | BY84: 28822 | BZ84: 639 | CA84: 45600 | CB84: 0 | CC84: 35.39254386 | CD84: 63.20614035 | CE84: 1.40131579 | CF84: 2020-01-23 | CG84: L&I | CH84: 1689 | CI84: 107.7 | CJ84: 76 | CK84: 31.7 | CL84: 0.35 | CM84: 1.4 | CN84: -0.29 | CO84: Faster | CP84: Faster | CR84: Updated results, ISSA2021 data | CS84: No | CT84: WL | CU84: 14.45460709 | CV84: 3 | CW84: 1 | CX84: 2 | CY84: 3 | CZ84: 1 | DA84: 4 | DB84: 4 | DC84: 1 | DD84: 13 | DE84: 4 | DF84: 21587.74088 | DG84: 31011.22635 | DH84: 7212.259124 | DI84: 4.2997937 | DJ84: 1192.91668 | DK84: 1633.730002 | DL84: 27607.08332 | DM84: 0.059177929 | EM84: 4
A85: Vacuuming | B85: Carpet | C85: Upright vacuum | D85: None | G85: VacuumingCarpetUpright vacuumNone | H85: Vacuuming carpeted areas | I85: All areas with carpet; excludes office/cubicle areas (this is included as : location=office/cubicle cleaning), and walk-off mats (location=walk-off mats) | J85: Upright vacuum, any size, powered by an eletrical cord | K85: No variations | L85: Sq. ft. of floor | M85: 3077.391304 | N85: 3050.862069 | P85: P003 | Q85: Vacuuming | R85: Carpet | S85: 14" twin motor upright vacuum | T85: Vacuuming | U85: Carpet | V85: 14" twin motor upright vacuum | W85: Vacuuming | X85: Carpet | Y85: 14" Twin motor upright vacuum | Z85: 65 | AA85: 54 | AB85: 68 | AC85: 1 | AD85: 101 | AE85: 5.6 | AF85: 86.65196548 | AG85: 2.052061361 | AH85: 5.222499146 | AI85: 1.04934058 | AJ85: 59.5 | AK85: 28.43137747 | AL85: 2086 | AM85: 2086 | AN85: 321 | AO85: 52.70680022 | AP85: 1 | AQ85: 553.978907 | AR85: 90.9609208 | AS85: 20860 | AT85: 20860 | AU85: 20860 | AV85: 0.355042 | AW85: -2.56995 | AX85: 0.0022526 | AY85: 106.847 | AZ85: 111.98 | BA85: 177.691 | BB85: 29.62797926 | BC85: 28.27641685 | BD85: 12.01359585 | BE85: 23.11115 | BF85: 21.46605 | BG85: 7.70812 | BH85: 18.89638587 | BI85: 19.15037433 | BJ85: 17.22313529 | BK85: 9.398595 | BL85: 8.06423 | BM85: 0.602135 | BN85: 13.1374 | BO85: 11.64585 | BP85: 1.17039 | BQ85: 59.3689 | BR85: 58.20725 | BS85: 24.0137 | BT85: 72.84325 | BU85: 72.19035 | BV85: 37.691 | BW85: 0 | BX85: 8665 | BY85: 10286 | BZ85: 1909 | CA85: 20860 | CB85: 0 | CC85: 41.5388303 | CD85: 49.30968361 | CE85: 9.151486098 | CF85: 2019-10-14 | CG85: ABM | CH85: 310 | CI85: 34.5 | CJ85: 34.8 | CK85: -0.3 | CL85: 0.01 | CM85: 1 | CN85: 0.01 | CO85: Slower | CP85: Slower | CR85: Updated results, ISSA2021 data | CS85: No | CT85: WL | CU85: 24.98110876 | CV85: 4 | CW85: 1 | CX85: 1 | CY85: 2 | CZ85: 1 | DA85: 4 | DB85: 2 | DC85: 1 | DD85: 10 | DE85: 3 | DJ85: 8010.378707 | DK85: 31533.73762 | DL85: 20789.62129 | DM85: 1.516801926 | EM85: 1
A86: Vacuuming | B86: Hard flooring (vacuuming) | C86: Backpack vacuum (hard floor) | D86: None | G86: =CONCATENATE(A86,B86,C86,D86) -> VacuumingHard flooring (vacuuming)Backpack vacuum (hard floor)None | H86: Vacuuming uncarpeted areas | I86: Flooring may be tile, marble, linoleum, cement | J86: Powered by a rechargeable battery or electrical cord | K86: No variations | L86: Sq. ft. of floor | M86: 12954.13534 | N86: 9789.204545 | P86: P009_1 | Q86: Vacuuming | R86: Hard floor | S86: Back-pack vacuum & 12" orifice | T86: Vacuuming | U86: Hard floor | V86: Back-pack vacuum & 12" orifice | W86: Vacuuming | X86: Hard floor | Y86: Back-pack vacuum & 12" orifice carpet tool | Z86: 54 | AA86: 96 | AC86: 1 | AE86: 4 | AG86: 2.495238095 | AI86: 1.032703341 | AJ86: 78.3 | AK86: =IF(AF86="","", (AF86-AJ86)/(220-Z86-AJ86)*100) ->  | AL86: 21 | AM86: 21 | AN86: 291 | AO86: 55.84632003 | AP86: 4 | AQ86: 49885.71429 | AR86: 9573.654862 | AS86: 0 | AT86: 0 | AU86: 0 | BW86: 3 | BX86: 0 | BY86: 0 | BZ86: 0 | CA86: 3 | CB86: 100 | CC86: 0 | CD86: 0 | CE86: 0 | CF86: 2019-12-26 | CG86: L&I | CH86: 291 | CI86: 13.3 | CJ86: 17.6 | CK86: -4.3 | CL86: 0.28 | CM86: 0.8 | CN86: 0.18 | CO86: Slower | CP86: =IF(CN86<0,"Faster",(IF(CN86>0,"Slower","Equal"))) -> Slower | CS86: No | CT86: JL | CU86: 2.075956053 | CV86: 2 | CW86: 1 | CX86: 2 | CY86: 1 | CZ86: 1 | DA86: 4 | DB86: 4 | DC86: 1 | DD86: 11 | DE86: 2 | DF86: 8997.539602 | DG86: 9607.080219 | DH86: 19802.4604 | DI86: 0.485145786 | DJ86: 28765.04218 | DK86: 44122.08411 | DL86: 34.95781704 | DM86: 1262.152155 | EM86: 4
A87: Vacuuming | B87: Hard flooring (vacuuming) | C87: Backpack vacuum (hard floor) | D87: tall handle, tank <20 inches | G87: VacuumingHard flooring (vacuuming)Backpack vacuum (hard floor)tall handle, tank <20 inches | H87: Vacuuming uncarpeted areas | I87: Flooring may be tile, marble, linoleum, cement | J87: Vacuum handle height extends to shoulder height when stood upright | K87: Vacuum tank is less than 20 inches in length | L87: Sq. ft. of floor | M87: 7830.967742 | N87: 2697.333333 | P87: P012 | Q87: Vacuuming | R87: Hard floor | S87: Back-pack vacuum with 18" orifice | T87: Vacuuming | U87: Hard floor | V87: Back-pack vacuum & 18" orifice | W87: Vacuuming | X87: Hard floor | Y87: Back-pack vacuum with 18" orifice | Z87: 62 | AA87: 79 | AB87: 75 | AC87: 1 | AD87: 98 | AE87: 5.6 | AF87: 83.57037037 | AG87: 2.622222222 | AH87: 4.433873225 | AI87: 1.630264177 | AJ87: 55.9 | AK87: 27.10124424 | AL87: 540 | AM87: 540 | AN87: 235 | AO87: 25.27323937 | AP87: 1 | AQ87: 1566.666667 | AR87: 168.4882625 | AS87: 5400 | AT87: 5400 | AU87: 5400 | AV87: 0.0947593 | AW87: -4.59582 | AX87: 0.00121316 | AY87: 71.2402 | AZ87: 71.0468 | BA87: 24.5674 | BB87: 13.20900944 | BC87: 11.99756783 | BD87: 4.260281341 | BE87: 11.8554 | BF87: 10.81185 | BG87: 3.21421 | BH87: 8.591501678 | BI87: 8.777358401 | BJ87: 3.784736949 | BK87: 2.477205 | BL87: 0.833676 | BM87: 0.2399645 | BN87: 3.62469 | BO87: 1.68552 | BP87: 0.499237 | BQ87: 22.2656 | BR87: 21.0243 | BS87: 9.74547 | BT87: 25.2279 | BU87: 23.69265 | BV87: 12.1697 | BW87: 0 | BX87: 4635 | BY87: 747 | BZ87: 18 | CA87: 5400 | CB87: 0 | CC87: 85.83333333 | CD87: 13.83333333 | CE87: 0.333333333 | CF87: 2020-01-21 | CG87: UW | CH87: 235 | CI87: 3.1 | CJ87: 9 | CK87: -5.9 | CL87: 0.98 | CM87: 0.3 | CN87: 1.87 | CO87: Slower | CP87: Slower | CQ87: Travel between floors not accounted for in standard. | CS87: No | CT87: SB | CU87: 4.693554198 | CV87: 1 | CW87: 1 | CX87: 2 | CY87: 1 | CZ87: 1 | DA87: 4 | DB87: 1 | DC87: 1 | DD87: 8 | DE87: 2 | DF87: 21.22071884 | DG87: 11.69536527 | DH87: 28778.77928 | DI87: 0.000406389 | EM87: 1
A88: Vacuuming | B88: Hard flooring (vacuuming) | C88: Backpack vacuum (hard floor) | D88: tall handle, tank >20 inches | G88: VacuumingHard flooring (vacuuming)Backpack vacuum (hard floor)tall handle, tank >20 inches | H88: Vacuuming uncarpeted areas | I88: Flooring may be tile, marble, linoleum, cement | J88: Vacuum handle height extends to shoulder height when stood upright | K88: Vacuum tank is more than 20 inches in length | L88: Sq. ft. of floor | M88: 5609.032258 | N88: 4742.181818 | P88: P008 | Q88: Vacuuming | R88: Hard floor | S88: Back-pack vacuum & 20" orifice | T88: Vacuuming | U88: Hard floor | V88: Back-pack vacuum with 22" orifice | W88: Vacuuming | X88: Hard floor | Y88: Back-pack vacuum with (20"?) Orifice | Z88: 49 | AA88: 87 | AB88: 78 | AC88: 1 | AD88: 100 | AE88: 6.2 | AF88: 89.6780303 | AG88: 2.809090909 | AH88: 3.478969948 | AI88: 1.674472954 | AJ88: 70.8 | AK88: 18.8403496 | AL88: 1320 | AM88: 1320 | AN88: 617 | AO88: 71.29866028 | AP88: 2 | AQ88: 1682.727273 | AR88: 194.4508917 | AS88: 13200 | AT88: 13200 | AU88: 13200 | AV88: 0.144526 | AW88: -15.9841 | AX88: 0.0004082 | AY88: 69.8204 | AZ88: 69.7081 | BA88: 54.9845 | BB88: 13.48136135 | BC88: 11.27113015 | BD88: 6.139175749 | BE88: 13.05405 | BF88: 11.11175 | BG88: 4.771485 | BH88: 7.190991789 | BI88: 7.222135692 | BJ88: 5.430111535 | BK88: 4.439855 | BL88: 1.99795 | BM88: 0.492919 | BN88: 6.385515 | BO88: 4.19119 | BP88: 0.9812655 | BQ88: 18.83565 | BR88: 16.6882 | BS88: 12.9043 | BT88: 22.40705 | BU88: 19.5624 | BV88: 14.69935 | BW88: 60 | BX88: 12526 | BY88: 587 | BZ88: 27 | CA88: 13200 | CB88: 0.454545455 | CC88: 94.89393939 | CD88: 4.446969697 | CE88: 0.204545455 | CF88: 2019-12-19 | CG88: L&I | CH88: 617 | CI88: 18.6 | CJ88: 22 | CK88: -3.4 | CL88: 0.17 | CM88: 0.8 | CN88: 0.19 | CO88: Slower | CP88: Slower | CS88: No | CT88: SB | CU88: 6.299603139 | CV88: 2 | CW88: 1 | CX88: 2 | CY88: 2 | CZ88: 1 | DA88: 4 | DB88: 2 | DC88: 1 | DD88: 10 | DE88: 3 | DF88: 12686.19261 | DG88: 6991.735646 | DH88: 16113.80739 | DI88: 0.433897184 | EM88: 2
A89: Vacuuming | B89: Office/cubicle (vacuuming) | C89: Backpack vacuum (office/cubicle) | D89: None | G89: VacuumingOffice/cubicle (vacuuming)Backpack vacuum (office/cubicle)None | H89: Vacuuming in offices, cubicles | I89: Includes offices and cubicles, includes meeting spaces among cubicles | K89: No variations | L89: Sq. ft. of floor | M89: 7342.439024 | N89: 11838.65169 | P89: P007 | Q89: Vacuuming | R89: Office/cubicle | S89: Back-pack vacuum & 14" orifice | T89: Vacuuming | U89: Office/cubicle | V89: Back-pack vacuum & 14" orifice | W89: Vacuuming | X89: Office/Cubicle | Y89: Back-pack vacuum & 14" orifice carpet tool | Z89: 37 | AA89: 97 | AB89: 107 | AC89: 1 | AD89: 162 | AE89: 7 | AF89: 143.128821 | AG89: 2.726762321 | AH89: 10.50927526 | AI89: 1.388412464 | AJ89: 84.6 | AK89: 59.48050915 | AL89: 3206 | AM89: 3206 | AN89: 1192 | AO89: 235.4786003 | AP89: 1 | AQ89: 1338.490331 | AR89: 264.4176423 | AS89: 32060 | AT89: 32060 | AU89: 32060 | AV89: 0.181207 | AW89: -1.16455 | AX89: 0.000283168 | AY89: 101.758 | AZ89: 103.966 | BA89: 111.475 | BB89: 24.69488192 | BC89: 21.09785039 | BD89: 13.94695659 | BE89: 22.412 | BF89: 19.3469 | BG89: 10.74865 | BH89: 14.1719474 | BI89: 12.99193434 | BJ89: 12.93932321 | BK89: 7.06105 | BL89: 5.363175 | BM89: 0.7003615 | BN89: 9.516655 | BO89: 8.61311 | BP89: 1.34773 | BQ89: 42.43645 | BR89: 35.7251 | BS89: 29.8952 | BT89: 50.92365 | BU89: 45.64165 | BV89: 34.95145 | BW89: 0 | BX89: 17053 | BY89: 14400 | BZ89: 607 | CA89: 32060 | CB89: 0 | CC89: 53.19089208 | CD89: 44.91578291 | CE89: 1.893325016 | CF89: 2019-12-17 | CG89: L&I | CH89: 1192 | CI89: 86.1 | CJ89: 53.4 | CK89: 32.7 | CL89: 0.47 | CM89: 1.6 | CN89: -0.38 | CO89: Faster | CP89: Faster | CR89: Updated results, ISSA2021 data | CS89: No | CT89: NH | CU89: 11.43898166 | CV89: 5 | CW89: 2 | CX89: 2 | CY89: 3 | CZ89: 1 | DA89: 4 | DB89: 3 | DC89: 2 | DD89: 13 | DE89: 5 | DJ89: 13475.21325 | DK89: 27017.6879 | DL89: 15324.78675 | DM89: 1.763005798 | EM89: 1
A90: Vacuuming | B90: Stairwells/Stairway Landings | C90: Backpack vacuum (stairwell/landing) | D90: More time doing prep work | G90: VacuumingStairwells/Stairway LandingsBackpack vacuum (stairwell/landing)More time doing prep work | H90: Vacuuming stairwells, staircases | I90: Includes steps and landings on stairwells | J90: Powered by a rechargeable battery | K90: More than 50% of vacuum task spent on prep work (organizing equipment, getting to cleaning location) | L90: Sq. ft. of area | M90: 1736.047904 | N90: 745.2956298 | P90: P011_2 | Q90: Vacuuming | R90: Stairways/Landings | S90: Battery powered back-pack vacuum with 18" tool | T90: Vacuuming | U90: Stairways/Landings | V90: Battery powered back-pack vacuum with 18" tool | W90: Vacuuming | X90: Stair and landing | Y90: Battery powered backpack vacuum with 18" tool | Z90: 64 | AA90: 73 | AB90: 95 | AC90: 1 | AD90: 141 | AE90: 6 | AF90: 124.5111111 | AG90: 2.364102564 | AH90: 7.334979799 | AI90: 1.285992648 | AJ90: 74.3 | AK90: 61.45790832 | AL90: 2340 | AM90: 2340 | AN90: 658 | AO90: 81.70764012 | AP90: 3 | AQ90: 1012.307692 | AR90: 125.7040617 | AS90: 23400 | AT90: 23400 | AU90: 23400 | AV90: 0.052558 | AW90: -15.2942 | AX90: 7.2e-05 | AY90: 82.3174 | AZ90: 82.0835 | BA90: 62.5485 | BB90: 15.91203449 | BC90: 13.98769817 | BD90: 5.857448889 | BE90: 11.40325 | BF90: 10.17425 | BG90: 3.910535 | BH90: 15.32830475 | BI90: 16.1656628 | BJ90: 7.868875676 | BK90: 2.51775 | BL90: -2.45674 | BM90: 0.3618805 | BN90: 3.391105 | BO90: -1.287765 | BP90: 0.680369 | BQ90: 32.449 | BR90: 32.01035 | BS90: 10.64885 | BT90: 53.9213 | BU90: 52.92055 | BV90: 17.99415 | BW90: 56 | BX90: 19032 | BY90: 3452 | BZ90: 860 | CA90: 23400 | CB90: 0.239316239 | CC90: 81.33333333 | CD90: 14.75213675 | CE90: 3.675213675 | CF90: 2020-03-06 | CG90: UW | CH90: 658 | CI90: 10.2 | CJ90: 38.9 | CK90: -28.7 | CL90: 1.17 | CM90: 0.3 | CN90: 2.81 | CO90: Slower | CP90: Slower | CQ90: Walking seemed too few steps. | CR90: Lager stair step at the lobby compared with the one at the stariwell. ISSA may be only applicable for the one at the stairwell. | CS90: No | CT90: WL | CU90: 17.41969593 | CV90: 2 | CW90: 1 | CX90: 2 | CY90: 3 | CZ90: 1 | DA90: 4 | DB90: 3 | DC90: 1 | DD90: 12 | DE90: 4 | DF90: 6885.934943 | DG90: 9955.617158 | DH90: 21914.06506 | DI90: 0.45430262 | DJ90: 875.7593497 | DK90: 14846.17486 | DL90: 27924.24065 | DM90: 0.531659036 | EM90: 3
A91: Vacuuming | B91: Stairwells/Stairway Landings | C91: Backpack vacuum (stairwell/landing) | D91: More time vacuuming | G91: VacuumingStairwells/Stairway LandingsBackpack vacuum (stairwell/landing)More time vacuuming | H91: Vacuuming stairwells, staircases | I91: Includes steps and landings on stairwells | J91: Powered by a rechargeable battery | K91: Less than 50% of vacuum task spent on prep work (organizing equipment, getting to cleaning location) | L91: Sq. ft. of area | M91: 2847.540984 | N91: 2994.827586 | P91: P004_2 | Q91: Vacuuming | R91: Stairways/Landings | S91: Back-pack vacuum | T91: Vacuuming | U91: Stairways/Landings | V91: Back-pack vacuum | W91: Vacuuming | X91: Stairways/Landings | Y91: Back-pack vacuum | Z91: 41 | AA91: 85 | AB91: 109 | AC91: 1 | AD91: 138 | AE91: 4 | AF91: 126.0608696 | AG91: 2.286956522 | AH91: 5.584374416 | AI91: 1.263751457 | AJ91: 71.3 | AK91: 50.84574708 | AL91: 345 | AM91: 345 | AN91: 113 | AO91: 15.61099959 | AP91: 1 | AQ91: 1179.130435 | AR91: 162.897387 | AS91: 3450 | AT91: 3450 | AU91: 3450 | AV91: 0.266847 | AW91: -15.0027 | AX91: 0.00165942 | AY91: 43.747 | AZ91: 33.6087 | BA91: 38.344 | BB91: 7.787774512 | BC91: 1.891389795 | BD91: 5.072267098 | BE91: 7.317525 | BF91: 1.77571 | BG91: 4.03842 | BH91: 4.985520678 | BI91: 6.09841695 | BJ91: 4.592290425 | BK91: 1.54507 | BL91: -8.4911 | BM91: 0.265063 | BN91: 2.446175 | BO91: -6.319265 | BP91: 0.5996705 | BQ91: 12.8748 | BR91: 9.1988 | BS91: 10.29465 | BT91: 15.8848 | BU91: 10.242 | BV91: 13.2994 | BW91: 423 | BX91: 2989 | BY91: 38 | BZ91: 0 | CA91: 3450 | CB91: 12.26086957 | CC91: 86.63768116 | CD91: 1.101449275 | CE91: 0 | CF91: 2020-02-13 | CG91: L&I | CH91: 113 | CI91: 6.1 | CJ91: 5.8 | CK91: 0.3 | CL91: 0.05 | CM91: 1.1 | CN91: -0.06 | CO91: Faster | CP91: Faster | CR91: Updated results, ISSA2021 data | CS91: No | CT91: SB | CU91: 35.82939008 | CV91: 2 | CW91: 2 | CX91: 2 | CY91: 2 | CZ91: 1 | DA91: 4 | DB91: 1 | DC91: 2 | DD91: 10 | DE91: 4 | DF91: 12860.50342 | DG91: 43334.56927 | DH91: 15939.49658 | DI91: 2.718691211 | EM91: 1
A92: Vacuuming | B92: Stairwells/Stairway Landings | C92: Backpack vacuum (stairwell/landing) | D92: None | G92: VacuumingStairwells/Stairway LandingsBackpack vacuum (stairwell/landing)None | H92: Vacuuming stairwells, staircases | I92: Includes steps and landings on stairwells | J92: Powered by an electrical cord | K92: No variations | M92: 2658.666667 | N92: 1914.24 | P92: P010_2 | Q92: Vacuuming | R92: Stairways/Landings | S92: Back-pack vacuum | T92: Vacuuming | U92: Stairways/Landings | V92: Back-pack vacuum | W92: Vacuuming | X92: Stairways/Landings | Y92: Back-pack vacuum | Z92: 67 | AA92: 82 | AB92: 58 | AC92: 1 | AD92: 112 | AE92: 3.6 | AF92: 87.01888889 | AG92: 2.146666667 | AH92: 14.12114591 | AI92: 0.976156227 | AJ92: 58.9 | AK92: 29.88192231 | AL92: 900 | AM92: 900 | AN92: 173 | AO92: 34.2930007 | AP92: 1 | AQ92: 692 | AR92: 137.1720028 | AS92: 9000 | AT92: 9000 | AU92: 9000 | AV92: 0.219317 | AW92: -14.7882 | AX92: 0.00120688 | AY92: 82.2488 | AZ92: 80.2874 | BA92: 77.398 | BB92: 14.65152264 | BC92: 11.19739599 | BD92: 8.248401235 | BE92: 12.2061 | BF92: 9.391945 | BG92: 6.961355 | BH92: 11.52245402 | BI92: 11.93961336 | BJ92: 7.86749766 | BK92: 3.323425 | BL92: -0.610891 | BM92: 0.466423 | BN92: 4.74248 | BO92: 0.9745205 | BP92: 0.980735 | BQ92: 23.3928 | BR92: 19.9384 | BS92: 15.8167 | BT92: 33.78575 | BU92: 30.9288 | BV92: 18.3488 | BW92: 51 | BX92: 8067 | BY92: 733 | BZ92: 149 | CA92: 9000 | CB92: 0.566666667 | CC92: 89.63333333 | CD92: 8.144444444 | CE92: 1.655555556 | CF92: 2020-03-04 | CG92: UW | CH92: 173 | CI92: 10.8 | CJ92: 15 | CK92: -4.2 | CL92: 0.33 | CM92: 0.7 | CN92: 0.4 | CO92: Slower | CP92: Slower | CS92: No | CT92: SB | CU92: 8.648825591 | CV92: 2 | CW92: 1 | CX92: 2 | CY92: 2 | CZ92: 1 | DA92: 4 | DB92: 1 | DC92: 1 | DD92: 9 | DE92: 3 | DF92: 1055.270294 | DG92: 251.4143185 | DH92: 27744.72971 | DI92: 0.009061696 | EM92: 1
A93: Vacuuming | B93: Walk-off mats | C93: Backpack vacuum (walk-off mats) | D93: Uses conventional vacuum attachment | G93: VacuumingWalk-off matsBackpack vacuum (walk-off mats)Uses conventional vacuum attachment | I93: Mats placed over flooring to reduce dirt and protect the flooring | J93: Backpack vacuum, rechargeable or electrical | K93: Universal vacuum head | L93: Sq. ft. of area | M93: 2277.272727 | N93: 3578.571429 | P93: P002 | Q93: Vacuuming | R93: Walk-off mat | S93: Back-pack vacuum with 14" orifice | T93: Vacuuming | U93: Walk-off mat | V93: Back-pack vacuum & 14" orifice | W93: Vacuuming | X93: Walk-off mat | Y93: Backpack vacuum machine with 14” orifice | Z93: 54 | AA93: 91 | AB93: 82 | AC93: 1 | AD93: 102 | AE93: 4.8 | AF93: 95.84972678 | AG93: 3.361748634 | AH93: 3.313209334 | AI93: 1.190676659 | AJ93: 64.5 | AK93: 30.88643033 | AL93: 366 | AM93: 366 | AN93: 214 | AO93: 23.3871007 | AP93: 1 | AQ93: 2104.918033 | AR93: 230.0370561 | AS93: 3660 | AT93: 3660 | AU93: 3660 | AV93: 3.81889 | AW93: 2.6477 | AX93: 0.000143869 | AY93: 85.4445 | AZ93: 85.4153 | BA93: 63.8738 | BB93: 21.6731981 | BC93: 18.91789577 | BD93: 10.34706174 | BE93: 18.152 | BF93: 15.8423 | BG93: 7.42101 | BH93: 12.37219472 | BI93: 11.60409205 | BJ93: 9.424382301 | BK93: 9.965995 | BL93: 8.94721 | BM93: 0.5566115 | BN93: 11.5059 | BO93: 10.18 | BP93: 1.03778 | BQ93: 35.31865 | BR93: 29.339 | BS93: 23.77345 | BT93: 42.33325 | BU93: 36.25395 | BV93: 27.90715 | BW93: 0 | BX93: 2522 | BY93: 1058 | BZ93: 80 | CA93: 3660 | CB93: 0 | CC93: 68.90710383 | CD93: 28.90710383 | CE93: 2.18579235 | CF93: 2019-09-30 | CG93: ABM | CH93: 214 | CI93: 4.4 | CJ93: 2.8 | CK93: 1.6 | CL93: 0.44 | CM93: 1.6 | CN93: -0.37 | CO93: Faster | CP93: Faster | CS93: No | CT93: JL | CU93: 10.61416043 | CV93: 3 | CW93: 1 | CX93: 2 | CY93: 2 | CZ93: 1 | DA93: 4 | DB93: 2 | DC93: 1 | DD93: 10 | DE93: 3 | DF93: 23182.0354 | DG93: 35361.24147 | DH93: 5617.964602 | DI93: 6.294315464 | DJ93: 1436.165558 | DK93: 438.558358 | DL93: 27363.83444 | DM93: 0.016026934 | EM93: 1
A94: Vacuuming | B94: Walk-off mats | C94: Backpack vacuum (walk-off mats) | D94: Uses power vacuum attachment | G94: VacuumingWalk-off matsBackpack vacuum (walk-off mats)Uses power vacuum attachment | H94: Vacuuming | I94: Mats placed over flooring to reduce dirt and protect the flooring | J94: Backpack vacuum, rechargeable or electrical | K94: Vacuum power head | L94: Sq. ft. of area | M94: 2262.857143 | N94: 2511.219512 | P94: P004_2 | Q94: Vacuuming | R94: Walk-off mat | S94: Back-pack vacuum | T94: Vacuuming | U94: Walk-off mat | V94: Back-pack vacuum | W94: Vacuuming | X94: Mats/Walk-off | Y94: Back-pack vacuum (12" tool) | Z94: 41 | AA94: 85 | AB94: 121 | AC94: 1 | AD94: 136 | AE94: 4.2 | AF94: 129.7464213 | AG94: 2.839263804 | AH94: 2.559359326 | AI94: 1.188233065 | AJ94: 71.3 | AK94: 54.26780065 | AL94: 489 | AM94: 489 | AN94: 253 | AO94: 30.52299953 | AP94: 1 | AQ94: 1862.576687 | AR94: 224.709199 | AS94: 4890 | AT94: 4890 | AU94: 4890 | AV94: 0.45546 | AW94: -4.66713 | AX94: 0.000689385 | AY94: 58.1364 | AZ94: 41.6347 | BA94: 55.5806 | BB94: 11.23969154 | BC94: 8.84862153 | BD94: 6.014190268 | BE94: 10.2466 | BF94: 8.838785 | BG94: 4.673925 | BH94: 6.402012072 | BI94: 4.982951514 | BJ94: 6.182528198 | BK94: 3.92545 | BL94: 1.26818 | BM94: 0.466252 | BN94: 5.20142 | BO94: 3.09456 | BP94: 0.8953135 | BQ94: 17.5367 | BR94: 13.89735 | BS94: 12.1302 | BT94: 20.3419 | BU94: 16.2368 | BV94: 15.4044 | BW94: 0 | BX94: 4797 | BY94: 93 | BZ94: 0 | CA94: 4890 | CB94: 0 | CC94: 98.09815951 | CD94: 1.901840491 | CE94: 0 | CF94: 2020-02-13 | CG94: L&I | CH94: 253 | CI94: 9.1 | CJ94: 8.2 | CK94: 0.9 | CL94: 0.1 | CM94: 1.1 | CN94: -0.1 | CO94: Faster | CP94: Faster | CS94: No | CT94: SB | CU94: 29.13309025 | CV94: 4 | CW94: 2 | CX94: 4 | CY94: 1 | CZ94: 1 | DA94: 4 | DB94: 2 | DC94: 3 | DD94: 11 | DE94: 4 | DF94: 27628.78874 | DG94: 86902.93977 | DH94: 1171.21126 | DI94: 74.19920104 | EM94: 1

Sheet page3a (hidden)
A1: Work pace, steps, METs and Calories (Observed, Standard and Planned) | L1: per hour | W1: For the task
A2: Task | B2: Location | C2: Tool | D2: Variation | E2: Hour | F2: Productivity | G2: Standard work pace | H2: Observed work pace | I2: Planned work pace | J2: Hour_std | K2: Hour_obs | L2: Steps/hr (observed) | M2: METs (observed) | N2: calories/hr (observed) | O2: steps/hr (standard) | P2: steps/hr (planned) | Q2: b (METs) | R2: METs (standard) | S2: METs (planned) | T2: b (calories) | U2: calories/hr (standard) | V2: calories/hr (planned) | W2: total steps (observed) | X2: total steps (standard) | Y2: total steps (planned) | Z2: Total METs (observed METs-hr) | AA2: Total METs (standard, METs-hr) | AB2: Total METs (planned, METs-hr) | AC2: total calories (observed) | AD2: total calories (standard) | AE2: total calories (planned)
A3: =IF(page3!A2="","",page3!A2) -> Glass Door Cleaning | B3: =IF(page3!B2="","",page3!B2) -> Glass Doors | C3: =IF(page3!C2="","",page3!C2) -> Cleaning cloth, long handled wiping tool | D3: =IF(page3!D2="","",page3!D2) -> High level cleaning | E3: =IF(page3!E2="","",page3!E2) -> 4 | F3: =IF(page3!F2="","",page3!F2) -> 20 | G3: =IF(page3!M2="", "", page3!M2) -> 19.99170124 | H3: =IF(page3!N2="", "", page3!N2) -> 19.11904762 | I3: =IF(E3="", "", IF(E3=0, "", F3/E3)) -> 5 | J3: =IF(A3="", "", F3/G3) -> 1.00041511 | K3: =IF(A3="","", F3/H3) -> 1.04607721 | L3: =IF(page3!AQ2="", "", IF(page3!AQ2=0, "", page3!AQ2)) -> 456.8407138 | M3: =IF(page3!AG2="", "", IF(page3!AG2=0, "", page3!AG2)) -> 2.063053536 | N3: =IF(page3!AR2="", "", IF(page3!AR2=0, "", page3!AR2)) -> 92.28943801 | O3: =IF(A3="","", L3/H3*G3) -> 477.6923646 | P3: =IF(A3="","", L3/H3*I3) -> 119.4726649 | Q3: =IF(M3="","",M3-0.0256*H3/G3) -> 2.038570996 | R3: =IF(A3="", "", Q3+0.0256*1) -> 2.064170996 | S3: =IF(A3="", "", Q3+0.0256*I3/G3) -> 2.044973653 | T3: =IF(N3="","",N3-4.7896*H3/G3) -> 87.70890785 | U3: =IF(A3="", "", T3+4.7896*1) -> 92.49850785 | V3: =IF(A3="", "", T3+4.7896*I3/G3) -> 88.9068049 | W3: =IF(A3="","", L3*E3) -> 1827.362855 | X3: =IF(A3="","", O3*E3) -> 1910.769459 | Y3: =IF(A3="","", P3*E3) -> 477.8906595 | Z3: =IF(A3="","", M3*E3) -> 8.252214144 | AA3: =IF(A3="","", R3*E3) -> 8.256683985 | AB3: =IF(A3="","", S3*E3) -> 8.179894612 | AC3: =IF(A3="","", N3*E3) -> 369.157752 | AD3: =IF(A3="","", U3*E3) -> 369.9940314 | AE3: =IF(A3="","", V3*E3) -> 355.6272196
A4: =IF(page3!A3="","",page3!A3) ->  | B4: =IF(page3!B3="","",page3!B3) ->  | C4: =IF(page3!C3="","",page3!C3) ->  | D4: =IF(page3!D3="","",page3!D3) ->  | E4: =IF(page3!E3="","",page3!E3) ->  | F4: =IF(page3!F3="","",page3!F3) ->  | G4: =IF(page3!M3="", "", page3!M3) ->  | H4: =IF(page3!N3="", "", page3!N3) ->  | I4: =IF(E4="", "", IF(E4=0, "", F4/E4)) ->  | J4: =IF(A4="", "", F4/G4) ->  | K4: =IF(A4="","", F4/H4) ->  | L4: =IF(page3!AQ3="", "", IF(page3!AQ3=0, "", page3!AQ3)) ->  | M4: =IF(page3!AG3="", "", IF(page3!AG3=0, "", page3!AG3)) ->  | N4: =IF(page3!AR3="", "", IF(page3!AR3=0, "", page3!AR3)) ->  | O4: =IF(A4="","", L4/H4*G4) ->  | P4: =IF(A4="","", L4/H4*I4) ->  | Q4: =IF(M4="","",M4-0.0256*H4/G4) ->  | R4: =IF(A4="", "", Q4+0.0256*1) ->  | S4: =IF(A4="", "", Q4+0.0256*I4/G4) ->  | T4: =IF(N4="","",N4-4.7896*H4/G4) ->  | U4: =IF(A4="", "", T4+4.7896*1) ->  | V4: =IF(A4="", "", T4+4.7896*I4/G4) ->  | W4: =IF(A4="","", L4*E4) ->  | X4: =IF(A4="","", O4*E4) ->  | Y4: =IF(A4="","", P4*E4) ->  | Z4: =IF(A4="","", M4*E4) ->  | AA4: =IF(A4="","", R4*E4) ->  | AB4: =IF(A4="","", S4*E4) ->  | AC4: =IF(A4="","", N4*E4) ->  | AD4: =IF(A4="","", U4*E4) ->  | AE4: =IF(A4="","", V4*E4) -> 
A5: =IF(page3!A4="","",page3!A4) ->  | B5: =IF(page3!B4="","",page3!B4) ->  | C5: =IF(page3!C4="","",page3!C4) ->  | D5: =IF(page3!D4="","",page3!D4) ->  | E5: =IF(page3!E4="","",page3!E4) ->  | F5: =IF(page3!F4="","",page3!F4) ->  | G5: =IF(page3!M4="", "", page3!M4) ->  | H5: =IF(page3!N4="", "", page3!N4) ->  | I5: =IF(E5="", "", IF(E5=0, "", F5/E5)) ->  | L5: =IF(page3!AQ4="", "", IF(page3!AQ4=0, "", page3!AQ4)) ->  | M5: =IF(page3!AG4="", "", IF(page3!AG4=0, "", page3!AG4)) ->  | N5: =IF(page3!AR4="", "", IF(page3!AR4=0, "", page3!AR4)) -> 
A6: =IF(page3!A5="","",page3!A5) ->  | B6: =IF(page3!B5="","",page3!B5) ->  | C6: =IF(page3!C5="","",page3!C5) ->  | D6: =IF(page3!D5="","",page3!D5) ->  | E6: =IF(page3!E5="","",page3!E5) ->  | F6: =IF(page3!F5="","",page3!F5) ->  | G6: =IF(page3!M5="", "", page3!M5) ->  | H6: =IF(page3!N5="", "", page3!N5) ->  | L6: =IF(page3!AQ5="", "", IF(page3!AQ5=0, "", page3!AQ5)) ->  | M6: =IF(page3!AG5="", "", IF(page3!AG5=0, "", page3!AG5)) ->  | N6: =IF(page3!AR5="", "", IF(page3!AR5=0, "", page3!AR5)) -> 
A7: =IF(page3!A6="","",page3!A6) ->  | B7: =IF(page3!B6="","",page3!B6) ->  | C7: =IF(page3!C6="","",page3!C6) ->  | D7: =IF(page3!D6="","",page3!D6) ->  | E7: =IF(page3!E6="","",page3!E6) ->  | F7: =IF(page3!F6="","",page3!F6) ->  | G7: =IF(page3!M6="", "", page3!M6) ->  | H7: =IF(page3!N6="", "", page3!N6) ->  | L7: =IF(page3!AQ6="", "", IF(page3!AQ6=0, "", page3!AQ6)) ->  | M7: =IF(page3!AG6="", "", IF(page3!AG6=0, "", page3!AG6)) ->  | N7: =IF(page3!AR6="", "", IF(page3!AR6=0, "", page3!AR6)) -> 
A8: =IF(page3!A7="","",page3!A7) ->  | B8: =IF(page3!B7="","",page3!B7) ->  | C8: =IF(page3!C7="","",page3!C7) ->  | D8: =IF(page3!D7="","",page3!D7) ->  | E8: =IF(page3!E7="","",page3!E7) ->  | F8: =IF(page3!F7="","",page3!F7) ->  | G8: =IF(page3!M7="", "", page3!M7) ->  | H8: =IF(page3!N7="", "", page3!N7) ->  | L8: =IF(page3!AQ7="", "", IF(page3!AQ7=0, "", page3!AQ7)) ->  | M8: =IF(page3!AG7="", "", IF(page3!AG7=0, "", page3!AG7)) ->  | N8: =IF(page3!AR7="", "", IF(page3!AR7=0, "", page3!AR7)) -> 
A9: =IF(page3!A8="","",page3!A8) ->  | B9: =IF(page3!B8="","",page3!B8) ->  | C9: =IF(page3!C8="","",page3!C8) ->  | D9: =IF(page3!D8="","",page3!D8) ->  | E9: =IF(page3!E8="","",page3!E8) ->  | F9: =IF(page3!F8="","",page3!F8) ->  | G9: =IF(page3!M8="", "", page3!M8) ->  | H9: =IF(page3!N8="", "", page3!N8) ->  | L9: =IF(page3!AQ8="", "", IF(page3!AQ8=0, "", page3!AQ8)) ->  | M9: =IF(page3!AG8="", "", IF(page3!AG8=0, "", page3!AG8)) ->  | N9: =IF(page3!AR8="", "", IF(page3!AR8=0, "", page3!AR8)) -> 
A10: =IF(page3!A9="","",page3!A9) ->  | B10: =IF(page3!B9="","",page3!B9) ->  | C10: =IF(page3!C9="","",page3!C9) ->  | D10: =IF(page3!D9="","",page3!D9) ->  | E10: =IF(page3!E9="","",page3!E9) ->  | F10: =IF(page3!F9="","",page3!F9) ->  | G10: =IF(page3!M9="", "", page3!M9) ->  | H10: =IF(page3!N9="", "", page3!N9) ->  | L10: =IF(page3!AQ9="", "", IF(page3!AQ9=0, "", page3!AQ9)) ->  | M10: =IF(page3!AG9="", "", IF(page3!AG9=0, "", page3!AG9)) ->  | N10: =IF(page3!AR9="", "", IF(page3!AR9=0, "", page3!AR9)) -> 
A11: =IF(page3!A10="","",page3!A10) ->  | B11: =IF(page3!B10="","",page3!B10) ->  | C11: =IF(page3!C10="","",page3!C10) ->  | D11: =IF(page3!D10="","",page3!D10) ->  | E11: =IF(page3!E10="","",page3!E10) ->  | F11: =IF(page3!F10="","",page3!F10) ->  | G11: =IF(page3!M10="", "", page3!M10) ->  | H11: =IF(page3!N10="", "", page3!N10) ->  | L11: =IF(page3!AQ10="", "", IF(page3!AQ10=0, "", page3!AQ10)) ->  | M11: =IF(page3!AG10="", "", IF(page3!AG10=0, "", page3!AG10)) ->  | N11: =IF(page3!AR10="", "", IF(page3!AR10=0, "", page3!AR10)) -> 
A12: =IF(page3!A11="","",page3!A11) ->  | B12: =IF(page3!B11="","",page3!B11) ->  | C12: =IF(page3!C11="","",page3!C11) ->  | D12: =IF(page3!D11="","",page3!D11) ->  | E12: =IF(page3!E11="","",page3!E11) ->  | F12: =IF(page3!F11="","",page3!F11) ->  | G12: =IF(page3!M11="", "", page3!M11) ->  | H12: =IF(page3!N11="", "", page3!N11) ->  | L12: =IF(page3!AQ11="", "", IF(page3!AQ11=0, "", page3!AQ11)) ->  | M12: =IF(page3!AG11="", "", IF(page3!AG11=0, "", page3!AG11)) ->  | N12: =IF(page3!AR11="", "", IF(page3!AR11=0, "", page3!AR11)) -> 
A13: Sum | E13: =SUM(E3:E12) -> 4 | J13: =SUM(J3:J12) -> 1.00041511 | K13: =SUM(K3:K12) -> 1.04607721 | W13: =SUM(W3:W12) -> 1827.362855 | X13: =SUM(X3:X12) -> 1910.769459 | Y13: 477.8906595 | Z13: 8.252214144 | AA13: =SUM(AA3:AA12) -> 8.256683985 | AB13: 8.179894612 | AC13: 369.157752 | AD13: 369.9940314 | AE13: 355.6272196
A14: Mean
A15: TWA | M15: =Z13/E13 -> 2.063053536 | R15: =AA13/E13 -> 2.064170996 | S15: =AB13/E13 -> 2.044973653
A16: N
A17: Ratio | E17: =IF(J13="", "", IF(J13=0, "", E13/J13)) -> 3.998340249 | K17: =IF(J13="", "", IF(J13=0, "", K13/J13)) -> 1.045643154
A18: Text | E18: =IF(E17<1, "No", "Yes") -> Yes | K18: =IF(K17<1, "No", "Yes") -> Yes | M18: =IF(M15<=1.5, "Sedentary", IF(AND(M15>1.5, M15<=3), "Light intensity", IF(AND(M15>3, M15<=6), "Moderate intensity", "Vigorous intensity"))) -> Light intensity | R18: =IF(R15<=1.5, "Sedentary", IF(AND(R15>1.5, R15<=3), "Light intensity", IF(AND(R15>3, R15<=6), "Moderate intensity", "Vigorous intensity"))) -> Light intensity | S18: =IF(S15<=1.5, "Sedentary", IF(AND(S15>1.5, S15<=3), "Light intensity", IF(AND(S15>3, S15<=6), "Moderate intensity", "Vigorous intensity"))) -> Light intensity

Sheet page3b (hidden)
A1: Heart Rate (standard, observed and planned)
A2: Task | B2: Location | C2: Tool | D2: Variation | E2: Hour | F2: Productivity | G2: HR_MAX | H2: HR_MEAN | I2: HR_rest | J2: WP ratio (observed) | K2: WP ratio (planned) | L2: HRR (observed) | M2: MAWT (observed) | N2: b | O2: HRR (standard) | P2: HRR (planned) | Q2: HRR(standard)*Hr | R2: HRR(planned)*Hr | S2: MAWT (standard) | T2: MAWT (planned) | U2: hours used for MAWT | V2: HRR(observed)*Hr
A3: =IF(page3!A2="","",page3!A2) -> Glass Door Cleaning | B3: =IF(page3!B2="","",page3!B2) -> Glass Doors | C3: =IF(page3!C2="","",page3!C2) -> Cleaning cloth, long handled wiping tool | D3: =IF(page3!D2="","",page3!D2) -> High level cleaning | E3: =IF(page3!E2="","",page3!E2) -> 4 | F3: =IF(page3!F2="","",page3!F2) -> 20 | G3: =IF(page3!AD2="","",page3!AD2) -> 97 | H3: =IF(page3!AF2="","",page3!AF2) -> 85.2504957 | I3: =IF(page3!AJ2="","",page3!AJ2) -> 59.5 | J3: =IF(page3!H2="","", page3!N2/page3!M2) -> 0.9563492063 | K3: =IF(page3!M2="","", (F3/E3)/page3!M2) -> 0.2501037775 | L3: =IF(page3!AK2="","",page3!AK2) -> 26.96386984 | M3: =IF(L3="","", 26.12*EXP(-4.81*L3/100)) -> 7.140188417 | N3: =IF(L3="", "", L3-0.0107*J3) -> 26.95363691 | O3: =IF(L3="","", N3+0.0107*1) -> 26.96433691 | P3: =IF(L3="","", N3+0.0107*K3) -> 26.95631302 | Q3: =IF(O3 = "","", O3*E3) -> 107.8573476 | R3: =IF(P3="","", P3*E3) -> 107.8252521 | S3: =IF(L3="","", 26.12*EXP(-4.81*O3/100)) -> 7.140028009 | T3: =IF(L3="","", 26.12*EXP(-4.81*P3/100)) -> 7.142784228 | U3: =IF(T3="","", E3) -> 4 | V3: =IF(L3="","", L3*E3) -> 107.8554794
A4: =IF(page3!A3="","",page3!A3) ->  | B4: =IF(page3!B3="","",page3!B3) ->  | C4: =IF(page3!C3="","",page3!C3) ->  | D4: =IF(page3!D3="","",page3!D3) ->  | E4: =IF(page3!E3="","",page3!E3) ->  | F4: =IF(page3!F3="","",page3!F3) ->  | G4: =IF(page3!AD3="","",page3!AD3) ->  | H4: =IF(page3!AF3="","",page3!AF3) ->  | I4: =IF(page3!AJ3="","",page3!AJ3) ->  | J4: =IF(page3!H3="","", page3!N3/page3!M3) ->  | K4: =IF(page3!M3="","", (F4/E4)/page3!M3) ->  | L4: =IF(page3!AK3="","",page3!AK3) ->  | M4: =IF(L4="","", 26.12*EXP(-4.81*L4/100)) ->  | N4: =IF(L4="", "", L4-0.0107*J4) ->  | O4: =IF(L4="","", N4+0.0107*1) ->  | P4: =IF(L4="","", N4+0.0107*K4) ->  | R4: =IF(P4="","", P4*E4) ->  | S4: =IF(L4="","", 26.12*EXP(-4.81*O4/100)) ->  | T4: =IF(L4="","", 26.12*EXP(-4.81*P4/100)) ->  | U4: =IF(T4="","", E4) ->  | V4: =IF(L4="","", L4*E4) -> 
A5: =IF(page3!A4="","",page3!A4) ->  | B5: =IF(page3!B4="","",page3!B4) ->  | C5: =IF(page3!C4="","",page3!C4) ->  | D5: =IF(page3!D4="","",page3!D4) ->  | E5: =IF(page3!E4="","",page3!E4) ->  | F5: =IF(page3!F4="","",page3!F4) ->  | G5: =IF(page3!AD4="","",page3!AD4) ->  | H5: =IF(page3!AF4="","",page3!AF4) ->  | I5: =IF(page3!AJ4="","",page3!AJ4) ->  | J5: =IF(page3!H4="","", page3!N4/page3!M4) ->  | K5: =IF(page3!M4="","", (F5/E5)/page3!M4) ->  | L5: =IF(page3!AK4="","",page3!AK4) -> 
A6: =IF(page3!A5="","",page3!A5) ->  | B6: =IF(page3!B5="","",page3!B5) ->  | C6: =IF(page3!C5="","",page3!C5) ->  | D6: =IF(page3!D5="","",page3!D5) ->  | E6: =IF(page3!E5="","",page3!E5) ->  | F6: =IF(page3!F5="","",page3!F5) ->  | G6: =IF(page3!AD5="","",page3!AD5) ->  | H6: =IF(page3!AF5="","",page3!AF5) ->  | I6: =IF(page3!AJ5="","",page3!AJ5) ->  | J6: =IF(page3!H5="","", page3!N5/page3!M5) ->  | K6: =IF(page3!M5="","", (F6/E6)/page3!M5) ->  | L6: =IF(page3!AK5="","",page3!AK5) -> 
A7: =IF(page3!A6="","",page3!A6) ->  | B7: =IF(page3!B6="","",page3!B6) ->  | C7: =IF(page3!C6="","",page3!C6) ->  | D7: =IF(page3!D6="","",page3!D6) ->  | E7: =IF(page3!E6="","",page3!E6) ->  | F7: =IF(page3!F6="","",page3!F6) ->  | G7: =IF(page3!AD6="","",page3!AD6) ->  | H7: =IF(page3!AF6="","",page3!AF6) ->  | I7: =IF(page3!AJ6="","",page3!AJ6) ->  | J7: =IF(page3!H6="","", page3!N6/page3!M6) ->  | K7: =IF(page3!M6="","", (F7/E7)/page3!M6) ->  | L7: =IF(page3!AK6="","",page3!AK6) -> 
A8: =IF(page3!A7="","",page3!A7) ->  | B8: =IF(page3!B7="","",page3!B7) ->  | C8: =IF(page3!C7="","",page3!C7) ->  | D8: =IF(page3!D7="","",page3!D7) ->  | E8: =IF(page3!E7="","",page3!E7) ->  | F8: =IF(page3!F7="","",page3!F7) ->  | G8: =IF(page3!AD7="","",page3!AD7) ->  | H8: =IF(page3!AF7="","",page3!AF7) ->  | I8: =IF(page3!AJ7="","",page3!AJ7) ->  | J8: =IF(page3!H7="","", page3!N7/page3!M7) ->  | K8: =IF(page3!M7="","", (F8/E8)/page3!M7) ->  | L8: =IF(page3!AK7="","",page3!AK7) -> 
A9: =IF(page3!A8="","",page3!A8) ->  | B9: =IF(page3!B8="","",page3!B8) ->  | C9: =IF(page3!C8="","",page3!C8) ->  | D9: =IF(page3!D8="","",page3!D8) ->  | E9: =IF(page3!E8="","",page3!E8) ->  | F9: =IF(page3!F8="","",page3!F8) ->  | G9: =IF(page3!AD8="","",page3!AD8) ->  | H9: =IF(page3!AF8="","",page3!AF8) ->  | I9: =IF(page3!AJ8="","",page3!AJ8) ->  | J9: =IF(page3!H8="","", page3!N8/page3!M8) ->  | K9: =IF(page3!M8="","", (F9/E9)/page3!M8) ->  | L9: =IF(page3!AK8="","",page3!AK8) -> 
A10: =IF(page3!A9="","",page3!A9) ->  | B10: =IF(page3!B9="","",page3!B9) ->  | C10: =IF(page3!C9="","",page3!C9) ->  | D10: =IF(page3!D9="","",page3!D9) ->  | E10: =IF(page3!E9="","",page3!E9) ->  | F10: =IF(page3!F9="","",page3!F9) ->  | G10: =IF(page3!AD9="","",page3!AD9) ->  | H10: =IF(page3!AF9="","",page3!AF9) ->  | I10: =IF(page3!AJ9="","",page3!AJ9) ->  | J10: =IF(page3!H9="","", page3!N9/page3!M9) ->  | K10: =IF(page3!M9="","", (F10/E10)/page3!M9) ->  | L10: =IF(page3!AK9="","",page3!AK9) -> 
A11: =IF(page3!A10="","",page3!A10) ->  | B11: =IF(page3!B10="","",page3!B10) ->  | C11: =IF(page3!C10="","",page3!C10) ->  | D11: =IF(page3!D10="","",page3!D10) ->  | E11: =IF(page3!E10="","",page3!E10) ->  | F11: =IF(page3!F10="","",page3!F10) ->  | G11: =IF(page3!AD10="","",page3!AD10) ->  | H11: =IF(page3!AF10="","",page3!AF10) ->  | I11: =IF(page3!AJ10="","",page3!AJ10) ->  | J11: =IF(page3!H10="","", page3!N10/page3!M10) ->  | K11: =IF(page3!M10="","", (F11/E11)/page3!M10) ->  | L11: =IF(page3!AK10="","",page3!AK10) -> 
A12: =IF(page3!A11="","",page3!A11) ->  | B12: =IF(page3!B11="","",page3!B11) ->  | C12: =IF(page3!C11="","",page3!C11) ->  | D12: =IF(page3!D11="","",page3!D11) ->  | E12: =IF(page3!E11="","",page3!E11) ->  | F12: =IF(page3!F11="","",page3!F11) ->  | G12: =IF(page3!AD11="","",page3!AD11) ->  | H12: =IF(page3!AF11="","",page3!AF11) ->  | I12: =IF(page3!AJ11="","",page3!AJ11) ->  | J12: =IF(page3!H11="","", page3!N11/page3!M11) ->  | K12: =IF(page3!M11="","", (F12/E12)/page3!M11) ->  | L12: =IF(page3!AK11="","",page3!AK11) -> 
A13: Sum | E13: =SUM(E3:E12) -> 4 | Q13: =SUM(Q3:Q12) -> 107.8573476 | R13: 107.8252521 | S13: 7.140028009 | T13: 7.142784228 | U13: 4 | V13: 107.8554794
A14: Mean | H14: =AVERAGE(H3:H12) -> 85.2504957
A15: TWA | L15: =V13/U13 -> 26.96386984 | M15: =26.12*EXP(-4.81*L15/100) -> 7.140188417 | O15: =Q13/U13 -> 26.96433691 | P15: =R13/U13 -> 26.95631302 | S15: =26.12*EXP(-4.81*O15/100) -> 7.140028009 | T15: =26.12*EXP(-4.81*P15/100) -> 7.142784228
A16: N
A17: Ratio
A18: Text | M18: =IF(U13<=M15, "Acceptable", "Not acceptable") -> Acceptable | S18: =IF(U13<=S15, "Acceptable", "Not acceptable") -> Acceptable | T18: =IF(U13<=T15, "Acceptable", "Not acceptable") -> Acceptable

Sheet page3c (hidden)
A1: ManTRA Calculations (standard, observed and planned)
A2: Task | B2: Location | C2: Tool | D2: Variation | E2: Hour | F2: Productivity | G2: Standard work pace | H2: Observed work pace | I2: Planned work pace | J2: ManTRA Total Time | K2: Duration | L2: Cycle_time (observed) | M2: Cycle time (s) | N2: Cycle time (standard) | O2: Cycle time (planned) | P2: Force | Q2: Speed | R2: Awkwardness | S2: Vibration | T2: Repetition risk (observed) | U2: Repetition risk (standard) | V2: Repetition risk (planned) | W2: Exertion risk | X2: Risk score (observed) | Y2: Risk score (standard) | Z2: Risk score (planned) | AA2: Exertion_awkwardness | AB2: Risk level (observed) | AC2: Risk level (standard) | AD2: Risk level (planned)
A3: =IF(page3!A2="","",page3!A2) -> Glass Door Cleaning | B3: =IF(page3!B2="","",page3!B2) -> Glass Doors | C3: =IF(page3!C2="","",page3!C2) -> Cleaning cloth, long handled wiping tool | D3: =IF(page3!D2="","",page3!D2) -> High level cleaning | E3: =IF(page3!E2="","",page3!E2) -> 4 | F3: =IF(page3!F2="","",page3!F2) -> 20 | G3: =IF(page3!M2="", "", page3!M2) -> 19.99170124 | H3: =IF(page3!N2="", "", page3!N2) -> 19.11904762 | I3: =IF(E3="", "", IF(E3=0, "", F3/E3)) -> 5 | J3: =IF(A3="","", IF(E3>8, 5, IF(AND(E3>6, E3<=8), 4, IF(AND(E3>4, E3<=6), 3, IF(AND(E3>2, E3<=4), 2, IF(AND(E3>0, E3<=2), 1, "")))))) -> 2 | K3: =IF(page3!EM2="", "", page3!EM2) -> 1 | L3: =IF(page3!CV2="", "", page3!CV2) -> 4 | M3: =IF(L3=1,10*60,IF(L3=2,2.5*60,IF(L3=3,45,IF(L3=4,20,IF(L3=5,10,""))))) -> 20 | N3: =IF(L3="", "", IF(M3*H3/G3>300, 1, IF(AND(M3*H3/G3<=300, M3*H3/G3>60), 2, IF(AND(M3*H3/G3<=60, M3*H3/G3>30), 3, IF(AND(M3*H3/G3<=30, M3*H3/G3>10), 4, IF(M3*H3/G3<=10, 5, "")))))) -> 4 | O3: =IF(L3="", "", IF(M3*H3/I3>300, 1, IF(AND(M3*H3/I3<=300, M3*H3/I3>60), 2, IF(AND(M3*H3/I3<=60, M3*H3/I3>30), 3, IF(AND(M3*H3/I3<=30, M3*H3/I3>10), 4, IF(M3*H3/I3<=10, 5, "")))))) -> 2 | P3: =IF(page3!CW2="", "", page3!CW2) -> 2 | Q3: =IF(page3!CX2="", "", page3!CX2) -> 2 | R3: =IF(page3!CY2="", "", page3!CY2) -> 3 | S3: =IF(page3!CZ2="", "", page3!CZ2) -> 1 | T3: =IF(AND(K3=1, L3<=2), 1, IF(AND(K3=1, L3<=4), 2, IF(AND(K3=1, L3=5), 3, IF(AND(K3=2, L3=1), 1, IF(AND(K3=2, L3=2), 2, IF(AND(K3=2, L3<=4), 3, IF(AND(K3=2, L3=5), 4, IF(AND(K3=3, L3=1), 2, IF(AND(K3=3, L3=2), 3, IF(AND(K3=3, L3<=4), 4, IF(AND(K3=3, L3=5), 5, IF(AND(K3=4, L3=1), 3, IF(AND(K3=4, L3<=3), 4, IF(AND(K3=4, L3<=5), 5, IF(AND(K3=5, L3<=2), 4, IF(AND(K3=5, L3<=5), 5,"")))))))))))))))) -> 2 | U3: =IF(AND(K3=1, N3<=2), 1, IF(AND(K3=1, N3<=4), 2, IF(AND(K3=1, N3=5), 3, IF(AND(K3=2, N3=1), 1, IF(AND(K3=2, N3=2), 2, IF(AND(K3=2, N3<=4), 3, IF(AND(K3=2, N3=5), 4, IF(AND(K3=3, N3=1), 2, IF(AND(K3=3, N3=2), 3, IF(AND(K3=3, N3<=4), 4, IF(AND(K3=3, N3=5), 5, IF(AND(K3=4, N3=1), 3, IF(AND(K3=4, N3<=3), 4, IF(AND(K3=4, N3<=5), 5, IF(AND(K3=5, N3<=2), 4, IF(AND(K3=5, N3<=5), 5,"")))))))))))))))) -> 2 | V3: =IF(AND(K3=1, O3<=2), 1, IF(AND(K3=1, O3<=4), 2, IF(AND(K3=1, O3=5), 3, IF(AND(K3=2, O3=1), 1, IF(AND(K3=2, O3=2), 2, IF(AND(K3=2, O3<=4), 3, IF(AND(K3=2, O3=5), 4, IF(AND(K3=3, O3=1), 2, IF(AND(K3=3, O3=2), 3, IF(AND(K3=3, O3<=4), 4, IF(AND(K3=3, O3=5), 5, IF(AND(K3=4, O3=1), 3, IF(AND(K3=4, O3<=3), 4, IF(AND(K3=4, O3<=5), 5, IF(AND(K3=5, O3<=2), 4, IF(AND(K3=5, O3<=5), 5,"")))))))))))))))) -> 1 | W3: =IF(page3!DC2="", "", page3!DC2) -> 2 | X3: =IF(A3="","", J3+T3+W3+R3+S3) -> 10 | Y3: =IF(A3="","", J3+U3+W3+R3+S3) -> 10 | Z3: =IF(A3="","", J3+V3+W3+R3+S3) -> 9 | AA3: =IF(A3="", "", W3+R3) -> 5 | AB3: =IF(A3="","", IF(OR(W3=5, AA3>=8, X3>=15), "High", "Low")) -> Low | AC3: =IF(A3="","", IF(OR(W3=5, AA3>=8, Y3>=15), "High", "Low")) -> Low | AD3: =IF(A3="","", IF(OR(W3=5, AA3>=8, Z3>=15), "High", "Low")) -> Low
A4: =IF(page3!A3="","",page3!A3) ->  | B4: =IF(page3!B3="","",page3!B3) ->  | C4: =IF(page3!C3="","",page3!C3) ->  | D4: =IF(page3!D3="","",page3!D3) ->  | E4: =IF(page3!E3="","",page3!E3) ->  | F4: =IF(page3!F3="","",page3!F3) ->  | G4: =IF(page3!M3="", "", page3!M3) ->  | H4: =IF(page3!N3="", "", page3!N3) ->  | I4: =IF(E4="", "", IF(E4=0, "", F4/E4)) ->  | K4: =IF(page3!EM3="", "", page3!EM3) ->  | L4: =IF(page3!CV3="", "", page3!CV3) ->  | M4: =IF(L4=1,10*60,IF(L4=2,2.5*60,IF(L4=3,45,IF(L4=4,20,IF(L4=5,10,""))))) ->  | N4: =IF(L4="", "", IF(M4*H4/G4>300, 1, IF(AND(M4*H4/G4<=300, M4*H4/G4>60), 2, IF(AND(M4*H4/G4<=60, M4*H4/G4>30), 3, IF(AND(M4*H4/G4<=30, M4*H4/G4>10), 4, IF(M4*H4/G4<=10, 5, "")))))) ->  | O4: =IF(L4="", "", IF(M4*H4/I4>300, 1, IF(AND(M4*H4/I4<=300, M4*H4/I4>60), 2, IF(AND(M4*H4/I4<=60, M4*H4/I4>30), 3, IF(AND(M4*H4/I4<=30, M4*H4/I4>10), 4, IF(M4*H4/I4<=10, 5, "")))))) ->  | P4: =IF(page3!CW3="", "", page3!CW3) ->  | Q4: =IF(page3!CX3="", "", page3!CX3) ->  | R4: =IF(page3!CY3="", "", page3!CY3) ->  | S4: =IF(page3!CZ3="", "", page3!CZ3) ->  | T4: =IF(AND(K4=1, L4<=2), 1, IF(AND(K4=1, L4<=4), 2, IF(AND(K4=1, L4=5), 3, IF(AND(K4=2, L4=1), 1, IF(AND(K4=2, L4=2), 2, IF(AND(K4=2, L4<=4), 3, IF(AND(K4=2, L4=5), 4, IF(AND(K4=3, L4=1), 2, IF(AND(K4=3, L4=2), 3, IF(AND(K4=3, L4<=4), 4, IF(AND(K4=3, L4=5), 5, IF(AND(K4=4, L4=1), 3, IF(AND(K4=4, L4<=3), 4, IF(AND(K4=4, L4<=5), 5, IF(AND(K4=5, L4<=2), 4, IF(AND(K4=5, L4<=5), 5,"")))))))))))))))) ->  | U4: =IF(AND(K4=1, N4<=2), 1, IF(AND(K4=1, N4<=4), 2, IF(AND(K4=1, N4=5), 3, IF(AND(K4=2, N4=1), 1, IF(AND(K4=2, N4=2), 2, IF(AND(K4=2, N4<=4), 3, IF(AND(K4=2, N4=5), 4, IF(AND(K4=3, N4=1), 2, IF(AND(K4=3, N4=2), 3, IF(AND(K4=3, N4<=4), 4, IF(AND(K4=3, N4=5), 5, IF(AND(K4=4, N4=1), 3, IF(AND(K4=4, N4<=3), 4, IF(AND(K4=4, N4<=5), 5, IF(AND(K4=5, N4<=2), 4, IF(AND(K4=5, N4<=5), 5,"")))))))))))))))) ->  | V4: =IF(AND(K4=1, O4<=2), 1, IF(AND(K4=1, O4<=4), 2, IF(AND(K4=1, O4=5), 3, IF(AND(K4=2, O4=1), 1, IF(AND(K4=2, O4=2), 2, IF(AND(K4=2, O4<=4), 3, IF(AND(K4=2, O4=5), 4, IF(AND(K4=3, O4=1), 2, IF(AND(K4=3, O4=2), 3, IF(AND(K4=3, O4<=4), 4, IF(AND(K4=3, O4=5), 5, IF(AND(K4=4, O4=1), 3, IF(AND(K4=4, O4<=3), 4, IF(AND(K4=4, O4<=5), 5, IF(AND(K4=5, O4<=2), 4, IF(AND(K4=5, O4<=5), 5,"")))))))))))))))) ->  | W4: =IF(page3!DC3="", "", page3!DC3) ->  | X4: =IF(A4="","", J4+T4+W4+R4+S4) ->  | Y4: =IF(A4="","", J4+U4+W4+R4+S4) ->  | Z4: =IF(A4="","", J4+V4+W4+R4+S4) ->  | AA4: =IF(A4="", "", W4+R4) ->  | AB4: =IF(A4="","", IF(OR(W4=5, AA4>=8, X4>=15), "High", "Low")) ->  | AC4: =IF(A4="","", IF(OR(W4=5, AA4>=8, Y4>=15), "High", "Low")) ->  | AD4: =IF(A4="","", IF(OR(W4=5, AA4>=8, Z4>=15), "High", "Low")) -> 
A5: =IF(page3!A4="","",page3!A4) ->  | B5: =IF(page3!B4="","",page3!B4) ->  | C5: =IF(page3!C4="","",page3!C4) ->  | D5: =IF(page3!D4="","",page3!D4) ->  | E5: =IF(page3!E4="","",page3!E4) ->  | F5: =IF(page3!F4="","",page3!F4) ->  | G5: =IF(page3!M4="", "", page3!M4) ->  | H5: =IF(page3!N4="", "", page3!N4) ->  | K5: =IF(page3!EM4="", "", page3!EM4) ->  | L5: =IF(page3!CV4="", "", page3!CV4) ->  | P5: =IF(page3!CW4="", "", page3!CW4) ->  | Q5: =IF(page3!CX4="", "", page3!CX4) ->  | R5: =IF(page3!CY4="", "", page3!CY4) ->  | S5: =IF(page3!CZ4="", "", page3!CZ4) ->  | W5: =IF(page3!DC4="", "", page3!DC4) -> 
A6: =IF(page3!A5="","",page3!A5) ->  | B6: =IF(page3!B5="","",page3!B5) ->  | C6: =IF(page3!C5="","",page3!C5) ->  | D6: =IF(page3!D5="","",page3!D5) ->  | E6: =IF(page3!E5="","",page3!E5) ->  | F6: =IF(page3!F5="","",page3!F5) ->  | G6: =IF(page3!M5="", "", page3!M5) ->  | H6: =IF(page3!N5="", "", page3!N5) ->  | K6: =IF(page3!EM5="", "", page3!EM5) ->  | L6: =IF(page3!CV5="", "", page3!CV5) ->  | P6: =IF(page3!CW5="", "", page3!CW5) ->  | Q6: =IF(page3!CX5="", "", page3!CX5) ->  | R6: =IF(page3!CY5="", "", page3!CY5) ->  | S6: =IF(page3!CZ5="", "", page3!CZ5) ->  | W6: =IF(page3!DC5="", "", page3!DC5) -> 
A7: =IF(page3!A6="","",page3!A6) ->  | B7: =IF(page3!B6="","",page3!B6) ->  | C7: =IF(page3!C6="","",page3!C6) ->  | D7: =IF(page3!D6="","",page3!D6) ->  | E7: =IF(page3!E6="","",page3!E6) ->  | F7: =IF(page3!F6="","",page3!F6) ->  | G7: =IF(page3!M6="", "", page3!M6) ->  | H7: =IF(page3!N6="", "", page3!N6) ->  | K7: =IF(page3!EM6="", "", page3!EM6) ->  | L7: =IF(page3!CV6="", "", page3!CV6) ->  | P7: =IF(page3!CW6="", "", page3!CW6) ->  | Q7: =IF(page3!CX6="", "", page3!CX6) ->  | R7: =IF(page3!CY6="", "", page3!CY6) ->  | S7: =IF(page3!CZ6="", "", page3!CZ6) ->  | W7: =IF(page3!DC6="", "", page3!DC6) -> 
A8: =IF(page3!A7="","",page3!A7) ->  | B8: =IF(page3!B7="","",page3!B7) ->  | C8: =IF(page3!C7="","",page3!C7) ->  | D8: =IF(page3!D7="","",page3!D7) ->  | E8: =IF(page3!E7="","",page3!E7) ->  | F8: =IF(page3!F7="","",page3!F7) ->  | G8: =IF(page3!M7="", "", page3!M7) ->  | H8: =IF(page3!N7="", "", page3!N7) ->  | K8: =IF(page3!EM7="", "", page3!EM7) ->  | L8: =IF(page3!CV7="", "", page3!CV7) ->  | P8: =IF(page3!CW7="", "", page3!CW7) ->  | Q8: =IF(page3!CX7="", "", page3!CX7) ->  | R8: =IF(page3!CY7="", "", page3!CY7) ->  | S8: =IF(page3!CZ7="", "", page3!CZ7) ->  | W8: =IF(page3!DC7="", "", page3!DC7) -> 
A9: =IF(page3!A8="","",page3!A8) ->  | B9: =IF(page3!B8="","",page3!B8) ->  | C9: =IF(page3!C8="","",page3!C8) ->  | D9: =IF(page3!D8="","",page3!D8) ->  | E9: =IF(page3!E8="","",page3!E8) ->  | F9: =IF(page3!F8="","",page3!F8) ->  | G9: =IF(page3!M8="", "", page3!M8) ->  | H9: =IF(page3!N8="", "", page3!N8) ->  | K9: =IF(page3!EM8="", "", page3!EM8) ->  | L9: =IF(page3!CV8="", "", page3!CV8) ->  | P9: =IF(page3!CW8="", "", page3!CW8) ->  | Q9: =IF(page3!CX8="", "", page3!CX8) ->  | R9: =IF(page3!CY8="", "", page3!CY8) ->  | S9: =IF(page3!CZ8="", "", page3!CZ8) ->  | W9: =IF(page3!DC8="", "", page3!DC8) -> 
A10: =IF(page3!A9="","",page3!A9) ->  | B10: =IF(page3!B9="","",page3!B9) ->  | C10: =IF(page3!C9="","",page3!C9) ->  | D10: =IF(page3!D9="","",page3!D9) ->  | E10: =IF(page3!E9="","",page3!E9) ->  | F10: =IF(page3!F9="","",page3!F9) ->  | G10: =IF(page3!M9="", "", page3!M9) ->  | H10: =IF(page3!N9="", "", page3!N9) ->  | K10: =IF(page3!EM9="", "", page3!EM9) ->  | L10: =IF(page3!CV9="", "", page3!CV9) ->  | P10: =IF(page3!CW9="", "", page3!CW9) ->  | Q10: =IF(page3!CX9="", "", page3!CX9) ->  | R10: =IF(page3!CY9="", "", page3!CY9) ->  | S10: =IF(page3!CZ9="", "", page3!CZ9) ->  | W10: =IF(page3!DC9="", "", page3!DC9) -> 
A11: =IF(page3!A10="","",page3!A10) ->  | B11: =IF(page3!B10="","",page3!B10) ->  | C11: =IF(page3!C10="","",page3!C10) ->  | D11: =IF(page3!D10="","",page3!D10) ->  | E11: =IF(page3!E10="","",page3!E10) ->  | F11: =IF(page3!F10="","",page3!F10) ->  | G11: =IF(page3!M10="", "", page3!M10) ->  | H11: =IF(page3!N10="", "", page3!N10) ->  | K11: =IF(page3!EM10="", "", page3!EM10) ->  | L11: =IF(page3!CV10="", "", page3!CV10) ->  | P11: =IF(page3!CW10="", "", page3!CW10) ->  | Q11: =IF(page3!CX10="", "", page3!CX10) ->  | R11: =IF(page3!CY10="", "", page3!CY10) ->  | S11: =IF(page3!CZ10="", "", page3!CZ10) ->  | W11: =IF(page3!DC10="", "", page3!DC10) -> 
A12: =IF(page3!A11="","",page3!A11) ->  | B12: =IF(page3!B11="","",page3!B11) ->  | C12: =IF(page3!C11="","",page3!C11) ->  | D12: =IF(page3!D11="","",page3!D11) ->  | E12: =IF(page3!E11="","",page3!E11) ->  | F12: =IF(page3!F11="","",page3!F11) ->  | G12: =IF(page3!M11="", "", page3!M11) ->  | H12: =IF(page3!N11="", "", page3!N11) ->  | K12: =IF(page3!EM11="", "", page3!EM11) ->  | L12: =IF(page3!CV11="", "", page3!CV11) ->  | P12: =IF(page3!CW11="", "", page3!CW11) ->  | Q12: =IF(page3!CX11="", "", page3!CX11) ->  | R12: =IF(page3!CY11="", "", page3!CY11) ->  | S12: =IF(page3!CZ11="", "", page3!CZ11) ->  | W12: =IF(page3!DC11="", "", page3!DC11) -> 
A13: Sum
A14: Mean
A15: TWA
A16: N
A17: Ratio
A18: Text
A19: Most common | T19: =MEDIAN(T3:T12) -> 2 | U19: 2 | V19: 1 | W19: 2 | X19: 10 | Y19: 10 | Z19: 9 | AB19: =IF(A19="","", IF(OR(W19=5, AA19>=8, X19>=15), "High", "Low")) -> Low | AC19: =IF(A19="","", IF(OR(W19=5, AA19>=8, Y19>=15), "High", "Low")) -> Low | AD19: =IF(A19="","", IF(OR(W19=5, AA19>=8, Z19>=15), "High", "Low")) -> Low
A20: Peak | T20: =MAX(T3:T12) -> 2 | U20: 2 | V20: 1 | W20: 2 | X20: 10 | Y20: 10 | Z20: 9 | AB20: =IF(A20="","", IF(OR(W20=5, AA20>=8, X20>=15), "High", "Low")) -> Low | AC20: =IF(A20="","", IF(OR(W20=5, AA20>=8, Y20>=15), "High", "Low")) -> Low | AD20: =IF(A20="","", IF(OR(W20=5, AA20>=8, Z20>=15), "High", "Low")) -> Low

Sheet page4 (hidden)
A1: Revised Strain Index Calculations | T1: RSI calculation | AB1: CUSI calculation
A2: Task | B2: Location | C2: Tool | D2: Variation | E2: counter | F2: Subject | G2: TASK1 | H2: LOCATION1 | I2: TOOL1 | J2: sub_task | K2: __duration_of_the_subtask | L2: Intensity_of_exertion___MVC_ | M2: Efforts_per_minute | N2: Duration_per_exertion__in_second | O2: Hand_wrist_posture__in_degree_ | P2: Analyst | Q2: No | R2: Order | S2: id | T2: T_task | U2: T_subtask | V2: IM | W2: EM | X2: DM | Y2: PM | Z2: HM | AA2: RSI | AB2: HICOSI | AC2: subTask_H | AD2: Hk | AE2: Hk-1 | AF2: HMk | AG2: HMk-1 | AH2: DeltaHM | AI2: DeltaCOSI | AJ2: CUSI | AK2: Risk Level
A3: =page3!A$2 -> Glass Door Cleaning | B3: =page3!B$2 -> Glass Doors | C3: =page3!C$2 -> Cleaning cloth, long handled wiping tool | D3: =page3!D$2 -> High level cleaning | E3: 1 | F3: =IF($A3=0,"", INDEX(F$501:F$1595,MATCH($S3,$S$501:$S$1595,0))) -> P003 | G3: Glass_door_cleaning | H3: Glass door | I3: Cloth, trigger sprayer | J3: Glass cleaning | K3: 0.873331493 | L3: 0.2 | M3: 8.388499925 | N3: 4.016576944 | O3: 50 | P3: WL | Q3: 89 | R3: 1 | S3: =CONCATENATE(A3,B3,C3,D3,E3) -> Glass Door CleaningGlass DoorsCleaning cloth, long handled wiping toolHigh level cleaning1 | T3: =page3!E$2 -> 4 | U3: =IF(J3="", "", IF(J3=0, "", T3*K3)) -> 3.493325972 | V3: =IF(U3="", 0, IF(L3>0.4, 36*L3^3-33.3*L3^2+24.77*L3-1.86, 30*L3^3-15.6*L3^2+13*L3+0.4)) -> 2.616 | W3: =IF(U3="",0, IF(M3>90, 0.00334*M3^1.96, 0.1+0.25*M3)) -> 2.197124981 | X3: =IF(U3="", 0, IF(N3>60, 19.17*LN(N3)-59.44, 0.45+0.31*N3)) -> 1.695138853 | Y3: =IF(U3="",0, IF(O3<0, 1.2*EXP(-0.009*O3)-0.2, IF(O3>30, 1+0.00028*(O3-30)^2, 1))) -> 1.112 | Z3: =IF(U3="", 0, IF(U3>0.05, 0.042*U3+0.09*LN(U3)+0.477, 0.2)) -> 0.7362965763 | AA3: =IF(U3="",0,V3*W3*X3*Y3*Z3) -> 7.977289406 | AB3: =IF(Z3=0, 0, AA3/Z3) -> 10.83434266 | AC3: =U3 -> 3.493325972 | AD3: =AC$3 -> 3.493325972 | AF3: =IF(AD3="", 0, IF(AD3>0.05, 0.042*AD3+0.09*LN(AD3)+0.477, 0.2)) -> 0.7362965763 | AG3: =IF(AE3="", 0, IF(AE3>0.05, 0.042*AE3+0.09*LN(AE3)+0.477, 0.2)) -> 0 | AH3: =AF3-AG3 -> 0.7362965763 | AI3: =AB3*AH3 -> 7.977289406 | AJ3: =SUM(AI3:AI152) -> 8.313900254 | AK3: =IF(AJ3<7.5, "Low risk", IF(AJ3>=15, "High risk", "Moderate risk")) -> Moderate risk
A4: =page3!A$2 -> Glass Door Cleaning | B4: =page3!B$2 -> Glass Doors | C4: =page3!C$2 -> Cleaning cloth, long handled wiping tool | D4: =page3!D$2 -> High level cleaning | E4: 2 | F4: P003 | G4: Glass_door_cleaning | H4: Glass door | I4: Cloth, trigger sprayer | J4: Wiping | K4: 0.126668507 | L4: 0.2 | M4: 7.525336488 | N4: 4.177131685 | O4: 50 | P4: WL | Q4: 89 | R4: 2 | S4: Glass Door CleaningGlass DoorsCleaning cloth, long handled wiping toolHigh level cleaning2 | T4: =page3!E$2 -> 4 | U4: 0.506674028 | V4: 2.616 | W4: 1.981334122 | X4: 1.744910822 | Y4: 1.112 | Z4: 0.4370904409 | AA4: 4.395869497 | AB4: 10.05711653 | AC4: 0.506674028 | AD4: =SUM(AC$3:AC4) -> 4 | AE4: =AC$3 -> 3.493325972 | AF4: =IF(AD4="", 0, IF(AD4>0.05, 0.042*AD4+0.09*LN(AD4)+0.477, 0.2)) -> 0.7697664925 | AG4: =IF(AE4="", 0, IF(AE4>0.05, 0.042*AE4+0.09*LN(AE4)+0.477, 0.2)) -> 0.7362965763 | AH4: =AF4-AG4 -> 0.03346991621 | AI4: =AB4*AH4 -> 0.3366108474
A5: =page3!A$2 -> Glass Door Cleaning | B5: =page3!B$2 -> Glass Doors | C5: =page3!C$2 -> Cleaning cloth, long handled wiping tool | D5: =page3!D$2 -> High level cleaning | E5: 3 | F5: 0 | G5: 0 | H5: 0 | I5: 0 | J5: 0 | K5: 0 | L5: 0 | M5: 0 | N5: 0 | O5: 0 | P5: 0 | Q5: 89 | R5: 3 | S5: Glass Door CleaningGlass DoorsCleaning cloth, long handled wiping toolHigh level cleaning3 | T5: =page3!E$2 -> 4 | V5: 0 | W5: 0 | X5: 0 | Y5: 0 | Z5: 0 | AA5: 0 | AB5: 0 | AD5: =SUM(AC$3:AC5) -> 4 | AE5: =SUM(AC$3:AC4) -> 4 | AF5: 0.7697664925 | AG5: 0.7697664925 | AH5: 0 | AI5: 0
A6: =page3!A$2 -> Glass Door Cleaning | B6: =page3!B$2 -> Glass Doors | C6: =page3!C$2 -> Cleaning cloth, long handled wiping tool | D6: =page3!D$2 -> High level cleaning | E6: 4 | F6: 0 | G6: 0 | H6: 0 | I6: 0 | J6: 0 | K6: 0 | L6: 0 | M6: 0 | N6: 0 | O6: 0 | P6: 0 | Q6: 89 | R6: 4 | S6: Glass Door CleaningGlass DoorsCleaning cloth, long handled wiping toolHigh level cleaning4 | T6: =page3!E$2 -> 4 | V6: 0 | W6: 0 | X6: 0 | Y6: 0 | Z6: 0 | AA6: 0 | AB6: 0 | AD6: =SUM(AC$3:AC6) -> 4 | AE6: =SUM(AC$3:AC5) -> 4 | AF6: 0.7697664925 | AG6: 0.7697664925 | AH6: 0 | AI6: 0
A7: =page3!A$2 -> Glass Door Cleaning | B7: =page3!B$2 -> Glass Doors | C7: =page3!C$2 -> Cleaning cloth, long handled wiping tool | D7: =page3!D$2 -> High level cleaning | E7: 5 | F7: 0 | G7: 0 | H7: 0 | I7: 0 | J7: 0 | K7: 0 | L7: 0 | M7: 0 | N7: 0 | O7: 0 | P7: 0 | Q7: 89 | R7: 5 | S7: Glass Door CleaningGlass DoorsCleaning cloth, long handled wiping toolHigh level cleaning5 | T7: =page3!E$2 -> 4 | V7: 0 | W7: 0 | X7: 0 | Y7: 0 | Z7: 0 | AA7: 0 | AB7: 0 | AD7: =SUM(AC$3:AC7) -> 4 | AE7: =SUM(AC$3:AC6) -> 4 | AF7: 0.7697664925 | AG7: 0.7697664925 | AH7: 0 | AI7: 0
A8: =page3!A$2 -> Glass Door Cleaning | B8: =page3!B$2 -> Glass Doors | C8: =page3!C$2 -> Cleaning cloth, long handled wiping tool | D8: =page3!D$2 -> High level cleaning | E8: 6 | F8: 0 | G8: 0 | H8: 0 | I8: 0 | J8: 0 | K8: 0 | L8: 0 | M8: 0 | N8: 0 | O8: 0 | P8: 0 | Q8: 89 | R8: 6 | S8: Glass Door CleaningGlass DoorsCleaning cloth, long handled wiping toolHigh level cleaning6 | T8: =page3!E$2 -> 4 | V8: 0 | W8: 0 | X8: 0 | Y8: 0 | Z8: 0 | AA8: 0 | AB8: 0 | AD8: =SUM(AC$3:AC8) -> 4 | AE8: =SUM(AC$3:AC7) -> 4 | AF8: 0.7697664925 | AG8: 0.7697664925 | AH8: 0 | AI8: 0
A9: =page3!A$2 -> Glass Door Cleaning | B9: =page3!B$2 -> Glass Doors | C9: =page3!C$2 -> Cleaning cloth, long handled wiping tool | D9: =page3!D$2 -> High level cleaning | E9: 7 | F9: 0 | G9: 0 | H9: 0 | I9: 0 | J9: 0 | K9: 0 | L9: 0 | M9: 0 | N9: 0 | O9: 0 | P9: 0 | Q9: 89 | R9: 7 | S9: Glass Door CleaningGlass DoorsCleaning cloth, long handled wiping toolHigh level cleaning7 | T9: =page3!E$2 -> 4 | V9: 0 | W9: 0 | X9: 0 | Y9: 0 | Z9: 0 | AA9: 0 | AB9: 0 | AD9: =SUM(AC$3:AC9) -> 4 | AE9: =SUM(AC$3:AC8) -> 4 | AF9: 0.7697664925 | AG9: 0.7697664925 | AH9: 0 | AI9: 0
A10: =page3!A$2 -> Glass Door Cleaning | B10: =page3!B$2 -> Glass Doors | C10: =page3!C$2 -> Cleaning cloth, long handled wiping tool | D10: =page3!D$2 -> High level cleaning | E10: 8 | F10: 0 | G10: 0 | H10: 0 | I10: 0 | J10: 0 | K10: 0 | L10: 0 | M10: 0 | N10: 0 | O10: 0 | P10: 0 | Q10: 89 | R10: 8 | S10: Glass Door CleaningGlass DoorsCleaning cloth, long handled wiping toolHigh level cleaning8 | T10: =page3!E$2 -> 4 | V10: 0 | W10: 0 | X10: 0 | Y10: 0 | Z10: 0 | AA10: 0 | AB10: 0 | AD10: =SUM(AC$3:AC10) -> 4 | AE10: =SUM(AC$3:AC9) -> 4 | AF10: 0.7697664925 | AG10: 0.7697664925 | AH10: 0 | AI10: 0
A11: =page3!A$2 -> Glass Door Cleaning | B11: =page3!B$2 -> Glass Doors | C11: =page3!C$2 -> Cleaning cloth, long handled wiping tool | D11: =page3!D$2 -> High level cleaning | E11: 9 | F11: 0 | G11: 0 | H11: 0 | I11: 0 | J11: 0 | K11: 0 | L11: 0 | M11: 0 | N11: 0 | O11: 0 | P11: 0 | Q11: 89 | R11: 9 | S11: Glass Door CleaningGlass DoorsCleaning cloth, long handled wiping toolHigh level cleaning9 | T11: =page3!E$2 -> 4 | V11: 0 | W11: 0 | X11: 0 | Y11: 0 | Z11: 0 | AA11: 0 | AB11: 0 | AD11: =SUM(AC$3:AC11) -> 4 | AE11: =SUM(AC$3:AC10) -> 4 | AF11: 0.7697664925 | AG11: 0.7697664925 | AH11: 0 | AI11: 0
A12: =page3!A$2 -> Glass Door Cleaning | B12: =page3!B$2 -> Glass Doors | C12: =page3!C$2 -> Cleaning cloth, long handled wiping tool | D12: =page3!D$2 -> High level cleaning | E12: 10 | F12: 0 | G12: 0 | H12: 0 | I12: 0 | J12: 0 | K12: 0 | L12: 0 | M12: 0 | N12: 0 | O12: 0 | P12: 0 | Q12: 89 | R12: 10 | S12: Glass Door CleaningGlass DoorsCleaning cloth, long handled wiping toolHigh level cleaning10 | T12: =page3!E$2 -> 4 | V12: 0 | W12: 0 | X12: 0 | Y12: 0 | Z12: 0 | AA12: 0 | AB12: 0 | AD12: =SUM(AC$3:AC12) -> 4 | AE12: =SUM(AC$3:AC11) -> 4 | AF12: 0.7697664925 | AG12: 0.7697664925 | AH12: 0 | AI12: 0
A13: =page3!A$2 -> Glass Door Cleaning | B13: =page3!B$2 -> Glass Doors | C13: =page3!C$2 -> Cleaning cloth, long handled wiping tool | D13: =page3!D$2 -> High level cleaning | E13: 11 | F13: =IF($A13=0,"", INDEX(F$501:F$1595,MATCH($S13,$S$501:$S$1595,0))) -> 0 | G13: 0 | H13: 0 | I13: 0 | J13: 0 | K13: 0 | L13: 0 | M13: 0 | N13: 0 | O13: 0 | P13: 0 | Q13: 89 | R13: 11 | S13: Glass Door CleaningGlass DoorsCleaning cloth, long handled wiping toolHigh level cleaning11 | T13: =page3!E$2 -> 4 | V13: 0 | W13: 0 | X13: 0 | Y13: 0 | Z13: 0 | AA13: 0 | AB13: 0 | AD13: =SUM(AC$3:AC13) -> 4 | AE13: =SUM(AC$3:AC12) -> 4 | AF13: 0.7697664925 | AG13: 0.7697664925 | AH13: 0 | AI13: 0
A14: =page3!A$2 -> Glass Door Cleaning | B14: =page3!B$2 -> Glass Doors | C14: =page3!C$2 -> Cleaning cloth, long handled wiping tool | D14: =page3!D$2 -> High level cleaning | E14: 12 | F14: 0 | G14: 0 | H14: 0 | I14: 0 | J14: 0 | K14: 0 | L14: 0 | M14: 0 | N14: 0 | O14: 0 | P14: 0 | Q14: 89 | R14: 12 | S14: Glass Door CleaningGlass DoorsCleaning cloth, long handled wiping toolHigh level cleaning12 | T14: =page3!E$2 -> 4 | V14: 0 | W14: 0 | X14: 0 | Y14: 0 | Z14: 0 | AA14: 0 | AB14: 0 | AD14: =SUM(AC$3:AC14) -> 4 | AE14: =SUM(AC$3:AC13) -> 4 | AF14: 0.7697664925 | AG14: 0.7697664925 | AH14: 0 | AI14: 0
A15: =page3!A$2 -> Glass Door Cleaning | B15: =page3!B$2 -> Glass Doors | C15: =page3!C$2 -> Cleaning cloth, long handled wiping tool | D15: =page3!D$2 -> High level cleaning | E15: 13 | F15: 0 | G15: 0 | H15: 0 | I15: 0 | J15: 0 | K15: 0 | L15: 0 | M15: 0 | N15: 0 | O15: 0 | P15: 0 | Q15: 89 | R15: 13 | S15: Glass Door CleaningGlass DoorsCleaning cloth, long handled wiping toolHigh level cleaning13 | T15: =page3!E$2 -> 4 | V15: 0 | W15: 0 | X15: 0 | Y15: 0 | Z15: 0 | AA15: 0 | AB15: 0 | AD15: =SUM(AC$3:AC15) -> 4 | AE15: =SUM(AC$3:AC14) -> 4 | AF15: 0.7697664925 | AG15: 0.7697664925 | AH15: 0 | AI15: 0
A16: =page3!A$2 -> Glass Door Cleaning | B16: =page3!B$2 -> Glass Doors | C16: =page3!C$2 -> Cleaning cloth, long handled wiping tool | D16: =page3!D$2 -> High level cleaning | E16: 14 | F16: 0 | G16: 0 | H16: 0 | I16: 0 | J16: 0 | K16: 0 | L16: 0 | M16: 0 | N16: 0 | O16: 0 | P16: 0 | Q16: 89 | R16: 14 | S16: Glass Door CleaningGlass DoorsCleaning cloth, long handled wiping toolHigh level cleaning14 | T16: =page3!E$2 -> 4 | V16: 0 | W16: 0 | X16: 0 | Y16: 0 | Z16: 0 | AA16: 0 | AB16: 0 | AD16: =SUM(AC$3:AC16) -> 4 | AE16: =SUM(AC$3:AC15) -> 4 | AF16: 0.7697664925 | AG16: 0.7697664925 | AH16: 0 | AI16: 0
A17: =page3!A$2 -> Glass Door Cleaning | B17: =page3!B$2 -> Glass Doors | C17: =page3!C$2 -> Cleaning cloth, long handled wiping tool | D17: =page3!D$2 -> High level cleaning | E17: 15 | F17: 0 | G17: 0 | H17: 0 | I17: 0 | J17: 0 | K17: 0 | L17: 0 | M17: 0 | N17: 0 | O17: 0 | P17: 0 | Q17: 89 | R17: 15 | S17: Glass Door CleaningGlass DoorsCleaning cloth, long handled wiping toolHigh level cleaning15 | T17: =page3!E$2 -> 4 | V17: 0 | W17: 0 | X17: 0 | Y17: 0 | Z17: 0 | AA17: 0 | AB17: 0 | AD17: =SUM(AC$3:AC17) -> 4 | AE17: =SUM(AC$3:AC16) -> 4 | AF17: 0.7697664925 | AG17: 0.7697664925 | AH17: 0 | AI17: 0
A18: =page3!A$3 -> 0 | B18: =page3!B$3 -> 0 | C18: =page3!C$3 -> 0 | D18: =page3!D$3 -> 0 | E18: 1 | R18: 16 | S18: 00001 | T18: =page3!E$3 -> 0 | V18: 0 | W18: 0 | X18: 0 | Y18: 0 | Z18: 0 | AA18: 0 | AB18: 0 | AD18: =SUM(AC$3:AC18) -> 4 | AE18: =SUM(AC$3:AC17) -> 4 | AF18: 0.7697664925 | AG18: 0.7697664925 | AH18: 0 | AI18: 0
A19: =page3!A$3 -> 0 | B19: =page3!B$3 -> 0 | C19: =page3!C$3 -> 0 | D19: =page3!D$3 -> 0 | E19: 2 | R19: 17 | S19: 00002 | T19: =page3!E$3 -> 0 | V19: 0 | W19: 0 | X19: 0 | Y19: 0 | Z19: 0 | AA19: 0 | AB19: 0 | AD19: =SUM(AC$3:AC19) -> 4 | AE19: =SUM(AC$3:AC18) -> 4 | AF19: 0.7697664925 | AG19: 0.7697664925 | AH19: 0 | AI19: 0
A20: =page3!A$3 -> 0 | B20: =page3!B$3 -> 0 | C20: =page3!C$3 -> 0 | D20: =page3!D$3 -> 0 | E20: 3 | R20: 18 | S20: 00003 | T20: =page3!E$3 -> 0 | V20: 0 | W20: 0 | X20: 0 | Y20: 0 | Z20: 0 | AA20: 0 | AB20: 0 | AD20: =SUM(AC$3:AC20) -> 4 | AE20: =SUM(AC$3:AC19) -> 4 | AF20: 0.7697664925 | AG20: 0.7697664925 | AH20: 0 | AI20: 0
A21: =page3!A$3 -> 0 | B21: =page3!B$3 -> 0 | C21: =page3!C$3 -> 0 | D21: =page3!D$3 -> 0 | E21: 4 | R21: 19 | S21: 00004 | T21: =page3!E$3 -> 0 | V21: 0 | W21: 0 | X21: 0 | Y21: 0 | Z21: 0 | AA21: 0 | AB21: 0 | AD21: =SUM(AC$3:AC21) -> 4 | AE21: =SUM(AC$3:AC20) -> 4 | AF21: 0.7697664925 | AG21: 0.7697664925 | AH21: 0 | AI21: 0
A22: =page3!A$3 -> 0 | B22: =page3!B$3 -> 0 | C22: =page3!C$3 -> 0 | D22: =page3!D$3 -> 0 | E22: 5 | R22: 20 | S22: 00005 | T22: =page3!E$3 -> 0 | V22: 0 | W22: 0 | X22: 0 | Y22: 0 | Z22: 0 | AA22: 0 | AB22: 0 | AD22: =SUM(AC$3:AC22) -> 4 | AE22: =SUM(AC$3:AC21) -> 4 | AF22: 0.7697664925 | AG22: 0.7697664925 | AH22: 0 | AI22: 0
A23: =page3!A$3 -> 0 | B23: =page3!B$3 -> 0 | C23: =page3!C$3 -> 0 | D23: =page3!D$3 -> 0 | E23: 6 | F23: =IF($A23=0,"", INDEX(F$501:F$1595,MATCH($S23,$S$501:$S$1595,0))) ->  | R23: 21 | S23: 00006 | T23: =page3!E$3 -> 0 | V23: 0 | W23: 0 | X23: 0 | Y23: 0 | Z23: 0 | AA23: 0 | AB23: 0 | AD23: =SUM(AC$3:AC23) -> 4 | AE23: =SUM(AC$3:AC22) -> 4 | AF23: 0.7697664925 | AG23: 0.7697664925 | AH23: 0 | AI23: 0
A24: =page3!A$3 -> 0 | B24: =page3!B$3 -> 0 | C24: =page3!C$3 -> 0 | D24: =page3!D$3 -> 0 | E24: 7 | R24: 22 | S24: 00007 | T24: =page3!E$3 -> 0 | V24: 0 | W24: 0 | X24: 0 | Y24: 0 | Z24: 0 | AA24: 0 | AB24: 0 | AD24: =SUM(AC$3:AC24) -> 4 | AE24: =SUM(AC$3:AC23) -> 4 | AF24: 0.7697664925 | AG24: 0.7697664925 | AH24: 0 | AI24: 0
A25: =page3!A$3 -> 0 | B25: =page3!B$3 -> 0 | C25: =page3!C$3 -> 0 | D25: =page3!D$3 -> 0 | E25: 8 | R25: 23 | S25: 00008 | T25: =page3!E$3 -> 0 | V25: 0 | W25: 0 | X25: 0 | Y25: 0 | Z25: 0 | AA25: 0 | AB25: 0 | AD25: =SUM(AC$3:AC25) -> 4 | AE25: =SUM(AC$3:AC24) -> 4 | AF25: 0.7697664925 | AG25: 0.7697664925 | AH25: 0 | AI25: 0
A26: =page3!A$3 -> 0 | B26: =page3!B$3 -> 0 | C26: =page3!C$3 -> 0 | D26: =page3!D$3 -> 0 | E26: 9 | R26: 24 | S26: 00009 | T26: =page3!E$3 -> 0 | V26: 0 | W26: 0 | X26: 0 | Y26: 0 | Z26: 0 | AA26: 0 | AB26: 0 | AD26: =SUM(AC$3:AC26) -> 4 | AE26: =SUM(AC$3:AC25) -> 4 | AF26: 0.7697664925 | AG26: 0.7697664925 | AH26: 0 | AI26: 0
A27: =page3!A$3 -> 0 | B27: =page3!B$3 -> 0 | C27: =page3!C$3 -> 0 | D27: =page3!D$3 -> 0 | E27: 10 | R27: 25 | S27: 000010 | T27: =page3!E$3 -> 0 | V27: 0 | W27: 0 | X27: 0 | Y27: 0 | Z27: 0 | AA27: 0 | AB27: 0 | AD27: =SUM(AC$3:AC27) -> 4 | AE27: =SUM(AC$3:AC26) -> 4 | AF27: 0.7697664925 | AG27: 0.7697664925 | AH27: 0 | AI27: 0
A28: =page3!A$3 -> 0 | B28: =page3!B$3 -> 0 | C28: =page3!C$3 -> 0 | D28: =page3!D$3 -> 0 | E28: 11 | R28: 26 | S28: 000011 | T28: =page3!E$3 -> 0 | V28: 0 | W28: 0 | X28: 0 | Y28: 0 | Z28: 0 | AA28: 0 | AB28: 0 | AD28: =SUM(AC$3:AC28) -> 4 | AE28: =SUM(AC$3:AC27) -> 4 | AF28: 0.7697664925 | AG28: 0.7697664925 | AH28: 0 | AI28: 0
A29: =page3!A$3 -> 0 | B29: =page3!B$3 -> 0 | C29: =page3!C$3 -> 0 | D29: =page3!D$3 -> 0 | E29: 12 | R29: 27 | S29: 000012 | T29: =page3!E$3 -> 0 | V29: 0 | W29: 0 | X29: 0 | Y29: 0 | Z29: 0 | AA29: 0 | AB29: 0 | AD29: =SUM(AC$3:AC29) -> 4 | AE29: =SUM(AC$3:AC28) -> 4 | AF29: 0.7697664925 | AG29: 0.7697664925 | AH29: 0 | AI29: 0
A30: =page3!A$3 -> 0 | B30: =page3!B$3 -> 0 | C30: =page3!C$3 -> 0 | D30: =page3!D$3 -> 0 | E30: 13 | R30: 28 | S30: 000013 | T30: =page3!E$3 -> 0 | V30: 0 | W30: 0 | X30: 0 | Y30: 0 | Z30: 0 | AA30: 0 | AB30: 0 | AD30: =SUM(AC$3:AC30) -> 4 | AE30: =SUM(AC$3:AC29) -> 4 | AF30: 0.7697664925 | AG30: 0.7697664925 | AH30: 0 | AI30: 0
A31: =page3!A$3 -> 0 | B31: =page3!B$3 -> 0 | C31: =page3!C$3 -> 0 | D31: =page3!D$3 -> 0 | E31: 14 | R31: 29 | S31: 000014 | T31: =page3!E$3 -> 0 | V31: 0 | W31: 0 | X31: 0 | Y31: 0 | Z31: 0 | AA31: 0 | AB31: 0 | AD31: =SUM(AC$3:AC31) -> 4 | AE31: =SUM(AC$3:AC30) -> 4 | AF31: 0.7697664925 | AG31: 0.7697664925 | AH31: 0 | AI31: 0
A32: =page3!A$3 -> 0 | B32: =page3!B$3 -> 0 | C32: =page3!C$3 -> 0 | D32: =page3!D$3 -> 0 | E32: 15 | R32: 30 | S32: 000015 | T32: =page3!E$3 -> 0 | V32: 0 | W32: 0 | X32: 0 | Y32: 0 | Z32: 0 | AA32: 0 | AB32: 0 | AD32: =SUM(AC$3:AC32) -> 4 | AE32: =SUM(AC$3:AC31) -> 4 | AF32: 0.7697664925 | AG32: 0.7697664925 | AH32: 0 | AI32: 0
A33: =page3!A$4 -> 0 | B33: =page3!B$4 -> 0 | C33: =page3!C$4 -> 0 | D33: =page3!D$4 -> 0 | E33: 1 | F33: =IF($A33=0,"", INDEX(F$501:F$1595,MATCH($S33,$S$501:$S$1595,0))) ->  | R33: 31 | S33: 00001 | T33: =page3!E$4 -> 0 | V33: 0 | W33: 0 | X33: 0 | Y33: 0 | Z33: 0 | AA33: 0 | AB33: 0 | AD33: =SUM(AC$3:AC33) -> 4 | AE33: =SUM(AC$3:AC32) -> 4 | AF33: 0.7697664925 | AG33: 0.7697664925 | AH33: 0 | AI33: 0
A34: =page3!A$4 -> 0 | B34: =page3!B$4 -> 0 | C34: =page3!C$4 -> 0 | D34: =page3!D$4 -> 0 | E34: 2 | R34: 32 | S34: 00002 | T34: =page3!E$4 -> 0 | V34: 0 | W34: 0 | X34: 0 | Y34: 0 | Z34: 0 | AA34: 0 | AB34: 0 | AD34: =SUM(AC$3:AC34) -> 4 | AE34: =SUM(AC$3:AC33) -> 4 | AF34: 0.7697664925 | AG34: 0.7697664925 | AH34: 0 | AI34: 0
A35: =page3!A$4 -> 0 | B35: =page3!B$4 -> 0 | C35: =page3!C$4 -> 0 | D35: =page3!D$4 -> 0 | E35: 3 | R35: 33 | S35: =CONCATENATE(A35,B35,C35,D35,E35) -> 00003 | T35: =page3!E$4 -> 0 | U35: =IF(J35="", "", IF(J35=0, "", T35*K35)) ->  | V35: =IF(U35="", 0, IF(L35>0.4, 36*L35^3-33.3*L35^2+24.77*L35-1.86, 30*L35^3-15.6*L35^2+13*L35+0.4)) -> 0 | W35: =IF(U35="",0, IF(M35>90, 0.00334*M35^1.96, 0.1+0.25*M35)) -> 0 | X35: =IF(U35="", 0, IF(N35>60, 19.17*LN(N35)-59.44, 0.45+0.31*N35)) -> 0 | Y35: =IF(U35="",0, IF(O35<0, 1.2*EXP(-0.009*O35)-0.2, IF(O35>30, 1+0.00028*(O35-30)^2, 1))) -> 0 | Z35: =IF(U35="", 0, IF(U35>0.05, 0.042*U35+0.09*LN(U35)+0.477, 0.2)) -> 0 | AA35: =IF(U35="",0,V35*W35*X35*Y35*Z35) -> 0 | AB35: =IF(Z35=0, 0, AA35/Z35) -> 0 | AC35: =U35 ->  | AD35: =SUM(AC$3:AC35) -> 4 | AE35: =SUM(AC$3:AC34) -> 4 | AF35: 0.7697664925 | AG35: 0.7697664925 | AH35: 0 | AI35: 0
A36: =page3!A$4 -> 0 | B36: =page3!B$4 -> 0 | C36: =page3!C$4 -> 0 | D36: =page3!D$4 -> 0 | E36: 4 | R36: 34 | S36: 00004 | T36: =page3!E$4 -> 0 | V36: 0 | W36: 0 | X36: 0 | Y36: 0 | Z36: 0 | AA36: 0 | AB36: 0 | AD36: =SUM(AC$3:AC36) -> 4 | AE36: =SUM(AC$3:AC35) -> 4 | AF36: 0.7697664925 | AG36: 0.7697664925 | AH36: 0 | AI36: 0
A37: =page3!A$4 -> 0 | B37: =page3!B$4 -> 0 | C37: =page3!C$4 -> 0 | D37: =page3!D$4 -> 0 | E37: 5 | R37: 35 | S37: 00005 | T37: =page3!E$4 -> 0 | V37: 0 | W37: 0 | X37: 0 | Y37: 0 | Z37: 0 | AA37: 0 | AB37: 0 | AD37: =SUM(AC$3:AC37) -> 4 | AE37: =SUM(AC$3:AC36) -> 4 | AF37: 0.7697664925 | AG37: 0.7697664925 | AH37: 0 | AI37: 0
A38: =page3!A$4 -> 0 | B38: =page3!B$4 -> 0 | C38: =page3!C$4 -> 0 | D38: =page3!D$4 -> 0 | E38: 6 | R38: 36 | S38: 00006 | T38: =page3!E$4 -> 0 | V38: 0 | W38: 0 | X38: 0 | Y38: 0 | Z38: 0 | AA38: 0 | AB38: 0 | AD38: =SUM(AC$3:AC38) -> 4 | AE38: =SUM(AC$3:AC37) -> 4 | AF38: 0.7697664925 | AG38: 0.7697664925 | AH38: 0 | AI38: 0
A39: =page3!A$4 -> 0 | B39: =page3!B$4 -> 0 | C39: =page3!C$4 -> 0 | D39: =page3!D$4 -> 0 | E39: 7 | R39: 37 | S39: 00007 | T39: =page3!E$4 -> 0 | V39: 0 | W39: 0 | X39: 0 | Y39: 0 | Z39: 0 | AA39: 0 | AB39: 0 | AD39: =SUM(AC$3:AC39) -> 4 | AE39: =SUM(AC$3:AC38) -> 4 | AF39: 0.7697664925 | AG39: 0.7697664925 | AH39: 0 | AI39: 0
A40: =page3!A$4 -> 0 | B40: =page3!B$4 -> 0 | C40: =page3!C$4 -> 0 | D40: =page3!D$4 -> 0 | E40: 8 | R40: 38 | S40: 00008 | T40: =page3!E$4 -> 0 | V40: 0 | W40: 0 | X40: 0 | Y40: 0 | Z40: 0 | AA40: 0 | AB40: 0 | AD40: =SUM(AC$3:AC40) -> 4 | AE40: =SUM(AC$3:AC39) -> 4 | AF40: 0.7697664925 | AG40: 0.7697664925 | AH40: 0 | AI40: 0
A41: =page3!A$4 -> 0 | B41: =page3!B$4 -> 0 | C41: =page3!C$4 -> 0 | D41: =page3!D$4 -> 0 | E41: 9 | R41: 39 | S41: 00009 | T41: =page3!E$4 -> 0 | V41: 0 | W41: 0 | X41: 0 | Y41: 0 | Z41: 0 | AA41: 0 | AB41: 0 | AD41: =SUM(AC$3:AC41) -> 4 | AE41: =SUM(AC$3:AC40) -> 4 | AF41: 0.7697664925 | AG41: 0.7697664925 | AH41: 0 | AI41: 0
A42: =page3!A$4 -> 0 | B42: =page3!B$4 -> 0 | C42: =page3!C$4 -> 0 | D42: =page3!D$4 -> 0 | E42: 10 | R42: 40 | S42: 000010 | T42: =page3!E$4 -> 0 | V42: 0 | W42: 0 | X42: 0 | Y42: 0 | Z42: 0 | AA42: 0 | AB42: 0 | AD42: =SUM(AC$3:AC42) -> 4 | AE42: =SUM(AC$3:AC41) -> 4 | AF42: 0.7697664925 | AG42: 0.7697664925 | AH42: 0 | AI42: 0
A43: =page3!A$4 -> 0 | B43: =page3!B$4 -> 0 | C43: =page3!C$4 -> 0 | D43: =page3!D$4 -> 0 | E43: 11 | F43: =IF($A43=0,"", INDEX(F$501:F$1595,MATCH($S43,$S$501:$S$1595,0))) ->  | R43: 41 | S43: 000011 | T43: =page3!E$4 -> 0 | V43: 0 | W43: 0 | X43: 0 | Y43: 0 | Z43: 0 | AA43: 0 | AB43: 0 | AD43: =SUM(AC$3:AC43) -> 4 | AE43: =SUM(AC$3:AC42) -> 4 | AF43: 0.7697664925 | AG43: 0.7697664925 | AH43: 0 | AI43: 0
A44: =page3!A$4 -> 0 | B44: =page3!B$4 -> 0 | C44: =page3!C$4 -> 0 | D44: =page3!D$4 -> 0 | E44: 12 | R44: 42 | S44: 000012 | T44: =page3!E$4 -> 0 | V44: 0 | W44: 0 | X44: 0 | Y44: 0 | Z44: 0 | AA44: 0 | AB44: 0 | AD44: =SUM(AC$3:AC44) -> 4 | AE44: =SUM(AC$3:AC43) -> 4 | AF44: 0.7697664925 | AG44: 0.7697664925 | AH44: 0 | AI44: 0
A45: =page3!A$4 -> 0 | B45: =page3!B$4 -> 0 | C45: =page3!C$4 -> 0 | D45: =page3!D$4 -> 0 | E45: 13 | R45: 43 | S45: 000013 | T45: =page3!E$4 -> 0 | V45: 0 | W45: 0 | X45: 0 | Y45: 0 | Z45: 0 | AA45: 0 | AB45: 0 | AD45: =SUM(AC$3:AC45) -> 4 | AE45: =SUM(AC$3:AC44) -> 4 | AF45: 0.7697664925 | AG45: 0.7697664925 | AH45: 0 | AI45: 0
A46: =page3!A$4 -> 0 | B46: =page3!B$4 -> 0 | C46: =page3!C$4 -> 0 | D46: =page3!D$4 -> 0 | E46: 14 | R46: 44 | S46: 000014 | T46: =page3!E$4 -> 0 | V46: 0 | W46: 0 | X46: 0 | Y46: 0 | Z46: 0 | AA46: 0 | AB46: 0 | AD46: =SUM(AC$3:AC46) -> 4 | AE46: =SUM(AC$3:AC45) -> 4 | AF46: 0.7697664925 | AG46: 0.7697664925 | AH46: 0 | AI46: 0
A47: =page3!A$4 -> 0 | B47: =page3!B$4 -> 0 | C47: =page3!C$4 -> 0 | D47: =page3!D$4 -> 0 | E47: 15 | R47: 45 | S47: 000015 | T47: =page3!E$4 -> 0 | V47: 0 | W47: 0 | X47: 0 | Y47: 0 | Z47: 0 | AA47: 0 | AB47: 0 | AD47: =SUM(AC$3:AC47) -> 4 | AE47: =SUM(AC$3:AC46) -> 4 | AF47: 0.7697664925 | AG47: 0.7697664925 | AH47: 0 | AI47: 0
A48: =page3!A$5 -> 0 | B48: =page3!B$5 -> 0 | C48: =page3!C$5 -> 0 | D48: =page3!D$5 -> 0 | E48: 1 | R48: 46 | S48: 00001 | T48: =page3!E$5 -> 0 | V48: 0 | W48: 0 | X48: 0 | Y48: 0 | Z48: 0 | AA48: 0 | AB48: 0 | AD48: =SUM(AC$3:AC48) -> 4 | AE48: =SUM(AC$3:AC47) -> 4 | AF48: 0.7697664925 | AG48: 0.7697664925 | AH48: 0 | AI48: 0
A49: =page3!A$5 -> 0 | B49: =page3!B$5 -> 0 | C49: =page3!C$5 -> 0 | D49: =page3!D$5 -> 0 | E49: 2 | R49: 47 | S49: 00002 | T49: =page3!E$5 -> 0 | V49: 0 | W49: 0 | X49: 0 | Y49: 0 | Z49: 0 | AA49: 0 | AB49: 0 | AD49: =SUM(AC$3:AC49) -> 4 | AE49: =SUM(AC$3:AC48) -> 4 | AF49: 0.7697664925 | AG49: 0.7697664925 | AH49: 0 | AI49: 0
A50: =page3!A$5 -> 0 | B50: =page3!B$5 -> 0 | C50: =page3!C$5 -> 0 | D50: =page3!D$5 -> 0 | E50: 3 | R50: 48 | S50: 00003 | T50: =page3!E$5 -> 0 | V50: 0 | W50: 0 | X50: 0 | Y50: 0 | Z50: 0 | AA50: 0 | AB50: 0 | AD50: =SUM(AC$3:AC50) -> 4 | AE50: =SUM(AC$3:AC49) -> 4 | AF50: 0.7697664925 | AG50: 0.7697664925 | AH50: 0 | AI50: 0
A51: =page3!A$5 -> 0 | B51: =page3!B$5 -> 0 | C51: =page3!C$5 -> 0 | D51: =page3!D$5 -> 0 | E51: 4 | R51: 49 | S51: 00004 | T51: =page3!E$5 -> 0 | V51: 0 | W51: 0 | X51: 0 | Y51: 0 | Z51: 0 | AA51: 0 | AB51: 0 | AD51: =SUM(AC$3:AC51) -> 4 | AE51: =SUM(AC$3:AC50) -> 4 | AF51: 0.7697664925 | AG51: 0.7697664925 | AH51: 0 | AI51: 0
A52: =page3!A$5 -> 0 | B52: =page3!B$5 -> 0 | C52: =page3!C$5 -> 0 | D52: =page3!D$5 -> 0 | E52: 5 | R52: 50 | S52: 00005 | T52: =page3!E$5 -> 0 | V52: 0 | W52: 0 | X52: 0 | Y52: 0 | Z52: 0 | AA52: 0 | AB52: 0 | AD52: =SUM(AC$3:AC52) -> 4 | AE52: =SUM(AC$3:AC51) -> 4 | AF52: 0.7697664925 | AG52: 0.7697664925 | AH52: 0 | AI52: 0
A53: =page3!A$5 -> 0 | B53: =page3!B$5 -> 0 | C53: =page3!C$5 -> 0 | D53: =page3!D$5 -> 0 | E53: 6 | F53: =IF($A53=0,"", INDEX(F$501:F$1595,MATCH($S53,$S$501:$S$1595,0))) ->  | R53: 51 | S53: 00006 | T53: =page3!E$5 -> 0 | V53: 0 | W53: 0 | X53: 0 | Y53: 0 | Z53: 0 | AA53: 0 | AB53: 0 | AD53: =SUM(AC$3:AC53) -> 4 | AE53: =SUM(AC$3:AC52) -> 4 | AF53: 0.7697664925 | AG53: 0.7697664925 | AH53: 0 | AI53: 0
A54: =page3!A$5 -> 0 | B54: =page3!B$5 -> 0 | C54: =page3!C$5 -> 0 | D54: =page3!D$5 -> 0 | E54: 7 | R54: 52 | S54: 00007 | T54: =page3!E$5 -> 0 | V54: 0 | W54: 0 | X54: 0 | Y54: 0 | Z54: 0 | AA54: 0 | AB54: 0 | AD54: =SUM(AC$3:AC54) -> 4 | AE54: =SUM(AC$3:AC53) -> 4 | AF54: 0.7697664925 | AG54: 0.7697664925 | AH54: 0 | AI54: 0
A55: =page3!A$5 -> 0 | B55: =page3!B$5 -> 0 | C55: =page3!C$5 -> 0 | D55: =page3!D$5 -> 0 | E55: 8 | R55: 53 | S55: 00008 | T55: =page3!E$5 -> 0 | V55: 0 | W55: 0 | X55: 0 | Y55: 0 | Z55: 0 | AA55: 0 | AB55: 0 | AD55: =SUM(AC$3:AC55) -> 4 | AE55: =SUM(AC$3:AC54) -> 4 | AF55: 0.7697664925 | AG55: 0.7697664925 | AH55: 0 | AI55: 0
A56: =page3!A$5 -> 0 | B56: =page3!B$5 -> 0 | C56: =page3!C$5 -> 0 | D56: =page3!D$5 -> 0 | E56: 9 | R56: 54 | S56: 00009 | T56: =page3!E$5 -> 0 | V56: 0 | W56: 0 | X56: 0 | Y56: 0 | Z56: 0 | AA56: 0 | AB56: 0 | AD56: =SUM(AC$3:AC56) -> 4 | AE56: =SUM(AC$3:AC55) -> 4 | AF56: 0.7697664925 | AG56: 0.7697664925 | AH56: 0 | AI56: 0
A57: =page3!A$5 -> 0 | B57: =page3!B$5 -> 0 | C57: =page3!C$5 -> 0 | D57: =page3!D$5 -> 0 | E57: 10 | R57: 55 | S57: 000010 | T57: =page3!E$5 -> 0 | V57: 0 | W57: 0 | X57: 0 | Y57: 0 | Z57: 0 | AA57: 0 | AB57: 0 | AD57: =SUM(AC$3:AC57) -> 4 | AE57: =SUM(AC$3:AC56) -> 4 | AF57: 0.7697664925 | AG57: 0.7697664925 | AH57: 0 | AI57: 0
A58: =page3!A$5 -> 0 | B58: =page3!B$5 -> 0 | C58: =page3!C$5 -> 0 | D58: =page3!D$5 -> 0 | E58: 11 | R58: 56 | S58: 000011 | T58: =page3!E$5 -> 0 | V58: 0 | W58: 0 | X58: 0 | Y58: 0 | Z58: 0 | AA58: 0 | AB58: 0 | AD58: =SUM(AC$3:AC58) -> 4 | AE58: =SUM(AC$3:AC57) -> 4 | AF58: 0.7697664925 | AG58: 0.7697664925 | AH58: 0 | AI58: 0
A59: =page3!A$5 -> 0 | B59: =page3!B$5 -> 0 | C59: =page3!C$5 -> 0 | D59: =page3!D$5 -> 0 | E59: 12 | R59: 57 | S59: 000012 | T59: =page3!E$5 -> 0 | V59: 0 | W59: 0 | X59: 0 | Y59: 0 | Z59: 0 | AA59: 0 | AB59: 0 | AD59: =SUM(AC$3:AC59) -> 4 | AE59: =SUM(AC$3:AC58) -> 4 | AF59: 0.7697664925 | AG59: 0.7697664925 | AH59: 0 | AI59: 0
A60: =page3!A$5 -> 0 | B60: =page3!B$5 -> 0 | C60: =page3!C$5 -> 0 | D60: =page3!D$5 -> 0 | E60: 13 | R60: 58 | S60: 000013 | T60: =page3!E$5 -> 0 | V60: 0 | W60: 0 | X60: 0 | Y60: 0 | Z60: 0 | AA60: 0 | AB60: 0 | AD60: =SUM(AC$3:AC60) -> 4 | AE60: =SUM(AC$3:AC59) -> 4 | AF60: 0.7697664925 | AG60: 0.7697664925 | AH60: 0 | AI60: 0
A61: =page3!A$5 -> 0 | B61: =page3!B$5 -> 0 | C61: =page3!C$5 -> 0 | D61: =page3!D$5 -> 0 | E61: 14 | R61: 59 | S61: 000014 | T61: =page3!E$5 -> 0 | V61: 0 | W61: 0 | X61: 0 | Y61: 0 | Z61: 0 | AA61: 0 | AB61: 0 | AD61: =SUM(AC$3:AC61) -> 4 | AE61: =SUM(AC$3:AC60) -> 4 | AF61: 0.7697664925 | AG61: 0.7697664925 | AH61: 0 | AI61: 0
A62: =page3!A$5 -> 0 | B62: =page3!B$5 -> 0 | C62: =page3!C$5 -> 0 | D62: =page3!D$5 -> 0 | E62: 15 | R62: 60 | S62: 000015 | T62: =page3!E$5 -> 0 | V62: 0 | W62: 0 | X62: 0 | Y62: 0 | Z62: 0 | AA62: 0 | AB62: 0 | AD62: =SUM(AC$3:AC62) -> 4 | AE62: =SUM(AC$3:AC61) -> 4 | AF62: 0.7697664925 | AG62: 0.7697664925 | AH62: 0 | AI62: 0
A63: =page3!A$6 -> 0 | B63: =page3!B$6 -> 0 | C63: =page3!C$6 -> 0 | D63: =page3!D$6 -> 0 | E63: 1 | F63: =IF($A63=0,"", INDEX(F$501:F$1595,MATCH($S63,$S$501:$S$1595,0))) ->  | R63: 61 | S63: 00001 | T63: =page3!E$6 -> 0 | V63: 0 | W63: 0 | X63: 0 | Y63: 0 | Z63: 0 | AA63: 0 | AB63: 0 | AD63: =SUM(AC$3:AC63) -> 4 | AE63: =SUM(AC$3:AC62) -> 4 | AF63: 0.7697664925 | AG63: 0.7697664925 | AH63: 0 | AI63: 0
A64: =page3!A$6 -> 0 | B64: =page3!B$6 -> 0 | C64: =page3!C$6 -> 0 | D64: =page3!D$6 -> 0 | E64: 2 | R64: 62 | S64: 00002 | T64: =page3!E$6 -> 0 | V64: 0 | W64: 0 | X64: 0 | Y64: 0 | Z64: 0 | AA64: 0 | AB64: 0 | AD64: =SUM(AC$3:AC64) -> 4 | AE64: =SUM(AC$3:AC63) -> 4 | AF64: 0.7697664925 | AG64: 0.7697664925 | AH64: 0 | AI64: 0
A65: =page3!A$6 -> 0 | B65: =page3!B$6 -> 0 | C65: =page3!C$6 -> 0 | D65: =page3!D$6 -> 0 | E65: 3 | R65: 63 | S65: 00003 | T65: =page3!E$6 -> 0 | V65: 0 | W65: 0 | X65: 0 | Y65: 0 | Z65: 0 | AA65: 0 | AB65: 0 | AD65: =SUM(AC$3:AC65) -> 4 | AE65: =SUM(AC$3:AC64) -> 4 | AF65: 0.7697664925 | AG65: 0.7697664925 | AH65: 0 | AI65: 0
A66: =page3!A$6 -> 0 | B66: =page3!B$6 -> 0 | C66: =page3!C$6 -> 0 | D66: =page3!D$6 -> 0 | E66: 4 | R66: 64 | S66: 00004 | T66: =page3!E$6 -> 0 | V66: 0 | W66: 0 | X66: 0 | Y66: 0 | Z66: 0 | AA66: 0 | AB66: 0 | AD66: =SUM(AC$3:AC66) -> 4 | AE66: =SUM(AC$3:AC65) -> 4 | AF66: 0.7697664925 | AG66: 0.7697664925 | AH66: 0 | AI66: 0
A67: =page3!A$6 -> 0 | B67: =page3!B$6 -> 0 | C67: =page3!C$6 -> 0 | D67: =page3!D$6 -> 0 | E67: 5 | R67: 65 | S67: =CONCATENATE(A67,B67,C67,D67,E67) -> 00005 | T67: =page3!E$6 -> 0 | U67: =IF(J67="", "", IF(J67=0, "", T67*K67)) ->  | V67: =IF(U67="", 0, IF(L67>0.4, 36*L67^3-33.3*L67^2+24.77*L67-1.86, 30*L67^3-15.6*L67^2+13*L67+0.4)) -> 0 | W67: =IF(U67="",0, IF(M67>90, 0.00334*M67^1.96, 0.1+0.25*M67)) -> 0 | X67: =IF(U67="", 0, IF(N67>60, 19.17*LN(N67)-59.44, 0.45+0.31*N67)) -> 0 | Y67: =IF(U67="",0, IF(O67<0, 1.2*EXP(-0.009*O67)-0.2, IF(O67>30, 1+0.00028*(O67-30)^2, 1))) -> 0 | Z67: =IF(U67="", 0, IF(U67>0.05, 0.042*U67+0.09*LN(U67)+0.477, 0.2)) -> 0 | AA67: =IF(U67="",0,V67*W67*X67*Y67*Z67) -> 0 | AB67: =IF(Z67=0, 0, AA67/Z67) -> 0 | AC67: =U67 ->  | AD67: =SUM(AC$3:AC67) -> 4 | AE67: =SUM(AC$3:AC66) -> 4 | AF67: 0.7697664925 | AG67: 0.7697664925 | AH67: 0 | AI67: 0
A68: =page3!A$6 -> 0 | B68: =page3!B$6 -> 0 | C68: =page3!C$6 -> 0 | D68: =page3!D$6 -> 0 | E68: 6 | R68: 66 | S68: 00006 | T68: =page3!E$6 -> 0 | V68: 0 | W68: 0 | X68: 0 | Y68: 0 | Z68: 0 | AA68: 0 | AB68: 0 | AD68: =SUM(AC$3:AC68) -> 4 | AE68: =SUM(AC$3:AC67) -> 4 | AF68: =IF(AD68="", 0, IF(AD68>0.05, 0.042*AD68+0.09*LN(AD68)+0.477, 0.2)) -> 0.7697664925 | AG68: =IF(AE68="", 0, IF(AE68>0.05, 0.042*AE68+0.09*LN(AE68)+0.477, 0.2)) -> 0.7697664925 | AH68: =AF68-AG68 -> 0 | AI68: =AB68*AH68 -> 0
A69: =page3!A$6 -> 0 | B69: =page3!B$6 -> 0 | C69: =page3!C$6 -> 0 | D69: =page3!D$6 -> 0 | E69: 7 | R69: 67 | S69: 00007 | T69: =page3!E$6 -> 0 | V69: 0 | W69: 0 | X69: 0 | Y69: 0 | Z69: 0 | AA69: 0 | AB69: 0 | AD69: =SUM(AC$3:AC69) -> 4 | AE69: =SUM(AC$3:AC68) -> 4 | AF69: 0.7697664925 | AG69: 0.7697664925 | AH69: 0 | AI69: 0
A70: =page3!A$6 -> 0 | B70: =page3!B$6 -> 0 | C70: =page3!C$6 -> 0 | D70: =page3!D$6 -> 0 | E70: 8 | R70: 68 | S70: 00008 | T70: =page3!E$6 -> 0 | V70: 0 | W70: 0 | X70: 0 | Y70: 0 | Z70: 0 | AA70: 0 | AB70: 0 | AD70: =SUM(AC$3:AC70) -> 4 | AE70: =SUM(AC$3:AC69) -> 4 | AF70: 0.7697664925 | AG70: 0.7697664925 | AH70: 0 | AI70: 0
A71: =page3!A$6 -> 0 | B71: =page3!B$6 -> 0 | C71: =page3!C$6 -> 0 | D71: =page3!D$6 -> 0 | E71: 9 | R71: 69 | S71: 00009 | T71: =page3!E$6 -> 0 | V71: 0 | W71: 0 | X71: 0 | Y71: 0 | Z71: 0 | AA71: 0 | AB71: 0 | AD71: =SUM(AC$3:AC71) -> 4 | AE71: =SUM(AC$3:AC70) -> 4 | AF71: 0.7697664925 | AG71: 0.7697664925 | AH71: 0 | AI71: 0
A72: =page3!A$6 -> 0 | B72: =page3!B$6 -> 0 | C72: =page3!C$6 -> 0 | D72: =page3!D$6 -> 0 | E72: 10 | R72: 70 | S72: 000010 | T72: =page3!E$6 -> 0 | V72: 0 | W72: 0 | X72: 0 | Y72: 0 | Z72: 0 | AA72: 0 | AB72: 0 | AD72: =SUM(AC$3:AC72) -> 4 | AE72: =SUM(AC$3:AC71) -> 4 | AF72: 0.7697664925 | AG72: 0.7697664925 | AH72: 0 | AI72: 0
A73: =page3!A$6 -> 0 | B73: =page3!B$6 -> 0 | C73: =page3!C$6 -> 0 | D73: =page3!D$6 -> 0 | E73: 11 | F73: =IF($A73=0,"", INDEX(F$501:F$1595,MATCH($S73,$S$501:$S$1595,0))) ->  | R73: 71 | S73: 000011 | T73: =page3!E$6 -> 0 | V73: 0 | W73: 0 | X73: 0 | Y73: 0 | Z73: 0 | AA73: 0 | AB73: 0 | AD73: =SUM(AC$3:AC73) -> 4 | AE73: =SUM(AC$3:AC72) -> 4 | AF73: 0.7697664925 | AG73: 0.7697664925 | AH73: 0 | AI73: 0
A74: =page3!A$6 -> 0 | B74: =page3!B$6 -> 0 | C74: =page3!C$6 -> 0 | D74: =page3!D$6 -> 0 | E74: 12 | R74: 72 | S74: 000012 | T74: =page3!E$6 -> 0 | V74: 0 | W74: 0 | X74: 0 | Y74: 0 | Z74: 0 | AA74: 0 | AB74: 0 | AD74: =SUM(AC$3:AC74) -> 4 | AE74: =SUM(AC$3:AC73) -> 4 | AF74: 0.7697664925 | AG74: 0.7697664925 | AH74: 0 | AI74: 0
A75: =page3!A$6 -> 0 | B75: =page3!B$6 -> 0 | C75: =page3!C$6 -> 0 | D75: =page3!D$6 -> 0 | E75: 13 | R75: 73 | S75: 000013 | T75: =page3!E$6 -> 0 | V75: 0 | W75: 0 | X75: 0 | Y75: 0 | Z75: 0 | AA75: 0 | AB75: 0 | AD75: =SUM(AC$3:AC75) -> 4 | AE75: =SUM(AC$3:AC74) -> 4 | AF75: 0.7697664925 | AG75: 0.7697664925 | AH75: 0 | AI75: 0
A76: =page3!A$6 -> 0 | B76: =page3!B$6 -> 0 | C76: =page3!C$6 -> 0 | D76: =page3!D$6 -> 0 | E76: 14 | R76: 74 | S76: 000014 | T76: =page3!E$6 -> 0 | V76: 0 | W76: 0 | X76: 0 | Y76: 0 | Z76: 0 | AA76: 0 | AB76: 0 | AD76: =SUM(AC$3:AC76) -> 4 | AE76: =SUM(AC$3:AC75) -> 4 | AF76: 0.7697664925 | AG76: 0.7697664925 | AH76: 0 | AI76: 0
A77: =page3!A$6 -> 0 | B77: =page3!B$6 -> 0 | C77: =page3!C$6 -> 0 | D77: =page3!D$6 -> 0 | E77: 15 | R77: 75 | S77: 000015 | T77: =page3!E$6 -> 0 | V77: 0 | W77: 0 | X77: 0 | Y77: 0 | Z77: 0 | AA77: 0 | AB77: 0 | AD77: =SUM(AC$3:AC77) -> 4 | AE77: =SUM(AC$3:AC76) -> 4 | AF77: 0.7697664925 | AG77: 0.7697664925 | AH77: 0 | AI77: 0
A78: =page3!A$7 -> 0 | B78: =page3!B$7 -> 0 | C78: =page3!C$7 -> 0 | D78: =page3!D$7 -> 0 | E78: 1 | R78: 76 | S78: 00001 | T78: =page3!E$7 -> 0 | V78: 0 | W78: 0 | X78: 0 | Y78: 0 | Z78: 0 | AA78: 0 | AB78: 0 | AD78: =SUM(AC$3:AC78) -> 4 | AE78: =SUM(AC$3:AC77) -> 4 | AF78: 0.7697664925 | AG78: 0.7697664925 | AH78: 0 | AI78: 0
A79: =page3!A$7 -> 0 | B79: =page3!B$7 -> 0 | C79: =page3!C$7 -> 0 | D79: =page3!D$7 -> 0 | E79: 2 | R79: 77 | S79: 00002 | T79: =page3!E$7 -> 0 | V79: 0 | W79: 0 | X79: 0 | Y79: 0 | Z79: 0 | AA79: 0 | AB79: 0 | AD79: =SUM(AC$3:AC79) -> 4 | AE79: =SUM(AC$3:AC78) -> 4 | AF79: 0.7697664925 | AG79: 0.7697664925 | AH79: 0 | AI79: 0
A80: =page3!A$7 -> 0 | B80: =page3!B$7 -> 0 | C80: =page3!C$7 -> 0 | D80: =page3!D$7 -> 0 | E80: 3 | R80: 78 | S80: 00003 | T80: =page3!E$7 -> 0 | V80: 0 | W80: 0 | X80: 0 | Y80: 0 | Z80: 0 | AA80: 0 | AB80: 0 | AD80: =SUM(AC$3:AC80) -> 4 | AE80: =SUM(AC$3:AC79) -> 4 | AF80: 0.7697664925 | AG80: 0.7697664925 | AH80: 0 | AI80: 0
A81: =page3!A$7 -> 0 | B81: =page3!B$7 -> 0 | C81: =page3!C$7 -> 0 | D81: =page3!D$7 -> 0 | E81: 4 | R81: 79 | S81: 00004 | T81: =page3!E$7 -> 0 | V81: 0 | W81: 0 | X81: 0 | Y81: 0 | Z81: 0 | AA81: 0 | AB81: 0 | AD81: =SUM(AC$3:AC81) -> 4 | AE81: =SUM(AC$3:AC80) -> 4 | AF81: 0.7697664925 | AG81: 0.7697664925 | AH81: 0 | AI81: 0
A82: =page3!A$7 -> 0 | B82: =page3!B$7 -> 0 | C82: =page3!C$7 -> 0 | D82: =page3!D$7 -> 0 | E82: 5 | R82: 80 | S82: 00005 | T82: =page3!E$7 -> 0 | V82: 0 | W82: 0 | X82: 0 | Y82: 0 | Z82: 0 | AA82: 0 | AB82: 0 | AD82: =SUM(AC$3:AC82) -> 4 | AE82: =SUM(AC$3:AC81) -> 4 | AF82: 0.7697664925 | AG82: 0.7697664925 | AH82: 0 | AI82: 0
A83: =page3!A$7 -> 0 | B83: =page3!B$7 -> 0 | C83: =page3!C$7 -> 0 | D83: =page3!D$7 -> 0 | E83: 6 | F83: =IF($A83=0,"", INDEX(F$501:F$1595,MATCH($S83,$S$501:$S$1595,0))) ->  | R83: 81 | S83: 00006 | T83: =page3!E$7 -> 0 | V83: 0 | W83: 0 | X83: 0 | Y83: 0 | Z83: 0 | AA83: 0 | AB83: 0 | AD83: =SUM(AC$3:AC83) -> 4 | AE83: =SUM(AC$3:AC82) -> 4 | AF83: 0.7697664925 | AG83: 0.7697664925 | AH83: 0 | AI83: 0
A84: =page3!A$7 -> 0 | B84: =page3!B$7 -> 0 | C84: =page3!C$7 -> 0 | D84: =page3!D$7 -> 0 | E84: 7 | R84: 82 | S84: 00007 | T84: =page3!E$7 -> 0 | V84: 0 | W84: 0 | X84: 0 | Y84: 0 | Z84: 0 | AA84: 0 | AB84: 0 | AD84: =SUM(AC$3:AC84) -> 4 | AE84: =SUM(AC$3:AC83) -> 4 | AF84: 0.7697664925 | AG84: 0.7697664925 | AH84: 0 | AI84: 0
A85: =page3!A$7 -> 0 | B85: =page3!B$7 -> 0 | C85: =page3!C$7 -> 0 | D85: =page3!D$7 -> 0 | E85: 8 | R85: 83 | S85: 00008 | T85: =page3!E$7 -> 0 | V85: 0 | W85: 0 | X85: 0 | Y85: 0 | Z85: 0 | AA85: 0 | AB85: 0 | AD85: =SUM(AC$3:AC85) -> 4 | AE85: =SUM(AC$3:AC84) -> 4 | AF85: 0.7697664925 | AG85: 0.7697664925 | AH85: 0 | AI85: 0
A86: =page3!A$7 -> 0 | B86: =page3!B$7 -> 0 | C86: =page3!C$7 -> 0 | D86: =page3!D$7 -> 0 | E86: 9 | R86: 84 | S86: 00009 | T86: =page3!E$7 -> 0 | V86: 0 | W86: 0 | X86: 0 | Y86: 0 | Z86: 0 | AA86: 0 | AB86: 0 | AD86: =SUM(AC$3:AC86) -> 4 | AE86: =SUM(AC$3:AC85) -> 4 | AF86: 0.7697664925 | AG86: 0.7697664925 | AH86: 0 | AI86: 0
A87: =page3!A$7 -> 0 | B87: =page3!B$7 -> 0 | C87: =page3!C$7 -> 0 | D87: =page3!D$7 -> 0 | E87: 10 | R87: 85 | S87: 000010 | T87: =page3!E$7 -> 0 | V87: 0 | W87: 0 | X87: 0 | Y87: 0 | Z87: 0 | AA87: 0 | AB87: 0 | AD87: =SUM(AC$3:AC87) -> 4 | AE87: =SUM(AC$3:AC86) -> 4 | AF87: 0.7697664925 | AG87: 0.7697664925 | AH87: 0 | AI87: 0
A88: =page3!A$7 -> 0 | B88: =page3!B$7 -> 0 | C88: =page3!C$7 -> 0 | D88: =page3!D$7 -> 0 | E88: 11 | R88: 86 | S88: 000011 | T88: =page3!E$7 -> 0 | V88: 0 | W88: 0 | X88: 0 | Y88: 0 | Z88: 0 | AA88: 0 | AB88: 0 | AD88: =SUM(AC$3:AC88) -> 4 | AE88: =SUM(AC$3:AC87) -> 4 | AF88: 0.7697664925 | AG88: 0.7697664925 | AH88: 0 | AI88: 0
A89: =page3!A$7 -> 0 | B89: =page3!B$7 -> 0 | C89: =page3!C$7 -> 0 | D89: =page3!D$7 -> 0 | E89: 12 | R89: 87 | S89: 000012 | T89: =page3!E$7 -> 0 | V89: 0 | W89: 0 | X89: 0 | Y89: 0 | Z89: 0 | AA89: 0 | AB89: 0 | AD89: =SUM(AC$3:AC89) -> 4 | AE89: =SUM(AC$3:AC88) -> 4 | AF89: 0.7697664925 | AG89: 0.7697664925 | AH89: 0 | AI89: 0
A90: =page3!A$7 -> 0 | B90: =page3!B$7 -> 0 | C90: =page3!C$7 -> 0 | D90: =page3!D$7 -> 0 | E90: 13 | R90: 88 | S90: 000013 | T90: =page3!E$7 -> 0 | V90: 0 | W90: 0 | X90: 0 | Y90: 0 | Z90: 0 | AA90: 0 | AB90: 0 | AD90: =SUM(AC$3:AC90) -> 4 | AE90: =SUM(AC$3:AC89) -> 4 | AF90: 0.7697664925 | AG90: 0.7697664925 | AH90: 0 | AI90: 0
A91: =page3!A$7 -> 0 | B91: =page3!B$7 -> 0 | C91: =page3!C$7 -> 0 | D91: =page3!D$7 -> 0 | E91: 14 | R91: 89 | S91: 000014 | T91: =page3!E$7 -> 0 | V91: 0 | W91: 0 | X91: 0 | Y91: 0 | Z91: 0 | AA91: 0 | AB91: 0 | AD91: =SUM(AC$3:AC91) -> 4 | AE91: =SUM(AC$3:AC90) -> 4 | AF91: 0.7697664925 | AG91: 0.7697664925 | AH91: 0 | AI91: 0
A92: =page3!A$7 -> 0 | B92: =page3!B$7 -> 0 | C92: =page3!C$7 -> 0 | D92: =page3!D$7 -> 0 | E92: 15 | R92: 90 | S92: 000015 | T92: =page3!E$7 -> 0 | V92: 0 | W92: 0 | X92: 0 | Y92: 0 | Z92: 0 | AA92: 0 | AB92: 0 | AD92: =SUM(AC$3:AC92) -> 4 | AE92: =SUM(AC$3:AC91) -> 4 | AF92: 0.7697664925 | AG92: 0.7697664925 | AH92: 0 | AI92: 0
A93: =page3!A$8 -> 0 | B93: =page3!B$8 -> 0 | C93: =page3!C$8 -> 0 | D93: =page3!D$8 -> 0 | E93: 1 | F93: =IF($A93=0,"", INDEX(F$501:F$1595,MATCH($S93,$S$501:$S$1595,0))) ->  | R93: 91 | S93: 00001 | T93: =page3!E$8 -> 0 | V93: 0 | W93: 0 | X93: 0 | Y93: 0 | Z93: 0 | AA93: 0 | AB93: 0 | AD93: =SUM(AC$3:AC93) -> 4 | AE93: =SUM(AC$3:AC92) -> 4 | AF93: 0.7697664925 | AG93: 0.7697664925 | AH93: 0 | AI93: 0
A94: =page3!A$8 -> 0 | B94: =page3!B$8 -> 0 | C94: =page3!C$8 -> 0 | D94: =page3!D$8 -> 0 | E94: 2 | R94: 92 | S94: 00002 | T94: =page3!E$8 -> 0 | V94: 0 | W94: 0 | X94: 0 | Y94: 0 | Z94: 0 | AA94: 0 | AB94: 0 | AD94: =SUM(AC$3:AC94) -> 4 | AE94: =SUM(AC$3:AC93) -> 4 | AF94: 0.7697664925 | AG94: 0.7697664925 | AH94: 0 | AI94: 0
A95: =page3!A$8 -> 0 | B95: =page3!B$8 -> 0 | C95: =page3!C$8 -> 0 | D95: =page3!D$8 -> 0 | E95: 3 | R95: 93 | S95: 00003 | T95: =page3!E$8 -> 0 | V95: 0 | W95: 0 | X95: 0 | Y95: 0 | Z95: 0 | AA95: 0 | AB95: 0 | AD95: =SUM(AC$3:AC95) -> 4 | AE95: =SUM(AC$3:AC94) -> 4 | AF95: 0.7697664925 | AG95: 0.7697664925 | AH95: 0 | AI95: 0
A96: =page3!A$8 -> 0 | B96: =page3!B$8 -> 0 | C96: =page3!C$8 -> 0 | D96: =page3!D$8 -> 0 | E96: 4 | R96: 94 | S96: 00004 | T96: =page3!E$8 -> 0 | V96: 0 | W96: 0 | X96: 0 | Y96: 0 | Z96: 0 | AA96: 0 | AB96: 0 | AD96: =SUM(AC$3:AC96) -> 4 | AE96: =SUM(AC$3:AC95) -> 4 | AF96: 0.7697664925 | AG96: 0.7697664925 | AH96: 0 | AI96: 0
A97: =page3!A$8 -> 0 | B97: =page3!B$8 -> 0 | C97: =page3!C$8 -> 0 | D97: =page3!D$8 -> 0 | E97: 5 | R97: 95 | S97: 00005 | T97: =page3!E$8 -> 0 | V97: 0 | W97: 0 | X97: 0 | Y97: 0 | Z97: 0 | AA97: 0 | AB97: 0 | AD97: =SUM(AC$3:AC97) -> 4 | AE97: =SUM(AC$3:AC96) -> 4 | AF97: 0.7697664925 | AG97: 0.7697664925 | AH97: 0 | AI97: 0
A98: =page3!A$8 -> 0 | B98: =page3!B$8 -> 0 | C98: =page3!C$8 -> 0 | D98: =page3!D$8 -> 0 | E98: 6 | R98: 96 | S98: 00006 | T98: =page3!E$8 -> 0 | V98: 0 | W98: 0 | X98: 0 | Y98: 0 | Z98: 0 | AA98: 0 | AB98: 0 | AD98: =SUM(AC$3:AC98) -> 4 | AE98: =SUM(AC$3:AC97) -> 4 | AF98: 0.7697664925 | AG98: 0.7697664925 | AH98: 0 | AI98: 0
A99: =page3!A$8 -> 0 | B99: =page3!B$8 -> 0 | C99: =page3!C$8 -> 0 | D99: =page3!D$8 -> 0 | E99: 7 | R99: 97 | S99: =CONCATENATE(A99,B99,C99,D99,E99) -> 00007 | T99: =page3!E$8 -> 0 | U99: =IF(J99="", "", IF(J99=0, "", T99*K99)) ->  | V99: =IF(U99="", 0, IF(L99>0.4, 36*L99^3-33.3*L99^2+24.77*L99-1.86, 30*L99^3-15.6*L99^2+13*L99+0.4)) -> 0 | W99: =IF(U99="",0, IF(M99>90, 0.00334*M99^1.96, 0.1+0.25*M99)) -> 0 | X99: =IF(U99="", 0, IF(N99>60, 19.17*LN(N99)-59.44, 0.45+0.31*N99)) -> 0 | Y99: =IF(U99="",0, IF(O99<0, 1.2*EXP(-0.009*O99)-0.2, IF(O99>30, 1+0.00028*(O99-30)^2, 1))) -> 0 | Z99: =IF(U99="", 0, IF(U99>0.05, 0.042*U99+0.09*LN(U99)+0.477, 0.2)) -> 0 | AA99: =IF(U99="",0,V99*W99*X99*Y99*Z99) -> 0 | AB99: =IF(Z99=0, 0, AA99/Z99) -> 0 | AC99: =U99 ->  | AD99: =SUM(AC$3:AC99) -> 4 | AE99: =SUM(AC$3:AC98) -> 4 | AF99: 0.7697664925 | AG99: 0.7697664925 | AH99: 0 | AI99: 0
A100: =page3!A$8 -> 0 | B100: =page3!B$8 -> 0 | C100: =page3!C$8 -> 0 | D100: =page3!D$8 -> 0 | E100: 8 | R100: 98 | S100: 00008 | T100: =page3!E$8 -> 0 | V100: 0 | W100: 0 | X100: 0 | Y100: 0 | Z100: 0 | AA100: 0 | AB100: 0 | AD100: =SUM(AC$3:AC100) -> 4 | AE100: =SUM(AC$3:AC99) -> 4 | AF100: 0.7697664925 | AG100: 0.7697664925 | AH100: 0 | AI100: 0
A101: =page3!A$8 -> 0 | B101: =page3!B$8 -> 0 | C101: =page3!C$8 -> 0 | D101: =page3!D$8 -> 0 | E101: 9 | R101: 99 | S101: 00009 | T101: =page3!E$8 -> 0 | V101: 0 | W101: 0 | X101: 0 | Y101: 0 | Z101: 0 | AA101: 0 | AB101: 0 | AD101: =SUM(AC$3:AC101) -> 4 | AE101: =SUM(AC$3:AC100) -> 4 | AF101: 0.7697664925 | AG101: 0.7697664925 | AH101: 0 | AI101: 0
A102: =page3!A$8 -> 0 | B102: =page3!B$8 -> 0 | C102: =page3!C$8 -> 0 | D102: =page3!D$8 -> 0 | E102: 10 | R102: 100 | S102: 000010 | T102: =page3!E$8 -> 0 | V102: 0 | W102: 0 | X102: 0 | Y102: 0 | Z102: 0 | AA102: 0 | AB102: 0 | AD102: =SUM(AC$3:AC102) -> 4 | AE102: =SUM(AC$3:AC101) -> 4 | AF102: 0.7697664925 | AG102: 0.7697664925 | AH102: 0 | AI102: 0
A103: =page3!A$8 -> 0 | B103: =page3!B$8 -> 0 | C103: =page3!C$8 -> 0 | D103: =page3!D$8 -> 0 | E103: 11 | F103: =IF($A103=0,"", INDEX(F$501:F$1595,MATCH($S103,$S$501:$S$1595,0))) ->  | R103: 101 | S103: 000011 | T103: =page3!E$8 -> 0 | V103: 0 | W103: 0 | X103: 0 | Y103: 0 | Z103: 0 | AA103: 0 | AB103: 0 | AD103: =SUM(AC$3:AC103) -> 4 | AE103: =SUM(AC$3:AC102) -> 4 | AF103: 0.7697664925 | AG103: 0.7697664925 | AH103: 0 | AI103: 0
A104: =page3!A$8 -> 0 | B104: =page3!B$8 -> 0 | C104: =page3!C$8 -> 0 | D104: =page3!D$8 -> 0 | E104: 12 | R104: 102 | S104: 000012 | T104: =page3!E$8 -> 0 | V104: 0 | W104: 0 | X104: 0 | Y104: 0 | Z104: 0 | AA104: 0 | AB104: 0 | AD104: =SUM(AC$3:AC104) -> 4 | AE104: =SUM(AC$3:AC103) -> 4 | AF104: 0.7697664925 | AG104: 0.7697664925 | AH104: 0 | AI104: 0
A105: =page3!A$8 -> 0 | B105: =page3!B$8 -> 0 | C105: =page3!C$8 -> 0 | D105: =page3!D$8 -> 0 | E105: 13 | R105: 103 | S105: 000013 | T105: =page3!E$8 -> 0 | V105: 0 | W105: 0 | X105: 0 | Y105: 0 | Z105: 0 | AA105: 0 | AB105: 0 | AD105: =SUM(AC$3:AC105) -> 4 | AE105: =SUM(AC$3:AC104) -> 4 | AF105: 0.7697664925 | AG105: 0.7697664925 | AH105: 0 | AI105: 0
A106: =page3!A$8 -> 0 | B106: =page3!B$8 -> 0 | C106: =page3!C$8 -> 0 | D106: =page3!D$8 -> 0 | E106: 14 | R106: 104 | S106: 000014 | T106: =page3!E$8 -> 0 | V106: 0 | W106: 0 | X106: 0 | Y106: 0 | Z106: 0 | AA106: 0 | AB106: 0 | AD106: =SUM(AC$3:AC106) -> 4 | AE106: =SUM(AC$3:AC105) -> 4 | AF106: 0.7697664925 | AG106: 0.7697664925 | AH106: 0 | AI106: 0
A107: =page3!A$8 -> 0 | B107: =page3!B$8 -> 0 | C107: =page3!C$8 -> 0 | D107: =page3!D$8 -> 0 | E107: 15 | R107: 105 | S107: 000015 | T107: =page3!E$8 -> 0 | V107: 0 | W107: 0 | X107: 0 | Y107: 0 | Z107: 0 | AA107: 0 | AB107: 0 | AD107: =SUM(AC$3:AC107) -> 4 | AE107: =SUM(AC$3:AC106) -> 4 | AF107: 0.7697664925 | AG107: 0.7697664925 | AH107: 0 | AI107: 0
A108: =page3!A$9 -> 0 | B108: =page3!B$9 -> 0 | C108: =page3!C$9 -> 0 | D108: =page3!D$9 -> 0 | E108: 1 | R108: 106 | S108: 00001 | T108: =page3!E$9 -> 0 | V108: 0 | W108: 0 | X108: 0 | Y108: 0 | Z108: 0 | AA108: 0 | AB108: 0 | AD108: =SUM(AC$3:AC108) -> 4 | AE108: =SUM(AC$3:AC107) -> 4 | AF108: 0.7697664925 | AG108: 0.7697664925 | AH108: 0 | AI108: 0
A109: =page3!A$9 -> 0 | B109: =page3!B$9 -> 0 | C109: =page3!C$9 -> 0 | D109: =page3!D$9 -> 0 | E109: 2 | R109: 107 | S109: 00002 | T109: =page3!E$9 -> 0 | V109: 0 | W109: 0 | X109: 0 | Y109: 0 | Z109: 0 | AA109: 0 | AB109: 0 | AD109: =SUM(AC$3:AC109) -> 4 | AE109: =SUM(AC$3:AC108) -> 4 | AF109: 0.7697664925 | AG109: 0.7697664925 | AH109: 0 | AI109: 0
A110: =page3!A$9 -> 0 | B110: =page3!B$9 -> 0 | C110: =page3!C$9 -> 0 | D110: =page3!D$9 -> 0 | E110: 3 | R110: 108 | S110: 00003 | T110: =page3!E$9 -> 0 | V110: 0 | W110: 0 | X110: 0 | Y110: 0 | Z110: 0 | AA110: 0 | AB110: 0 | AD110: =SUM(AC$3:AC110) -> 4 | AE110: =SUM(AC$3:AC109) -> 4 | AF110: 0.7697664925 | AG110: 0.7697664925 | AH110: 0 | AI110: 0
A111: =page3!A$9 -> 0 | B111: =page3!B$9 -> 0 | C111: =page3!C$9 -> 0 | D111: =page3!D$9 -> 0 | E111: 4 | R111: 109 | S111: 00004 | T111: =page3!E$9 -> 0 | V111: 0 | W111: 0 | X111: 0 | Y111: 0 | Z111: 0 | AA111: 0 | AB111: 0 | AD111: =SUM(AC$3:AC111) -> 4 | AE111: =SUM(AC$3:AC110) -> 4 | AF111: 0.7697664925 | AG111: 0.7697664925 | AH111: 0 | AI111: 0
A112: =page3!A$9 -> 0 | B112: =page3!B$9 -> 0 | C112: =page3!C$9 -> 0 | D112: =page3!D$9 -> 0 | E112: 5 | R112: 110 | S112: 00005 | T112: =page3!E$9 -> 0 | V112: 0 | W112: 0 | X112: 0 | Y112: 0 | Z112: 0 | AA112: 0 | AB112: 0 | AD112: =SUM(AC$3:AC112) -> 4 | AE112: =SUM(AC$3:AC111) -> 4 | AF112: 0.7697664925 | AG112: 0.7697664925 | AH112: 0 | AI112: 0
A113: =page3!A$9 -> 0 | B113: =page3!B$9 -> 0 | C113: =page3!C$9 -> 0 | D113: =page3!D$9 -> 0 | E113: 6 | F113: =IF($A113=0,"", INDEX(F$501:F$1595,MATCH($S113,$S$501:$S$1595,0))) ->  | R113: 111 | S113: 00006 | T113: =page3!E$9 -> 0 | V113: 0 | W113: 0 | X113: 0 | Y113: 0 | Z113: 0 | AA113: 0 | AB113: 0 | AD113: =SUM(AC$3:AC113) -> 4 | AE113: =SUM(AC$3:AC112) -> 4 | AF113: 0.7697664925 | AG113: 0.7697664925 | AH113: 0 | AI113: 0
A114: =page3!A$9 -> 0 | B114: =page3!B$9 -> 0 | C114: =page3!C$9 -> 0 | D114: =page3!D$9 -> 0 | E114: 7 | R114: 112 | S114: 00007 | T114: =page3!E$9 -> 0 | V114: 0 | W114: 0 | X114: 0 | Y114: 0 | Z114: 0 | AA114: 0 | AB114: 0 | AD114: =SUM(AC$3:AC114) -> 4 | AE114: =SUM(AC$3:AC113) -> 4 | AF114: 0.7697664925 | AG114: 0.7697664925 | AH114: 0 | AI114: 0
A115: =page3!A$9 -> 0 | B115: =page3!B$9 -> 0 | C115: =page3!C$9 -> 0 | D115: =page3!D$9 -> 0 | E115: 8 | R115: 113 | S115: 00008 | T115: =page3!E$9 -> 0 | V115: 0 | W115: 0 | X115: 0 | Y115: 0 | Z115: 0 | AA115: 0 | AB115: 0 | AD115: =SUM(AC$3:AC115) -> 4 | AE115: =SUM(AC$3:AC114) -> 4 | AF115: 0.7697664925 | AG115: 0.7697664925 | AH115: 0 | AI115: 0
A116: =page3!A$9 -> 0 | B116: =page3!B$9 -> 0 | C116: =page3!C$9 -> 0 | D116: =page3!D$9 -> 0 | E116: 9 | R116: 114 | S116: 00009 | T116: =page3!E$9 -> 0 | V116: 0 | W116: 0 | X116: 0 | Y116: 0 | Z116: 0 | AA116: 0 | AB116: 0 | AD116: =SUM(AC$3:AC116) -> 4 | AE116: =SUM(AC$3:AC115) -> 4 | AF116: 0.7697664925 | AG116: 0.7697664925 | AH116: 0 | AI116: 0
A117: =page3!A$9 -> 0 | B117: =page3!B$9 -> 0 | C117: =page3!C$9 -> 0 | D117: =page3!D$9 -> 0 | E117: 10 | R117: 115 | S117: 000010 | T117: =page3!E$9 -> 0 | V117: 0 | W117: 0 | X117: 0 | Y117: 0 | Z117: 0 | AA117: 0 | AB117: 0 | AD117: =SUM(AC$3:AC117) -> 4 | AE117: =SUM(AC$3:AC116) -> 4 | AF117: 0.7697664925 | AG117: 0.7697664925 | AH117: 0 | AI117: 0
A118: =page3!A$9 -> 0 | B118: =page3!B$9 -> 0 | C118: =page3!C$9 -> 0 | D118: =page3!D$9 -> 0 | E118: 11 | R118: 116 | S118: 000011 | T118: =page3!E$9 -> 0 | V118: 0 | W118: 0 | X118: 0 | Y118: 0 | Z118: 0 | AA118: 0 | AB118: 0 | AD118: =SUM(AC$3:AC118) -> 4 | AE118: =SUM(AC$3:AC117) -> 4 | AF118: 0.7697664925 | AG118: 0.7697664925 | AH118: 0 | AI118: 0
A119: =page3!A$9 -> 0 | B119: =page3!B$9 -> 0 | C119: =page3!C$9 -> 0 | D119: =page3!D$9 -> 0 | E119: 12 | R119: 117 | S119: 000012 | T119: =page3!E$9 -> 0 | V119: 0 | W119: 0 | X119: 0 | Y119: 0 | Z119: 0 | AA119: 0 | AB119: 0 | AD119: =SUM(AC$3:AC119) -> 4 | AE119: =SUM(AC$3:AC118) -> 4 | AF119: 0.7697664925 | AG119: 0.7697664925 | AH119: 0 | AI119: 0
A120: =page3!A$9 -> 0 | B120: =page3!B$9 -> 0 | C120: =page3!C$9 -> 0 | D120: =page3!D$9 -> 0 | E120: 13 | R120: 118 | S120: 000013 | T120: =page3!E$9 -> 0 | V120: 0 | W120: 0 | X120: 0 | Y120: 0 | Z120: 0 | AA120: 0 | AB120: 0 | AD120: =SUM(AC$3:AC120) -> 4 | AE120: =SUM(AC$3:AC119) -> 4 | AF120: 0.7697664925 | AG120: 0.7697664925 | AH120: 0 | AI120: 0
A121: =page3!A$9 -> 0 | B121: =page3!B$9 -> 0 | C121: =page3!C$9 -> 0 | D121: =page3!D$9 -> 0 | E121: 14 | R121: 119 | S121: 000014 | T121: =page3!E$9 -> 0 | V121: 0 | W121: 0 | X121: 0 | Y121: 0 | Z121: 0 | AA121: 0 | AB121: 0 | AD121: =SUM(AC$3:AC121) -> 4 | AE121: =SUM(AC$3:AC120) -> 4 | AF121: 0.7697664925 | AG121: 0.7697664925 | AH121: 0 | AI121: 0
A122: =page3!A$9 -> 0 | B122: =page3!B$9 -> 0 | C122: =page3!C$9 -> 0 | D122: =page3!D$9 -> 0 | E122: 15 | R122: 120 | S122: 000015 | T122: =page3!E$9 -> 0 | V122: 0 | W122: 0 | X122: 0 | Y122: 0 | Z122: 0 | AA122: 0 | AB122: 0 | AD122: =SUM(AC$3:AC122) -> 4 | AE122: =SUM(AC$3:AC121) -> 4 | AF122: 0.7697664925 | AG122: 0.7697664925 | AH122: 0 | AI122: 0
A123: =page3!A$10 -> 0 | B123: =page3!B$10 -> 0 | C123: =page3!C$10 -> 0 | D123: =page3!D$10 -> 0 | E123: 1 | F123: =IF($A123=0,"", INDEX(F$501:F$1595,MATCH($S123,$S$501:$S$1595,0))) ->  | R123: 121 | S123: 00001 | T123: =page3!E$10 -> 0 | V123: 0 | W123: 0 | X123: 0 | Y123: 0 | Z123: 0 | AA123: 0 | AB123: 0 | AD123: =SUM(AC$3:AC123) -> 4 | AE123: =SUM(AC$3:AC122) -> 4 | AF123: 0.7697664925 | AG123: 0.7697664925 | AH123: 0 | AI123: 0
A124: =page3!A$10 -> 0 | B124: =page3!B$10 -> 0 | C124: =page3!C$10 -> 0 | D124: =page3!D$10 -> 0 | E124: 2 | R124: 122 | S124: 00002 | T124: =page3!E$10 -> 0 | V124: 0 | W124: 0 | X124: 0 | Y124: 0 | Z124: 0 | AA124: 0 | AB124: 0 | AD124: =SUM(AC$3:AC124) -> 4 | AE124: =SUM(AC$3:AC123) -> 4 | AF124: 0.7697664925 | AG124: 0.7697664925 | AH124: 0 | AI124: 0
A125: =page3!A$10 -> 0 | B125: =page3!B$10 -> 0 | C125: =page3!C$10 -> 0 | D125: =page3!D$10 -> 0 | E125: 3 | R125: 123 | S125: 00003 | T125: =page3!E$10 -> 0 | V125: 0 | W125: 0 | X125: 0 | Y125: 0 | Z125: 0 | AA125: 0 | AB125: 0 | AD125: =SUM(AC$3:AC125) -> 4 | AE125: =SUM(AC$3:AC124) -> 4 | AF125: 0.7697664925 | AG125: 0.7697664925 | AH125: 0 | AI125: 0
A126: =page3!A$10 -> 0 | B126: =page3!B$10 -> 0 | C126: =page3!C$10 -> 0 | D126: =page3!D$10 -> 0 | E126: 4 | R126: 124 | S126: 00004 | T126: =page3!E$10 -> 0 | V126: 0 | W126: 0 | X126: 0 | Y126: 0 | Z126: 0 | AA126: 0 | AB126: 0 | AD126: =SUM(AC$3:AC126) -> 4 | AE126: =SUM(AC$3:AC125) -> 4 | AF126: 0.7697664925 | AG126: 0.7697664925 | AH126: 0 | AI126: 0
A127: =page3!A$10 -> 0 | B127: =page3!B$10 -> 0 | C127: =page3!C$10 -> 0 | D127: =page3!D$10 -> 0 | E127: 5 | R127: 125 | S127: 00005 | T127: =page3!E$10 -> 0 | V127: 0 | W127: 0 | X127: 0 | Y127: 0 | Z127: 0 | AA127: 0 | AB127: 0 | AD127: =SUM(AC$3:AC127) -> 4 | AE127: =SUM(AC$3:AC126) -> 4 | AF127: 0.7697664925 | AG127: 0.7697664925 | AH127: 0 | AI127: 0
A128: =page3!A$10 -> 0 | B128: =page3!B$10 -> 0 | C128: =page3!C$10 -> 0 | D128: =page3!D$10 -> 0 | E128: 6 | R128: 126 | S128: 00006 | T128: =page3!E$10 -> 0 | V128: 0 | W128: 0 | X128: 0 | Y128: 0 | Z128: 0 | AA128: 0 | AB128: 0 | AD128: =SUM(AC$3:AC128) -> 4 | AE128: =SUM(AC$3:AC127) -> 4 | AF128: 0.7697664925 | AG128: 0.7697664925 | AH128: 0 | AI128: 0
A129: =page3!A$10 -> 0 | B129: =page3!B$10 -> 0 | C129: =page3!C$10 -> 0 | D129: =page3!D$10 -> 0 | E129: 7 | R129: 127 | S129: 00007 | T129: =page3!E$10 -> 0 | V129: 0 | W129: 0 | X129: 0 | Y129: 0 | Z129: 0 | AA129: 0 | AB129: 0 | AD129: =SUM(AC$3:AC129) -> 4 | AE129: =SUM(AC$3:AC128) -> 4 | AF129: 0.7697664925 | AG129: 0.7697664925 | AH129: 0 | AI129: 0
A130: =page3!A$10 -> 0 | B130: =page3!B$10 -> 0 | C130: =page3!C$10 -> 0 | D130: =page3!D$10 -> 0 | E130: 8 | R130: 128 | S130: 00008 | T130: =page3!E$10 -> 0 | V130: 0 | W130: 0 | X130: 0 | Y130: 0 | Z130: 0 | AA130: 0 | AB130: 0 | AD130: =SUM(AC$3:AC130) -> 4 | AE130: =SUM(AC$3:AC129) -> 4 | AF130: 0.7697664925 | AG130: 0.7697664925 | AH130: 0 | AI130: 0
A131: =page3!A$10 -> 0 | B131: =page3!B$10 -> 0 | C131: =page3!C$10 -> 0 | D131: =page3!D$10 -> 0 | E131: 9 | R131: 129 | S131: =CONCATENATE(A131,B131,C131,D131,E131) -> 00009 | T131: =page3!E$10 -> 0 | U131: =IF(J131="", "", IF(J131=0, "", T131*K131)) ->  | V131: =IF(U131="", 0, IF(L131>0.4, 36*L131^3-33.3*L131^2+24.77*L131-1.86, 30*L131^3-15.6*L131^2+13*L131+0.4)) -> 0 | W131: =IF(U131="",0, IF(M131>90, 0.00334*M131^1.96, 0.1+0.25*M131)) -> 0 | X131: =IF(U131="", 0, IF(N131>60, 19.17*LN(N131)-59.44, 0.45+0.31*N131)) -> 0 | Y131: =IF(U131="",0, IF(O131<0, 1.2*EXP(-0.009*O131)-0.2, IF(O131>30, 1+0.00028*(O131-30)^2, 1))) -> 0 | Z131: =IF(U131="", 0, IF(U131>0.05, 0.042*U131+0.09*LN(U131)+0.477, 0.2)) -> 0 | AA131: =IF(U131="",0,V131*W131*X131*Y131*Z131) -> 0 | AB131: =IF(Z131=0, 0, AA131/Z131) -> 0 | AC131: =U131 ->  | AD131: =SUM(AC$3:AC131) -> 4 | AE131: =SUM(AC$3:AC130) -> 4 | AF131: 0.7697664925 | AG131: 0.7697664925 | AH131: 0 | AI131: 0
A132: =page3!A$10 -> 0 | B132: =page3!B$10 -> 0 | C132: =page3!C$10 -> 0 | D132: =page3!D$10 -> 0 | E132: 10 | R132: 130 | S132: 000010 | T132: =page3!E$10 -> 0 | V132: 0 | W132: 0 | X132: 0 | Y132: 0 | Z132: 0 | AA132: 0 | AB132: 0 | AD132: =SUM(AC$3:AC132) -> 4 | AE132: =SUM(AC$3:AC131) -> 4 | AF132: =IF(AD132="", 0, IF(AD132>0.05, 0.042*AD132+0.09*LN(AD132)+0.477, 0.2)) -> 0.7697664925 | AG132: =IF(AE132="", 0, IF(AE132>0.05, 0.042*AE132+0.09*LN(AE132)+0.477, 0.2)) -> 0.7697664925 | AH132: =AF132-AG132 -> 0 | AI132: =AB132*AH132 -> 0
A133: =page3!A$10 -> 0 | B133: =page3!B$10 -> 0 | C133: =page3!C$10 -> 0 | D133: =page3!D$10 -> 0 | E133: 11 | F133: =IF($A133=0,"", INDEX(F$501:F$1595,MATCH($S133,$S$501:$S$1595,0))) ->  | R133: 131 | S133: 000011 | T133: =page3!E$10 -> 0 | V133: 0 | W133: 0 | X133: 0 | Y133: 0 | Z133: 0 | AA133: 0 | AB133: 0 | AD133: =SUM(AC$3:AC133) -> 4 | AE133: =SUM(AC$3:AC132) -> 4 | AF133: 0.7697664925 | AG133: 0.7697664925 | AH133: 0 | AI133: 0
A134: =page3!A$10 -> 0 | B134: =page3!B$10 -> 0 | C134: =page3!C$10 -> 0 | D134: =page3!D$10 -> 0 | E134: 12 | R134: 132 | S134: 000012 | T134: =page3!E$10 -> 0 | V134: 0 | W134: 0 | X134: 0 | Y134: 0 | Z134: 0 | AA134: 0 | AB134: 0 | AD134: =SUM(AC$3:AC134) -> 4 | AE134: =SUM(AC$3:AC133) -> 4 | AF134: 0.7697664925 | AG134: 0.7697664925 | AH134: 0 | AI134: 0
A135: =page3!A$10 -> 0 | B135: =page3!B$10 -> 0 | C135: =page3!C$10 -> 0 | D135: =page3!D$10 -> 0 | E135: 13 | R135: 133 | S135: 000013 | T135: =page3!E$10 -> 0 | V135: 0 | W135: 0 | X135: 0 | Y135: 0 | Z135: 0 | AA135: 0 | AB135: 0 | AD135: =SUM(AC$3:AC135) -> 4 | AE135: =SUM(AC$3:AC134) -> 4 | AF135: 0.7697664925 | AG135: 0.7697664925 | AH135: 0 | AI135: 0
A136: =page3!A$10 -> 0 | B136: =page3!B$10 -> 0 | C136: =page3!C$10 -> 0 | D136: =page3!D$10 -> 0 | E136: 14 | R136: 134 | S136: 000014 | T136: =page3!E$10 -> 0 | V136: 0 | W136: 0 | X136: 0 | Y136: 0 | Z136: 0 | AA136: 0 | AB136: 0 | AD136: =SUM(AC$3:AC136) -> 4 | AE136: =SUM(AC$3:AC135) -> 4 | AF136: 0.7697664925 | AG136: 0.7697664925 | AH136: 0 | AI136: 0
A137: =page3!A$10 -> 0 | B137: =page3!B$10 -> 0 | C137: =page3!C$10 -> 0 | D137: =page3!D$10 -> 0 | E137: 15 | R137: 135 | S137: 000015 | T137: =page3!E$10 -> 0 | V137: 0 | W137: 0 | X137: 0 | Y137: 0 | Z137: 0 | AA137: 0 | AB137: 0 | AD137: =SUM(AC$3:AC137) -> 4 | AE137: =SUM(AC$3:AC136) -> 4 | AF137: 0.7697664925 | AG137: 0.7697664925 | AH137: 0 | AI137: 0
A138: =page3!A$11 -> 0 | B138: =page3!B$11 -> 0 | C138: =page3!C$11 -> 0 | D138: =page3!D$11 -> 0 | E138: 1 | R138: 136 | S138: 00001 | T138: =page3!E$11 -> 0 | V138: 0 | W138: 0 | X138: 0 | Y138: 0 | Z138: 0 | AA138: 0 | AB138: 0 | AD138: =SUM(AC$3:AC138) -> 4 | AE138: =SUM(AC$3:AC137) -> 4 | AF138: 0.7697664925 | AG138: 0.7697664925 | AH138: 0 | AI138: 0
A139: =page3!A$11 -> 0 | B139: =page3!B$11 -> 0 | C139: =page3!C$11 -> 0 | D139: =page3!D$11 -> 0 | E139: 2 | R139: 137 | S139: 00002 | T139: =page3!E$11 -> 0 | V139: 0 | W139: 0 | X139: 0 | Y139: 0 | Z139: 0 | AA139: 0 | AB139: 0 | AD139: =SUM(AC$3:AC139) -> 4 | AE139: =SUM(AC$3:AC138) -> 4 | AF139: 0.7697664925 | AG139: 0.7697664925 | AH139: 0 | AI139: 0
A140: =page3!A$11 -> 0 | B140: =page3!B$11 -> 0 | C140: =page3!C$11 -> 0 | D140: =page3!D$11 -> 0 | E140: 3 | R140: 138 | S140: 00003 | T140: =page3!E$11 -> 0 | V140: 0 | W140: 0 | X140: 0 | Y140: 0 | Z140: 0 | AA140: 0 | AB140: 0 | AD140: =SUM(AC$3:AC140) -> 4 | AE140: =SUM(AC$3:AC139) -> 4 | AF140: 0.7697664925 | AG140: 0.7697664925 | AH140: 0 | AI140: 0
A141: =page3!A$11 -> 0 | B141: =page3!B$11 -> 0 | C141: =page3!C$11 -> 0 | D141: =page3!D$11 -> 0 | E141: 4 | R141: 139 | S141: 00004 | T141: =page3!E$11 -> 0 | V141: 0 | W141: 0 | X141: 0 | Y141: 0 | Z141: 0 | AA141: 0 | AB141: 0 | AD141: =SUM(AC$3:AC141) -> 4 | AE141: =SUM(AC$3:AC140) -> 4 | AF141: 0.7697664925 | AG141: 0.7697664925 | AH141: 0 | AI141: 0
A142: =page3!A$11 -> 0 | B142: =page3!B$11 -> 0 | C142: =page3!C$11 -> 0 | D142: =page3!D$11 -> 0 | E142: 5 | R142: 140 | S142: 00005 | T142: =page3!E$11 -> 0 | V142: 0 | W142: 0 | X142: 0 | Y142: 0 | Z142: 0 | AA142: 0 | AB142: 0 | AD142: =SUM(AC$3:AC142) -> 4 | AE142: =SUM(AC$3:AC141) -> 4 | AF142: 0.7697664925 | AG142: 0.7697664925 | AH142: 0 | AI142: 0
A143: =page3!A$11 -> 0 | B143: =page3!B$11 -> 0 | C143: =page3!C$11 -> 0 | D143: =page3!D$11 -> 0 | E143: 6 | F143: =IF($A143=0,"", INDEX(F$501:F$1595,MATCH($S143,$S$501:$S$1595,0))) ->  | R143: 141 | S143: 00006 | T143: =page3!E$11 -> 0 | V143: 0 | W143: 0 | X143: 0 | Y143: 0 | Z143: 0 | AA143: 0 | AB143: 0 | AD143: =SUM(AC$3:AC143) -> 4 | AE143: =SUM(AC$3:AC142) -> 4 | AF143: 0.7697664925 | AG143: 0.7697664925 | AH143: 0 | AI143: 0
A144: =page3!A$11 -> 0 | B144: =page3!B$11 -> 0 | C144: =page3!C$11 -> 0 | D144: =page3!D$11 -> 0 | E144: 7 | R144: 142 | S144: 00007 | T144: =page3!E$11 -> 0 | V144: 0 | W144: 0 | X144: 0 | Y144: 0 | Z144: 0 | AA144: 0 | AB144: 0 | AD144: =SUM(AC$3:AC144) -> 4 | AE144: =SUM(AC$3:AC143) -> 4 | AF144: 0.7697664925 | AG144: 0.7697664925 | AH144: 0 | AI144: 0
A145: =page3!A$11 -> 0 | B145: =page3!B$11 -> 0 | C145: =page3!C$11 -> 0 | D145: =page3!D$11 -> 0 | E145: 8 | R145: 143 | S145: 00008 | T145: =page3!E$11 -> 0 | V145: 0 | W145: 0 | X145: 0 | Y145: 0 | Z145: 0 | AA145: 0 | AB145: 0 | AD145: =SUM(AC$3:AC145) -> 4 | AE145: =SUM(AC$3:AC144) -> 4 | AF145: 0.7697664925 | AG145: 0.7697664925 | AH145: 0 | AI145: 0
A146: =page3!A$11 -> 0 | B146: =page3!B$11 -> 0 | C146: =page3!C$11 -> 0 | D146: =page3!D$11 -> 0 | E146: 9 | R146: 144 | S146: 00009 | T146: =page3!E$11 -> 0 | V146: 0 | W146: 0 | X146: 0 | Y146: 0 | Z146: 0 | AA146: 0 | AB146: 0 | AD146: =SUM(AC$3:AC146) -> 4 | AE146: =SUM(AC$3:AC145) -> 4 | AF146: 0.7697664925 | AG146: 0.7697664925 | AH146: 0 | AI146: 0
A147: =page3!A$11 -> 0 | B147: =page3!B$11 -> 0 | C147: =page3!C$11 -> 0 | D147: =page3!D$11 -> 0 | E147: 10 | R147: 145 | S147: 000010 | T147: =page3!E$11 -> 0 | V147: 0 | W147: 0 | X147: 0 | Y147: 0 | Z147: 0 | AA147: 0 | AB147: 0 | AD147: =SUM(AC$3:AC147) -> 4 | AE147: =SUM(AC$3:AC146) -> 4 | AF147: 0.7697664925 | AG147: 0.7697664925 | AH147: 0 | AI147: 0
A148: =page3!A$11 -> 0 | B148: =page3!B$11 -> 0 | C148: =page3!C$11 -> 0 | D148: =page3!D$11 -> 0 | E148: 11 | R148: 146 | S148: 000011 | T148: =page3!E$11 -> 0 | V148: 0 | W148: 0 | X148: 0 | Y148: 0 | Z148: 0 | AA148: 0 | AB148: 0 | AD148: =SUM(AC$3:AC148) -> 4 | AE148: =SUM(AC$3:AC147) -> 4 | AF148: 0.7697664925 | AG148: 0.7697664925 | AH148: 0 | AI148: 0
A149: =page3!A$11 -> 0 | B149: =page3!B$11 -> 0 | C149: =page3!C$11 -> 0 | D149: =page3!D$11 -> 0 | E149: 12 | R149: 147 | S149: 000012 | T149: =page3!E$11 -> 0 | V149: 0 | W149: 0 | X149: 0 | Y149: 0 | Z149: 0 | AA149: 0 | AB149: 0 | AD149: =SUM(AC$3:AC149) -> 4 | AE149: =SUM(AC$3:AC148) -> 4 | AF149: 0.7697664925 | AG149: 0.7697664925 | AH149: 0 | AI149: 0
A150: =page3!A$11 -> 0 | B150: =page3!B$11 -> 0 | C150: =page3!C$11 -> 0 | D150: =page3!D$11 -> 0 | E150: 13 | R150: 148 | S150: 000013 | T150: =page3!E$11 -> 0 | V150: 0 | W150: 0 | X150: 0 | Y150: 0 | Z150: 0 | AA150: 0 | AB150: 0 | AD150: =SUM(AC$3:AC150) -> 4 | AE150: =SUM(AC$3:AC149) -> 4 | AF150: 0.7697664925 | AG150: 0.7697664925 | AH150: 0 | AI150: 0
A151: =page3!A$11 -> 0 | B151: =page3!B$11 -> 0 | C151: =page3!C$11 -> 0 | D151: =page3!D$11 -> 0 | E151: 14 | R151: 149 | S151: 000014 | T151: =page3!E$11 -> 0 | V151: 0 | W151: 0 | X151: 0 | Y151: 0 | Z151: 0 | AA151: 0 | AB151: 0 | AD151: =SUM(AC$3:AC151) -> 4 | AE151: =SUM(AC$3:AC150) -> 4 | AF151: 0.7697664925 | AG151: 0.7697664925 | AH151: 0 | AI151: 0
A152: =page3!A$11 -> 0 | B152: =page3!B$11 -> 0 | C152: =page3!C$11 -> 0 | D152: =page3!D$11 -> 0 | E152: 15 | R152: 150 | S152: 000015 | T152: =page3!E$11 -> 0 | V152: 0 | W152: 0 | X152: 0 | Y152: 0 | Z152: 0 | AA152: 0 | AB152: 0 | AD152: =SUM(AC$3:AC152) -> 4 | AE152: =SUM(AC$3:AC151) -> 4 | AF152: 0.7697664925 | AG152: 0.7697664925 | AH152: 0 | AI152: 0
A500: Task | B500: Location | C500: Tool | D500: Variation | E500: counter | F500: Subject | G500: TASK1 | H500: LOCATION1 | I500: TOOL1 | J500: sub_task | K500: __duration_of_the_subtask | L500: Intensity_of_exertion___MVC_ | M500: Efforts_per_minute | N500: Duration_per_exertion__in_second | O500: Hand_wrist_posture__in_degree_ | P500: Analyst | Q500: No | S500: id
A501: Damp Mopping | B501: Hard Flooring (damp mopping) | C501: Flat Mop (hard floor) | D501: Solution poured on floor, area with or without obstacles | E501: 1 | F501: P010_1 | G501: Damp_mopping | H501: Hard floor | I501: 18" flat mop | J501: Handle Sign | K501: 0.0151 | L501: 0.04 | M501: 12.68 | N501: 4.03 | O501: -10 | P501: NH | Q501: 10 | S501: =CONCATENATE(A501,B501,C501,D501,E501) -> Damp MoppingHard Flooring (damp mopping)Flat Mop (hard floor)Solution poured on floor, area with or without obstacles1
A502: Damp Mopping | B502: Hard Flooring (damp mopping) | C502: Flat Mop (hard floor) | D502: Solution poured on floor, area with or without obstacles | E502: 2 | F502: P010_1 | G502: Damp_mopping | H502: Hard floor | I502: 18" flat mop | J502: Mopping | K502: 0.7612 | L502: 0.15 | M502: 3.73 | N502: 10.78 | O502: -25 | P502: NH | Q502: 10 | S502: =CONCATENATE(A502,B502,C502,D502,E502) -> Damp MoppingHard Flooring (damp mopping)Flat Mop (hard floor)Solution poured on floor, area with or without obstacles2
A503: Damp Mopping | B503: Hard Flooring (damp mopping) | C503: Flat Mop (hard floor) | D503: Solution poured on floor, area with or without obstacles | E503: 3 | F503: P010_1 | G503: Damp_mopping | H503: Hard floor | I503: 18" flat mop | J503: Walking | K503: 0.2237 | L503: 0.08 | M503: 2.95 | N503: 15.3 | O503: 10 | P503: NH | Q503: 10 | S503: Damp MoppingHard Flooring (damp mopping)Flat Mop (hard floor)Solution poured on floor, area with or without obstacles3
A504: Damp Mopping | B504: Hard Flooring (damp mopping) | C504: Flat Mop (hard floor) | D504: Solution poured on floor, area with or without obstacles | E504: 4 | Q504: 10 | S504: Damp MoppingHard Flooring (damp mopping)Flat Mop (hard floor)Solution poured on floor, area with or without obstacles4
A505: Damp Mopping | B505: Hard Flooring (damp mopping) | C505: Flat Mop (hard floor) | D505: Solution poured on floor, area with or without obstacles | E505: 5 | Q505: 10 | S505: Damp MoppingHard Flooring (damp mopping)Flat Mop (hard floor)Solution poured on floor, area with or without obstacles5
A506: Damp Mopping | B506: Hard Flooring (damp mopping) | C506: Flat Mop (hard floor) | D506: Solution poured on floor, area with or without obstacles | E506: 6 | Q506: 10 | S506: Damp MoppingHard Flooring (damp mopping)Flat Mop (hard floor)Solution poured on floor, area with or without obstacles6
A507: Damp Mopping | B507: Hard Flooring (damp mopping) | C507: Flat Mop (hard floor) | D507: Solution poured on floor, area with or without obstacles | E507: 7 | Q507: 10 | S507: Damp MoppingHard Flooring (damp mopping)Flat Mop (hard floor)Solution poured on floor, area with or without obstacles7
A508: Damp Mopping | B508: Hard Flooring (damp mopping) | C508: Flat Mop (hard floor) | D508: Solution poured on floor, area with or without obstacles | E508: 8 | Q508: 10 | S508: Damp MoppingHard Flooring (damp mopping)Flat Mop (hard floor)Solution poured on floor, area with or without obstacles8
A509: Damp Mopping | B509: Hard Flooring (damp mopping) | C509: Flat Mop (hard floor) | D509: Solution poured on floor, area with or without obstacles | E509: 9 | Q509: 10 | S509: Damp MoppingHard Flooring (damp mopping)Flat Mop (hard floor)Solution poured on floor, area with or without obstacles9
A510: Damp Mopping | B510: Hard Flooring (damp mopping) | C510: Flat Mop (hard floor) | D510: Solution poured on floor, area with or without obstacles | E510: 10 | Q510: 10 | S510: Damp MoppingHard Flooring (damp mopping)Flat Mop (hard floor)Solution poured on floor, area with or without obstacles10
A511: Damp Mopping | B511: Hard Flooring (damp mopping) | C511: Flat Mop (hard floor) | D511: Solution poured on floor, area with or without obstacles | E511: 11 | Q511: 10 | S511: Damp MoppingHard Flooring (damp mopping)Flat Mop (hard floor)Solution poured on floor, area with or without obstacles11
A512: Damp Mopping | B512: Hard Flooring (damp mopping) | C512: Flat Mop (hard floor) | D512: Solution poured on floor, area with or without obstacles | E512: 12 | Q512: 10 | S512: Damp MoppingHard Flooring (damp mopping)Flat Mop (hard floor)Solution poured on floor, area with or without obstacles12
A513: Damp Mopping | B513: Hard Flooring (damp mopping) | C513: Flat Mop (hard floor) | D513: Solution poured on floor, area with or without obstacles | E513: 13 | Q513: 10 | S513: Damp MoppingHard Flooring (damp mopping)Flat Mop (hard floor)Solution poured on floor, area with or without obstacles13
A514: Damp Mopping | B514: Hard Flooring (damp mopping) | C514: Flat Mop (hard floor) | D514: Solution poured on floor, area with or without obstacles | E514: 14 | Q514: 10 | S514: Damp MoppingHard Flooring (damp mopping)Flat Mop (hard floor)Solution poured on floor, area with or without obstacles14
A515: Damp Mopping | B515: Hard Flooring (damp mopping) | C515: Flat Mop (hard floor) | D515: Solution poured on floor, area with or without obstacles | E515: 15 | Q515: 10 | S515: Damp MoppingHard Flooring (damp mopping)Flat Mop (hard floor)Solution poured on floor, area with or without obstacles15
A516: Damp Mopping | B516: Hard Flooring (damp mopping) | C516: Flat Mop (hard floor) | D516: Use bucket, area with obstacles | E516: 1 | F516: P008 | G516: Damp_mopping | H516: Hard floor | I516: 18" flat mop | J516: Mopping | K516: 0.302669799 | L516: 0.15 | M516: 2.411827721 | N516: 23.04332416 | O516: 15 | P516: SB | Q516: 8 | S516: Damp MoppingHard Flooring (damp mopping)Flat Mop (hard floor)Use bucket, area with obstacles1
A517: Damp Mopping | B517: Hard Flooring (damp mopping) | C517: Flat Mop (hard floor) | D517: Use bucket, area with obstacles | E517: 2 | F517: P008 | G517: Damp_mopping | H517: Hard floor | I517: 18" flat mop | J517: Prep | K517: 0.114684152 | L517: 0.05 | M517: 2.021168549 | N517: 7.92474697 | O517: 15 | P517: SB | Q517: 8 | S517: Damp MoppingHard Flooring (damp mopping)Flat Mop (hard floor)Use bucket, area with obstacles2
A518: Damp Mopping | B518: Hard Flooring (damp mopping) | C518: Flat Mop (hard floor) | D518: Use bucket, area with obstacles | E518: 3 | F518: P008 | G518: Damp_mopping | H518: Hard floor | I518: 18" flat mop | J518: Rinse | K518: 0.080692232 | L518: 0.3 | M518: 13.12756889 | N518: 2.350868515 | O518: -5 | P518: SB | Q518: 8 | S518: Damp MoppingHard Flooring (damp mopping)Flat Mop (hard floor)Use bucket, area with obstacles3
A519: Damp Mopping | B519: Hard Flooring (damp mopping) | C519: Flat Mop (hard floor) | D519: Use bucket, area with obstacles | E519: 4 | F519: P008 | G519: Damp_mopping | H519: Hard floor | I519: 18" flat mop | J519: Walk | K519: 0.501953817 | L519: 0.05 | M519: 1.009858577 | N519: 7.854746209 | O519: 5 | P519: SB | Q519: 8 | S519: Damp MoppingHard Flooring (damp mopping)Flat Mop (hard floor)Use bucket, area with obstacles4
A520: Damp Mopping | B520: Hard Flooring (damp mopping) | C520: Flat Mop (hard floor) | D520: Use bucket, area with obstacles | E520: 5 | Q520: 8 | S520: Damp MoppingHard Flooring (damp mopping)Flat Mop (hard floor)Use bucket, area with obstacles5
A521: Damp Mopping | B521: Hard Flooring (damp mopping) | C521: Flat Mop (hard floor) | D521: Use bucket, area with obstacles | E521: 6 | Q521: 8 | S521: Damp MoppingHard Flooring (damp mopping)Flat Mop (hard floor)Use bucket, area with obstacles6
A522: Damp Mopping | B522: Hard Flooring (damp mopping) | C522: Flat Mop (hard floor) | D522: Use bucket, area with obstacles | E522: 7 | Q522: 8 | S522: Damp MoppingHard Flooring (damp mopping)Flat Mop (hard floor)Use bucket, area with obstacles7
A523: Damp Mopping | B523: Hard Flooring (damp mopping) | C523: Flat Mop (hard floor) | D523: Use bucket, area with obstacles | E523: 8 | Q523: 8 | S523: Damp MoppingHard Flooring (damp mopping)Flat Mop (hard floor)Use bucket, area with obstacles8
A524: Damp Mopping | B524: Hard Flooring (damp mopping) | C524: Flat Mop (hard floor) | D524: Use bucket, area with obstacles | E524: 9 | Q524: 8 | S524: Damp MoppingHard Flooring (damp mopping)Flat Mop (hard floor)Use bucket, area with obstacles9
A525: Damp Mopping | B525: Hard Flooring (damp mopping) | C525: Flat Mop (hard floor) | D525: Use bucket, area with obstacles | E525: 10 | Q525: 8 | S525: Damp MoppingHard Flooring (damp mopping)Flat Mop (hard floor)Use bucket, area with obstacles10
A526: Damp Mopping | B526: Hard Flooring (damp mopping) | C526: Flat Mop (hard floor) | D526: Use bucket, area with obstacles | E526: 11 | Q526: 8 | S526: Damp MoppingHard Flooring (damp mopping)Flat Mop (hard floor)Use bucket, area with obstacles11
A527: Damp Mopping | B527: Hard Flooring (damp mopping) | C527: Flat Mop (hard floor) | D527: Use bucket, area with obstacles | E527: 12 | Q527: 8 | S527: Damp MoppingHard Flooring (damp mopping)Flat Mop (hard floor)Use bucket, area with obstacles12
A528: Damp Mopping | B528: Hard Flooring (damp mopping) | C528: Flat Mop (hard floor) | D528: Use bucket, area with obstacles | E528: 13 | Q528: 8 | S528: Damp MoppingHard Flooring (damp mopping)Flat Mop (hard floor)Use bucket, area with obstacles13
A529: Damp Mopping | B529: Hard Flooring (damp mopping) | C529: Flat Mop (hard floor) | D529: Use bucket, area with obstacles | E529: 14 | Q529: 8 | S529: Damp MoppingHard Flooring (damp mopping)Flat Mop (hard floor)Use bucket, area with obstacles14
A530: Damp Mopping | B530: Hard Flooring (damp mopping) | C530: Flat Mop (hard floor) | D530: Use bucket, area with obstacles | E530: 15 | Q530: 8 | S530: Damp MoppingHard Flooring (damp mopping)Flat Mop (hard floor)Use bucket, area with obstacles15
A531: Damp Mopping | B531: Hard Flooring (damp mopping) | C531: Flat Mop (hard floor) | D531: Use bucket, area without obstacles | E531: 1 | F531: P009_1 | G531: Damp_mopping | H531: Hard floor | I531: 18" flat mop | J531: Mopping | K531: 0.907 | L531: 0.16 | M531: 2.61 | N531: 21.83 | O531: 15 | P531: JL | Q531: 9 | S531: Damp MoppingHard Flooring (damp mopping)Flat Mop (hard floor)Use bucket, area without obstacles1
A532: Damp Mopping | B532: Hard Flooring (damp mopping) | C532: Flat Mop (hard floor) | D532: Use bucket, area without obstacles | E532: 2 | F532: P009_1 | G532: Damp_mopping | H532: Hard floor | I532: 18" flat mop | J532: Refill | K532: 0.057 | L532: 0.25 | M532: 2.18 | N532: 6.15 | O532: 5 | P532: JL | Q532: 9 | S532: Damp MoppingHard Flooring (damp mopping)Flat Mop (hard floor)Use bucket, area without obstacles2
A533: Damp Mopping | B533: Hard Flooring (damp mopping) | C533: Flat Mop (hard floor) | D533: Use bucket, area without obstacles | E533: 3 | F533: P009_1 | G533: Damp_mopping | H533: Hard floor | I533: 18" flat mop | J533: Sign Place | K533: 0.035 | L533: 0 | M533: 0 | O533: 0 | P533: JL | Q533: 9 | S533: Damp MoppingHard Flooring (damp mopping)Flat Mop (hard floor)Use bucket, area without obstacles3
A534: Damp Mopping | B534: Hard Flooring (damp mopping) | C534: Flat Mop (hard floor) | D534: Use bucket, area without obstacles | E534: 4 | Q534: 9 | S534: Damp MoppingHard Flooring (damp mopping)Flat Mop (hard floor)Use bucket, area without obstacles4
A535: Damp Mopping | B535: Hard Flooring (damp mopping) | C535: Flat Mop (hard floor) | D535: Use bucket, area without obstacles | E535: 5 | Q535: 9 | S535: Damp MoppingHard Flooring (damp mopping)Flat Mop (hard floor)Use bucket, area without obstacles5
A536: Damp Mopping | B536: Hard Flooring (damp mopping) | C536: Flat Mop (hard floor) | D536: Use bucket, area without obstacles | E536: 6 | Q536: 9 | S536: Damp MoppingHard Flooring (damp mopping)Flat Mop (hard floor)Use bucket, area without obstacles6
A537: Damp Mopping | B537: Hard Flooring (damp mopping) | C537: Flat Mop (hard floor) | D537: Use bucket, area without obstacles | E537: 7 | Q537: 9 | S537: Damp MoppingHard Flooring (damp mopping)Flat Mop (hard floor)Use bucket, area without obstacles7
A538: Damp Mopping | B538: Hard Flooring (damp mopping) | C538: Flat Mop (hard floor) | D538: Use bucket, area without obstacles | E538: 8 | Q538: 9 | S538: Damp MoppingHard Flooring (damp mopping)Flat Mop (hard floor)Use bucket, area without obstacles8
A539: Damp Mopping | B539: Hard Flooring (damp mopping) | C539: Flat Mop (hard floor) | D539: Use bucket, area without obstacles | E539: 9 | Q539: 9 | S539: Damp MoppingHard Flooring (damp mopping)Flat Mop (hard floor)Use bucket, area without obstacles9
A540: Damp Mopping | B540: Hard Flooring (damp mopping) | C540: Flat Mop (hard floor) | D540: Use bucket, area without obstacles | E540: 10 | Q540: 9 | S540: Damp MoppingHard Flooring (damp mopping)Flat Mop (hard floor)Use bucket, area without obstacles10
A541: Damp Mopping | B541: Hard Flooring (damp mopping) | C541: Flat Mop (hard floor) | D541: Use bucket, area without obstacles | E541: 11 | Q541: 9 | S541: Damp MoppingHard Flooring (damp mopping)Flat Mop (hard floor)Use bucket, area without obstacles11
A542: Damp Mopping | B542: Hard Flooring (damp mopping) | C542: Flat Mop (hard floor) | D542: Use bucket, area without obstacles | E542: 12 | Q542: 9 | S542: Damp MoppingHard Flooring (damp mopping)Flat Mop (hard floor)Use bucket, area without obstacles12
A543: Damp Mopping | B543: Hard Flooring (damp mopping) | C543: Flat Mop (hard floor) | D543: Use bucket, area without obstacles | E543: 13 | Q543: 9 | S543: Damp MoppingHard Flooring (damp mopping)Flat Mop (hard floor)Use bucket, area without obstacles13
A544: Damp Mopping | B544: Hard Flooring (damp mopping) | C544: Flat Mop (hard floor) | D544: Use bucket, area without obstacles | E544: 14 | Q544: 9 | S544: Damp MoppingHard Flooring (damp mopping)Flat Mop (hard floor)Use bucket, area without obstacles14
A545: Damp Mopping | B545: Hard Flooring (damp mopping) | C545: Flat Mop (hard floor) | D545: Use bucket, area without obstacles | E545: 15 | Q545: 9 | S545: Damp MoppingHard Flooring (damp mopping)Flat Mop (hard floor)Use bucket, area without obstacles15
A546: Damp Mopping | B546: Hard Flooring (damp mopping) | C546: String Wet Mop | D546: None | E546: 1 | F546: P001 | G546: Damp_mopping | H546: Hard floor | I546: 20 oz. mop head using single bucket & wringer | J546: damp mopping | K546: 0.806986981 | L546: 0.25 | M546: 4.148516905 | N546: 13.15188889 | O546: 5 | P546: SB | Q546: 11 | S546: Damp MoppingHard Flooring (damp mopping)String Wet MopNone1
A547: Damp Mopping | B547: Hard Flooring (damp mopping) | C547: String Wet Mop | D547: None | E547: 2 | F547: P001 | G547: Damp_mopping | H547: Hard floor | I547: 20 oz. mop head using single bucket & wringer | J547: rinse | K547: 0.05083695 | L547: 0.15 | M547: 14.63414634 | N547: 1.75 | O547: -5 | P547: SB | Q547: 11 | S547: Damp MoppingHard Flooring (damp mopping)String Wet MopNone2
... 1048 more rows

Sheet page4a (hidden)
A1: Revised Strain Index Calculations (Standard Work Pace) | T1: RSI calculation | AB1: CUSI calculation
A2: Task | B2: Location | C2: Tool | D2: Variation | E2: counter | F2: Subject | G2: TASK1 | H2: LOCATION1 | I2: TOOL1 | J2: sub_task | K2: __duration_of_the_subtask | L2: Intensity_of_exertion___MVC_ | M2: Efforts_per_minute | N2: Duration_per_exertion__in_second | O2: Hand_wrist_posture__in_degree_ | P2: Analyst | Q2: No | R2: Order | S2: id | T2: T_task | U2: T_subtask | V2: IM | W2: EM | X2: DM | Y2: PM | Z2: HM | AA2: RSI | AB2: HICOSI | AC2: subTask_H | AD2: Hk | AE2: Hk-1 | AF2: HMk | AG2: HMk-1 | AH2: DeltaHM | AI2: DeltaCOSI | AJ2: CUSI | AK2: Risk Level
A3: =page3!A$2 -> Glass Door Cleaning | B3: =page3!B$2 -> Glass Doors | C3: =page3!C$2 -> Cleaning cloth, long handled wiping tool | D3: =page3!D$2 -> High level cleaning | E3: 1 | F3: =IF($A3=0,"", INDEX($F501:$F1595,MATCH($S3,$S501:$S1595,0))) -> P003 | G3: =IF($A3=0,"", INDEX(G$501:G$1959,MATCH($S3,$S$501:$S$1959,0))) -> Glass_door_cleaning | H3: Glass door | I3: Cloth, trigger sprayer | J3: Glass cleaning | K3: 0.873331493 | L3: 0.2 | M3: =IF($A3=0,"", INDEX(M$501:M$1959,MATCH($S3,$S$501:$S$1959,0))*page5!AJ3/page5!AK3) -> 8.771377515 | N3: =IF($A3=0,"", INDEX(N$501:N$1959,MATCH($S3,$S$501:$S$1959,0))) -> 4.016576944 | O3: 50 | P3: WL | Q3: 89 | R3: 1 | S3: =CONCATENATE(A3,B3,C3,D3,E3) -> Glass Door CleaningGlass DoorsCleaning cloth, long handled wiping toolHigh level cleaning1 | T3: =page3!E$2 -> 4 | U3: =IF(J3="", "", IF(J3=0, "", T3*K3)) -> 3.493325972 | V3: =IF(U3="", 0, IF(L3>0.4, 36*L3^3-33.3*L3^2+24.77*L3-1.86, 30*L3^3-15.6*L3^2+13*L3+0.4)) -> 2.616 | W3: =IF(U3="",0, IF(M3>90, 0.00334*M3^1.96, 0.1+0.25*M3)) -> 2.292844379 | X3: =IF(U3="", 0, IF(N3>60, 19.17*LN(N3)-59.44, 0.45+0.31*N3)) -> 1.695138853 | Y3: =IF(U3="",0, IF(O3<0, 1.2*EXP(-0.009*O3)-0.2, IF(O3>30, 1+0.00028*(O3-30)^2, 1))) -> 1.112 | Z3: =IF(U3="", 0, IF(U3>0.05, 0.042*U3+0.09*LN(U3)+0.477, 0.2)) -> 0.7362965763 | AA3: =IF(U3="",0,V3*W3*X3*Y3*Z3) -> 8.324826002 | AB3: =IF(Z3=0, 0, AA3/Z3) -> 11.30634892 | AC3: =U3 -> 3.493325972 | AD3: =AC$3 -> 3.493325972 | AF3: =IF(AD3="", 0, IF(AD3>0.05, 0.042*AD3+0.09*LN(AD3)+0.477, 0.2)) -> 0.7362965763 | AG3: =IF(AE3="", 0, IF(AE3>0.05, 0.042*AE3+0.09*LN(AE3)+0.477, 0.2)) -> 0 | AH3: =AF3-AG3 -> 0.7362965763 | AI3: =AB3*AH3 -> 8.324826002 | AJ3: =SUM(AI3:AI152) -> 8.676025394 | AK3: =IF(AJ3<7.5, "Low risk", IF(AJ3>=15, "High risk", "Moderate risk")) -> Moderate risk
A4: =page3!A$2 -> Glass Door Cleaning | B4: =page3!B$2 -> Glass Doors | C4: =page3!C$2 -> Cleaning cloth, long handled wiping tool | D4: =page3!D$2 -> High level cleaning | E4: 2 | F4: P003 | G4: Glass_door_cleaning | H4: Glass door | I4: Cloth, trigger sprayer | J4: Wiping | K4: 0.126668507 | L4: 0.2 | M4: =IF($A4=0,"", INDEX(M$501:M$1959,MATCH($S4,$S$501:$S$1959,0))*page5!AJ4/page5!AK4) -> 7.868816577 | N4: 4.177131685 | O4: 50 | P4: WL | Q4: 89 | R4: 2 | S4: Glass Door CleaningGlass DoorsCleaning cloth, long handled wiping toolHigh level cleaning2 | T4: =page3!E$2 -> 4 | U4: 0.506674028 | V4: 2.616 | W4: 2.067204144 | X4: 1.744910822 | Y4: 1.112 | Z4: 0.4370904409 | AA4: 4.586384265 | AB4: 10.49298689 | AC4: 0.506674028 | AD4: =SUM(AC$3:AC4) -> 4 | AE4: =AC$3 -> 3.493325972 | AF4: =IF(AD4="", 0, IF(AD4>0.05, 0.042*AD4+0.09*LN(AD4)+0.477, 0.2)) -> 0.7697664925 | AG4: 0.7362965763 | AH4: =AF4-AG4 -> 0.03346991621 | AI4: =AB4*AH4 -> 0.3511993919
A5: =page3!A$2 -> Glass Door Cleaning | B5: =page3!B$2 -> Glass Doors | C5: =page3!C$2 -> Cleaning cloth, long handled wiping tool | D5: =page3!D$2 -> High level cleaning | E5: 3 | F5: 0 | G5: 0 | H5: 0 | I5: 0 | J5: 0 | K5: 0 | L5: 0 | M5: =IF($A5=0,"", INDEX(M$501:M$1959,MATCH($S5,$S$501:$S$1959,0))*page5!AJ5/page5!AK5) -> 0 | N5: 0 | O5: 0 | P5: 0 | Q5: 89 | R5: 3 | S5: Glass Door CleaningGlass DoorsCleaning cloth, long handled wiping toolHigh level cleaning3 | T5: =page3!E$2 -> 4 | V5: 0 | W5: 0 | X5: 0 | Y5: 0 | Z5: 0 | AA5: 0 | AB5: 0 | AD5: =SUM(AC$3:AC5) -> 4 | AE5: =SUM(AC$3:AC4) -> 4 | AF5: 0.7697664925 | AG5: 0.7697664925 | AH5: 0 | AI5: 0
A6: =page3!A$2 -> Glass Door Cleaning | B6: =page3!B$2 -> Glass Doors | C6: =page3!C$2 -> Cleaning cloth, long handled wiping tool | D6: =page3!D$2 -> High level cleaning | E6: 4 | F6: 0 | G6: 0 | H6: 0 | I6: 0 | J6: 0 | K6: 0 | L6: 0 | M6: =IF($A6=0,"", INDEX(M$501:M$1959,MATCH($S6,$S$501:$S$1959,0))*page5!AJ6/page5!AK6) -> 0 | N6: 0 | O6: 0 | P6: 0 | Q6: 89 | R6: 4 | S6: Glass Door CleaningGlass DoorsCleaning cloth, long handled wiping toolHigh level cleaning4 | T6: =page3!E$2 -> 4 | V6: 0 | W6: 0 | X6: 0 | Y6: 0 | Z6: 0 | AA6: 0 | AB6: 0 | AD6: =SUM(AC$3:AC6) -> 4 | AE6: =SUM(AC$3:AC5) -> 4 | AF6: 0.7697664925 | AG6: 0.7697664925 | AH6: 0 | AI6: 0
A7: =page3!A$2 -> Glass Door Cleaning | B7: =page3!B$2 -> Glass Doors | C7: =page3!C$2 -> Cleaning cloth, long handled wiping tool | D7: =page3!D$2 -> High level cleaning | E7: 5 | F7: 0 | G7: 0 | H7: 0 | I7: 0 | J7: 0 | K7: 0 | L7: 0 | M7: =IF($A7=0,"", INDEX(M$501:M$1959,MATCH($S7,$S$501:$S$1959,0))*page5!AJ7/page5!AK7) -> 0 | N7: 0 | O7: 0 | P7: 0 | Q7: 89 | R7: 5 | S7: Glass Door CleaningGlass DoorsCleaning cloth, long handled wiping toolHigh level cleaning5 | T7: =page3!E$2 -> 4 | V7: 0 | W7: 0 | X7: 0 | Y7: 0 | Z7: 0 | AA7: 0 | AB7: 0 | AD7: =SUM(AC$3:AC7) -> 4 | AE7: =SUM(AC$3:AC6) -> 4 | AF7: 0.7697664925 | AG7: 0.7697664925 | AH7: 0 | AI7: 0
A8: =page3!A$2 -> Glass Door Cleaning | B8: =page3!B$2 -> Glass Doors | C8: =page3!C$2 -> Cleaning cloth, long handled wiping tool | D8: =page3!D$2 -> High level cleaning | E8: 6 | F8: 0 | G8: 0 | H8: 0 | I8: 0 | J8: 0 | K8: 0 | L8: 0 | M8: =IF($A8=0,"", INDEX(M$501:M$1959,MATCH($S8,$S$501:$S$1959,0))*page5!AJ8/page5!AK8) -> 0 | N8: 0 | O8: 0 | P8: 0 | Q8: 89 | R8: 6 | S8: Glass Door CleaningGlass DoorsCleaning cloth, long handled wiping toolHigh level cleaning6 | T8: =page3!E$2 -> 4 | V8: 0 | W8: 0 | X8: 0 | Y8: 0 | Z8: 0 | AA8: 0 | AB8: 0 | AD8: =SUM(AC$3:AC8) -> 4 | AE8: =SUM(AC$3:AC7) -> 4 | AF8: 0.7697664925 | AG8: 0.7697664925 | AH8: 0 | AI8: 0
A9: =page3!A$2 -> Glass Door Cleaning | B9: =page3!B$2 -> Glass Doors | C9: =page3!C$2 -> Cleaning cloth, long handled wiping tool | D9: =page3!D$2 -> High level cleaning | E9: 7 | F9: 0 | G9: 0 | H9: 0 | I9: 0 | J9: 0 | K9: 0 | L9: 0 | M9: =IF($A9=0,"", INDEX(M$501:M$1959,MATCH($S9,$S$501:$S$1959,0))*page5!AJ9/page5!AK9) -> 0 | N9: 0 | O9: 0 | P9: 0 | Q9: 89 | R9: 7 | S9: Glass Door CleaningGlass DoorsCleaning cloth, long handled wiping toolHigh level cleaning7 | T9: =page3!E$2 -> 4 | V9: 0 | W9: 0 | X9: 0 | Y9: 0 | Z9: 0 | AA9: 0 | AB9: 0 | AD9: =SUM(AC$3:AC9) -> 4 | AE9: =SUM(AC$3:AC8) -> 4 | AF9: 0.7697664925 | AG9: 0.7697664925 | AH9: 0 | AI9: 0
A10: =page3!A$2 -> Glass Door Cleaning | B10: =page3!B$2 -> Glass Doors | C10: =page3!C$2 -> Cleaning cloth, long handled wiping tool | D10: =page3!D$2 -> High level cleaning | E10: 8 | F10: 0 | G10: 0 | H10: 0 | I10: 0 | J10: 0 | K10: 0 | L10: 0 | M10: =IF($A10=0,"", INDEX(M$501:M$1959,MATCH($S10,$S$501:$S$1959,0))*page5!AJ10/page5!AK10) -> 0 | N10: 0 | O10: 0 | P10: 0 | Q10: 89 | R10: 8 | S10: Glass Door CleaningGlass DoorsCleaning cloth, long handled wiping toolHigh level cleaning8 | T10: =page3!E$2 -> 4 | V10: 0 | W10: 0 | X10: 0 | Y10: 0 | Z10: 0 | AA10: 0 | AB10: 0 | AD10: =SUM(AC$3:AC10) -> 4 | AE10: =SUM(AC$3:AC9) -> 4 | AF10: 0.7697664925 | AG10: 0.7697664925 | AH10: 0 | AI10: 0
A11: =page3!A$2 -> Glass Door Cleaning | B11: =page3!B$2 -> Glass Doors | C11: =page3!C$2 -> Cleaning cloth, long handled wiping tool | D11: =page3!D$2 -> High level cleaning | E11: 9 | F11: 0 | G11: 0 | H11: 0 | I11: 0 | J11: 0 | K11: 0 | L11: 0 | M11: =IF($A11=0,"", INDEX(M$501:M$1959,MATCH($S11,$S$501:$S$1959,0))*page5!AJ11/page5!AK11) -> 0 | N11: 0 | O11: 0 | P11: 0 | Q11: 89 | R11: 9 | S11: Glass Door CleaningGlass DoorsCleaning cloth, long handled wiping toolHigh level cleaning9 | T11: =page3!E$2 -> 4 | V11: 0 | W11: 0 | X11: 0 | Y11: 0 | Z11: 0 | AA11: 0 | AB11: 0 | AD11: =SUM(AC$3:AC11) -> 4 | AE11: =SUM(AC$3:AC10) -> 4 | AF11: 0.7697664925 | AG11: 0.7697664925 | AH11: 0 | AI11: 0
A12: =page3!A$2 -> Glass Door Cleaning | B12: =page3!B$2 -> Glass Doors | C12: =page3!C$2 -> Cleaning cloth, long handled wiping tool | D12: =page3!D$2 -> High level cleaning | E12: 10 | F12: 0 | G12: 0 | H12: 0 | I12: 0 | J12: 0 | K12: 0 | L12: 0 | M12: =IF($A12=0,"", INDEX(M$501:M$1959,MATCH($S12,$S$501:$S$1959,0))*page5!AJ12/page5!AK12) -> 0 | N12: 0 | O12: 0 | P12: 0 | Q12: 89 | R12: 10 | S12: Glass Door CleaningGlass DoorsCleaning cloth, long handled wiping toolHigh level cleaning10 | T12: =page3!E$2 -> 4 | V12: 0 | W12: 0 | X12: 0 | Y12: 0 | Z12: 0 | AA12: 0 | AB12: 0 | AD12: =SUM(AC$3:AC12) -> 4 | AE12: =SUM(AC$3:AC11) -> 4 | AF12: 0.7697664925 | AG12: 0.7697664925 | AH12: 0 | AI12: 0
A13: =page3!A$2 -> Glass Door Cleaning | B13: =page3!B$2 -> Glass Doors | C13: =page3!C$2 -> Cleaning cloth, long handled wiping tool | D13: =page3!D$2 -> High level cleaning | E13: 11 | F13: 0 | G13: =IF($A13=0,"", INDEX(G$501:G$1959,MATCH($S13,$S$501:$S$1959,0))) -> 0 | H13: 0 | I13: 0 | J13: 0 | K13: 0 | L13: 0 | M13: =IF($A13=0,"", INDEX(M$501:M$1959,MATCH($S13,$S$501:$S$1959,0))*page5!AJ13/page5!AK13) -> 0 | N13: 0 | O13: 0 | P13: 0 | Q13: 89 | R13: 11 | S13: Glass Door CleaningGlass DoorsCleaning cloth, long handled wiping toolHigh level cleaning11 | T13: =page3!E$2 -> 4 | V13: 0 | W13: 0 | X13: 0 | Y13: 0 | Z13: 0 | AA13: 0 | AB13: 0 | AD13: =SUM(AC$3:AC13) -> 4 | AE13: =SUM(AC$3:AC12) -> 4 | AF13: 0.7697664925 | AG13: 0.7697664925 | AH13: 0 | AI13: 0
A14: =page3!A$2 -> Glass Door Cleaning | B14: =page3!B$2 -> Glass Doors | C14: =page3!C$2 -> Cleaning cloth, long handled wiping tool | D14: =page3!D$2 -> High level cleaning | E14: 12 | F14: 0 | G14: 0 | H14: 0 | I14: 0 | J14: 0 | K14: 0 | L14: 0 | M14: =IF($A14=0,"", INDEX(M$501:M$1959,MATCH($S14,$S$501:$S$1959,0))*page5!AJ14/page5!AK14) -> 0 | N14: 0 | O14: 0 | P14: 0 | Q14: 89 | R14: 12 | S14: Glass Door CleaningGlass DoorsCleaning cloth, long handled wiping toolHigh level cleaning12 | T14: =page3!E$2 -> 4 | V14: 0 | W14: 0 | X14: 0 | Y14: 0 | Z14: 0 | AA14: 0 | AB14: 0 | AD14: =SUM(AC$3:AC14) -> 4 | AE14: =SUM(AC$3:AC13) -> 4 | AF14: 0.7697664925 | AG14: 0.7697664925 | AH14: 0 | AI14: 0
A15: =page3!A$2 -> Glass Door Cleaning | B15: =page3!B$2 -> Glass Doors | C15: =page3!C$2 -> Cleaning cloth, long handled wiping tool | D15: =page3!D$2 -> High level cleaning | E15: 13 | F15: 0 | G15: 0 | H15: 0 | I15: 0 | J15: 0 | K15: 0 | L15: 0 | M15: =IF($A15=0,"", INDEX(M$501:M$1959,MATCH($S15,$S$501:$S$1959,0))*page5!AJ15/page5!AK15) -> 0 | N15: 0 | O15: 0 | P15: 0 | Q15: 89 | R15: 13 | S15: Glass Door CleaningGlass DoorsCleaning cloth, long handled wiping toolHigh level cleaning13 | T15: =page3!E$2 -> 4 | V15: 0 | W15: 0 | X15: 0 | Y15: 0 | Z15: 0 | AA15: 0 | AB15: 0 | AD15: =SUM(AC$3:AC15) -> 4 | AE15: =SUM(AC$3:AC14) -> 4 | AF15: 0.7697664925 | AG15: 0.7697664925 | AH15: 0 | AI15: 0
A16: =page3!A$2 -> Glass Door Cleaning | B16: =page3!B$2 -> Glass Doors | C16: =page3!C$2 -> Cleaning cloth, long handled wiping tool | D16: =page3!D$2 -> High level cleaning | E16: 14 | F16: 0 | G16: 0 | H16: 0 | I16: 0 | J16: 0 | K16: 0 | L16: 0 | M16: =IF($A16=0,"", INDEX(M$501:M$1959,MATCH($S16,$S$501:$S$1959,0))*page5!AJ16/page5!AK16) -> 0 | N16: 0 | O16: 0 | P16: 0 | Q16: 89 | R16: 14 | S16: Glass Door CleaningGlass DoorsCleaning cloth, long handled wiping toolHigh level cleaning14 | T16: =page3!E$2 -> 4 | V16: 0 | W16: 0 | X16: 0 | Y16: 0 | Z16: 0 | AA16: 0 | AB16: 0 | AD16: =SUM(AC$3:AC16) -> 4 | AE16: =SUM(AC$3:AC15) -> 4 | AF16: 0.7697664925 | AG16: 0.7697664925 | AH16: 0 | AI16: 0
A17: =page3!A$2 -> Glass Door Cleaning | B17: =page3!B$2 -> Glass Doors | C17: =page3!C$2 -> Cleaning cloth, long handled wiping tool | D17: =page3!D$2 -> High level cleaning | E17: 15 | F17: 0 | G17: 0 | H17: 0 | I17: 0 | J17: 0 | K17: 0 | L17: 0 | M17: =IF($A17=0,"", INDEX(M$501:M$1959,MATCH($S17,$S$501:$S$1959,0))*page5!AJ17/page5!AK17) -> 0 | N17: 0 | O17: 0 | P17: 0 | Q17: 89 | R17: 15 | S17: Glass Door CleaningGlass DoorsCleaning cloth, long handled wiping toolHigh level cleaning15 | T17: =page3!E$2 -> 4 | V17: 0 | W17: 0 | X17: 0 | Y17: 0 | Z17: 0 | AA17: 0 | AB17: 0 | AD17: =SUM(AC$3:AC17) -> 4 | AE17: =SUM(AC$3:AC16) -> 4 | AF17: 0.7697664925 | AG17: 0.7697664925 | AH17: 0 | AI17: 0
A18: =page3!A$3 -> 0 | B18: =page3!B$3 -> 0 | C18: =page3!C$3 -> 0 | D18: =page3!D$3 -> 0 | E18: 1 | M18: =IF($A18=0,"", INDEX(M$501:M$1959,MATCH($S18,$S$501:$S$1959,0))*page5!AJ18/page5!AK18) ->  | R18: 16 | S18: 00001 | T18: =page3!E$3 -> 0 | V18: 0 | W18: 0 | X18: 0 | Y18: 0 | Z18: 0 | AA18: 0 | AB18: 0 | AD18: =SUM(AC$3:AC18) -> 4 | AE18: =SUM(AC$3:AC17) -> 4 | AF18: 0.7697664925 | AG18: 0.7697664925 | AH18: 0 | AI18: 0
A19: =page3!A$3 -> 0 | B19: =page3!B$3 -> 0 | C19: =page3!C$3 -> 0 | D19: =page3!D$3 -> 0 | E19: 2 | M19: =IF($A19=0,"", INDEX(M$501:M$1959,MATCH($S19,$S$501:$S$1959,0))*page5!AJ19/page5!AK19) ->  | R19: 17 | S19: 00002 | T19: =page3!E$3 -> 0 | V19: 0 | W19: 0 | X19: 0 | Y19: 0 | Z19: 0 | AA19: 0 | AB19: 0 | AD19: =SUM(AC$3:AC19) -> 4 | AE19: =SUM(AC$3:AC18) -> 4 | AF19: 0.7697664925 | AG19: 0.7697664925 | AH19: 0 | AI19: 0
A20: =page3!A$3 -> 0 | B20: =page3!B$3 -> 0 | C20: =page3!C$3 -> 0 | D20: =page3!D$3 -> 0 | E20: 3 | M20: =IF($A20=0,"", INDEX(M$501:M$1959,MATCH($S20,$S$501:$S$1959,0))*page5!AJ20/page5!AK20) ->  | R20: 18 | S20: 00003 | T20: =page3!E$3 -> 0 | V20: 0 | W20: 0 | X20: 0 | Y20: 0 | Z20: 0 | AA20: 0 | AB20: 0 | AD20: =SUM(AC$3:AC20) -> 4 | AE20: =SUM(AC$3:AC19) -> 4 | AF20: 0.7697664925 | AG20: 0.7697664925 | AH20: 0 | AI20: 0
A21: =page3!A$3 -> 0 | B21: =page3!B$3 -> 0 | C21: =page3!C$3 -> 0 | D21: =page3!D$3 -> 0 | E21: 4 | M21: =IF($A21=0,"", INDEX(M$501:M$1959,MATCH($S21,$S$501:$S$1959,0))*page5!AJ21/page5!AK21) ->  | R21: 19 | S21: 00004 | T21: =page3!E$3 -> 0 | V21: 0 | W21: 0 | X21: 0 | Y21: 0 | Z21: 0 | AA21: 0 | AB21: 0 | AD21: =SUM(AC$3:AC21) -> 4 | AE21: =SUM(AC$3:AC20) -> 4 | AF21: 0.7697664925 | AG21: 0.7697664925 | AH21: 0 | AI21: 0
A22: =page3!A$3 -> 0 | B22: =page3!B$3 -> 0 | C22: =page3!C$3 -> 0 | D22: =page3!D$3 -> 0 | E22: 5 | M22: =IF($A22=0,"", INDEX(M$501:M$1959,MATCH($S22,$S$501:$S$1959,0))*page5!AJ22/page5!AK22) ->  | R22: 20 | S22: 00005 | T22: =page3!E$3 -> 0 | V22: 0 | W22: 0 | X22: 0 | Y22: 0 | Z22: 0 | AA22: 0 | AB22: 0 | AD22: =SUM(AC$3:AC22) -> 4 | AE22: =SUM(AC$3:AC21) -> 4 | AF22: 0.7697664925 | AG22: 0.7697664925 | AH22: 0 | AI22: 0
A23: =page3!A$3 -> 0 | B23: =page3!B$3 -> 0 | C23: =page3!C$3 -> 0 | D23: =page3!D$3 -> 0 | E23: 6 | G23: =IF($A23=0,"", INDEX(G$501:G$1959,MATCH($S23,$S$501:$S$1959,0))) ->  | M23: =IF($A23=0,"", INDEX(M$501:M$1959,MATCH($S23,$S$501:$S$1959,0))*page5!AJ23/page5!AK23) ->  | N23: =IF($A23=0,"", INDEX(N$501:N$1959,MATCH($S23,$S$501:$S$1959,0))) ->  | R23: 21 | S23: 00006 | T23: =page3!E$3 -> 0 | V23: 0 | W23: 0 | X23: 0 | Y23: 0 | Z23: 0 | AA23: 0 | AB23: 0 | AD23: =SUM(AC$3:AC23) -> 4 | AE23: =SUM(AC$3:AC22) -> 4 | AF23: 0.7697664925 | AG23: 0.7697664925 | AH23: 0 | AI23: 0
A24: =page3!A$3 -> 0 | B24: =page3!B$3 -> 0 | C24: =page3!C$3 -> 0 | D24: =page3!D$3 -> 0 | E24: 7 | M24: =IF($A24=0,"", INDEX(M$501:M$1959,MATCH($S24,$S$501:$S$1959,0))*page5!AJ24/page5!AK24) ->  | R24: 22 | S24: 00007 | T24: =page3!E$3 -> 0 | V24: 0 | W24: 0 | X24: 0 | Y24: 0 | Z24: 0 | AA24: 0 | AB24: 0 | AD24: =SUM(AC$3:AC24) -> 4 | AE24: =SUM(AC$3:AC23) -> 4 | AF24: 0.7697664925 | AG24: 0.7697664925 | AH24: 0 | AI24: 0
A25: =page3!A$3 -> 0 | B25: =page3!B$3 -> 0 | C25: =page3!C$3 -> 0 | D25: =page3!D$3 -> 0 | E25: 8 | M25: =IF($A25=0,"", INDEX(M$501:M$1959,MATCH($S25,$S$501:$S$1959,0))*page5!AJ25/page5!AK25) ->  | R25: 23 | S25: 00008 | T25: =page3!E$3 -> 0 | V25: 0 | W25: 0 | X25: 0 | Y25: 0 | Z25: 0 | AA25: 0 | AB25: 0 | AD25: =SUM(AC$3:AC25) -> 4 | AE25: =SUM(AC$3:AC24) -> 4 | AF25: 0.7697664925 | AG25: 0.7697664925 | AH25: 0 | AI25: 0
